Workbook

Sheet Eje.Depend.Afectacion
M3: Reporte de ejecución presupuestal | AD3: Usuario Solicitante: | AO3: MHrvillega RAMIRO ANTONIO VILLEGAS ROMERO
AD5: Unidad ó Subunidad Ejecutora Solicitante: | AO5: 32-02-00-000 IDEAM-GESTION GENERAL
AD9: Fecha y Hora Sistema: | AO9: 2022-07-01-7:55 a. m.
A14: AÑO FISCAL: | F14: 2022 | I14: VIGENCIA PRESUPUESTAL: | Q14: ACTUAL | X14: FECHA MOVIMIENTOS: | AE14: 1/01/2022 A 30/06/2022
A15: UNIDAD O SUBUNIDAD EJECUTORA: | G15: 32-02-00-000 IDEAM-GESTION GENERAL
A16: DEPENDENCIA DE AFECTACION DE GASTOS: | H16: 01 IDEAM-GG-DIRECCION GENERAL
A17: TIPO | C17: CTA | E17: SUBC | G17: OBJG | I17: ORD | L17: SORD | O17: ITEM | Q17: SITEM | S17: CONCEPTO | AA17: FUENTE | AF17: SITUACION | AI17: REC. | AJ17: RECURSO | AP17: APROPIACION VIGENTE DEPGSTO | AQ17: TOTAL CDP DEPGSTOS | AR17: APROPIACION DISPONIBLE DEPGSTO | AS17: TOTAL CDP MODIFICACION DEPGSTOS | AU17: TOTAL COMPROMISO DEPGSTOS | AW17: CDP POR COMPROMETER DEPGSTOS | AX17: TOTAL OBLIGACIONES DEPGSTOS | AY17: COMPROMISO POR OBLIGAR DEPGSTOS | AZ17: TOTAL ORDENES DE PAGO DEPGSTOS | BA17: OBLIGACIONES POR ORDENAR DEPGSTOS | BB17: PAGOS DEPGSTOS | BC17: ORDENES DE PAGO POR PAGAR DEPGSTOS | BD17: TOTAL REINTEGROS DEPGSTOS
A18: C | S18: INVERSION | AA18: Nación | AF18: CSF | AI18: 11 | AJ18: OTROS RECURSOS DEL TESORO | AP18: 399000000 | AQ18: 395063000 | AR18: 3937000 | AS18: 0,00 | AU18: 340883000 | AW18: 54180000 | AX18: 145768000 | AY18: 195115000 | AZ18: 145768000 | BA18: 0,00 | BB18: 145768000 | BC18: 0,00 | BD18: 0,00
A19: C | C19: 3204 | S19: GESTIÓN DE LA INFORMACIÓN Y EL CONOCIMIENTO AMBIENTAL | AA19: Nación | AF19: CSF | AI19: 11 | AJ19: OTROS RECURSOS DEL TESORO | AP19: 399000000 | AQ19: 395063000 | AR19: 3937000 | AS19: 0,00 | AU19: 340883000 | AW19: 54180000 | AX19: 145768000 | AY19: 195115000 | AZ19: 145768000 | BA19: 0,00 | BB19: 145768000 | BC19: 0,00 | BD19: 0,00
A20: C | C20: 3204 | E20: 0900 | S20: INTERSUBSECTORIAL AMBIENTE | AA20: Nación | AF20: CSF | AI20: 11 | AJ20: OTROS RECURSOS DEL TESORO | AP20: 399000000 | AQ20: 395063000 | AR20: 3937000 | AS20: 0,00 | AU20: 340883000 | AW20: 54180000 | AX20: 145768000 | AY20: 195115000 | AZ20: 145768000 | BA20: 0,00 | BB20: 145768000 | BC20: 0,00 | BD20: 0,00
A21: C | C21: 3204 | E21: 0900 | G21: 3 | S21: FORTALECIMIENTO DE LA GESTIÓN DEL CONOCIMIENTO HIDROLÓGICO, METEOROLÓGICO Y AMBIENTAL NACIONAL | AA21: Nación | AF21: CSF | AI21: 11 | AJ21: OTROS RECURSOS DEL TESORO | AP21: 399000000 | AQ21: 395063000 | AR21: 3937000 | AS21: 0,00 | AU21: 340883000 | AW21: 54180000 | AX21: 145768000 | AY21: 195115000 | AZ21: 145768000 | BA21: 0,00 | BB21: 145768000 | BC21: 0,00 | BD21: 0,00
A22: C | C22: 3204 | E22: 0900 | G22: 3 | I22: 0 | S22: FORTALECIMIENTO DE LA GESTIÓN DEL CONOCIMIENTO HIDROLÓGICO, METEOROLÓGICO Y AMBIENTAL NACIONAL | AA22: Nación | AF22: CSF | AI22: 11 | AJ22: OTROS RECURSOS DEL TESORO | AP22: 399000000 | AQ22: 395063000 | AR22: 3937000 | AS22: 0,00 | AU22: 340883000 | AW22: 54180000 | AX22: 145768000 | AY22: 195115000 | AZ22: 145768000 | BA22: 0,00 | BB22: 145768000 | BC22: 0,00 | BD22: 0,00
A23: C | C23: 3204 | E23: 0900 | G23: 3 | I23: 0 | L23: 3204043 | S23: SERVICIO DE INFORMACIÓN DE DATOS CLIMÁTICOS Y MONITOREO | AA23: Nación | AF23: CSF | AI23: 11 | AJ23: OTROS RECURSOS DEL TESORO | AP23: 399000000 | AQ23: 395063000 | AR23: 3937000 | AS23: 0,00 | AU23: 340883000 | AW23: 54180000 | AX23: 145768000 | AY23: 195115000 | AZ23: 145768000 | BA23: 0,00 | BB23: 145768000 | BC23: 0,00 | BD23: 0,00
A24: C | C24: 3204 | E24: 0900 | G24: 3 | I24: 0 | L24: 3204043 | O24: 02 | S24: ADQUISICIÓN DE BIENES Y SERVICIOS - SERVICIO DE INFORMACIÓN DE DATOS CLIMÁTICOS Y MONITOREO - FORTALECIMIENTO DE LA GESTIÓN DEL CONOCIMIENTO HIDROLÓGICO, METEOROLÓGICO Y AMBIENTAL NACIONAL | AA24: Nación | AF24: CSF | AI24: 11 | AJ24: OTROS RECURSOS DEL TESORO | AP24: 399000000 | AQ24: 395063000 | AR24: 3937000 | AS24: 0,00 | AU24: 340883000 | AW24: 54180000 | AX24: 145768000 | AY24: 195115000 | AZ24: 145768000 | BA24: 0,00 | BB24: 145768000 | BC24: 0,00 | BD24: 0,00
A26: DEPENDENCIA DE AFECTACION DE GASTOS: | H26: 02 IDEAM-GG-SECRETARIA GENERAL
A27: TIPO | C27: CTA | E27: SUBC | G27: OBJG | I27: ORD | L27: SORD | O27: ITEM | Q27: SITEM | S27: CONCEPTO | AA27: FUENTE | AF27: SITUACION | AI27: REC. | AJ27: RECURSO | AP27: APROPIACION VIGENTE DEPGSTO | AQ27: TOTAL CDP DEPGSTOS | AR27: APROPIACION DISPONIBLE DEPGSTO | AS27: TOTAL CDP MODIFICACION DEPGSTOS | AU27: TOTAL COMPROMISO DEPGSTOS | AW27: CDP POR COMPROMETER DEPGSTOS | AX27: TOTAL OBLIGACIONES DEPGSTOS | AY27: COMPROMISO POR OBLIGAR DEPGSTOS | AZ27: TOTAL ORDENES DE PAGO DEPGSTOS | BA27: OBLIGACIONES POR ORDENAR DEPGSTOS | BB27: PAGOS DEPGSTOS | BC27: ORDENES DE PAGO POR PAGAR DEPGSTOS | BD27: TOTAL REINTEGROS DEPGSTOS
A28: A | S28: FUNCIONAMIENTO | AA28: Nación | AF28: CSF | AI28: 10 | AJ28: RECURSOS CORRIENTES | AP28: 47275900000 | AQ28: 47130301310 | AR28: 145598690 | AS28: 0,00 | AU28: 2.373858464e+10 | AW28: 2.339171667e+10 | AX28: 1.996886312e+10 | AY28: 3769721515 | AZ28: 1.996886312e+10 | BA28: 0,00 | BB28: 1.996886312e+10 | BC28: 0,00 | BD28: 41414312
A29: A | S29: FUNCIONAMIENTO | AA29: Nación | AF29: SSF | AI29: 11 | AJ29: OTROS RECURSOS DEL TESORO | AP29: 218383350 | AQ29: 0,00 | AR29: 218383350 | AS29: 0,00 | AU29: 0,00 | AW29: 0,00 | AX29: 0,00 | AY29: 0,00 | AZ29: 0,00 | BA29: 0,00 | BB29: 0,00 | BC29: 0,00 | BD29: 0,00
A30: A | S30: FUNCIONAMIENTO | AA30: Propios | AF30: CSF | AI30: 21 | AJ30: OTROS RECURSOS DE TESORERIA | AP30: 596894000 | AQ30: 533476000 | AR30: 63418000 | AS30: 0,00 | AU30: 533091000 | AW30: 385000 | AX30: 222524000 | AY30: 310567000 | AZ30: 222524000 | BA30: 0,00 | BB30: 222524000 | BC30: 0,00 | BD30: 0,00
A31: A | C31: 01 | S31: GASTOS DE PERSONAL | AA31: Nación | AF31: CSF | AI31: 10 | AJ31: RECURSOS CORRIENTES | AP31: 30641000000 | AQ31: 30641000000 | AR31: 0,00 | AS31: 0,00 | AU31: 14343588392 | AW31: 16297411608 | AX31: 14243774320 | AY31: 99814072 | AZ31: 14243774320 | BA31: 0,00 | BB31: 14243774320 | BC31: 0,00 | BD31: 17626069
A32: A | C32: 01 | E32: 01 | S32: PLANTA DE PERSONAL PERMANENTE | AA32: Nación | AF32: CSF | AI32: 10 | AJ32: RECURSOS CORRIENTES | AP32: 30641000000 | AQ32: 30641000000 | AR32: 0,00 | AS32: 0,00 | AU32: 14343588392 | AW32: 16297411608 | AX32: 14243774320 | AY32: 99814072 | AZ32: 14243774320 | BA32: 0,00 | BB32: 14243774320 | BC32: 0,00 | BD32: 17626069
A33: A | C33: 01 | E33: 01 | G33: 01 | S33: SALARIO | AA33: Nación | AF33: CSF | AI33: 10 | AJ33: RECURSOS CORRIENTES | AP33: 20880000000 | AQ33: 20880000000 | AR33: 0,00 | AS33: 0,00 | AU33: 9498306039 | AW33: 11381693961 | AX33: 9494101037 | AY33: 4205002 | AZ33: 9494101037 | BA33: 0,00 | BB33: 9494101037 | BC33: 0,00 | BD33: 9732388
A34: A | C34: 01 | E34: 01 | G34: 01 | I34: 001 | S34: FACTORES SALARIALES COMUNES | AA34: Nación | AF34: CSF | AI34: 10 | AJ34: RECURSOS CORRIENTES | AP34: 19972262769 | AQ34: 19972262769 | AR34: 0,00 | AS34: 0,00 | AU34: 9056060481 | AW34: 10916202288 | AX34: 9051855479 | AY34: 4205002 | AZ34: 9051855479 | BA34: 0,00 | BB34: 9051855479 | BC34: 0,00 | BD34: 9732388
A35: A | C35: 01 | E35: 01 | G35: 01 | I35: 001 | L35: 001 | S35: SUELDO BÁSICO | AA35: Nación | AF35: CSF | AI35: 10 | AJ35: RECURSOS CORRIENTES | AP35: 14162436744 | AQ35: 14162436744 | AR35: 0,00 | AS35: 0,00 | AU35: 7093590145 | AW35: 7068846599 | AX35: 7089385143 | AY35: 4205002 | AZ35: 7089385143 | BA35: 0,00 | BB35: 7089385143 | BC35: 0,00 | BD35: 3702079
A36: A | C36: 01 | E36: 01 | G36: 01 | I36: 001 | L36: 003 | S36: PRIMA TÉCNICA SALARIAL | AA36: Nación | AF36: CSF | AI36: 10 | AJ36: RECURSOS CORRIENTES | AP36: 90157782 | AQ36: 90157782 | AR36: 0,00 | AS36: 0,00 | AU36: 46625615 | AW36: 43532167 | AX36: 46625615 | AY36: 0,00 | AZ36: 46625615 | BA36: 0,00 | BB36: 46625615 | BC36: 0,00 | BD36: 0,00
A37: A | C37: 01 | E37: 01 | G37: 01 | I37: 001 | L37: 004 | S37: SUBSIDIO DE ALIMENTACIÓN | AA37: Nación | AF37: CSF | AI37: 10 | AJ37: RECURSOS CORRIENTES | AP37: 129582526 | AQ37: 129582526 | AR37: 0,00 | AS37: 0,00 | AU37: 86389939 | AW37: 43192587 | AX37: 86389939 | AY37: 0,00 | AZ37: 86389939 | BA37: 0,00 | BB37: 86389939 | BC37: 0,00 | BD37: 0,00
A38: A | C38: 01 | E38: 01 | G38: 01 | I38: 001 | L38: 005 | S38: AUXILIO DE TRANSPORTE | AA38: Nación | AF38: CSF | AI38: 10 | AJ38: RECURSOS CORRIENTES | AP38: 153094872 | AQ38: 153094872 | AR38: 0,00 | AS38: 0,00 | AU38: 100122942 | AW38: 52971930 | AX38: 100122942 | AY38: 0,00 | AZ38: 100122942 | BA38: 0,00 | BB38: 100122942 | BC38: 0,00 | BD38: 5652145
A39: A | C39: 01 | E39: 01 | G39: 01 | I39: 001 | L39: 006 | S39: PRIMA DE SERVICIO | AA39: Nación | AF39: CSF | AI39: 10 | AJ39: RECURSOS CORRIENTES | AP39: 695515084 | AQ39: 695515084 | AR39: 0,00 | AS39: 0,00 | AU39: 26221743 | AW39: 669293341 | AX39: 26221743 | AY39: 0,00 | AZ39: 26221743 | BA39: 0,00 | BB39: 26221743 | BC39: 0,00 | BD39: 0,00
A40: A | C40: 01 | E40: 01 | G40: 01 | I40: 001 | L40: 007 | S40: BONIFICACIÓN POR SERVICIOS PRESTADOS | AA40: Nación | AF40: CSF | AI40: 10 | AJ40: RECURSOS CORRIENTES | AP40: 498017482 | AQ40: 498017482 | AR40: 0,00 | AS40: 0,00 | AU40: 260203650 | AW40: 237813832 | AX40: 260203650 | AY40: 0,00 | AZ40: 260203650 | BA40: 0,00 | BB40: 260203650 | BC40: 0,00 | BD40: 378164
A41: A | C41: 01 | E41: 01 | G41: 01 | I41: 001 | L41: 008 | S41: HORAS EXTRAS, DOMINICALES, FESTIVOS Y RECARGOS | AA41: Nación | AF41: CSF | AI41: 10 | AJ41: RECURSOS CORRIENTES | AP41: 2208890558 | AQ41: 2208890558 | AR41: 0,00 | AS41: 0,00 | AU41: 1005468675 | AW41: 1203421883 | AX41: 1005468675 | AY41: 0,00 | AZ41: 1005468675 | BA41: 0,00 | BB41: 1005468675 | BC41: 0,00 | BD41: 0,00
A42: A | C42: 01 | E42: 01 | G42: 01 | I42: 001 | L42: 009 | S42: PRIMA DE NAVIDAD | AA42: Nación | AF42: CSF | AI42: 10 | AJ42: RECURSOS CORRIENTES | AP42: 1109335261 | AQ42: 1109335261 | AR42: 0,00 | AS42: 0,00 | AU42: 25217600 | AW42: 1084117661 | AX42: 25217600 | AY42: 0,00 | AZ42: 25217600 | BA42: 0,00 | BB42: 25217600 | BC42: 0,00 | BD42: 0,00
A43: A | C43: 01 | E43: 01 | G43: 01 | I43: 001 | L43: 010 | S43: PRIMA DE VACACIONES | AA43: Nación | AF43: CSF | AI43: 10 | AJ43: RECURSOS CORRIENTES | AP43: 889034526 | AQ43: 889034526 | AR43: 0,00 | AS43: 0,00 | AU43: 393093792 | AW43: 495940734 | AX43: 393093792 | AY43: 0,00 | AZ43: 393093792 | BA43: 0,00 | BB43: 393093792 | BC43: 0,00 | BD43: 0,00
A44: A | C44: 01 | E44: 01 | G44: 01 | I44: 001 | L44: 012 | S44: AUXILIO DE CONECTIVIDAD DIGITAL | AA44: Nación | AF44: CSF | AI44: 10 | AJ44: RECURSOS CORRIENTES | AP44: 36197934 | AQ44: 36197934 | AR44: 0,00 | AS44: 0,00 | AU44: 19126380 | AW44: 17071554 | AX44: 19126380 | AY44: 0,00 | AZ44: 19126380 | BA44: 0,00 | BB44: 19126380 | BC44: 0,00 | BD44: 0,00
A45: A | C45: 01 | E45: 01 | G45: 01 | I45: 002 | S45: FACTORES SALARIALES ESPECIALES | AA45: Nación | AF45: CSF | AI45: 10 | AJ45: RECURSOS CORRIENTES | AP45: 907737231 | AQ45: 907737231 | AR45: 0,00 | AS45: 0,00 | AU45: 442245558 | AW45: 465491673 | AX45: 442245558 | AY45: 0,00 | AZ45: 442245558 | BA45: 0,00 | BB45: 442245558 | BC45: 0,00 | BD45: 0,00
A46: A | C46: 01 | E46: 01 | G46: 01 | I46: 002 | L46: 003 | S46: PRIMA ESPECIAL DE SERVICIOS | AA46: Nación | AF46: CSF | AI46: 10 | AJ46: RECURSOS CORRIENTES | AP46: 465780980 | AQ46: 465780980 | AR46: 0,00 | AS46: 0,00 | AU46: 434773990 | AW46: 31006990 | AX46: 434773990 | AY46: 0,00 | AZ46: 434773990 | BA46: 0,00 | BB46: 434773990 | BC46: 0,00 | BD46: 0,00
A47: A | C47: 01 | E47: 01 | G47: 01 | I47: 002 | L47: 004 | S47: PRIMA SEMESTRAL | AA47: Nación | AF47: CSF | AI47: 10 | AJ47: RECURSOS CORRIENTES | AP47: 441956251 | AQ47: 441956251 | AR47: 0,00 | AS47: 0,00 | AU47: 7471568 | AW47: 434484683 | AX47: 7471568 | AY47: 0,00 | AZ47: 7471568 | BA47: 0,00 | BB47: 7471568 | BC47: 0,00 | BD47: 0,00
A48: A | C48: 01 | E48: 01 | G48: 02 | S48: CONTRIBUCIONES INHERENTES A LA NÓMINA | AA48: Nación | AF48: CSF | AI48: 10 | AJ48: RECURSOS CORRIENTES | AP48: 7620000000 | AQ48: 7620000000 | AR48: 0,00 | AS48: 0,00 | AU48: 3764549923 | AW48: 3855450077 | AX48: 3670552187 | AY48: 93997736 | AZ48: 3670552187 | BA48: 0,00 | BB48: 3670552187 | BC48: 0,00 | BD48: 0,00
A49: A | C49: 01 | E49: 01 | G49: 02 | I49: 001 | S49: APORTES A LA SEGURIDAD SOCIAL EN PENSIONES | AA49: Nación | AF49: CSF | AI49: 10 | AJ49: RECURSOS CORRIENTES | AP49: 2139952467 | AQ49: 2139952467 | AR49: 0,00 | AS49: 0,00 | AU49: 1078274100 | AW49: 1061678367 | AX49: 1077769500 | AY49: 504600 | AZ49: 1077769500 | BA49: 0,00 | BB49: 1077769500 | BC49: 0,00 | BD49: 0,00
A50: A | C50: 01 | E50: 01 | G50: 02 | I50: 002 | S50: APORTES A LA SEGURIDAD SOCIAL EN SALUD | AA50: Nación | AF50: CSF | AI50: 10 | AJ50: RECURSOS CORRIENTES | AP50: 1459397767 | AQ50: 1459397767 | AR50: 0,00 | AS50: 0,00 | AU50: 763670400 | AW50: 695727367 | AX50: 763313000 | AY50: 357400 | AZ50: 763313000 | BA50: 0,00 | BB50: 763313000 | BC50: 0,00 | BD50: 0,00
A51: A | C51: 01 | E51: 01 | G51: 02 | I51: 003 | S51: AUXILIO DE CESANTÍAS | AA51: Nación | AF51: CSF | AI51: 10 | AJ51: RECURSOS CORRIENTES | AP51: 1795344560 | AQ51: 1795344560 | AR51: 0,00 | AS51: 0,00 | AU51: 836365423 | AW51: 958979137 | AX51: 743630387 | AY51: 92735036 | AZ51: 743630387 | BA51: 0,00 | BB51: 743630387 | BC51: 0,00 | BD51: 0,00
A52: A | C52: 01 | E52: 01 | G52: 02 | I52: 004 | S52: APORTES A CAJAS DE COMPENSACIÓN FAMILIAR | AA52: Nación | AF52: CSF | AI52: 10 | AJ52: RECURSOS CORRIENTES | AP52: 808875967 | AQ52: 808875967 | AR52: 0,00 | AS52: 0,00 | AU52: 394999800 | AW52: 413876167 | AX52: 394831500 | AY52: 168300 | AZ52: 394831500 | BA52: 0,00 | BB52: 394831500 | BC52: 0,00 | BD52: 0,00
A53: A | C53: 01 | E53: 01 | G53: 02 | I53: 005 | S53: APORTES GENERALES AL SISTEMA DE RIESGOS LABORALES | AA53: Nación | AF53: CSF | AI53: 10 | AJ53: RECURSOS CORRIENTES | AP53: 400367405 | AQ53: 400367405 | AR53: 0,00 | AS53: 0,00 | AU53: 196608900 | AW53: 203758505 | AX53: 196586900 | AY53: 22000 | AZ53: 196586900 | BA53: 0,00 | BB53: 196586900 | BC53: 0,00 | BD53: 0,00
A54: A | C54: 01 | E54: 01 | G54: 02 | I54: 006 | S54: APORTES AL ICBF | AA54: Nación | AF54: CSF | AI54: 10 | AJ54: RECURSOS CORRIENTES | AP54: 608312667 | AQ54: 608312667 | AR54: 0,00 | AS54: 0,00 | AU54: 296599900 | AW54: 311712767 | AX54: 296473700 | AY54: 126200 | AZ54: 296473700 | BA54: 0,00 | BB54: 296473700 | BC54: 0,00 | BD54: 0,00
A55: A | C55: 01 | E55: 01 | G55: 02 | I55: 007 | S55: APORTES AL SENA | AA55: Nación | AF55: CSF | AI55: 10 | AJ55: RECURSOS CORRIENTES | AP55: 407749167 | AQ55: 407749167 | AR55: 0,00 | AS55: 0,00 | AU55: 198031400 | AW55: 209717767 | AX55: 197947200 | AY55: 84200 | AZ55: 197947200 | BA55: 0,00 | BB55: 197947200 | BC55: 0,00 | BD55: 0,00
A56: A | C56: 01 | E56: 01 | G56: 03 | S56: REMUNERACIONES NO CONSTITUTIVAS DE FACTOR SALARIAL | AA56: Nación | AF56: CSF | AI56: 10 | AJ56: RECURSOS CORRIENTES | AP56: 2141000000 | AQ56: 2141000000 | AR56: 0,00 | AS56: 0,00 | AU56: 1080732430 | AW56: 1060267570 | AX56: 1079121096 | AY56: 1611334 | AZ56: 1079121096 | BA56: 0,00 | BB56: 1079121096 | BC56: 0,00 | BD56: 7893681
A57: A | C57: 01 | E57: 01 | G57: 03 | I57: 001 | S57: PRESTACIONES SOCIALES SEGÚN DEFINICIÓN LEGAL | AA57: Nación | AF57: CSF | AI57: 10 | AJ57: RECURSOS CORRIENTES | AP57: 1020920888 | AQ57: 1020920888 | AR57: 0,00 | AS57: 0,00 | AU57: 501744045 | AW57: 519176843 | AX57: 500132711 | AY57: 1611334 | AZ57: 500132711 | BA57: 0,00 | BB57: 500132711 | BC57: 0,00 | BD57: 5658658
A58: A | C58: 01 | E58: 01 | G58: 03 | I58: 001 | L58: 001 | S58: VACACIONES | AA58: Nación | AF58: CSF | AI58: 10 | AJ58: RECURSOS CORRIENTES | AP58: 819995701 | AQ58: 819995701 | AR58: 0,00 | AS58: 0,00 | AU58: 388812898 | AW58: 431182803 | AX58: 388812898 | AY58: 0,00 | AZ58: 388812898 | BA58: 0,00 | BB58: 388812898 | BC58: 0,00 | BD58: 0,00
A59: A | C59: 01 | E59: 01 | G59: 03 | I59: 001 | L59: 002 | S59: INDEMNIZACIÓN POR VACACIONES | AA59: Nación | AF59: CSF | AI59: 10 | AJ59: RECURSOS CORRIENTES | AP59: 122632377 | AQ59: 122632377 | AR59: 0,00 | AS59: 0,00 | AU59: 74565496 | AW59: 48066881 | AX59: 72954162 | AY59: 1611334 | AZ59: 72954162 | BA59: 0,00 | BB59: 72954162 | BC59: 0,00 | BD59: 5658658
A60: A | C60: 01 | E60: 01 | G60: 03 | I60: 001 | L60: 003 | S60: BONIFICACIÓN ESPECIAL DE RECREACIÓN | AA60: Nación | AF60: CSF | AI60: 10 | AJ60: RECURSOS CORRIENTES | AP60: 78292810 | AQ60: 78292810 | AR60: 0,00 | AS60: 0,00 | AU60: 38365651 | AW60: 39927159 | AX60: 38365651 | AY60: 0,00 | AZ60: 38365651 | BA60: 0,00 | BB60: 38365651 | BC60: 0,00 | BD60: 0,00
A61: A | C61: 01 | E61: 01 | G61: 03 | I61: 002 | S61: PRIMA TÉCNICA NO SALARIAL | AA61: Nación | AF61: CSF | AI61: 10 | AJ61: RECURSOS CORRIENTES | AP61: 580678266 | AQ61: 580678266 | AR61: 0,00 | AS61: 0,00 | AU61: 285416412 | AW61: 295261854 | AX61: 285416412 | AY61: 0,00 | AZ61: 285416412 | BA61: 0,00 | BB61: 285416412 | BC61: 0,00 | BD61: 0,00
A62: A | C62: 01 | E62: 01 | G62: 03 | I62: 016 | S62: PRIMA DE COORDINACIÓN | AA62: Nación | AF62: CSF | AI62: 10 | AJ62: RECURSOS CORRIENTES | AP62: 376434913 | AQ62: 376434913 | AR62: 0,00 | AS62: 0,00 | AU62: 216123425 | AW62: 160311488 | AX62: 216123425 | AY62: 0,00 | AZ62: 216123425 | BA62: 0,00 | BB62: 216123425 | BC62: 0,00 | BD62: 2235023
A63: A | C63: 01 | E63: 01 | G63: 03 | I63: 030 | S63: BONIFICACIÓN DE DIRECCIÓN | AA63: Nación | AF63: CSF | AI63: 10 | AJ63: RECURSOS CORRIENTES | AP63: 67816884 | AQ63: 67816884 | AR63: 0,00 | AS63: 0,00 | AU63: 35174274 | AW63: 32642610 | AX63: 35174274 | AY63: 0,00 | AZ63: 35174274 | BA63: 0,00 | BB63: 35174274 | BC63: 0,00 | BD63: 0,00
A64: A | C64: 01 | E64: 01 | G64: 03 | I64: 038 | S64: QUINQUENIOS | AA64: Nación | AF64: CSF | AI64: 10 | AJ64: RECURSOS CORRIENTES | AP64: 95149049 | AQ64: 95149049 | AR64: 0,00 | AS64: 0,00 | AU64: 42274274 | AW64: 52874775 | AX64: 42274274 | AY64: 0,00 | AZ64: 42274274 | BA64: 0,00 | BB64: 42274274 | BC64: 0,00 | BD64: 0,00
A65: A | C65: 01 | E65: 01 | G65: 03 | I65: 038 | L65: 001 | S65: BENEFICIOS A LOS EMPLEADOS A CORTO PLAZO | AA65: Nación | AF65: CSF | AI65: 10 | AJ65: RECURSOS CORRIENTES | AP65: 95149049 | AQ65: 95149049 | AR65: 0,00 | AS65: 0,00 | AU65: 42274274 | AW65: 52874775 | AX65: 42274274 | AY65: 0,00 | AZ65: 42274274 | BA65: 0,00 | BB65: 42274274 | BC65: 0,00 | BD65: 0,00
A66: A | C66: 02 | S66: ADQUISICIÓN DE BIENES Y SERVICIOS | AA66: Nación | AF66: CSF | AI66: 10 | AJ66: RECURSOS CORRIENTES | AP66: 16030000000 | AQ66: 15928101310 | AR66: 101898690 | AS66: 0,00 | AU66: 9106232599 | AW66: 6821868711 | AX66: 5460076382 | AY66: 3646156217 | AZ66: 5460076382 | BA66: 0,00 | BB66: 5460076382 | BC66: 0,00 | BD66: 37017
A67: A | C67: 02 | S67: ADQUISICIÓN DE BIENES Y SERVICIOS | AA67: Propios | AF67: CSF | AI67: 21 | AJ67: OTROS RECURSOS DE TESORERIA | AP67: 596894000 | AQ67: 533476000 | AR67: 63418000 | AS67: 0,00 | AU67: 533091000 | AW67: 385000 | AX67: 222524000 | AY67: 310567000 | AZ67: 222524000 | BA67: 0,00 | BB67: 222524000 | BC67: 0,00 | BD67: 0,00
A68: A | C68: 02 | E68: 01 | S68: ADQUISICIÓN DE ACTIVOS NO FINANCIEROS | AA68: Nación | AF68: CSF | AI68: 10 | AJ68: RECURSOS CORRIENTES | AP68: 72799600 | AQ68: 70799600 | AR68: 2000000 | AS68: 0,00 | AU68: 7103400 | AW68: 63696200 | AX68: 0,00 | AY68: 7103400 | AZ68: 0,00 | BA68: 0,00 | BB68: 0,00 | BC68: 0,00 | BD68: 0,00
A69: A | C69: 02 | E69: 01 | G69: 01 | S69: ACTIVOS FIJOS | AA69: Nación | AF69: CSF | AI69: 10 | AJ69: RECURSOS CORRIENTES | AP69: 72799600 | AQ69: 70799600 | AR69: 2000000 | AS69: 0,00 | AU69: 7103400 | AW69: 63696200 | AX69: 0,00 | AY69: 7103400 | AZ69: 0,00 | BA69: 0,00 | BB69: 0,00 | BC69: 0,00 | BD69: 0,00
A70: A | C70: 02 | E70: 01 | G70: 01 | I70: 003 | S70: ACTIVOS FIJOS NO CLASIFICADOS COMO MAQUINARIA Y EQUIPO | AA70: Nación | AF70: CSF | AI70: 10 | AJ70: RECURSOS CORRIENTES | AP70: 48400000 | AQ70: 48400000 | AR70: 0,00 | AS70: 0,00 | AU70: 0,00 | AW70: 48400000 | AX70: 0,00 | AY70: 0,00 | AZ70: 0,00 | BA70: 0,00 | BB70: 0,00 | BC70: 0,00 | BD70: 0,00
A71: A | C71: 02 | E71: 01 | G71: 01 | I71: 003 | L71: 008 | S71: MUEBLES, INSTRUMENTOS MUSICALES, ARTÍCULOS DE DEPORTE Y ANTIGÜEDADES | AA71: Nación | AF71: CSF | AI71: 10 | AJ71: RECURSOS CORRIENTES | AP71: 48400000 | AQ71: 48400000 | AR71: 0,00 | AS71: 0,00 | AU71: 0,00 | AW71: 48400000 | AX71: 0,00 | AY71: 0,00 | AZ71: 0,00 | BA71: 0,00 | BB71: 0,00 | BC71: 0,00 | BD71: 0,00
A72: A | C72: 02 | E72: 01 | G72: 01 | I72: 004 | S72: MAQUINARIA Y EQUIPO | AA72: Nación | AF72: CSF | AI72: 10 | AJ72: RECURSOS CORRIENTES | AP72: 24399600 | AQ72: 22399600 | AR72: 2000000 | AS72: 0,00 | AU72: 7103400 | AW72: 15296200 | AX72: 0,00 | AY72: 7103400 | AZ72: 0,00 | BA72: 0,00 | BB72: 0,00 | BC72: 0,00 | BD72: 0,00
A73: A | C73: 02 | E73: 01 | G73: 01 | I73: 004 | L73: 003 | S73: MAQUINARIA PARA USO GENERAL | AA73: Nación | AF73: CSF | AI73: 10 | AJ73: RECURSOS CORRIENTES | AP73: 2000000 | AQ73: 0,00 | AR73: 2000000 | AS73: 0,00 | AU73: 0,00 | AW73: 0,00 | AX73: 0,00 | AY73: 0,00 | AZ73: 0,00 | BA73: 0,00 | BB73: 0,00 | BC73: 0,00 | BD73: 0,00
A74: A | C74: 02 | E74: 01 | G74: 01 | I74: 004 | L74: 004 | S74: MAQUINARIA PARA USOS ESPECIALES | AA74: Nación | AF74: CSF | AI74: 10 | AJ74: RECURSOS CORRIENTES | AP74: 22399600 | AQ74: 22399600 | AR74: 0,00 | AS74: 0,00 | AU74: 7103400 | AW74: 15296200 | AX74: 0,00 | AY74: 7103400 | AZ74: 0,00 | BA74: 0,00 | BB74: 0,00 | BC74: 0,00 | BD74: 0,00
A75: A | C75: 02 | E75: 01 | G75: 01 | I75: 004 | L75: 009 | S75: EQUIPO DE TRANSPORTE | AA75: Nación | AF75: CSF | AI75: 10 | AJ75: RECURSOS CORRIENTES | AP75: 0,00 | AQ75: 0,00 | AR75: 0,00 | AS75: 0,00 | AU75: 0,00 | AW75: 0,00 | AX75: 0,00 | AY75: 0,00 | AZ75: 0,00 | BA75: 0,00 | BB75: 0,00 | BC75: 0,00 | BD75: 0,00
A76: A | C76: 02 | E76: 02 | S76: ADQUISICIONES DIFERENTES DE ACTIVOS | AA76: Nación | AF76: CSF | AI76: 10 | AJ76: RECURSOS CORRIENTES | AP76: 15957200400 | AQ76: 15857301710 | AR76: 99898690 | AS76: 0,00 | AU76: 9099129199 | AW76: 6758172511 | AX76: 5460076382 | AY76: 3639052817 | AZ76: 5460076382 | BA76: 0,00 | BB76: 5460076382 | BC76: 0,00 | BD76: 37017
A77: A | C77: 02 | E77: 02 | S77: ADQUISICIONES DIFERENTES DE ACTIVOS | AA77: Propios | AF77: CSF | AI77: 21 | AJ77: OTROS RECURSOS DE TESORERIA | AP77: 596894000 | AQ77: 533476000 | AR77: 63418000 | AS77: 0,00 | AU77: 533091000 | AW77: 385000 | AX77: 222524000 | AY77: 310567000 | AZ77: 222524000 | BA77: 0,00 | BB77: 222524000 | BC77: 0,00 | BD77: 0,00
A78: A | C78: 02 | E78: 02 | G78: 01 | S78: MATERIALES Y SUMINISTROS | AA78: Nación | AF78: CSF | AI78: 10 | AJ78: RECURSOS CORRIENTES | AP78: 1349850476 | AQ78: 1301450476 | AR78: 48400000 | AS78: 0,00 | AU78: 117991856.2 | AW78: 1183458620 | AX78: 66343355.94 | AY78: 51648500.31 | AZ78: 66343355.94 | BA78: 0,00 | BB78: 66343355.94 | BC78: 0,00 | BD78: 0,00
A79: A | C79: 02 | E79: 02 | G79: 01 | I79: 002 | S79: PRODUCTOS ALIMENTICIOS, BEBIDAS Y TABACO; TEXTILES, PRENDAS DE VESTIR Y PRODUCTOS DE CUERO | AA79: Nación | AF79: CSF | AI79: 10 | AJ79: RECURSOS CORRIENTES | AP79: 189360000 | AQ79: 189360000 | AR79: 0,00 | AS79: 0,00 | AU79: 45579347.84 | AW79: 143780652.2 | AX79: 45579347.84 | AY79: 0,00 | AZ79: 45579347.84 | BA79: 0,00 | BB79: 45579347.84 | BC79: 0,00 | BD79: 0,00
A80: A | C80: 02 | E80: 02 | G80: 01 | I80: 002 | L80: 007 | S80: ARTÍCULOS TEXTILES (EXCEPTO PRENDAS DE VESTIR) | AA80: Nación | AF80: CSF | AI80: 10 | AJ80: RECURSOS CORRIENTES | AP80: 7000000 | AQ80: 7000000 | AR80: 0,00 | AS80: 0,00 | AU80: 0,00 | AW80: 7000000 | AX80: 0,00 | AY80: 0,00 | AZ80: 0,00 | BA80: 0,00 | BB80: 0,00 | BC80: 0,00 | BD80: 0,00
A81: A | C81: 02 | E81: 02 | G81: 01 | I81: 002 | L81: 008 | S81: DOTACIÓN (PRENDAS DE VESTIR Y CALZADO) | AA81: Nación | AF81: CSF | AI81: 10 | AJ81: RECURSOS CORRIENTES | AP81: 182360000 | AQ81: 182360000 | AR81: 0,00 | AS81: 0,00 | AU81: 45579347.84 | AW81: 136780652.2 | AX81: 45579347.84 | AY81: 0,00 | AZ81: 45579347.84 | BA81: 0,00 | BB81: 45579347.84 | BC81: 0,00 | BD81: 0,00
A82: A | C82: 02 | E82: 02 | G82: 01 | I82: 003 | S82: OTROS BIENES TRANSPORTABLES (EXCEPTO PRODUCTOS METÁLICOS, MAQUINARIA Y EQUIPO) | AA82: Nación | AF82: CSF | AI82: 10 | AJ82: RECURSOS CORRIENTES | AP82: 884343653.5 | AQ82: 835943653.5 | AR82: 48400000 | AS82: 0,00 | AU82: 69056708.41 | AW82: 766886945.1 | AX82: 20764008.1 | AY82: 48292700.31 | AZ82: 20764008.1 | BA82: 0,00 | BB82: 20764008.1 | BC82: 0,00 | BD82: 0,00
A83: A | C83: 02 | E83: 02 | G83: 01 | I83: 003 | L83: 002 | S83: PASTA O PULPA, PAPEL Y PRODUCTOS DE PAPEL; IMPRESOS Y ARTÍCULOS RELACIONADOS | AA83: Nación | AF83: CSF | AI83: 10 | AJ83: RECURSOS CORRIENTES | AP83: 15471154.28 | AQ83: 15471154.28 | AR83: 0,00 | AS83: 0,00 | AU83: 6000000 | AW83: 9471154.28 | AX83: 3747900 | AY83: 2252100 | AZ83: 3747900 | BA83: 0,00 | BB83: 3747900 | BC83: 0,00 | BD83: 0,00
A84: A | C84: 02 | E84: 02 | G84: 01 | I84: 003 | L84: 003 | S84: PRODUCTOS DE HORNOS DE COQUE; PRODUCTOS DE REFINACIÓN DE PETRÓLEO Y COMBUSTIBLE NUCLEAR | AA84: Nación | AF84: CSF | AI84: 10 | AJ84: RECURSOS CORRIENTES | AP84: 41810476 | AQ84: 41810476 | AR84: 0,00 | AS84: 0,00 | AU84: 26316500 | AW84: 15493976 | AX84: 17016108.1 | AY84: 9300391.9 | AZ84: 17016108.1 | BA84: 0,00 | BB84: 17016108.1 | BC84: 0,00 | BD84: 0,00
A85: A | C85: 02 | E85: 02 | G85: 01 | I85: 003 | L85: 004 | S85: QUÍMICOS BÁSICOS | AA85: Nación | AF85: CSF | AI85: 10 | AJ85: RECURSOS CORRIENTES | AP85: 0,00 | AQ85: 0,00 | AR85: 0,00 | AS85: 0,00 | AU85: 0,00 | AW85: 0,00 | AX85: 0,00 | AY85: 0,00 | AZ85: 0,00 | BA85: 0,00 | BB85: 0,00 | BC85: 0,00 | BD85: 0,00
A86: A | C86: 02 | E86: 02 | G86: 01 | I86: 003 | L86: 005 | S86: OTROS PRODUCTOS QUÍMICOS; FIBRAS ARTIFICIALES (O FIBRAS INDUSTRIALES HECHAS POR EL HOMBRE) | AA86: Nación | AF86: CSF | AI86: 10 | AJ86: RECURSOS CORRIENTES | AP86: 42370170.34 | AQ86: 42370170.34 | AR86: 0,00 | AS86: 0,00 | AU86: 34280608.41 | AW86: 8089561.93 | AX86: 0,00 | AY86: 34280608.41 | AZ86: 0,00 | BA86: 0,00 | BB86: 0,00 | BC86: 0,00 | BD86: 0,00
A87: A | C87: 02 | E87: 02 | G87: 01 | I87: 003 | L87: 006 | S87: PRODUCTOS DE CAUCHO Y PLÁSTICO | AA87: Nación | AF87: CSF | AI87: 10 | AJ87: RECURSOS CORRIENTES | AP87: 13343641.69 | AQ87: 13343641.69 | AR87: 0,00 | AS87: 0,00 | AU87: 2459600 | AW87: 10884041.69 | AX87: 0,00 | AY87: 2459600 | AZ87: 0,00 | BA87: 0,00 | BB87: 0,00 | BC87: 0,00 | BD87: 0,00
A88: A | C88: 02 | E88: 02 | G88: 01 | I88: 003 | L88: 008 | S88: OTROS BIENES TRANSPORTABLES N.C.P. | AA88: Nación | AF88: CSF | AI88: 10 | AJ88: RECURSOS CORRIENTES | AP88: 771348211.2 | AQ88: 722948211.2 | AR88: 48400000 | AS88: 0,00 | AU88: 0,00 | AW88: 722948211.2 | AX88: 0,00 | AY88: 0,00 | AZ88: 0,00 | BA88: 0,00 | BB88: 0,00 | BC88: 0,00 | BD88: 0,00
A89: A | C89: 02 | E89: 02 | G89: 01 | I89: 004 | S89: PRODUCTOS METÁLICOS Y PAQUETES DE SOFTWARE | AA89: Nación | AF89: CSF | AI89: 10 | AJ89: RECURSOS CORRIENTES | AP89: 276146822.8 | AQ89: 276146822.8 | AR89: 0,00 | AS89: 0,00 | AU89: 3355800 | AW89: 272791022.8 | AX89: 0,00 | AY89: 3355800 | AZ89: 0,00 | BA89: 0,00 | BB89: 0,00 | BC89: 0,00 | BD89: 0,00
A90: A | C90: 02 | E90: 02 | G90: 01 | I90: 004 | L90: 002 | S90: PRODUCTOS METÁLICOS ELABORADOS (EXCEPTO MAQUINARIA Y EQUIPO) | AA90: Nación | AF90: CSF | AI90: 10 | AJ90: RECURSOS CORRIENTES | AP90: 470069.75 | AQ90: 470069.75 | AR90: 0,00 | AS90: 0,00 | AU90: 0,00 | AW90: 470069.75 | AX90: 0,00 | AY90: 0,00 | AZ90: 0,00 | BA90: 0,00 | BB90: 0,00 | BC90: 0,00 | BD90: 0,00
A91: A | C91: 02 | E91: 02 | G91: 01 | I91: 004 | L91: 003 | S91: MAQUINARIA PARA USO GENERAL | AA91: Nación | AF91: CSF | AI91: 10 | AJ91: RECURSOS CORRIENTES | AP91: 170000000 | AQ91: 170000000 | AR91: 0,00 | AS91: 0,00 | AU91: 0,00 | AW91: 170000000 | AX91: 0,00 | AY91: 0,00 | AZ91: 0,00 | BA91: 0,00 | BB91: 0,00 | BC91: 0,00 | BD91: 0,00
A92: A | C92: 02 | E92: 02 | G92: 01 | I92: 004 | L92: 005 | S92: MAQUINARIA DE OFICINA, CONTABILIDAD E INFORMÁTICA | AA92: Nación | AF92: CSF | AI92: 10 | AJ92: RECURSOS CORRIENTES | AP92: 43706753 | AQ92: 43706753 | AR92: 0,00 | AS92: 0,00 | AU92: 3355800 | AW92: 40350953 | AX92: 0,00 | AY92: 3355800 | AZ92: 0,00 | BA92: 0,00 | BB92: 0,00 | BC92: 0,00 | BD92: 0,00
A93: A | C93: 02 | E93: 02 | G93: 01 | I93: 004 | L93: 006 | S93: MAQUINARIA Y APARATOS ELÉCTRICOS | AA93: Nación | AF93: CSF | AI93: 10 | AJ93: RECURSOS CORRIENTES | AP93: 50000000 | AQ93: 50000000 | AR93: 0,00 | AS93: 0,00 | AU93: 0,00 | AW93: 50000000 | AX93: 0,00 | AY93: 0,00 | AZ93: 0,00 | BA93: 0,00 | BB93: 0,00 | BC93: 0,00 | BD93: 0,00
A94: A | C94: 02 | E94: 02 | G94: 01 | I94: 004 | L94: 007 | S94: EQUIPO Y APARATOS DE RADIO, TELEVISIÓN Y COMUNICACIONES | AA94: Nación | AF94: CSF | AI94: 10 | AJ94: RECURSOS CORRIENTES | AP94: 11970000 | AQ94: 11970000 | AR94: 0,00 | AS94: 0,00 | AU94: 0,00 | AW94: 11970000 | AX94: 0,00 | AY94: 0,00 | AZ94: 0,00 | BA94: 0,00 | BB94: 0,00 | BC94: 0,00 | BD94: 0,00
A95: A | C95: 02 | E95: 02 | G95: 02 | S95: ADQUISICIÓN DE SERVICIOS | AA95: Nación | AF95: CSF | AI95: 10 | AJ95: RECURSOS CORRIENTES | AP95: 1.460734992e+10 | AQ95: 1.455585123e+10 | AR95: 51498690 | AS95: 0,00 | AU95: 8981137343 | AW95: 5574713891 | AX95: 5393733026 | AY95: 3587404317 | AZ95: 5393733026 | BA95: 0,00 | BB95: 5393733026 | BC95: 0,00 | BD95: 37017
A96: A | C96: 02 | E96: 02 | G96: 02 | S96: ADQUISICIÓN DE SERVICIOS | AA96: Propios | AF96: CSF | AI96: 21 | AJ96: OTROS RECURSOS DE TESORERIA | AP96: 596894000 | AQ96: 533476000 | AR96: 63418000 | AS96: 0,00 | AU96: 533091000 | AW96: 385000 | AX96: 222524000 | AY96: 310567000 | AZ96: 222524000 | BA96: 0,00 | BB96: 222524000 | BC96: 0,00 | BD96: 0,00
A97: A | C97: 02 | E97: 02 | G97: 02 | I97: 006 | S97: SERVICIOS DE ALOJAMIENTO; SERVICIOS DE SUMINISTRO DE COMIDAS Y BEBIDAS; SERVICIOS DE TRANSPORTE; Y SERVICIOS DE DISTRIBUCIÓN DE ELECTRICIDAD, GAS Y AGUA | AA97: Nación | AF97: CSF | AI97: 10 | AJ97: RECURSOS CORRIENTES | AP97: 1039717989 | AQ97: 1039717989 | AR97: 0,00 | AS97: 0,00 | AU97: 644006950 | AW97: 395711039 | AX97: 517835227.4 | AY97: 126171722.6 | AZ97: 517835227.4 | BA97: 0,00 | BB97: 517835227.4 | BC97: 0,00 | BD97: 242,00
A98: A | C98: 02 | E98: 02 | G98: 02 | I98: 006 | L98: 003 | S98: ALOJAMIENTO; SERVICIOS DE SUMINISTROS DE COMIDAS Y BEBIDAS | AA98: Nación | AF98: CSF | AI98: 10 | AJ98: RECURSOS CORRIENTES | AP98: 60635000 | AQ98: 60635000 | AR98: 0,00 | AS98: 0,00 | AU98: 20878751 | AW98: 39756249 | AX98: 20433766 | AY98: 444985 | AZ98: 20433766 | BA98: 0,00 | BB98: 20433766 | BC98: 0,00 | BD98: 0,00
A99: A | C99: 02 | E99: 02 | G99: 02 | I99: 006 | L99: 004 | S99: SERVICIOS DE TRANSPORTE DE PASAJEROS | AA99: Nación | AF99: CSF | AI99: 10 | AJ99: RECURSOS CORRIENTES | AP99: 131618989 | AQ99: 131618989 | AR99: 0,00 | AS99: 0,00 | AU99: 131618989 | AW99: 0,00 | AX99: 51691654 | AY99: 79927335 | AZ99: 51691654 | BA99: 0,00 | BB99: 51691654 | BC99: 0,00 | BD99: 0,00
A100: A | C100: 02 | E100: 02 | G100: 02 | I100: 006 | L100: 005 | S100: SERVICIOS DE TRANSPORTE DE CARGA | AA100: Nación | AF100: CSF | AI100: 10 | AJ100: RECURSOS CORRIENTES | AP100: 10000000 | AQ100: 10000000 | AR100: 0,00 | AS100: 0,00 | AU100: 10000000 | AW100: 0,00 | AX100: 2000000 | AY100: 8000000 | AZ100: 2000000 | BA100: 0,00 | BB100: 2000000 | BC100: 0,00 | BD100: 0,00
A101: A | C101: 02 | E101: 02 | G101: 02 | I101: 006 | L101: 008 | S101: SERVICIOS POSTALES Y DE MENSAJERÍA | AA101: Nación | AF101: CSF | AI101: 10 | AJ101: RECURSOS CORRIENTES | AP101: 112734000 | AQ101: 112734000 | AR101: 0,00 | AS101: 0,00 | AU101: 65734000 | AW101: 47000000 | AX101: 29848747 | AY101: 35885253 | AZ101: 29848747 | BA101: 0,00 | BB101: 29848747 | BC101: 0,00 | BD101: 0,00
A102: A | C102: 02 | E102: 02 | G102: 02 | I102: 006 | L102: 009 | S102: SERVICIOS DE DISTRIBUCIÓN DE ELECTRICIDAD, GAS Y AGUA (POR CUENTA PROPIA) | AA102: Nación | AF102: CSF | AI102: 10 | AJ102: RECURSOS CORRIENTES | AP102: 724730000 | AQ102: 724730000 | AR102: 0,00 | AS102: 0,00 | AU102: 415775210 | AW102: 308954790 | AX102: 413861060.4 | AY102: 1914149.64 | AZ102: 413861060.4 | BA102: 0,00 | BB102: 413861060.4 | BC102: 0,00 | BD102: 242,00
A103: A | C103: 02 | E103: 02 | G103: 02 | I103: 007 | S103: SERVICIOS FINANCIEROS Y SERVICIOS CONEXOS, SERVICIOS INMOBILIARIOS Y SERVICIOS DE LEASING | AA103: Nación | AF103: CSF | AI103: 10 | AJ103: RECURSOS CORRIENTES | AP103: 5591698455 | AQ103: 5591698455 | AR103: 0,00 | AS103: 0,00 | AU103: 2136066215 | AW103: 3455632240 | AX103: 1834703720 | AY103: 301362494.9 | AZ103: 1834703720 | BA103: 0,00 | BB103: 1834703720 | BC103: 0,00 | BD103: 1249
A104: A | C104: 02 | E104: 02 | G104: 02 | I104: 007 | L104: 001 | S104: SERVICIOS FINANCIEROS Y SERVICIOS CONEXOS | AA104: Nación | AF104: CSF | AI104: 10 | AJ104: RECURSOS CORRIENTES | AP104: 1874851134 | AQ104: 1874851134 | AR104: 0,00 | AS104: 0,00 | AU104: 29351134 | AW104: 1845500000 | AX104: 28947943.6 | AY104: 403190.4 | AZ104: 28947943.6 | BA104: 0,00 | BB104: 28947943.6 | BC104: 0,00 | BD104: 1249
A105: A | C105: 02 | E105: 02 | G105: 02 | I105: 007 | L105: 002 | S105: SERVICIOS INMOBILIARIOS | AA105: Nación | AF105: CSF | AI105: 10 | AJ105: RECURSOS CORRIENTES | AP105: 3716847321 | AQ105: 3716847321 | AR105: 0,00 | AS105: 0,00 | AU105: 2106715081 | AW105: 1610132240 | AX105: 1805755776 | AY105: 300959304.5 | AZ105: 1805755776 | BA105: 0,00 | BB105: 1805755776 | BC105: 0,00 | BD105: 0,00
A106: A | C106: 02 | E106: 02 | G106: 02 | I106: 008 | S106: SERVICIOS PRESTADOS A LAS EMPRESAS Y SERVICIOS DE PRODUCCIÓN | AA106: Nación | AF106: CSF | AI106: 10 | AJ106: RECURSOS CORRIENTES | AP106: 7497438480 | AQ106: 7445939790 | AR106: 51498690 | AS106: 0,00 | AU106: 6058023047 | AW106: 1387916744 | AX106: 2988952526 | AY106: 3069070520 | AZ106: 2988952526 | BA106: 0,00 | BB106: 2988952526 | BC106: 0,00 | BD106: 35526
A107: A | C107: 02 | E107: 02 | G107: 02 | I107: 008 | S107: SERVICIOS PRESTADOS A LAS EMPRESAS Y SERVICIOS DE PRODUCCIÓN | AA107: Propios | AF107: CSF | AI107: 21 | AJ107: OTROS RECURSOS DE TESORERIA | AP107: 596894000 | AQ107: 533476000 | AR107: 63418000 | AS107: 0,00 | AU107: 533091000 | AW107: 385000 | AX107: 222524000 | AY107: 310567000 | AZ107: 222524000 | BA107: 0,00 | BB107: 222524000 | BC107: 0,00 | BD107: 0,00
A108: A | C108: 02 | E108: 02 | G108: 02 | I108: 008 | L108: 002 | S108: SERVICIOS JURÍDICOS Y CONTABLES | AA108: Nación | AF108: CSF | AI108: 10 | AJ108: RECURSOS CORRIENTES | AP108: 2091696390 | AQ108: 2046553400 | AR108: 45142990 | AS108: 0,00 | AU108: 1854211500 | AW108: 192341900 | AX108: 837081500 | AY108: 1017130000 | AZ108: 837081500 | BA108: 0,00 | BB108: 837081500 | BC108: 0,00 | BD108: 0,00
A109: A | C109: 02 | E109: 02 | G109: 02 | I109: 008 | L109: 002 | S109: SERVICIOS JURÍDICOS Y CONTABLES | AA109: Propios | AF109: CSF | AI109: 21 | AJ109: OTROS RECURSOS DE TESORERIA | AP109: 417843650 | AQ109: 358933000 | AR109: 58910650 | AS109: 0,00 | AU109: 358933000 | AW109: 0,00 | AX109: 154691000 | AY109: 204242000 | AZ109: 154691000 | BA109: 0,00 | BB109: 154691000 | BC109: 0,00 | BD109: 0,00
A110: A | C110: 02 | E110: 02 | G110: 02 | I110: 008 | L110: 003 | S110: OTROS SERVICIOS PROFESIONALES, CIENTÍFICOS Y TÉCNICOS | AA110: Nación | AF110: CSF | AI110: 10 | AJ110: RECURSOS CORRIENTES | AP110: 1198963100 | AQ110: 1192607400 | AR110: 6355700 | AS110: 0,00 | AU110: 1064103667 | AW110: 128503733 | AX110: 480877000 | AY110: 583226667 | AZ110: 480877000 | BA110: 0,00 | BB110: 480877000 | BC110: 0,00 | BD110: 0,00
A111: A | C111: 02 | E111: 02 | G111: 02 | I111: 008 | L111: 003 | S111: OTROS SERVICIOS PROFESIONALES, CIENTÍFICOS Y TÉCNICOS | AA111: Propios | AF111: CSF | AI111: 21 | AJ111: OTROS RECURSOS DE TESORERIA | AP111: 179050350 | AQ111: 174543000 | AR111: 4507350 | AS111: 0,00 | AU111: 174158000 | AW111: 385000 | AX111: 67833000 | AY111: 106325000 | AZ111: 67833000 | BA111: 0,00 | BB111: 67833000 | BC111: 0,00 | BD111: 0,00
A112: A | C112: 02 | E112: 02 | G112: 02 | I112: 008 | L112: 004 | S112: SERVICIOS DE TELECOMUNICACIONES, TRANSMISIÓN Y SUMINISTRO DE INFORMACIÓN | AA112: Nación | AF112: CSF | AI112: 10 | AJ112: RECURSOS CORRIENTES | AP112: 155000000 | AQ112: 155000000 | AR112: 0,00 | AS112: 0,00 | AU112: 65643901.36 | AW112: 89356098.64 | AX112: 64002537.86 | AY112: 1641363.5 | AZ112: 64002537.86 | BA112: 0,00 | BB112: 64002537.86 | BC112: 0,00 | BD112: 35526
A113: A | C113: 02 | E113: 02 | G113: 02 | I113: 008 | L113: 005 | S113: SERVICIOS DE SOPORTE | AA113: Nación | AF113: CSF | AI113: 10 | AJ113: RECURSOS CORRIENTES | AP113: 3709143391 | AQ113: 3709143391 | AR113: 0,00 | AS113: 0,00 | AU113: 2847688605 | AW113: 861454786.3 | AX113: 1534413143 | AY113: 1313275462 | AZ113: 1534413143 | BA113: 0,00 | BB113: 1534413143 | BC113: 0,00 | BD113: 0,00
A114: A | C114: 02 | E114: 02 | G114: 02 | I114: 008 | L114: 007 | S114: SERVICIOS DE MANTENIMIENTO, REPARACIÓN E INSTALACIÓN (EXCEPTO SERVICIOS DE CONSTRUCCIÓN) | AA114: Nación | AF114: CSF | AI114: 10 | AJ114: RECURSOS CORRIENTES | AP114: 342635599 | AQ114: 342635599 | AR114: 0,00 | AS114: 0,00 | AU114: 226375373.4 | AW114: 116260225.6 | AX114: 72578345.51 | AY114: 153797027.9 | AZ114: 72578345.51 | BA114: 0,00 | BB114: 72578345.51 | BC114: 0,00 | BD114: 0,00
A115: A | C115: 02 | E115: 02 | G115: 02 | I115: 009 | S115: SERVICIOS PARA LA COMUNIDAD, SOCIALES Y PERSONALES | AA115: Nación | AF115: CSF | AI115: 10 | AJ115: RECURSOS CORRIENTES | AP115: 380000000 | AQ115: 380000000 | AR115: 0,00 | AS115: 0,00 | AU115: 119745914.9 | AW115: 260254085.1 | AX115: 30939561.89 | AY115: 88806353 | AZ115: 30939561.89 | BA115: 0,00 | BB115: 30939561.89 | BC115: 0,00 | BD115: 0,00
A116: A | C116: 02 | E116: 02 | G116: 02 | I116: 009 | L116: 002 | S116: SERVICIOS DE EDUCACIÓN | AA116: Nación | AF116: CSF | AI116: 10 | AJ116: RECURSOS CORRIENTES | AP116: 200000000 | AQ116: 200000000 | AR116: 0,00 | AS116: 0,00 | AU116: 50473070 | AW116: 149526930 | AX116: 0,00 | AY116: 50473070 | AZ116: 0,00 | BA116: 0,00 | BB116: 0,00 | BC116: 0,00 | BD116: 0,00
A117: A | C117: 02 | E117: 02 | G117: 02 | I117: 009 | L117: 003 | S117: SERVICIOS PARA EL CUIDADO DE LA SALUD HUMANA Y SERVICIOS SOCIALES | AA117: Nación | AF117: CSF | AI117: 10 | AJ117: RECURSOS CORRIENTES | AP117: 100000000 | AQ117: 100000000 | AR117: 0,00 | AS117: 0,00 | AU117: 40000000 | AW117: 60000000 | AX117: 1971000 | AY117: 38029000 | AZ117: 1971000 | BA117: 0,00 | BB117: 1971000 | BC117: 0,00 | BD117: 0,00
A118: A | C118: 02 | E118: 02 | G118: 02 | I118: 009 | L118: 004 | S118: SERVICIOS DE ALCANTARILLADO, RECOLECCIÓN, TRATAMIENTO Y DISPOSICIÓN DE DESECHOS Y OTROS SERVICIOS DE SANEAMIENTO AMBIENTAL | AA118: Nación | AF118: CSF | AI118: 10 | AJ118: RECURSOS CORRIENTES | AP118: 80000000 | AQ118: 80000000 | AR118: 0,00 | AS118: 0,00 | AU118: 29272844.89 | AW118: 50727155.11 | AX118: 28968561.89 | AY118: 304283 | AZ118: 28968561.89 | BA118: 0,00 | BB118: 28968561.89 | BC118: 0,00 | BD118: 0,00
A119: A | C119: 02 | E119: 02 | G119: 02 | I119: 010 | S119: VIÁTICOS DE LOS FUNCIONARIOS EN COMISIÓN | AA119: Nación | AF119: CSF | AI119: 10 | AJ119: RECURSOS CORRIENTES | AP119: 98495000 | AQ119: 98495000 | AR119: 0,00 | AS119: 0,00 | AU119: 23295217 | AW119: 75199783 | AX119: 21301991 | AY119: 1993226 | AZ119: 21301991 | BA119: 0,00 | BB119: 21301991 | BC119: 0,00 | BD119: 0,00
A120: A | C120: 03 | S120: TRANSFERENCIAS CORRIENTES | AA120: Nación | AF120: CSF | AI120: 10 | AJ120: RECURSOS CORRIENTES | AP120: 193900000 | AQ120: 150200000 | AR120: 43700000 | AS120: 0,00 | AU120: 73590450 | AW120: 76609550 | AX120: 49839224 | AY120: 23751226 | AZ120: 49839224 | BA120: 0,00 | BB120: 49839224 | BC120: 0,00 | BD120: 23751226
A121: A | C121: 03 | E121: 04 | S121: PRESTACIONES PARA CUBRIR RIESGOS SOCIALES | AA121: Nación | AF121: CSF | AI121: 10 | AJ121: RECURSOS CORRIENTES | AP121: 150200000 | AQ121: 150200000 | AR121: 0,00 | AS121: 0,00 | AU121: 73590450 | AW121: 76609550 | AX121: 49839224 | AY121: 23751226 | AZ121: 49839224 | BA121: 0,00 | BB121: 49839224 | BC121: 0,00 | BD121: 23751226
A122: A | C122: 03 | E122: 04 | G122: 02 | S122: PRESTACIONES SOCIALES RELACIONADAS CON EL EMPLEO | AA122: Nación | AF122: CSF | AI122: 10 | AJ122: RECURSOS CORRIENTES | AP122: 150200000 | AQ122: 150200000 | AR122: 0,00 | AS122: 0,00 | AU122: 73590450 | AW122: 76609550 | AX122: 49839224 | AY122: 23751226 | AZ122: 49839224 | BA122: 0,00 | BB122: 49839224 | BC122: 0,00 | BD122: 23751226
A123: A | C123: 03 | E123: 04 | G123: 02 | I123: 012 | S123: INCAPACIDADES Y LICENCIAS DE MATERNIDAD Y PATERNIDAD (NO DE PENSIONES) | AA123: Nación | AF123: CSF | AI123: 10 | AJ123: RECURSOS CORRIENTES | AP123: 150200000 | AQ123: 150200000 | AR123: 0,00 | AS123: 0,00 | AU123: 73590450 | AW123: 76609550 | AX123: 49839224 | AY123: 23751226 | AZ123: 49839224 | BA123: 0,00 | BB123: 49839224 | BC123: 0,00 | BD123: 23751226
A124: A | C124: 03 | E124: 04 | G124: 02 | I124: 012 | L124: 001 | S124: INCAPACIDADES (NO DE PENSIONES) | AA124: Nación | AF124: CSF | AI124: 10 | AJ124: RECURSOS CORRIENTES | AP124: 98189148 | AQ124: 98189148 | AR124: 0,00 | AS124: 0,00 | AU124: 44071036 | AW124: 54118112 | AX124: 26926111 | AY124: 17144925 | AZ124: 26926111 | BA124: 0,00 | BB124: 26926111 | BC124: 0,00 | BD124: 17144925
A125: A | C125: 03 | E125: 04 | G125: 02 | I125: 012 | L125: 002 | S125: LICENCIAS DE MATERNIDAD Y PATERNIDAD (NO DE PENSIONES) | AA125: Nación | AF125: CSF | AI125: 10 | AJ125: RECURSOS CORRIENTES | AP125: 52010852 | AQ125: 52010852 | AR125: 0,00 | AS125: 0,00 | AU125: 29519414 | AW125: 22491438 | AX125: 22913113 | AY125: 6606301 | AZ125: 22913113 | BA125: 0,00 | BB125: 22913113 | BC125: 0,00 | BD125: 6606301
A126: A | C126: 03 | E126: 10 | S126: SENTENCIAS Y CONCILIACIONES | AA126: Nación | AF126: CSF | AI126: 10 | AJ126: RECURSOS CORRIENTES | AP126: 43700000 | AQ126: 0,00 | AR126: 43700000 | AS126: 0,00 | AU126: 0,00 | AW126: 0,00 | AX126: 0,00 | AY126: 0,00 | AZ126: 0,00 | BA126: 0,00 | BB126: 0,00 | BC126: 0,00 | BD126: 0,00
A127: A | C127: 03 | E127: 10 | G127: 01 | S127: FALLOS NACIONALES | AA127: Nación | AF127: CSF | AI127: 10 | AJ127: RECURSOS CORRIENTES | AP127: 43700000 | AQ127: 0,00 | AR127: 43700000 | AS127: 0,00 | AU127: 0,00 | AW127: 0,00 | AX127: 0,00 | AY127: 0,00 | AZ127: 0,00 | BA127: 0,00 | BB127: 0,00 | BC127: 0,00 | BD127: 0,00
A128: A | C128: 03 | E128: 10 | G128: 01 | I128: 001 | S128: SENTENCIAS | AA128: Nación | AF128: CSF | AI128: 10 | AJ128: RECURSOS CORRIENTES | AP128: 43700000 | AQ128: 0,00 | AR128: 43700000 | AS128: 0,00 | AU128: 0,00 | AW128: 0,00 | AX128: 0,00 | AY128: 0,00 | AZ128: 0,00 | BA128: 0,00 | BB128: 0,00 | BC128: 0,00 | BD128: 0,00
A129: A | C129: 08 | S129: GASTOS POR TRIBUTOS, MULTAS, SANCIONES E INTERESES DE MORA | AA129: Nación | AF129: CSF | AI129: 10 | AJ129: RECURSOS CORRIENTES | AP129: 411000000 | AQ129: 411000000 | AR129: 0,00 | AS129: 0,00 | AU129: 215173194 | AW129: 195826806 | AX129: 215173194 | AY129: 0,00 | AZ129: 215173194 | BA129: 0,00 | BB129: 215173194 | BC129: 0,00 | BD129: 0,00
A130: A | C130: 08 | S130: GASTOS POR TRIBUTOS, MULTAS, SANCIONES E INTERESES DE MORA | AA130: Nación | AF130: SSF | AI130: 11 | AJ130: OTROS RECURSOS DEL TESORO | AP130: 218383350 | AQ130: 0,00 | AR130: 218383350 | AS130: 0,00 | AU130: 0,00 | AW130: 0,00 | AX130: 0,00 | AY130: 0,00 | AZ130: 0,00 | BA130: 0,00 | BB130: 0,00 | BC130: 0,00 | BD130: 0,00
A131: A | C131: 08 | E131: 01 | S131: IMPUESTOS | AA131: Nación | AF131: CSF | AI131: 10 | AJ131: RECURSOS CORRIENTES | AP131: 411000000 | AQ131: 411000000 | AR131: 0,00 | AS131: 0,00 | AU131: 215173194 | AW131: 195826806 | AX131: 215173194 | AY131: 0,00 | AZ131: 215173194 | BA131: 0,00 | BB131: 215173194 | BC131: 0,00 | BD131: 0,00
A132: A | C132: 08 | E132: 01 | G132: 02 | S132: IMPUESTOS TERRITORIALES | AA132: Nación | AF132: CSF | AI132: 10 | AJ132: RECURSOS CORRIENTES | AP132: 411000000 | AQ132: 411000000 | AR132: 0,00 | AS132: 0,00 | AU132: 215173194 | AW132: 195826806 | AX132: 215173194 | AY132: 0,00 | AZ132: 215173194 | BA132: 0,00 | BB132: 215173194 | BC132: 0,00 | BD132: 0,00
A133: A | C133: 08 | E133: 01 | G133: 02 | I133: 001 | S133: IMPUESTO PREDIAL Y SOBRETASA AMBIENTAL | AA133: Nación | AF133: CSF | AI133: 10 | AJ133: RECURSOS CORRIENTES | AP133: 309970000 | AQ133: 309970000 | AR133: 0,00 | AS133: 0,00 | AU133: 138564693 | AW133: 171405307 | AX133: 138564693 | AY133: 0,00 | AZ133: 138564693 | BA133: 0,00 | BB133: 138564693 | BC133: 0,00 | BD133: 0,00
A134: A | C134: 08 | E134: 01 | G134: 02 | I134: 002 | S134: IMPUESTO DE DELINEACIÓN URBANA | AA134: Nación | AF134: CSF | AI134: 10 | AJ134: RECURSOS CORRIENTES | AP134: 100000000 | AQ134: 100000000 | AR134: 0,00 | AS134: 0,00 | AU134: 75871501 | AW134: 24128499 | AX134: 75871501 | AY134: 0,00 | AZ134: 75871501 | BA134: 0,00 | BB134: 75871501 | BC134: 0,00 | BD134: 0,00
A135: A | C135: 08 | E135: 01 | G135: 02 | I135: 006 | S135: IMPUESTO SOBRE VEHÍCULOS AUTOMOTORES | AA135: Nación | AF135: CSF | AI135: 10 | AJ135: RECURSOS CORRIENTES | AP135: 1030000 | AQ135: 1030000 | AR135: 0,00 | AS135: 0,00 | AU135: 737000 | AW135: 293000 | AX135: 737000 | AY135: 0,00 | AZ135: 737000 | BA135: 0,00 | BB135: 737000 | BC135: 0,00 | BD135: 0,00
A136: A | C136: 08 | E136: 04 | S136: CONTRIBUCIONES | AA136: Nación | AF136: SSF | AI136: 11 | AJ136: OTROS RECURSOS DEL TESORO | AP136: 218383350 | AQ136: 0,00 | AR136: 218383350 | AS136: 0,00 | AU136: 0,00 | AW136: 0,00 | AX136: 0,00 | AY136: 0,00 | AZ136: 0,00 | BA136: 0,00 | BB136: 0,00 | BC136: 0,00 | BD136: 0,00
A137: A | C137: 08 | E137: 04 | G137: 01 | S137: CUOTA DE FISCALIZACIÓN Y AUDITAJE | AA137: Nación | AF137: SSF | AI137: 11 | AJ137: OTROS RECURSOS DEL TESORO | AP137: 218383350 | AQ137: 0,00 | AR137: 218383350 | AS137: 0,00 | AU137: 0,00 | AW137: 0,00 | AX137: 0,00 | AY137: 0,00 | AZ137: 0,00 | BA137: 0,00 | BB137: 0,00 | BC137: 0,00 | BD137: 0,00
A138: B | S138: SERVICIO DE LA DEUDA PÚBLICA | AA138: Nación | AF138: CSF | AI138: 11 | AJ138: OTROS RECURSOS DEL TESORO | AP138: 73458261 | AQ138: 0,00 | AR138: 73458261 | AS138: 0,00 | AU138: 0,00 | AW138: 0,00 | AX138: 0,00 | AY138: 0,00 | AZ138: 0,00 | BA138: 0,00 | BB138: 0,00 | BC138: 0,00 | BD138: 0,00
A139: B | C139: 10 | S139: SERVICIO DE LA DEUDA PÚBLICA INTERNA | AA139: Nación | AF139: CSF | AI139: 11 | AJ139: OTROS RECURSOS DEL TESORO | AP139: 73458261 | AQ139: 0,00 | AR139: 73458261 | AS139: 0,00 | AU139: 0,00 | AW139: 0,00 | AX139: 0,00 | AY139: 0,00 | AZ139: 0,00 | BA139: 0,00 | BB139: 0,00 | BC139: 0,00 | BD139: 0,00
A140: B | C140: 10 | E140: 04 | S140: FONDO DE CONTINGENCIAS | AA140: Nación | AF140: CSF | AI140: 11 | AJ140: OTROS RECURSOS DEL TESORO | AP140: 73458261 | AQ140: 0,00 | AR140: 73458261 | AS140: 0,00 | AU140: 0,00 | AW140: 0,00 | AX140: 0,00 | AY140: 0,00 | AZ140: 0,00 | BA140: 0,00 | BB140: 0,00 | BC140: 0,00 | BD140: 0,00
A141: B | C141: 10 | E141: 04 | G141: 01 | S141: APORTES AL FONDO DE CONTINGENCIAS | AA141: Nación | AF141: CSF | AI141: 11 | AJ141: OTROS RECURSOS DEL TESORO | AP141: 73458261 | AQ141: 0,00 | AR141: 73458261 | AS141: 0,00 | AU141: 0,00 | AW141: 0,00 | AX141: 0,00 | AY141: 0,00 | AZ141: 0,00 | BA141: 0,00 | BB141: 0,00 | BC141: 0,00 | BD141: 0,00
A142: C | S142: INVERSION | AA142: Nación | AF142: CSF | AI142: 11 | AJ142: OTROS RECURSOS DEL TESORO | AP142: 533960400 | AQ142: 464684000 | AR142: 69276400 | AS142: 0,00 | AU142: 429044000 | AW142: 35640000 | AX142: 236548000 | AY142: 192496000 | AZ142: 236548000 | BA142: 0,00 | BB142: 236548000 | BC142: 0,00 | BD142: 0,00
A143: C | S143: INVERSION | AA143: Nación | AF143: CSF | AI143: 13 | AJ143: RECURSOS DEL CREDITO EXTERNO PREVIA AUTORIZACION | AP143: 2275452669 | AQ143: 2270898669 | AR143: 4554000 | AS143: 0,00 | AU143: 971369256 | AW143: 1299529413 | AX143: 343222862 | AY143: 628146394 | AZ143: 343222862 | BA143: 0,00 | BB143: 343222862 | BC143: 0,00 | BD143: 0,00
A144: C | C144: 3204 | S144: GESTIÓN DE LA INFORMACIÓN Y EL CONOCIMIENTO AMBIENTAL | AA144: Nación | AF144: CSF | AI144: 11 | AJ144: OTROS RECURSOS DEL TESORO | AP144: 533960400 | AQ144: 464684000 | AR144: 69276400 | AS144: 0,00 | AU144: 429044000 | AW144: 35640000 | AX144: 236548000 | AY144: 192496000 | AZ144: 236548000 | BA144: 0,00 | BB144: 236548000 | BC144: 0,00 | BD144: 0,00
A145: C | C145: 3204 | E145: 0900 | S145: INTERSUBSECTORIAL AMBIENTE | AA145: Nación | AF145: CSF | AI145: 11 | AJ145: OTROS RECURSOS DEL TESORO | AP145: 533960400 | AQ145: 464684000 | AR145: 69276400 | AS145: 0,00 | AU145: 429044000 | AW145: 35640000 | AX145: 236548000 | AY145: 192496000 | AZ145: 236548000 | BA145: 0,00 | BB145: 236548000 | BC145: 0,00 | BD145: 0,00
A146: C | C146: 3204 | E146: 0900 | G146: 3 | S146: FORTALECIMIENTO DE LA GESTIÓN DEL CONOCIMIENTO HIDROLÓGICO, METEOROLÓGICO Y AMBIENTAL NACIONAL | AA146: Nación | AF146: CSF | AI146: 11 | AJ146: OTROS RECURSOS DEL TESORO | AP146: 533960400 | AQ146: 464684000 | AR146: 69276400 | AS146: 0,00 | AU146: 429044000 | AW146: 35640000 | AX146: 236548000 | AY146: 192496000 | AZ146: 236548000 | BA146: 0,00 | BB146: 236548000 | BC146: 0,00 | BD146: 0,00
A147: C | C147: 3204 | E147: 0900 | G147: 3 | I147: 0 | S147: FORTALECIMIENTO DE LA GESTIÓN DEL CONOCIMIENTO HIDROLÓGICO, METEOROLÓGICO Y AMBIENTAL NACIONAL | AA147: Nación | AF147: CSF | AI147: 11 | AJ147: OTROS RECURSOS DEL TESORO | AP147: 533960400 | AQ147: 464684000 | AR147: 69276400 | AS147: 0,00 | AU147: 429044000 | AW147: 35640000 | AX147: 236548000 | AY147: 192496000 | AZ147: 236548000 | BA147: 0,00 | BB147: 236548000 | BC147: 0,00 | BD147: 0,00
A148: C | C148: 3204 | E148: 0900 | G148: 3 | I148: 0 | L148: 3204043 | S148: SERVICIO DE INFORMACIÓN DE DATOS CLIMÁTICOS Y MONITOREO | AA148: Nación | AF148: CSF | AI148: 11 | AJ148: OTROS RECURSOS DEL TESORO | AP148: 278161800 | AQ148: 272036000 | AR148: 6125800 | AS148: 0,00 | AU148: 236396000 | AW148: 35640000 | AX148: 156950000 | AY148: 79446000 | AZ148: 156950000 | BA148: 0,00 | BB148: 156950000 | BC148: 0,00 | BD148: 0,00
A149: C | C149: 3204 | E149: 0900 | G149: 3 | I149: 0 | L149: 3204049 | S149: SERVICIO DE DIVULGACIÓN DECONOCIMIENTO GENERADO PARA LA PLANIFICACIÓN SECTORIAL Y LA GESTIÓN AMBIENTAL. | AA149: Nación | AF149: CSF | AI149: 11 | AJ149: OTROS RECURSOS DEL TESORO | AP149: 255798600 | AQ149: 192648000 | AR149: 63150600 | AS149: 0,00 | AU149: 192648000 | AW149: 0,00 | AX149: 79598000 | AY149: 113050000 | AZ149: 79598000 | BA149: 0,00 | BB149: 79598000 | BC149: 0,00 | BD149: 0,00
A150: C | C150: 3204 | E150: 0900 | G150: 3 | I150: 0 | L150: 3204043 | O150: 02 | S150: ADQUISICIÓN DE BIENES Y SERVICIOS - SERVICIO DE INFORMACIÓN DE DATOS CLIMÁTICOS Y MONITOREO - FORTALECIMIENTO DE LA GESTIÓN DEL CONOCIMIENTO HIDROLÓGICO, METEOROLÓGICO Y AMBIENTAL NACIONAL | AA150: Nación | AF150: CSF | AI150: 11 | AJ150: OTROS RECURSOS DEL TESORO | AP150: 278161800 | AQ150: 272036000 | AR150: 6125800 | AS150: 0,00 | AU150: 236396000 | AW150: 35640000 | AX150: 156950000 | AY150: 79446000 | AZ150: 156950000 | BA150: 0,00 | BB150: 156950000 | BC150: 0,00 | BD150: 0,00
A151: C | C151: 3204 | E151: 0900 | G151: 3 | I151: 0 | L151: 3204049 | O151: 02 | S151: ADQUISICIÓN DE BIENES Y SERVICIOS - SERVICIO DE DIVULGACIÓN DECONOCIMIENTO GENERADO PARA LA PLANIFICACIÓN SECTORIAL Y LA GESTIÓN AMBIENTAL. - FORTALECIMIENTO DE LA GESTIÓN DEL CONOCIMIENTO HIDROLÓGICO, METEOROLÓGICO Y AMBIENTAL NACIONAL | AA151: Nación | AF151: CSF | AI151: 11 | AJ151: OTROS RECURSOS DEL TESORO | AP151: 255798600 | AQ151: 192648000 | AR151: 63150600 | AS151: 0,00 | AU151: 192648000 | AW151: 0,00 | AX151: 79598000 | AY151: 113050000 | AZ151: 79598000 | BA151: 0,00 | BB151: 79598000 | BC151: 0,00 | BD151: 0,00
A152: C | C152: 3299 | S152: FORTALECIMIENTO DE LA GESTIÓN Y DIRECCIÓN DEL SECTOR AMBIENTE Y DESARROLLO SOSTENIBLE | AA152: Nación | AF152: CSF | AI152: 13 | AJ152: RECURSOS DEL CREDITO EXTERNO PREVIA AUTORIZACION | AP152: 2275452669 | AQ152: 2270898669 | AR152: 4554000 | AS152: 0,00 | AU152: 971369256 | AW152: 1299529413 | AX152: 343222862 | AY152: 628146394 | AZ152: 343222862 | BA152: 0,00 | BB152: 343222862 | BC152: 0,00 | BD152: 0,00
A153: C | C153: 3299 | E153: 0900 | S153: INTERSUBSECTORIAL AMBIENTE | AA153: Nación | AF153: CSF | AI153: 13 | AJ153: RECURSOS DEL CREDITO EXTERNO PREVIA AUTORIZACION | AP153: 2275452669 | AQ153: 2270898669 | AR153: 4554000 | AS153: 0,00 | AU153: 971369256 | AW153: 1299529413 | AX153: 343222862 | AY153: 628146394 | AZ153: 343222862 | BA153: 0,00 | BB153: 343222862 | BC153: 0,00 | BD153: 0,00
A154: C | C154: 3299 | E154: 0900 | G154: 1 | S154: FORTALECIMIENTO DE LA GESTIÓN Y DIRECCIÓN DEL INSTITUTO DE HIDROLOGÍA, METEOROLOGÍA Y ESTUDIOS AMBIENTALES NACIONAL | AA154: Nación | AF154: CSF | AI154: 13 | AJ154: RECURSOS DEL CREDITO EXTERNO PREVIA AUTORIZACION | AP154: 2275452669 | AQ154: 2270898669 | AR154: 4554000 | AS154: 0,00 | AU154: 971369256 | AW154: 1299529413 | AX154: 343222862 | AY154: 628146394 | AZ154: 343222862 | BA154: 0,00 | BB154: 343222862 | BC154: 0,00 | BD154: 0,00
A155: C | C155: 3299 | E155: 0900 | G155: 1 | I155: 0 | L155: 3299011 | S155: SEDES ADECUADAS | AA155: Nación | AF155: CSF | AI155: 13 | AJ155: RECURSOS DEL CREDITO EXTERNO PREVIA AUTORIZACION | AP155: 1614989889 | AQ155: 1614989889 | AR155: 0,00 | AS155: 0,00 | AU155: 552028301 | AW155: 1062961588 | AX155: 71279037 | AY155: 480749264 | AZ155: 71279037 | BA155: 0,00 | BB155: 71279037 | BC155: 0,00 | BD155: 0,00
A156: C | C156: 3299 | E156: 0900 | G156: 1 | I156: 0 | L156: 3299006 | S156: SERVICIOS DE COMUNICACIÓN | AA156: Nación | AF156: CSF | AI156: 13 | AJ156: RECURSOS DEL CREDITO EXTERNO PREVIA AUTORIZACION | AP156: 567762780 | AQ156: 567762780 | AR156: 0,00 | AS156: 0,00 | AU156: 331194955 | AW156: 236567825 | AX156: 236567825 | AY156: 94627130 | AZ156: 236567825 | BA156: 0,00 | BB156: 236567825 | BC156: 0,00 | BD156: 0,00
A157: C | C157: 3299 | E157: 0900 | G157: 1 | I157: 0 | L157: 3299007 | S157: SERVICIO DE ATENCIÓN AL CIUDADANO | AA157: Nación | AF157: CSF | AI157: 13 | AJ157: RECURSOS DEL CREDITO EXTERNO PREVIA AUTORIZACION | AP157: 92700000 | AQ157: 88146000 | AR157: 4554000 | AS157: 0,00 | AU157: 88146000 | AW157: 0,00 | AX157: 35376000 | AY157: 52770000 | AZ157: 35376000 | BA157: 0,00 | BB157: 35376000 | BC157: 0,00 | BD157: 0,00
A158: C | C158: 3299 | E158: 0900 | G158: 1 | I158: 0 | S158: FORTALECIMIENTO DE LA GESTIÓN Y DIRECCIÓN DEL INSTITUTO DE HIDROLOGÍA, METEOROLOGÍA Y ESTUDIOS AMBIENTALES NACIONAL | AA158: Nación | AF158: CSF | AI158: 13 | AJ158: RECURSOS DEL CREDITO EXTERNO PREVIA AUTORIZACION | AP158: 2275452669 | AQ158: 2270898669 | AR158: 4554000 | AS158: 0,00 | AU158: 971369256 | AW158: 1299529413 | AX158: 343222862 | AY158: 628146394 | AZ158: 343222862 | BA158: 0,00 | BB158: 343222862 | BC158: 0,00 | BD158: 0,00
A159: C | C159: 3299 | E159: 0900 | G159: 1 | I159: 0 | L159: 3299011 | O159: 02 | S159: ADQUISICIÓN DE BIENES Y SERVICIOS - SEDES ADECUADAS - FORTALECIMIENTO DE LA GESTIÓN Y DIRECCIÓN DEL INSTITUTO DE HIDROLOGÍA, METEOROLOGÍA Y ESTUDIOS AMBIENTALES NACIONAL | AA159: Nación | AF159: CSF | AI159: 13 | AJ159: RECURSOS DEL CREDITO EXTERNO PREVIA AUTORIZACION | AP159: 1614989889 | AQ159: 1614989889 | AR159: 0,00 | AS159: 0,00 | AU159: 552028301 | AW159: 1062961588 | AX159: 71279037 | AY159: 480749264 | AZ159: 71279037 | BA159: 0,00 | BB159: 71279037 | BC159: 0,00 | BD159: 0,00
A160: C | C160: 3299 | E160: 0900 | G160: 1 | I160: 0 | L160: 3299006 | O160: 02 | S160: ADQUISICIÓN DE BIENES Y SERVICIOS - SERVICIOS DE COMUNICACIÓN - FORTALECIMIENTO DE LA GESTIÓN Y DIRECCIÓN DEL INSTITUTO DE HIDROLOGÍA, METEOROLOGÍA Y ESTUDIOS AMBIENTALES NACIONAL | AA160: Nación | AF160: CSF | AI160: 13 | AJ160: RECURSOS DEL CREDITO EXTERNO PREVIA AUTORIZACION | AP160: 567762780 | AQ160: 567762780 | AR160: 0,00 | AS160: 0,00 | AU160: 331194955 | AW160: 236567825 | AX160: 236567825 | AY160: 94627130 | AZ160: 236567825 | BA160: 0,00 | BB160: 236567825 | BC160: 0,00 | BD160: 0,00
A161: C | C161: 3299 | E161: 0900 | G161: 1 | I161: 0 | L161: 3299007 | O161: 02 | S161: ADQUISICIÓN DE BIENES Y SERVICIOS - SERVICIO DE ATENCIÓN AL CIUDADANO - FORTALECIMIENTO DE LA GESTIÓN Y DIRECCIÓN DEL INSTITUTO DE HIDROLOGÍA, METEOROLOGÍA Y ESTUDIOS AMBIENTALES NACIONAL | AA161: Nación | AF161: CSF | AI161: 13 | AJ161: RECURSOS DEL CREDITO EXTERNO PREVIA AUTORIZACION | AP161: 92700000 | AQ161: 88146000 | AR161: 4554000 | AS161: 0,00 | AU161: 88146000 | AW161: 0,00 | AX161: 35376000 | AY161: 52770000 | AZ161: 35376000 | BA161: 0,00 | BB161: 35376000 | BC161: 0,00 | BD161: 0,00
A163: DEPENDENCIA DE AFECTACION DE GASTOS: | H163: 03 IDEAM-GG-DG.OFICINA INFORMATICA
A164: TIPO | C164: CTA | E164: SUBC | G164: OBJG | I164: ORD | L164: SORD | O164: ITEM | Q164: SITEM | S164: CONCEPTO | AA164: FUENTE | AF164: SITUACION | AI164: REC. | AJ164: RECURSO | AP164: APROPIACION VIGENTE DEPGSTO | AQ164: TOTAL CDP DEPGSTOS | AR164: APROPIACION DISPONIBLE DEPGSTO | AS164: TOTAL CDP MODIFICACION DEPGSTOS | AU164: TOTAL COMPROMISO DEPGSTOS | AW164: CDP POR COMPROMETER DEPGSTOS | AX164: TOTAL OBLIGACIONES DEPGSTOS | AY164: COMPROMISO POR OBLIGAR DEPGSTOS | AZ164: TOTAL ORDENES DE PAGO DEPGSTOS | BA164: OBLIGACIONES POR ORDENAR DEPGSTOS | BB164: PAGOS DEPGSTOS | BC164: ORDENES DE PAGO POR PAGAR DEPGSTOS | BD164: TOTAL REINTEGROS DEPGSTOS
A165: A | S165: FUNCIONAMIENTO | AA165: Nación | AF165: CSF | AI165: 10 | AJ165: RECURSOS CORRIENTES | AP165: 2489000000 | AQ165: 2412000000 | AR165: 77000000 | AS165: 0,00 | AU165: 1268840308 | AW165: 1143159692 | AX165: 563358981 | AY165: 705481326.6 | AZ165: 563358981 | BA165: 0,00 | BB165: 563358981 | BC165: 0,00 | BD165: 0,00
A166: A | C166: 02 | S166: ADQUISICIÓN DE BIENES Y SERVICIOS | AA166: Nación | AF166: CSF | AI166: 10 | AJ166: RECURSOS CORRIENTES | AP166: 2489000000 | AQ166: 2412000000 | AR166: 77000000 | AS166: 0,00 | AU166: 1268840308 | AW166: 1143159692 | AX166: 563358981 | AY166: 705481326.6 | AZ166: 563358981 | BA166: 0,00 | BB166: 563358981 | BC166: 0,00 | BD166: 0,00
A167: A | C167: 02 | E167: 02 | S167: ADQUISICIONES DIFERENTES DE ACTIVOS | AA167: Nación | AF167: CSF | AI167: 10 | AJ167: RECURSOS CORRIENTES | AP167: 2489000000 | AQ167: 2412000000 | AR167: 77000000 | AS167: 0,00 | AU167: 1268840308 | AW167: 1143159692 | AX167: 563358981 | AY167: 705481326.6 | AZ167: 563358981 | BA167: 0,00 | BB167: 563358981 | BC167: 0,00 | BD167: 0,00
A168: A | C168: 02 | E168: 02 | G168: 01 | S168: MATERIALES Y SUMINISTROS | AA168: Nación | AF168: CSF | AI168: 10 | AJ168: RECURSOS CORRIENTES | AP168: 471000000 | AQ168: 394000000 | AR168: 77000000 | AS168: 0,00 | AU168: 0,00 | AW168: 394000000 | AX168: 0,00 | AY168: 0,00 | AZ168: 0,00 | BA168: 0,00 | BB168: 0,00 | BC168: 0,00 | BD168: 0,00
A169: A | C169: 02 | E169: 02 | G169: 01 | I169: 004 | S169: PRODUCTOS METÁLICOS Y PAQUETES DE SOFTWARE | AA169: Nación | AF169: CSF | AI169: 10 | AJ169: RECURSOS CORRIENTES | AP169: 471000000 | AQ169: 394000000 | AR169: 77000000 | AS169: 0,00 | AU169: 0,00 | AW169: 394000000 | AX169: 0,00 | AY169: 0,00 | AZ169: 0,00 | BA169: 0,00 | BB169: 0,00 | BC169: 0,00 | BD169: 0,00
A170: A | C170: 02 | E170: 02 | G170: 01 | I170: 004 | L170: 005 | S170: MAQUINARIA DE OFICINA, CONTABILIDAD E INFORMÁTICA | AA170: Nación | AF170: CSF | AI170: 10 | AJ170: RECURSOS CORRIENTES | AP170: 394000000 | AQ170: 394000000 | AR170: 0,00 | AS170: 0,00 | AU170: 0,00 | AW170: 394000000 | AX170: 0,00 | AY170: 0,00 | AZ170: 0,00 | BA170: 0,00 | BB170: 0,00 | BC170: 0,00 | BD170: 0,00
A171: A | C171: 02 | E171: 02 | G171: 01 | I171: 004 | L171: 007 | S171: EQUIPO Y APARATOS DE RADIO, TELEVISIÓN Y COMUNICACIONES | AA171: Nación | AF171: CSF | AI171: 10 | AJ171: RECURSOS CORRIENTES | AP171: 77000000 | AQ171: 0,00 | AR171: 77000000 | AS171: 0,00 | AU171: 0,00 | AW171: 0,00 | AX171: 0,00 | AY171: 0,00 | AZ171: 0,00 | BA171: 0,00 | BB171: 0,00 | BC171: 0,00 | BD171: 0,00
A172: A | C172: 02 | E172: 02 | G172: 02 | S172: ADQUISICIÓN DE SERVICIOS | AA172: Nación | AF172: CSF | AI172: 10 | AJ172: RECURSOS CORRIENTES | AP172: 2018000000 | AQ172: 2018000000 | AR172: 0,00 | AS172: 0,00 | AU172: 1268840308 | AW172: 749159692.4 | AX172: 563358981 | AY172: 705481326.6 | AZ172: 563358981 | BA172: 0,00 | BB172: 563358981 | BC172: 0,00 | BD172: 0,00
A173: A | C173: 02 | E173: 02 | G173: 02 | I173: 008 | S173: SERVICIOS PRESTADOS A LAS EMPRESAS Y SERVICIOS DE PRODUCCIÓN | AA173: Nación | AF173: CSF | AI173: 10 | AJ173: RECURSOS CORRIENTES | AP173: 2018000000 | AQ173: 2018000000 | AR173: 0,00 | AS173: 0,00 | AU173: 1268840308 | AW173: 749159692.4 | AX173: 563358981 | AY173: 705481326.6 | AZ173: 563358981 | BA173: 0,00 | BB173: 563358981 | BC173: 0,00 | BD173: 0,00
A174: A | C174: 02 | E174: 02 | G174: 02 | I174: 008 | L174: 003 | S174: OTROS SERVICIOS PROFESIONALES, CIENTÍFICOS Y TÉCNICOS | AA174: Nación | AF174: CSF | AI174: 10 | AJ174: RECURSOS CORRIENTES | AP174: 620000000 | AQ174: 620000000 | AR174: 0,00 | AS174: 0,00 | AU174: 168353841.6 | AW174: 451646158.4 | AX174: 76039420.8 | AY174: 92314420.8 | AZ174: 76039420.8 | BA174: 0,00 | BB174: 76039420.8 | BC174: 0,00 | BD174: 0,00
A175: A | C175: 02 | E175: 02 | G175: 02 | I175: 008 | L175: 004 | S175: SERVICIOS DE TELECOMUNICACIONES, TRANSMISIÓN Y SUMINISTRO DE INFORMACIÓN | AA175: Nación | AF175: CSF | AI175: 10 | AJ175: RECURSOS CORRIENTES | AP175: 1246000000 | AQ175: 1246000000 | AR175: 0,00 | AS175: 0,00 | AU175: 1093425006 | AW175: 152574994 | AX175: 483788830.2 | AY175: 609636175.8 | AZ175: 483788830.2 | BA175: 0,00 | BB175: 483788830.2 | BC175: 0,00 | BD175: 0,00
A176: A | C176: 02 | E176: 02 | G176: 02 | I176: 008 | L176: 007 | S176: SERVICIOS DE MANTENIMIENTO, REPARACIÓN E INSTALACIÓN (EXCEPTO SERVICIOS DE CONSTRUCCIÓN) | AA176: Nación | AF176: CSF | AI176: 10 | AJ176: RECURSOS CORRIENTES | AP176: 152000000 | AQ176: 152000000 | AR176: 0,00 | AS176: 0,00 | AU176: 7061460 | AW176: 144938540 | AX176: 3530730 | AY176: 3530730 | AZ176: 3530730 | BA176: 0,00 | BB176: 3530730 | BC176: 0,00 | BD176: 0,00
A177: C | S177: INVERSION | AA177: Nación | AF177: CSF | AI177: 11 | AJ177: OTROS RECURSOS DEL TESORO | AP177: 199748572 | AQ177: 189999999.9 | AR177: 9748572.05 | AS177: 0,00 | AU177: 189999999.9 | AW177: 0,00 | AX177: 189999999.9 | AY177: 0,00 | AZ177: 189999999.9 | BA177: 0,00 | BB177: 189999999.9 | BC177: 0,00 | BD177: 0,00
A178: C | S178: INVERSION | AA178: Nación | AF178: CSF | AI178: 13 | AJ178: RECURSOS DEL CREDITO EXTERNO PREVIA AUTORIZACION | AP178: 3180383625 | AQ178: 2052763048 | AR178: 1127620577 | AS178: 0,00 | AU178: 1926017549 | AW178: 126745499 | AX178: 1468263115 | AY178: 457754434.5 | AZ178: 1468263115 | BA178: 0,00 | BB178: 1468263115 | BC178: 0,00 | BD178: 0,00
A179: C | S179: INVERSION | AA179: Propios | AF179: CSF | AI179: 20 | AJ179: INGRESOS CORRIENTES | AP179: 0,00 | AQ179: 0,00 | AR179: 0,00 | AS179: 0,00 | AU179: 0,00 | AW179: 0,00 | AX179: 0,00 | AY179: 0,00 | AZ179: 0,00 | BA179: 0,00 | BB179: 0,00 | BC179: 0,00 | BD179: 0,00
A180: C | C180: 3204 | S180: GESTIÓN DE LA INFORMACIÓN Y EL CONOCIMIENTO AMBIENTAL | AA180: Nación | AF180: CSF | AI180: 11 | AJ180: OTROS RECURSOS DEL TESORO | AP180: 199748572 | AQ180: 189999999.9 | AR180: 9748572.05 | AS180: 0,00 | AU180: 189999999.9 | AW180: 0,00 | AX180: 189999999.9 | AY180: 0,00 | AZ180: 189999999.9 | BA180: 0,00 | BB180: 189999999.9 | BC180: 0,00 | BD180: 0,00
A181: C | C181: 3204 | S181: GESTIÓN DE LA INFORMACIÓN Y EL CONOCIMIENTO AMBIENTAL | AA181: Nación | AF181: CSF | AI181: 13 | AJ181: RECURSOS DEL CREDITO EXTERNO PREVIA AUTORIZACION | AP181: 2932656126 | AQ181: 1805301219 | AR181: 1127354907 | AS181: 0,00 | AU181: 1771954219 | AW181: 33347000 | AX181: 1409506373 | AY181: 362447846.5 | AZ181: 1409506373 | BA181: 0,00 | BB181: 1409506373 | BC181: 0,00 | BD181: 0,00
A182: C | C182: 3204 | S182: GESTIÓN DE LA INFORMACIÓN Y EL CONOCIMIENTO AMBIENTAL | AA182: Propios | AF182: CSF | AI182: 20 | AJ182: INGRESOS CORRIENTES | AP182: 0,00 | AQ182: 0,00 | AR182: 0,00 | AS182: 0,00 | AU182: 0,00 | AW182: 0,00 | AX182: 0,00 | AY182: 0,00 | AZ182: 0,00 | BA182: 0,00 | BB182: 0,00 | BC182: 0,00 | BD182: 0,00
A183: C | C183: 3204 | E183: 0900 | S183: INTERSUBSECTORIAL AMBIENTE | AA183: Nación | AF183: CSF | AI183: 11 | AJ183: OTROS RECURSOS DEL TESORO | AP183: 199748572 | AQ183: 189999999.9 | AR183: 9748572.05 | AS183: 0,00 | AU183: 189999999.9 | AW183: 0,00 | AX183: 189999999.9 | AY183: 0,00 | AZ183: 189999999.9 | BA183: 0,00 | BB183: 189999999.9 | BC183: 0,00 | BD183: 0,00
A184: C | C184: 3204 | E184: 0900 | S184: INTERSUBSECTORIAL AMBIENTE | AA184: Nación | AF184: CSF | AI184: 13 | AJ184: RECURSOS DEL CREDITO EXTERNO PREVIA AUTORIZACION | AP184: 2932656126 | AQ184: 1805301219 | AR184: 1127354907 | AS184: 0,00 | AU184: 1771954219 | AW184: 33347000 | AX184: 1409506373 | AY184: 362447846.5 | AZ184: 1409506373 | BA184: 0,00 | BB184: 1409506373 | BC184: 0,00 | BD184: 0,00
A185: C | C185: 3204 | E185: 0900 | S185: INTERSUBSECTORIAL AMBIENTE | AA185: Propios | AF185: CSF | AI185: 20 | AJ185: INGRESOS CORRIENTES | AP185: 0,00 | AQ185: 0,00 | AR185: 0,00 | AS185: 0,00 | AU185: 0,00 | AW185: 0,00 | AX185: 0,00 | AY185: 0,00 | AZ185: 0,00 | BA185: 0,00 | BB185: 0,00 | BC185: 0,00 | BD185: 0,00
A186: C | C186: 3204 | E186: 0900 | G186: 3 | S186: FORTALECIMIENTO DE LA GESTIÓN DEL CONOCIMIENTO HIDROLÓGICO, METEOROLÓGICO Y AMBIENTAL NACIONAL | AA186: Nación | AF186: CSF | AI186: 11 | AJ186: OTROS RECURSOS DEL TESORO | AP186: 199748572 | AQ186: 189999999.9 | AR186: 9748572.05 | AS186: 0,00 | AU186: 189999999.9 | AW186: 0,00 | AX186: 189999999.9 | AY186: 0,00 | AZ186: 189999999.9 | BA186: 0,00 | BB186: 189999999.9 | BC186: 0,00 | BD186: 0,00
A187: C | C187: 3204 | E187: 0900 | G187: 3 | S187: FORTALECIMIENTO DE LA GESTIÓN DEL CONOCIMIENTO HIDROLÓGICO, METEOROLÓGICO Y AMBIENTAL NACIONAL | AA187: Nación | AF187: CSF | AI187: 13 | AJ187: RECURSOS DEL CREDITO EXTERNO PREVIA AUTORIZACION | AP187: 2932656126 | AQ187: 1805301219 | AR187: 1127354907 | AS187: 0,00 | AU187: 1771954219 | AW187: 33347000 | AX187: 1409506373 | AY187: 362447846.5 | AZ187: 1409506373 | BA187: 0,00 | BB187: 1409506373 | BC187: 0,00 | BD187: 0,00
A188: C | C188: 3204 | E188: 0900 | G188: 3 | S188: FORTALECIMIENTO DE LA GESTIÓN DEL CONOCIMIENTO HIDROLÓGICO, METEOROLÓGICO Y AMBIENTAL NACIONAL | AA188: Propios | AF188: CSF | AI188: 20 | AJ188: INGRESOS CORRIENTES | AP188: 0,00 | AQ188: 0,00 | AR188: 0,00 | AS188: 0,00 | AU188: 0,00 | AW188: 0,00 | AX188: 0,00 | AY188: 0,00 | AZ188: 0,00 | BA188: 0,00 | BB188: 0,00 | BC188: 0,00 | BD188: 0,00
A189: C | C189: 3204 | E189: 0900 | G189: 3 | I189: 0 | S189: FORTALECIMIENTO DE LA GESTIÓN DEL CONOCIMIENTO HIDROLÓGICO, METEOROLÓGICO Y AMBIENTAL NACIONAL | AA189: Nación | AF189: CSF | AI189: 11 | AJ189: OTROS RECURSOS DEL TESORO | AP189: 199748572 | AQ189: 189999999.9 | AR189: 9748572.05 | AS189: 0,00 | AU189: 189999999.9 | AW189: 0,00 | AX189: 189999999.9 | AY189: 0,00 | AZ189: 189999999.9 | BA189: 0,00 | BB189: 189999999.9 | BC189: 0,00 | BD189: 0,00
A190: C | C190: 3204 | E190: 0900 | G190: 3 | I190: 0 | L190: 3204048 | S190: SERVICIO DE ADMINISTRACION DE LOS SISTEMAS DE INFORMACIÓN PARA LOS PROCESOS DE TOMA DE DECISIONES | AA190: Nación | AF190: CSF | AI190: 11 | AJ190: OTROS RECURSOS DEL TESORO | AP190: 199748572 | AQ190: 189999999.9 | AR190: 9748572.05 | AS190: 0,00 | AU190: 189999999.9 | AW190: 0,00 | AX190: 189999999.9 | AY190: 0,00 | AZ190: 189999999.9 | BA190: 0,00 | BB190: 189999999.9 | BC190: 0,00 | BD190: 0,00
A191: C | C191: 3204 | E191: 0900 | G191: 3 | I191: 0 | L191: 3204048 | S191: SERVICIO DE ADMINISTRACION DE LOS SISTEMAS DE INFORMACIÓN PARA LOS PROCESOS DE TOMA DE DECISIONES | AA191: Nación | AF191: CSF | AI191: 13 | AJ191: RECURSOS DEL CREDITO EXTERNO PREVIA AUTORIZACION | AP191: 2932656126 | AQ191: 1805301219 | AR191: 1127354907 | AS191: 0,00 | AU191: 1771954219 | AW191: 33347000 | AX191: 1409506373 | AY191: 362447846.5 | AZ191: 1409506373 | BA191: 0,00 | BB191: 1409506373 | BC191: 0,00 | BD191: 0,00
A192: C | C192: 3204 | E192: 0900 | G192: 3 | I192: 0 | S192: FORTALECIMIENTO DE LA GESTIÓN DEL CONOCIMIENTO HIDROLÓGICO, METEOROLÓGICO Y AMBIENTAL NACIONAL | AA192: Nación | AF192: CSF | AI192: 13 | AJ192: RECURSOS DEL CREDITO EXTERNO PREVIA AUTORIZACION | AP192: 2932656126 | AQ192: 1805301219 | AR192: 1127354907 | AS192: 0,00 | AU192: 1771954219 | AW192: 33347000 | AX192: 1409506373 | AY192: 362447846.5 | AZ192: 1409506373 | BA192: 0,00 | BB192: 1409506373 | BC192: 0,00 | BD192: 0,00
A193: C | C193: 3204 | E193: 0900 | G193: 3 | I193: 0 | S193: FORTALECIMIENTO DE LA GESTIÓN DEL CONOCIMIENTO HIDROLÓGICO, METEOROLÓGICO Y AMBIENTAL NACIONAL | AA193: Propios | AF193: CSF | AI193: 20 | AJ193: INGRESOS CORRIENTES | AP193: 0,00 | AQ193: 0,00 | AR193: 0,00 | AS193: 0,00 | AU193: 0,00 | AW193: 0,00 | AX193: 0,00 | AY193: 0,00 | AZ193: 0,00 | BA193: 0,00 | BB193: 0,00 | BC193: 0,00 | BD193: 0,00
A194: C | C194: 3204 | E194: 0900 | G194: 3 | I194: 0 | L194: 3204048 | S194: SERVICIO DE ADMINISTRACION DE LOS SISTEMAS DE INFORMACIÓN PARA LOS PROCESOS DE TOMA DE DECISIONES | AA194: Propios | AF194: CSF | AI194: 20 | AJ194: INGRESOS CORRIENTES | AP194: 0,00 | AQ194: 0,00 | AR194: 0,00 | AS194: 0,00 | AU194: 0,00 | AW194: 0,00 | AX194: 0,00 | AY194: 0,00 | AZ194: 0,00 | BA194: 0,00 | BB194: 0,00 | BC194: 0,00 | BD194: 0,00
A195: C | C195: 3204 | E195: 0900 | G195: 3 | I195: 0 | L195: 3204048 | O195: 02 | S195: ADQUISICIÓN DE BIENES Y SERVICIOS - SERVICIO DE ADMINISTRACION DE LOS SISTEMAS DE INFORMACIÓN PARA LOS PROCESOS DE TOMA DE DECISIONES - FORTALECIMIENTO DE LA GESTIÓN DEL CONOCIMIENTO HIDROLÓGICO, METEOROLÓGICO Y AMBIENTAL NACIONAL | AA195: Nación | AF195: CSF | AI195: 11 | AJ195: OTROS RECURSOS DEL TESORO | AP195: 199748572 | AQ195: 189999999.9 | AR195: 9748572.05 | AS195: 0,00 | AU195: 189999999.9 | AW195: 0,00 | AX195: 189999999.9 | AY195: 0,00 | AZ195: 189999999.9 | BA195: 0,00 | BB195: 189999999.9 | BC195: 0,00 | BD195: 0,00
A196: C | C196: 3204 | E196: 0900 | G196: 3 | I196: 0 | L196: 3204048 | O196: 02 | S196: ADQUISICIÓN DE BIENES Y SERVICIOS - SERVICIO DE ADMINISTRACION DE LOS SISTEMAS DE INFORMACIÓN PARA LOS PROCESOS DE TOMA DE DECISIONES - FORTALECIMIENTO DE LA GESTIÓN DEL CONOCIMIENTO HIDROLÓGICO, METEOROLÓGICO Y AMBIENTAL NACIONAL | AA196: Nación | AF196: CSF | AI196: 13 | AJ196: RECURSOS DEL CREDITO EXTERNO PREVIA AUTORIZACION | AP196: 2932656126 | AQ196: 1805301219 | AR196: 1127354907 | AS196: 0,00 | AU196: 1771954219 | AW196: 33347000 | AX196: 1409506373 | AY196: 362447846.5 | AZ196: 1409506373 | BA196: 0,00 | BB196: 1409506373 | BC196: 0,00 | BD196: 0,00
A197: C | C197: 3204 | E197: 0900 | G197: 3 | I197: 0 | L197: 3204048 | O197: 02 | S197: ADQUISICIÓN DE BIENES Y SERVICIOS - SERVICIO DE ADMINISTRACION DE LOS SISTEMAS DE INFORMACIÓN PARA LOS PROCESOS DE TOMA DE DECISIONES - FORTALECIMIENTO DE LA GESTIÓN DEL CONOCIMIENTO HIDROLÓGICO, METEOROLÓGICO Y AMBIENTAL NACIONAL | AA197: Propios | AF197: CSF | AI197: 20 | AJ197: INGRESOS CORRIENTES | AP197: 0,00 | AQ197: 0,00 | AR197: 0,00 | AS197: 0,00 | AU197: 0,00 | AW197: 0,00 | AX197: 0,00 | AY197: 0,00 | AZ197: 0,00 | BA197: 0,00 | BB197: 0,00 | BC197: 0,00 | BD197: 0,00
A198: C | C198: 3299 | S198: FORTALECIMIENTO DE LA GESTIÓN Y DIRECCIÓN DEL SECTOR AMBIENTE Y DESARROLLO SOSTENIBLE | AA198: Nación | AF198: CSF | AI198: 13 | AJ198: RECURSOS DEL CREDITO EXTERNO PREVIA AUTORIZACION | AP198: 247727499 | AQ198: 247461829 | AR198: 265670 | AS198: 0,00 | AU198: 154063330 | AW198: 93398499 | AX198: 58756742 | AY198: 95306588 | AZ198: 58756742 | BA198: 0,00 | BB198: 58756742 | BC198: 0,00 | BD198: 0,00
A199: C | C199: 3299 | E199: 0900 | S199: INTERSUBSECTORIAL AMBIENTE | AA199: Nación | AF199: CSF | AI199: 13 | AJ199: RECURSOS DEL CREDITO EXTERNO PREVIA AUTORIZACION | AP199: 247727499 | AQ199: 247461829 | AR199: 265670 | AS199: 0,00 | AU199: 154063330 | AW199: 93398499 | AX199: 58756742 | AY199: 95306588 | AZ199: 58756742 | BA199: 0,00 | BB199: 58756742 | BC199: 0,00 | BD199: 0,00
A200: C | C200: 3299 | E200: 0900 | G200: 1 | S200: FORTALECIMIENTO DE LA GESTIÓN Y DIRECCIÓN DEL INSTITUTO DE HIDROLOGÍA, METEOROLOGÍA Y ESTUDIOS AMBIENTALES NACIONAL | AA200: Nación | AF200: CSF | AI200: 13 | AJ200: RECURSOS DEL CREDITO EXTERNO PREVIA AUTORIZACION | AP200: 247727499 | AQ200: 247461829 | AR200: 265670 | AS200: 0,00 | AU200: 154063330 | AW200: 93398499 | AX200: 58756742 | AY200: 95306588 | AZ200: 58756742 | BA200: 0,00 | BB200: 58756742 | BC200: 0,00 | BD200: 0,00
A201: C | C201: 3299 | E201: 0900 | G201: 1 | I201: 0 | S201: FORTALECIMIENTO DE LA GESTIÓN Y DIRECCIÓN DEL INSTITUTO DE HIDROLOGÍA, METEOROLOGÍA Y ESTUDIOS AMBIENTALES NACIONAL | AA201: Nación | AF201: CSF | AI201: 13 | AJ201: RECURSOS DEL CREDITO EXTERNO PREVIA AUTORIZACION | AP201: 247727499 | AQ201: 247461829 | AR201: 265670 | AS201: 0,00 | AU201: 154063330 | AW201: 93398499 | AX201: 58756742 | AY201: 95306588 | AZ201: 58756742 | BA201: 0,00 | BB201: 58756742 | BC201: 0,00 | BD201: 0,00
A202: C | C202: 3299 | E202: 0900 | G202: 1 | I202: 0 | L202: 3299001 | S202: SERVICIOS DE INFORMACIÓN PARA LA GESTIÓN ADMINISTRATIVA | AA202: Nación | AF202: CSF | AI202: 13 | AJ202: RECURSOS DEL CREDITO EXTERNO PREVIA AUTORIZACION | AP202: 247727499 | AQ202: 247461829 | AR202: 265670 | AS202: 0,00 | AU202: 154063330 | AW202: 93398499 | AX202: 58756742 | AY202: 95306588 | AZ202: 58756742 | BA202: 0,00 | BB202: 58756742 | BC202: 0,00 | BD202: 0,00
A203: C | C203: 3299 | E203: 0900 | G203: 1 | I203: 0 | L203: 3299001 | O203: 02 | S203: ADQUISICIÓN DE BIENES Y SERVICIOS - SERVICIOS DE INFORMACIÓN PARA LA GESTIÓN ADMINISTRATIVA - FORTALECIMIENTO DE LA GESTIÓN Y DIRECCIÓN DEL INSTITUTO DE HIDROLOGÍA, METEOROLOGÍA Y ESTUDIOS AMBIENTALES NACIONAL | AA203: Nación | AF203: CSF | AI203: 13 | AJ203: RECURSOS DEL CREDITO EXTERNO PREVIA AUTORIZACION | AP203: 247727499 | AQ203: 247461829 | AR203: 265670 | AS203: 0,00 | AU203: 154063330 | AW203: 93398499 | AX203: 58756742 | AY203: 95306588 | AZ203: 58756742 | BA203: 0,00 | BB203: 58756742 | BC203: 0,00 | BD203: 0,00
A205: DEPENDENCIA DE AFECTACION DE GASTOS: | H205: 04 IDEAM-GG-DG.OFICINA DEL SERVICIO DE PRONOSTICOS Y ALERTAS
A206: TIPO | C206: CTA | E206: SUBC | G206: OBJG | I206: ORD | L206: SORD | O206: ITEM | Q206: SITEM | S206: CONCEPTO | AA206: FUENTE | AF206: SITUACION | AI206: REC. | AJ206: RECURSO | AP206: APROPIACION VIGENTE DEPGSTO | AQ206: TOTAL CDP DEPGSTOS | AR206: APROPIACION DISPONIBLE DEPGSTO | AS206: TOTAL CDP MODIFICACION DEPGSTOS | AU206: TOTAL COMPROMISO DEPGSTOS | AW206: CDP POR COMPROMETER DEPGSTOS | AX206: TOTAL OBLIGACIONES DEPGSTOS | AY206: COMPROMISO POR OBLIGAR DEPGSTOS | AZ206: TOTAL ORDENES DE PAGO DEPGSTOS | BA206: OBLIGACIONES POR ORDENAR DEPGSTOS | BB206: PAGOS DEPGSTOS | BC206: ORDENES DE PAGO POR PAGAR DEPGSTOS | BD206: TOTAL REINTEGROS DEPGSTOS
A207: C | S207: INVERSION | AA207: Nación | AF207: CSF | AI207: 11 | AJ207: OTROS RECURSOS DEL TESORO | AP207: 1628891700 | AQ207: 1433426000 | AR207: 195465700 | AS207: 0,00 | AU207: 1323515661 | AW207: 109910339 | AX207: 574050676 | AY207: 749464985 | AZ207: 574050676 | BA207: 0,00 | BB207: 574050676 | BC207: 0,00 | BD207: 0,00
A208: C | C208: 3204 | S208: GESTIÓN DE LA INFORMACIÓN Y EL CONOCIMIENTO AMBIENTAL | AA208: Nación | AF208: CSF | AI208: 11 | AJ208: OTROS RECURSOS DEL TESORO | AP208: 1628891700 | AQ208: 1433426000 | AR208: 195465700 | AS208: 0,00 | AU208: 1323515661 | AW208: 109910339 | AX208: 574050676 | AY208: 749464985 | AZ208: 574050676 | BA208: 0,00 | BB208: 574050676 | BC208: 0,00 | BD208: 0,00
A209: C | C209: 3204 | E209: 0900 | S209: INTERSUBSECTORIAL AMBIENTE | AA209: Nación | AF209: CSF | AI209: 11 | AJ209: OTROS RECURSOS DEL TESORO | AP209: 1628891700 | AQ209: 1433426000 | AR209: 195465700 | AS209: 0,00 | AU209: 1323515661 | AW209: 109910339 | AX209: 574050676 | AY209: 749464985 | AZ209: 574050676 | BA209: 0,00 | BB209: 574050676 | BC209: 0,00 | BD209: 0,00
A210: C | C210: 3204 | E210: 0900 | G210: 3 | S210: FORTALECIMIENTO DE LA GESTIÓN DEL CONOCIMIENTO HIDROLÓGICO, METEOROLÓGICO Y AMBIENTAL NACIONAL | AA210: Nación | AF210: CSF | AI210: 11 | AJ210: OTROS RECURSOS DEL TESORO | AP210: 1628891700 | AQ210: 1433426000 | AR210: 195465700 | AS210: 0,00 | AU210: 1323515661 | AW210: 109910339 | AX210: 574050676 | AY210: 749464985 | AZ210: 574050676 | BA210: 0,00 | BB210: 574050676 | BC210: 0,00 | BD210: 0,00
A211: C | C211: 3204 | E211: 0900 | G211: 3 | I211: 0 | S211: FORTALECIMIENTO DE LA GESTIÓN DEL CONOCIMIENTO HIDROLÓGICO, METEOROLÓGICO Y AMBIENTAL NACIONAL | AA211: Nación | AF211: CSF | AI211: 11 | AJ211: OTROS RECURSOS DEL TESORO | AP211: 1628891700 | AQ211: 1433426000 | AR211: 195465700 | AS211: 0,00 | AU211: 1323515661 | AW211: 109910339 | AX211: 574050676 | AY211: 749464985 | AZ211: 574050676 | BA211: 0,00 | BB211: 574050676 | BC211: 0,00 | BD211: 0,00
A212: C | C212: 3204 | E212: 0900 | G212: 3 | I212: 0 | L212: 3204043 | S212: SERVICIO DE INFORMACIÓN DE DATOS CLIMÁTICOS Y MONITOREO | AA212: Nación | AF212: CSF | AI212: 11 | AJ212: OTROS RECURSOS DEL TESORO | AP212: 1628891700 | AQ212: 1433426000 | AR212: 195465700 | AS212: 0,00 | AU212: 1323515661 | AW212: 109910339 | AX212: 574050676 | AY212: 749464985 | AZ212: 574050676 | BA212: 0,00 | BB212: 574050676 | BC212: 0,00 | BD212: 0,00
A213: C | C213: 3204 | E213: 0900 | G213: 3 | I213: 0 | L213: 3204043 | O213: 02 | S213: ADQUISICIÓN DE BIENES Y SERVICIOS - SERVICIO DE INFORMACIÓN DE DATOS CLIMÁTICOS Y MONITOREO - FORTALECIMIENTO DE LA GESTIÓN DEL CONOCIMIENTO HIDROLÓGICO, METEOROLÓGICO Y AMBIENTAL NACIONAL | AA213: Nación | AF213: CSF | AI213: 11 | AJ213: OTROS RECURSOS DEL TESORO | AP213: 1628891700 | AQ213: 1433426000 | AR213: 195465700 | AS213: 0,00 | AU213: 1323515661 | AW213: 109910339 | AX213: 574050676 | AY213: 749464985 | AZ213: 574050676 | BA213: 0,00 | BB213: 574050676 | BC213: 0,00 | BD213: 0,00
... 125 more rows

Sheet Eje.Consolidado
A1: INSTITUTO DE HIDROLOGÍA, METEOROLOGÍA, Y ESTUDIOS AMBIENTALES IDEAM
A2: EJECUCIÓN CONSOLIDADA A 30 DE JUNIO DE 2022
A8: RUBRO | E8: =+Eje.Depend.Afectacion!S270 -> CONCEPTO | F8: FUENTE | G8: SITUACION | H8: REC | I8: RECURSO | J8: APROPIACION VIGENTE | K8: TOTAL CDPS | L8: APROPIACION DISPONIBLE | M8: TOTAL CDPS MODIFICACIONES | N8: TOTAL COMPROMISOS | O8: CPS POR COMPROMETER | P8: TOTAL OBLIGACIONES | Q8: COMPROMISOS POR OBLIGAR | R8: TOTAL ORDENES DE PAGO | S8: OBLIGACIONES POR ORDENAR | T8: PAGOS | U8: ORDENES DE PAGO POR ORDENAR | V8: TOTAL REINTEGROS | W8: PORCENTAJE DE EJECUCION
A9: =_xlfn.CONCAT(Eje.Depend.Afectacion!A28," ", Eje.Depend.Afectacion!C28," ",Eje.Depend.Afectacion!E28," ",Eje.Depend.Afectacion!G28," ",Eje.Depend.Afectacion!I28," ",Eje.Depend.Afectacion!LMN28," ",Eje.Depend.Afectacion!O28) -> A | E9: =+Eje.Depend.Afectacion!S28 -> FUNCIONAMIENTO | F9: =+Eje.Depend.Afectacion!AA28 -> Nación | G9: =+Eje.Depend.Afectacion!AF28 -> CSF | H9: =+Eje.Depend.Afectacion!AI28 -> 10 | I9: =+Eje.Depend.Afectacion!AJ28 -> RECURSOS CORRIENTES | J9: =+Eje.Depend.Afectacion!$AP$28+Eje.Depend.Afectacion!$AP$165 -> 49764900000 | K9: =+Eje.Depend.Afectacion!$AQ$28+Eje.Depend.Afectacion!$AQ$165 -> 49542301310 | L9: =+Eje.Depend.Afectacion!$AR$28+Eje.Depend.Afectacion!$AR$165 -> 222598690 | M9: =+Eje.Depend.Afectacion!$AS$28+Eje.Depend.Afectacion!$AS$165 -> 0 | N9: =+Eje.Depend.Afectacion!$AU$28+Eje.Depend.Afectacion!$AU$165 -> 2.500742494e+10 | O9: =+Eje.Depend.Afectacion!$AW$28+Eje.Depend.Afectacion!$AW$165 -> 2.453487637e+10 | P9: =+Eje.Depend.Afectacion!$AX$28+Eje.Depend.Afectacion!$AX$165 -> 2.05322221e+10 | Q9: =+Eje.Depend.Afectacion!$AY$28+Eje.Depend.Afectacion!$AY$165 -> 4475202842 | R9: =+Eje.Depend.Afectacion!$AZ$28+Eje.Depend.Afectacion!$AZ$165 -> 2.05322221e+10 | S9: =+Eje.Depend.Afectacion!$BA$28+Eje.Depend.Afectacion!$BA$165 -> 0 | T9: =+Eje.Depend.Afectacion!$BB$28+Eje.Depend.Afectacion!$BB$165 -> 2.05322221e+10 | U9: =+Eje.Depend.Afectacion!$BC$28+Eje.Depend.Afectacion!$BC$165 -> 0 | V9: =+Eje.Depend.Afectacion!$BD$28+Eje.Depend.Afectacion!$BD$165 -> 41414312 | W9: =+(N9/J9)*100 -> 50.2511307
A10: =_xlfn.CONCAT(Eje.Depend.Afectacion!A29," ", Eje.Depend.Afectacion!C29," ",Eje.Depend.Afectacion!E29," ",Eje.Depend.Afectacion!G29," ",Eje.Depend.Afectacion!I29," ",Eje.Depend.Afectacion!L29," ",Eje.Depend.Afectacion!O29) -> A | E10: =+Eje.Depend.Afectacion!S29 -> FUNCIONAMIENTO | F10: =+Eje.Depend.Afectacion!AA29 -> Nación | G10: =+Eje.Depend.Afectacion!AF29 -> SSF | H10: =+Eje.Depend.Afectacion!AI29 -> 11 | I10: =+Eje.Depend.Afectacion!AJ29 -> OTROS RECURSOS DEL TESORO | J10: =+Eje.Depend.Afectacion!$AP$29 -> 218383350 | K10: =+Eje.Depend.Afectacion!$AQ$29 -> 0,00 | L10: =+Eje.Depend.Afectacion!$AR$29 -> 218383350 | M10: =+Eje.Depend.Afectacion!$AS$29 -> 0,00 | N10: =+Eje.Depend.Afectacion!$AU$29 -> 0,00 | O10: =+Eje.Depend.Afectacion!$AW$29 -> 0,00 | P10: =+Eje.Depend.Afectacion!$AX$29 -> 0,00 | Q10: =+Eje.Depend.Afectacion!$AY$29 -> 0,00 | R10: =+Eje.Depend.Afectacion!$AZ$29 -> 0,00 | S10: =+Eje.Depend.Afectacion!$BA$29 -> 0,00 | T10: =+Eje.Depend.Afectacion!$BB$29 -> 0,00 | U10: =+Eje.Depend.Afectacion!$BC$29 -> 0,00 | V10: =+Eje.Depend.Afectacion!$BD$29 -> 0,00 | W10: =+(N10/J10)*100 -> 0
A11: =_xlfn.CONCAT(Eje.Depend.Afectacion!A30," ", Eje.Depend.Afectacion!C30," ",Eje.Depend.Afectacion!E30," ",Eje.Depend.Afectacion!G30," ",Eje.Depend.Afectacion!I30," ",Eje.Depend.Afectacion!L30," ",Eje.Depend.Afectacion!O30) -> A | E11: =+Eje.Depend.Afectacion!S30 -> FUNCIONAMIENTO | F11: =+Eje.Depend.Afectacion!AA30 -> Propios | G11: =+Eje.Depend.Afectacion!AF30 -> CSF | H11: =+Eje.Depend.Afectacion!AI30 -> 21 | I11: =+Eje.Depend.Afectacion!AJ30 -> OTROS RECURSOS DE TESORERIA | J11: =+Eje.Depend.Afectacion!$AP$30 -> 596894000 | K11: =+Eje.Depend.Afectacion!$AQ$30 -> 533476000 | L11: =+Eje.Depend.Afectacion!$AR$30 -> 63418000 | M11: =+Eje.Depend.Afectacion!$AS$30 -> 0,00 | N11: =+Eje.Depend.Afectacion!$AU$30 -> 533091000 | O11: =+Eje.Depend.Afectacion!$AW$30 -> 385000 | P11: =+Eje.Depend.Afectacion!$AX$30 -> 222524000 | Q11: =+Eje.Depend.Afectacion!$AY$30 -> 310567000 | R11: =+Eje.Depend.Afectacion!$AZ$30 -> 222524000 | S11: =+Eje.Depend.Afectacion!$BA$30 -> 0,00 | T11: =+Eje.Depend.Afectacion!$BB$30 -> 222524000 | U11: =+Eje.Depend.Afectacion!$BC$30 -> 0,00 | V11: =+Eje.Depend.Afectacion!$BD$30 -> 0,00 | W11: 89.31083241
A12: =_xlfn.CONCAT(Eje.Depend.Afectacion!A31," ", Eje.Depend.Afectacion!C31," ",Eje.Depend.Afectacion!E31," ",Eje.Depend.Afectacion!G31," ",Eje.Depend.Afectacion!I31," ",Eje.Depend.Afectacion!L31," ",Eje.Depend.Afectacion!O31) -> A 01 | E12: =+Eje.Depend.Afectacion!S31 -> GASTOS DE PERSONAL | F12: =+Eje.Depend.Afectacion!AA31 -> Nación | G12: =+Eje.Depend.Afectacion!AF31 -> CSF | H12: =+Eje.Depend.Afectacion!AI31 -> 10 | I12: =+Eje.Depend.Afectacion!AJ31 -> RECURSOS CORRIENTES | J12: =+Eje.Depend.Afectacion!$AP$31 -> 30641000000 | K12: =+Eje.Depend.Afectacion!$AQ$31 -> 30641000000 | L12: =+Eje.Depend.Afectacion!$AR$31 -> 0,00 | M12: =+Eje.Depend.Afectacion!$AS$31 -> 0,00 | N12: =+Eje.Depend.Afectacion!$AU$31 -> 14343588392 | O12: =+Eje.Depend.Afectacion!$AW$31 -> 16297411608 | P12: =+Eje.Depend.Afectacion!$AX$31 -> 14243774320 | Q12: =+Eje.Depend.Afectacion!$AY$31 -> 99814072 | R12: =+Eje.Depend.Afectacion!$AZ$31 -> 14243774320 | S12: =+Eje.Depend.Afectacion!$BA$31 -> 0,00 | T12: =+Eje.Depend.Afectacion!$BB$31 -> 14243774320 | U12: =+Eje.Depend.Afectacion!$BC$31 -> 0,00 | V12: =+Eje.Depend.Afectacion!$BD$31 -> 17626069 | W12: 46.81175024
A13: =_xlfn.CONCAT(Eje.Depend.Afectacion!A32," ", Eje.Depend.Afectacion!C32," ",Eje.Depend.Afectacion!E32," ",Eje.Depend.Afectacion!G32," ",Eje.Depend.Afectacion!I32," ",Eje.Depend.Afectacion!L32," ",Eje.Depend.Afectacion!O32) -> A 01 01 | E13: =+Eje.Depend.Afectacion!S32 -> PLANTA DE PERSONAL PERMANENTE | F13: =+Eje.Depend.Afectacion!AA32 -> Nación | G13: =+Eje.Depend.Afectacion!AF32 -> CSF | H13: =+Eje.Depend.Afectacion!AI32 -> 10 | I13: =+Eje.Depend.Afectacion!AJ32 -> RECURSOS CORRIENTES | J13: =+Eje.Depend.Afectacion!$AP$32 -> 30641000000 | K13: =+Eje.Depend.Afectacion!$AQ$32 -> 30641000000 | L13: =+Eje.Depend.Afectacion!$AR$32 -> 0,00 | M13: =+Eje.Depend.Afectacion!$AS$32 -> 0,00 | N13: =+Eje.Depend.Afectacion!$AU$32 -> 14343588392 | O13: =+Eje.Depend.Afectacion!$AW$32 -> 16297411608 | P13: =+Eje.Depend.Afectacion!$AX$32 -> 14243774320 | Q13: =+Eje.Depend.Afectacion!$AY$32 -> 99814072 | R13: =+Eje.Depend.Afectacion!$AZ$32 -> 14243774320 | S13: =+Eje.Depend.Afectacion!$BA$32 -> 0,00 | T13: =+Eje.Depend.Afectacion!$BB$32 -> 14243774320 | U13: =+Eje.Depend.Afectacion!$BC$32 -> 0,00 | V13: =+Eje.Depend.Afectacion!$BD$32 -> 17626069 | W13: 46.81175024
A14: =_xlfn.CONCAT(Eje.Depend.Afectacion!A33," ", Eje.Depend.Afectacion!C33," ",Eje.Depend.Afectacion!E33," ",Eje.Depend.Afectacion!G33," ",Eje.Depend.Afectacion!I33," ",Eje.Depend.Afectacion!L33," ",Eje.Depend.Afectacion!O33) -> A 01 01 01 | E14: =+Eje.Depend.Afectacion!S33 -> SALARIO | F14: =+Eje.Depend.Afectacion!AA33 -> Nación | G14: =+Eje.Depend.Afectacion!AF33 -> CSF | H14: =+Eje.Depend.Afectacion!AI33 -> 10 | I14: =+Eje.Depend.Afectacion!AJ33 -> RECURSOS CORRIENTES | J14: =+Eje.Depend.Afectacion!$AP$33 -> 20880000000 | K14: =+Eje.Depend.Afectacion!$AQ$33 -> 20880000000 | L14: =+Eje.Depend.Afectacion!$AR$33 -> 0,00 | M14: =+Eje.Depend.Afectacion!$AS$33 -> 0,00 | N14: =+Eje.Depend.Afectacion!$AU$33 -> 9498306039 | O14: =+Eje.Depend.Afectacion!$AW$33 -> 11381693961 | P14: =+Eje.Depend.Afectacion!$AX$33 -> 9494101037 | Q14: =+Eje.Depend.Afectacion!$AY$33 -> 4205002 | R14: =+Eje.Depend.Afectacion!$AZ$33 -> 9494101037 | S14: =+Eje.Depend.Afectacion!$BA$33 -> 0,00 | T14: =+Eje.Depend.Afectacion!$BB$33 -> 9494101037 | U14: =+Eje.Depend.Afectacion!$BC$33 -> 0,00 | V14: =+Eje.Depend.Afectacion!$BD$33 -> 9732388 | W14: 45.48997145
A15: =_xlfn.CONCAT(Eje.Depend.Afectacion!A34," ", Eje.Depend.Afectacion!C34," ",Eje.Depend.Afectacion!E34," ",Eje.Depend.Afectacion!G34," ",Eje.Depend.Afectacion!I34," ",Eje.Depend.Afectacion!L34," ",Eje.Depend.Afectacion!O34) -> A 01 01 01 001 | E15: =+Eje.Depend.Afectacion!S34 -> FACTORES SALARIALES COMUNES | F15: =+Eje.Depend.Afectacion!AA34 -> Nación | G15: =+Eje.Depend.Afectacion!AF34 -> CSF | H15: =+Eje.Depend.Afectacion!AI34 -> 10 | I15: =+Eje.Depend.Afectacion!AJ34 -> RECURSOS CORRIENTES | J15: =+Eje.Depend.Afectacion!$AP$34 -> 19972262769 | K15: =+Eje.Depend.Afectacion!$AQ$34 -> 19972262769 | L15: =+Eje.Depend.Afectacion!$AR$34 -> 0,00 | M15: =+Eje.Depend.Afectacion!$AS$34 -> 0,00 | N15: =+Eje.Depend.Afectacion!$AU$34 -> 9056060481 | O15: =+Eje.Depend.Afectacion!$AW$34 -> 10916202288 | P15: =+Eje.Depend.Afectacion!$AX$34 -> 9051855479 | Q15: =+Eje.Depend.Afectacion!$AY$34 -> 4205002 | R15: =+Eje.Depend.Afectacion!$AZ$34 -> 9051855479 | S15: =+Eje.Depend.Afectacion!$BA$34 -> 0,00 | T15: =+Eje.Depend.Afectacion!$BB$34 -> 9051855479 | U15: =+Eje.Depend.Afectacion!$BC$34 -> 0,00 | V15: =+Eje.Depend.Afectacion!$BD$34 -> 9732388 | W15: 45.34318713
A16: =_xlfn.CONCAT(Eje.Depend.Afectacion!A35," ", Eje.Depend.Afectacion!C35," ",Eje.Depend.Afectacion!E35," ",Eje.Depend.Afectacion!G35," ",Eje.Depend.Afectacion!I35," ",Eje.Depend.Afectacion!L35," ",Eje.Depend.Afectacion!O35) -> A 01 01 01 001 001 | E16: =+Eje.Depend.Afectacion!S35 -> SUELDO BÁSICO | F16: =+Eje.Depend.Afectacion!AA35 -> Nación | G16: =+Eje.Depend.Afectacion!AF35 -> CSF | H16: =+Eje.Depend.Afectacion!AI35 -> 10 | I16: =+Eje.Depend.Afectacion!AJ35 -> RECURSOS CORRIENTES | J16: =+Eje.Depend.Afectacion!$AP$35 -> 14162436744 | K16: =+Eje.Depend.Afectacion!$AQ$35 -> 14162436744 | L16: =+Eje.Depend.Afectacion!$AR$35 -> 0,00 | M16: =+Eje.Depend.Afectacion!$AS$35 -> 0,00 | N16: =+Eje.Depend.Afectacion!$AU$35 -> 7093590145 | O16: =+Eje.Depend.Afectacion!$AW$35 -> 7068846599 | P16: =+Eje.Depend.Afectacion!$AX$35 -> 7089385143 | Q16: =+Eje.Depend.Afectacion!$AY$35 -> 4205002 | R16: =+Eje.Depend.Afectacion!$AZ$35 -> 7089385143 | S16: =+Eje.Depend.Afectacion!$BA$35 -> 0,00 | T16: =+Eje.Depend.Afectacion!$BB$35 -> 7089385143 | U16: =+Eje.Depend.Afectacion!$BC$35 -> 0,00 | V16: =+Eje.Depend.Afectacion!$BD$35 -> 3702079 | W16: 50.08735625
A17: =_xlfn.CONCAT(Eje.Depend.Afectacion!A36," ", Eje.Depend.Afectacion!C36," ",Eje.Depend.Afectacion!E36," ",Eje.Depend.Afectacion!G36," ",Eje.Depend.Afectacion!I36," ",Eje.Depend.Afectacion!L36," ",Eje.Depend.Afectacion!O36) -> A 01 01 01 001 003 | E17: =+Eje.Depend.Afectacion!S36 -> PRIMA TÉCNICA SALARIAL | F17: =+Eje.Depend.Afectacion!AA36 -> Nación | G17: =+Eje.Depend.Afectacion!AF36 -> CSF | H17: =+Eje.Depend.Afectacion!AI36 -> 10 | I17: =+Eje.Depend.Afectacion!AJ36 -> RECURSOS CORRIENTES | J17: =+Eje.Depend.Afectacion!$AP$36 -> 90157782 | K17: =+Eje.Depend.Afectacion!$AQ$36 -> 90157782 | L17: =+Eje.Depend.Afectacion!$AR$36 -> 0,00 | M17: =+Eje.Depend.Afectacion!$AS$36 -> 0,00 | N17: =+Eje.Depend.Afectacion!$AU$36 -> 46625615 | O17: =+Eje.Depend.Afectacion!$AW$36 -> 43532167 | P17: =+Eje.Depend.Afectacion!$AX$36 -> 46625615 | Q17: =+Eje.Depend.Afectacion!$AY$36 -> 0,00 | R17: =+Eje.Depend.Afectacion!$AZ$36 -> 46625615 | S17: =+Eje.Depend.Afectacion!$BA$36 -> 0,00 | T17: =+Eje.Depend.Afectacion!$BB$36 -> 46625615 | U17: =+Eje.Depend.Afectacion!$BC$36 -> 0,00 | V17: =+Eje.Depend.Afectacion!$BD$36 -> 0,00 | W17: 51.71557459
A18: =_xlfn.CONCAT(Eje.Depend.Afectacion!A37," ", Eje.Depend.Afectacion!C37," ",Eje.Depend.Afectacion!E37," ",Eje.Depend.Afectacion!G37," ",Eje.Depend.Afectacion!I37," ",Eje.Depend.Afectacion!L37," ",Eje.Depend.Afectacion!O37) -> A 01 01 01 001 004 | E18: =+Eje.Depend.Afectacion!S37 -> SUBSIDIO DE ALIMENTACIÓN | F18: =+Eje.Depend.Afectacion!AA37 -> Nación | G18: =+Eje.Depend.Afectacion!AF37 -> CSF | H18: =+Eje.Depend.Afectacion!AI37 -> 10 | I18: =+Eje.Depend.Afectacion!AJ37 -> RECURSOS CORRIENTES | J18: =+Eje.Depend.Afectacion!$AP$37 -> 129582526 | K18: =+Eje.Depend.Afectacion!$AQ$37 -> 129582526 | L18: =+Eje.Depend.Afectacion!$AR$37 -> 0,00 | M18: =+Eje.Depend.Afectacion!$AS$37 -> 0,00 | N18: =+Eje.Depend.Afectacion!$AU$37 -> 86389939 | O18: =+Eje.Depend.Afectacion!$AW$37 -> 43192587 | P18: =+Eje.Depend.Afectacion!$AX$37 -> 86389939 | Q18: =+Eje.Depend.Afectacion!$AY$37 -> 0,00 | R18: =+Eje.Depend.Afectacion!$AZ$37 -> 86389939 | S18: =+Eje.Depend.Afectacion!$BA$37 -> 0,00 | T18: =+Eje.Depend.Afectacion!$BB$37 -> 86389939 | U18: =+Eje.Depend.Afectacion!$BC$37 -> 0,00 | V18: =+Eje.Depend.Afectacion!$BD$37 -> 0,00 | W18: 66.6678924
A19: =_xlfn.CONCAT(Eje.Depend.Afectacion!A38," ", Eje.Depend.Afectacion!C38," ",Eje.Depend.Afectacion!E38," ",Eje.Depend.Afectacion!G38," ",Eje.Depend.Afectacion!I38," ",Eje.Depend.Afectacion!L38," ",Eje.Depend.Afectacion!O38) -> A 01 01 01 001 005 | E19: =+Eje.Depend.Afectacion!S38 -> AUXILIO DE TRANSPORTE | F19: =+Eje.Depend.Afectacion!AA38 -> Nación | G19: =+Eje.Depend.Afectacion!AF38 -> CSF | H19: =+Eje.Depend.Afectacion!AI38 -> 10 | I19: =+Eje.Depend.Afectacion!AJ38 -> RECURSOS CORRIENTES | J19: =+Eje.Depend.Afectacion!$AP$38 -> 153094872 | K19: =+Eje.Depend.Afectacion!$AQ$38 -> 153094872 | L19: =+Eje.Depend.Afectacion!$AR$38 -> 0,00 | M19: =+Eje.Depend.Afectacion!$AS$38 -> 0,00 | N19: =+Eje.Depend.Afectacion!$AU$38 -> 100122942 | O19: =+Eje.Depend.Afectacion!$AW$38 -> 52971930 | P19: =+Eje.Depend.Afectacion!$AX$38 -> 100122942 | Q19: =+Eje.Depend.Afectacion!$AY$38 -> 0,00 | R19: =+Eje.Depend.Afectacion!$AZ$38 -> 100122942 | S19: =+Eje.Depend.Afectacion!$BA$38 -> 0,00 | T19: =+Eje.Depend.Afectacion!$BB$38 -> 100122942 | U19: =+Eje.Depend.Afectacion!$BC$38 -> 0,00 | V19: =+Eje.Depend.Afectacion!$BD$38 -> 5652145 | W19: 65.39927869
A20: =_xlfn.CONCAT(Eje.Depend.Afectacion!A39," ", Eje.Depend.Afectacion!C39," ",Eje.Depend.Afectacion!E39," ",Eje.Depend.Afectacion!G39," ",Eje.Depend.Afectacion!I39," ",Eje.Depend.Afectacion!L39," ",Eje.Depend.Afectacion!O39) -> A 01 01 01 001 006 | E20: =+Eje.Depend.Afectacion!S39 -> PRIMA DE SERVICIO | F20: =+Eje.Depend.Afectacion!AA39 -> Nación | G20: =+Eje.Depend.Afectacion!AF39 -> CSF | H20: =+Eje.Depend.Afectacion!AI39 -> 10 | I20: =+Eje.Depend.Afectacion!AJ39 -> RECURSOS CORRIENTES | J20: =+Eje.Depend.Afectacion!$AP$39 -> 695515084 | K20: =+Eje.Depend.Afectacion!$AQ$39 -> 695515084 | L20: =+Eje.Depend.Afectacion!$AR$39 -> 0,00 | M20: =+Eje.Depend.Afectacion!$AS$39 -> 0,00 | N20: =+Eje.Depend.Afectacion!$AU$39 -> 26221743 | O20: =+Eje.Depend.Afectacion!$AW$39 -> 669293341 | P20: =+Eje.Depend.Afectacion!$AX$39 -> 26221743 | Q20: =+Eje.Depend.Afectacion!$AY$39 -> 0,00 | R20: =+Eje.Depend.Afectacion!$AZ$39 -> 26221743 | S20: =+Eje.Depend.Afectacion!$BA$39 -> 0,00 | T20: =+Eje.Depend.Afectacion!$BB$39 -> 26221743 | U20: =+Eje.Depend.Afectacion!$BC$39 -> 0,00 | V20: =+Eje.Depend.Afectacion!$BD$39 -> 0,00 | W20: 3.770118521
A21: =_xlfn.CONCAT(Eje.Depend.Afectacion!A40," ", Eje.Depend.Afectacion!C40," ",Eje.Depend.Afectacion!E40," ",Eje.Depend.Afectacion!G40," ",Eje.Depend.Afectacion!I40," ",Eje.Depend.Afectacion!L40," ",Eje.Depend.Afectacion!O40) -> A 01 01 01 001 007 | E21: =+Eje.Depend.Afectacion!S40 -> BONIFICACIÓN POR SERVICIOS PRESTADOS | F21: =+Eje.Depend.Afectacion!AA40 -> Nación | G21: =+Eje.Depend.Afectacion!AF40 -> CSF | H21: =+Eje.Depend.Afectacion!AI40 -> 10 | I21: =+Eje.Depend.Afectacion!AJ40 -> RECURSOS CORRIENTES | J21: =+Eje.Depend.Afectacion!$AP$40 -> 498017482 | K21: =+Eje.Depend.Afectacion!$AQ$40 -> 498017482 | L21: =+Eje.Depend.Afectacion!$AR$40 -> 0,00 | M21: =+Eje.Depend.Afectacion!$AS$40 -> 0,00 | N21: =+Eje.Depend.Afectacion!$AU$40 -> 260203650 | O21: =+Eje.Depend.Afectacion!$AW$40 -> 237813832 | P21: =+Eje.Depend.Afectacion!$AX$40 -> 260203650 | Q21: =+Eje.Depend.Afectacion!$AY$40 -> 0,00 | R21: =+Eje.Depend.Afectacion!$AZ$40 -> 260203650 | S21: =+Eje.Depend.Afectacion!$BA$40 -> 0,00 | T21: =+Eje.Depend.Afectacion!$BB$40 -> 260203650 | U21: =+Eje.Depend.Afectacion!$BC$40 -> 0,00 | V21: =+Eje.Depend.Afectacion!$BD$40 -> 378164 | W21: 52.24789478
A22: =_xlfn.CONCAT(Eje.Depend.Afectacion!A41," ", Eje.Depend.Afectacion!C41," ",Eje.Depend.Afectacion!E41," ",Eje.Depend.Afectacion!G41," ",Eje.Depend.Afectacion!I41," ",Eje.Depend.Afectacion!L41," ",Eje.Depend.Afectacion!O41) -> A 01 01 01 001 008 | E22: =+Eje.Depend.Afectacion!S41 -> HORAS EXTRAS, DOMINICALES, FESTIVOS Y RECARGOS | F22: =+Eje.Depend.Afectacion!AA41 -> Nación | G22: =+Eje.Depend.Afectacion!AF41 -> CSF | H22: =+Eje.Depend.Afectacion!AI41 -> 10 | I22: =+Eje.Depend.Afectacion!AJ41 -> RECURSOS CORRIENTES | J22: =+Eje.Depend.Afectacion!$AP$41 -> 2208890558 | K22: =+Eje.Depend.Afectacion!$AQ$41 -> 2208890558 | L22: =+Eje.Depend.Afectacion!$AR$41 -> 0,00 | M22: =+Eje.Depend.Afectacion!$AS$41 -> 0,00 | N22: =+Eje.Depend.Afectacion!$AU$41 -> 1005468675 | O22: =+Eje.Depend.Afectacion!$AW$41 -> 1203421883 | P22: =+Eje.Depend.Afectacion!$AX$41 -> 1005468675 | Q22: =+Eje.Depend.Afectacion!$AY$41 -> 0,00 | R22: =+Eje.Depend.Afectacion!$AZ$41 -> 1005468675 | S22: =+Eje.Depend.Afectacion!$BA$41 -> 0,00 | T22: =+Eje.Depend.Afectacion!$BB$41 -> 1005468675 | U22: =+Eje.Depend.Afectacion!$BC$41 -> 0,00 | V22: =+Eje.Depend.Afectacion!$BD$41 -> 0,00 | W22: 45.51917121
A23: =_xlfn.CONCAT(Eje.Depend.Afectacion!A42," ", Eje.Depend.Afectacion!C42," ",Eje.Depend.Afectacion!E42," ",Eje.Depend.Afectacion!G42," ",Eje.Depend.Afectacion!I42," ",Eje.Depend.Afectacion!L42," ",Eje.Depend.Afectacion!O42) -> A 01 01 01 001 009 | E23: =+Eje.Depend.Afectacion!S42 -> PRIMA DE NAVIDAD | F23: =+Eje.Depend.Afectacion!AA42 -> Nación | G23: =+Eje.Depend.Afectacion!AF42 -> CSF | H23: =+Eje.Depend.Afectacion!AI42 -> 10 | I23: =+Eje.Depend.Afectacion!AJ42 -> RECURSOS CORRIENTES | J23: =+Eje.Depend.Afectacion!$AP$42 -> 1109335261 | K23: =+Eje.Depend.Afectacion!$AQ$42 -> 1109335261 | L23: =+Eje.Depend.Afectacion!$AR$42 -> 0,00 | M23: =+Eje.Depend.Afectacion!$AS$42 -> 0,00 | N23: =+Eje.Depend.Afectacion!$AU$42 -> 25217600 | O23: =+Eje.Depend.Afectacion!$AW$42 -> 1084117661 | P23: =+Eje.Depend.Afectacion!$AX$42 -> 25217600 | Q23: =+Eje.Depend.Afectacion!$AY$42 -> 0,00 | R23: =+Eje.Depend.Afectacion!$AZ$42 -> 25217600 | S23: =+Eje.Depend.Afectacion!$BA$42 -> 0,00 | T23: =+Eje.Depend.Afectacion!$BB$42 -> 25217600 | U23: =+Eje.Depend.Afectacion!$BC$42 -> 0,00 | V23: =+Eje.Depend.Afectacion!$BD$42 -> 0,00 | W23: 2.273217204
A24: =_xlfn.CONCAT(Eje.Depend.Afectacion!A43," ", Eje.Depend.Afectacion!C43," ",Eje.Depend.Afectacion!E43," ",Eje.Depend.Afectacion!G43," ",Eje.Depend.Afectacion!I43," ",Eje.Depend.Afectacion!L43," ",Eje.Depend.Afectacion!O43) -> A 01 01 01 001 010 | E24: =+Eje.Depend.Afectacion!S43 -> PRIMA DE VACACIONES | F24: =+Eje.Depend.Afectacion!AA43 -> Nación | G24: =+Eje.Depend.Afectacion!AF43 -> CSF | H24: =+Eje.Depend.Afectacion!AI43 -> 10 | I24: =+Eje.Depend.Afectacion!AJ43 -> RECURSOS CORRIENTES | J24: =+Eje.Depend.Afectacion!$AP$43 -> 889034526 | K24: =+Eje.Depend.Afectacion!$AQ$43 -> 889034526 | L24: =+Eje.Depend.Afectacion!$AR$43 -> 0,00 | M24: =+Eje.Depend.Afectacion!$AS$43 -> 0,00 | N24: =+Eje.Depend.Afectacion!$AU$43 -> 393093792 | O24: =+Eje.Depend.Afectacion!$AW$43 -> 495940734 | P24: =+Eje.Depend.Afectacion!$AX$43 -> 393093792 | Q24: =+Eje.Depend.Afectacion!$AY$43 -> 0,00 | R24: =+Eje.Depend.Afectacion!$AZ$43 -> 393093792 | S24: =+Eje.Depend.Afectacion!$BA$43 -> 0,00 | T24: =+Eje.Depend.Afectacion!$BB$43 -> 393093792 | U24: =+Eje.Depend.Afectacion!$BC$43 -> 0,00 | V24: =+Eje.Depend.Afectacion!$BD$43 -> 0,00 | W24: 44.2158072
A25: =_xlfn.CONCAT(Eje.Depend.Afectacion!A44," ", Eje.Depend.Afectacion!C44," ",Eje.Depend.Afectacion!E44," ",Eje.Depend.Afectacion!G44," ",Eje.Depend.Afectacion!I44," ",Eje.Depend.Afectacion!L44," ",Eje.Depend.Afectacion!O44) -> A 01 01 01 001 012 | E25: =+Eje.Depend.Afectacion!S44 -> AUXILIO DE CONECTIVIDAD DIGITAL | F25: =+Eje.Depend.Afectacion!AA44 -> Nación | G25: =+Eje.Depend.Afectacion!AF44 -> CSF | H25: =+Eje.Depend.Afectacion!AI44 -> 10 | I25: =+Eje.Depend.Afectacion!AJ44 -> RECURSOS CORRIENTES | J25: =+Eje.Depend.Afectacion!$AP$44 -> 36197934 | K25: =+Eje.Depend.Afectacion!$AQ$44 -> 36197934 | L25: =+Eje.Depend.Afectacion!$AR$44 -> 0,00 | M25: =+Eje.Depend.Afectacion!$AS$44 -> 0,00 | N25: =+Eje.Depend.Afectacion!$AU$44 -> 19126380 | O25: =+Eje.Depend.Afectacion!$AW$44 -> 17071554 | P25: =+Eje.Depend.Afectacion!$AX$44 -> 19126380 | Q25: =+Eje.Depend.Afectacion!$AY$44 -> 0,00 | R25: =+Eje.Depend.Afectacion!$AZ$44 -> 19126380 | S25: =+Eje.Depend.Afectacion!$BA$44 -> 0,00 | T25: =+Eje.Depend.Afectacion!$BB$44 -> 19126380 | U25: =+Eje.Depend.Afectacion!$BC$44 -> 0,00 | V25: =+Eje.Depend.Afectacion!$BD$44 -> 0,00 | W25: 52.83831945
A26: =_xlfn.CONCAT(Eje.Depend.Afectacion!A45," ", Eje.Depend.Afectacion!C45," ",Eje.Depend.Afectacion!E45," ",Eje.Depend.Afectacion!G45," ",Eje.Depend.Afectacion!I45," ",Eje.Depend.Afectacion!L45," ",Eje.Depend.Afectacion!O45) -> A 01 01 01 002 | E26: =+Eje.Depend.Afectacion!S45 -> FACTORES SALARIALES ESPECIALES | F26: =+Eje.Depend.Afectacion!AA45 -> Nación | G26: =+Eje.Depend.Afectacion!AF45 -> CSF | H26: =+Eje.Depend.Afectacion!AI45 -> 10 | I26: =+Eje.Depend.Afectacion!AJ45 -> RECURSOS CORRIENTES | J26: =+Eje.Depend.Afectacion!$AP$45 -> 907737231 | K26: =+Eje.Depend.Afectacion!$AQ$45 -> 907737231 | L26: =+Eje.Depend.Afectacion!$AR$45 -> 0,00 | M26: =+Eje.Depend.Afectacion!$AS$45 -> 0,00 | N26: =+Eje.Depend.Afectacion!$AU$45 -> 442245558 | O26: =+Eje.Depend.Afectacion!$AW$45 -> 465491673 | P26: =+Eje.Depend.Afectacion!$AX$45 -> 442245558 | Q26: =+Eje.Depend.Afectacion!$AY$45 -> 0,00 | R26: =+Eje.Depend.Afectacion!$AZ$45 -> 442245558 | S26: =+Eje.Depend.Afectacion!$BA$45 -> 0,00 | T26: =+Eje.Depend.Afectacion!$BB$45 -> 442245558 | U26: =+Eje.Depend.Afectacion!$BC$45 -> 0,00 | V26: =+Eje.Depend.Afectacion!$BD$45 -> 0,00 | W26: 48.71955704
A27: =_xlfn.CONCAT(Eje.Depend.Afectacion!A46," ", Eje.Depend.Afectacion!C46," ",Eje.Depend.Afectacion!E46," ",Eje.Depend.Afectacion!G46," ",Eje.Depend.Afectacion!I46," ",Eje.Depend.Afectacion!L46," ",Eje.Depend.Afectacion!O46) -> A 01 01 01 002 003 | E27: =+Eje.Depend.Afectacion!S46 -> PRIMA ESPECIAL DE SERVICIOS | F27: =+Eje.Depend.Afectacion!AA46 -> Nación | G27: =+Eje.Depend.Afectacion!AF46 -> CSF | H27: =+Eje.Depend.Afectacion!AI46 -> 10 | I27: =+Eje.Depend.Afectacion!AJ46 -> RECURSOS CORRIENTES | J27: =+Eje.Depend.Afectacion!$AP$46 -> 465780980 | K27: =+Eje.Depend.Afectacion!$AQ$46 -> 465780980 | L27: =+Eje.Depend.Afectacion!$AR$46 -> 0,00 | M27: =+Eje.Depend.Afectacion!$AS$46 -> 0,00 | N27: =+Eje.Depend.Afectacion!$AU$46 -> 434773990 | O27: =+Eje.Depend.Afectacion!$AW$46 -> 31006990 | P27: =+Eje.Depend.Afectacion!$AX$46 -> 434773990 | Q27: =+Eje.Depend.Afectacion!$AY$46 -> 0,00 | R27: =+Eje.Depend.Afectacion!$AZ$46 -> 434773990 | S27: =+Eje.Depend.Afectacion!$BA$46 -> 0,00 | T27: =+Eje.Depend.Afectacion!$BB$46 -> 434773990 | U27: =+Eje.Depend.Afectacion!$BC$46 -> 0,00 | V27: =+Eje.Depend.Afectacion!$BD$46 -> 0,00 | W27: 93.3430107
A28: =_xlfn.CONCAT(Eje.Depend.Afectacion!A47," ", Eje.Depend.Afectacion!C47," ",Eje.Depend.Afectacion!E47," ",Eje.Depend.Afectacion!G47," ",Eje.Depend.Afectacion!I47," ",Eje.Depend.Afectacion!L47," ",Eje.Depend.Afectacion!O47) -> A 01 01 01 002 004 | E28: =+Eje.Depend.Afectacion!S47 -> PRIMA SEMESTRAL | F28: =+Eje.Depend.Afectacion!AA47 -> Nación | G28: =+Eje.Depend.Afectacion!AF47 -> CSF | H28: =+Eje.Depend.Afectacion!AI47 -> 10 | I28: =+Eje.Depend.Afectacion!AJ47 -> RECURSOS CORRIENTES | J28: =+Eje.Depend.Afectacion!$AP$47 -> 441956251 | K28: =+Eje.Depend.Afectacion!$AQ$47 -> 441956251 | L28: =+Eje.Depend.Afectacion!$AR$47 -> 0,00 | M28: =+Eje.Depend.Afectacion!$AS$47 -> 0,00 | N28: =+Eje.Depend.Afectacion!$AU$47 -> 7471568 | O28: =+Eje.Depend.Afectacion!$AW$47 -> 434484683 | P28: =+Eje.Depend.Afectacion!$AX$47 -> 7471568 | Q28: =+Eje.Depend.Afectacion!$AY$47 -> 0,00 | R28: =+Eje.Depend.Afectacion!$AZ$47 -> 7471568 | S28: =+Eje.Depend.Afectacion!$BA$47 -> 0,00 | T28: =+Eje.Depend.Afectacion!$BB$47 -> 7471568 | U28: =+Eje.Depend.Afectacion!$BC$47 -> 0,00 | V28: =+Eje.Depend.Afectacion!$BD$47 -> 0,00 | W28: 1.690567332
A29: =_xlfn.CONCAT(Eje.Depend.Afectacion!A48," ", Eje.Depend.Afectacion!C48," ",Eje.Depend.Afectacion!E48," ",Eje.Depend.Afectacion!G48," ",Eje.Depend.Afectacion!I48," ",Eje.Depend.Afectacion!L48," ",Eje.Depend.Afectacion!O48) -> A 01 01 02 | E29: =+Eje.Depend.Afectacion!S48 -> CONTRIBUCIONES INHERENTES A LA NÓMINA | F29: =+Eje.Depend.Afectacion!AA48 -> Nación | G29: =+Eje.Depend.Afectacion!AF48 -> CSF | H29: =+Eje.Depend.Afectacion!AI48 -> 10 | I29: =+Eje.Depend.Afectacion!AJ48 -> RECURSOS CORRIENTES | J29: =+Eje.Depend.Afectacion!$AP$48 -> 7620000000 | K29: =+Eje.Depend.Afectacion!$AQ$48 -> 7620000000 | L29: =+Eje.Depend.Afectacion!$AR$48 -> 0,00 | M29: =+Eje.Depend.Afectacion!$AS$48 -> 0,00 | N29: =+Eje.Depend.Afectacion!$AU$48 -> 3764549923 | O29: =+Eje.Depend.Afectacion!$AW$48 -> 3855450077 | P29: =+Eje.Depend.Afectacion!$AX$48 -> 3670552187 | Q29: =+Eje.Depend.Afectacion!$AY$48 -> 93997736 | R29: =+Eje.Depend.Afectacion!$AZ$48 -> 3670552187 | S29: =+Eje.Depend.Afectacion!$BA$48 -> 0,00 | T29: =+Eje.Depend.Afectacion!$BB$48 -> 3670552187 | U29: =+Eje.Depend.Afectacion!$BC$48 -> 0,00 | V29: =+Eje.Depend.Afectacion!$BD$48 -> 0,00 | W29: 49.4035423
A30: =_xlfn.CONCAT(Eje.Depend.Afectacion!A49," ", Eje.Depend.Afectacion!C49," ",Eje.Depend.Afectacion!E49," ",Eje.Depend.Afectacion!G49," ",Eje.Depend.Afectacion!I49," ",Eje.Depend.Afectacion!L49," ",Eje.Depend.Afectacion!O49) -> A 01 01 02 001 | E30: =+Eje.Depend.Afectacion!S49 -> APORTES A LA SEGURIDAD SOCIAL EN PENSIONES | F30: =+Eje.Depend.Afectacion!AA49 -> Nación | G30: =+Eje.Depend.Afectacion!AF49 -> CSF | H30: =+Eje.Depend.Afectacion!AI49 -> 10 | I30: =+Eje.Depend.Afectacion!AJ49 -> RECURSOS CORRIENTES | J30: =+Eje.Depend.Afectacion!$AP$49 -> 2139952467 | K30: =+Eje.Depend.Afectacion!$AQ$49 -> 2139952467 | L30: =+Eje.Depend.Afectacion!$AR$49 -> 0,00 | M30: =+Eje.Depend.Afectacion!$AS$49 -> 0,00 | N30: =+Eje.Depend.Afectacion!$AU$49 -> 1078274100 | O30: =+Eje.Depend.Afectacion!$AW$49 -> 1061678367 | P30: =+Eje.Depend.Afectacion!$AX$49 -> 1077769500 | Q30: =+Eje.Depend.Afectacion!$AY$49 -> 504600 | R30: =+Eje.Depend.Afectacion!$AZ$49 -> 1077769500 | S30: =+Eje.Depend.Afectacion!$BA$49 -> 0,00 | T30: =+Eje.Depend.Afectacion!$BB$49 -> 1077769500 | U30: =+Eje.Depend.Afectacion!$BC$49 -> 0,00 | V30: =+Eje.Depend.Afectacion!$BD$49 -> 0,00 | W30: 50.38775938
A31: =_xlfn.CONCAT(Eje.Depend.Afectacion!A50," ", Eje.Depend.Afectacion!C50," ",Eje.Depend.Afectacion!E50," ",Eje.Depend.Afectacion!G50," ",Eje.Depend.Afectacion!I50," ",Eje.Depend.Afectacion!L50," ",Eje.Depend.Afectacion!O50) -> A 01 01 02 002 | E31: =+Eje.Depend.Afectacion!S50 -> APORTES A LA SEGURIDAD SOCIAL EN SALUD | F31: =+Eje.Depend.Afectacion!AA50 -> Nación | G31: =+Eje.Depend.Afectacion!AF50 -> CSF | H31: =+Eje.Depend.Afectacion!AI50 -> 10 | I31: =+Eje.Depend.Afectacion!AJ50 -> RECURSOS CORRIENTES | J31: =+Eje.Depend.Afectacion!$AP$50 -> 1459397767 | K31: =+Eje.Depend.Afectacion!$AQ$50 -> 1459397767 | L31: =+Eje.Depend.Afectacion!$AR$50 -> 0,00 | M31: =+Eje.Depend.Afectacion!$AS$50 -> 0,00 | N31: =+Eje.Depend.Afectacion!$AU$50 -> 763670400 | O31: =+Eje.Depend.Afectacion!$AW$50 -> 695727367 | P31: =+Eje.Depend.Afectacion!$AX$50 -> 763313000 | Q31: =+Eje.Depend.Afectacion!$AY$50 -> 357400 | R31: =+Eje.Depend.Afectacion!$AZ$50 -> 763313000 | S31: =+Eje.Depend.Afectacion!$BA$50 -> 0,00 | T31: =+Eje.Depend.Afectacion!$BB$50 -> 763313000 | U31: =+Eje.Depend.Afectacion!$BC$50 -> 0,00 | V31: =+Eje.Depend.Afectacion!$BD$50 -> 0,00 | W31: 52.32777638
A32: =_xlfn.CONCAT(Eje.Depend.Afectacion!A51," ", Eje.Depend.Afectacion!C51," ",Eje.Depend.Afectacion!E51," ",Eje.Depend.Afectacion!G51," ",Eje.Depend.Afectacion!I51," ",Eje.Depend.Afectacion!L51," ",Eje.Depend.Afectacion!O51) -> A 01 01 02 003 | E32: =+Eje.Depend.Afectacion!S51 -> AUXILIO DE CESANTÍAS | F32: =+Eje.Depend.Afectacion!AA51 -> Nación | G32: =+Eje.Depend.Afectacion!AF51 -> CSF | H32: =+Eje.Depend.Afectacion!AI51 -> 10 | I32: =+Eje.Depend.Afectacion!AJ51 -> RECURSOS CORRIENTES | J32: =+Eje.Depend.Afectacion!$AP$51 -> 1795344560 | K32: =+Eje.Depend.Afectacion!$AQ$51 -> 1795344560 | L32: =+Eje.Depend.Afectacion!$AR$51 -> 0,00 | M32: =+Eje.Depend.Afectacion!$AS$51 -> 0,00 | N32: =+Eje.Depend.Afectacion!$AU$51 -> 836365423 | O32: =+Eje.Depend.Afectacion!$AW$51 -> 958979137 | P32: =+Eje.Depend.Afectacion!$AX$51 -> 743630387 | Q32: =+Eje.Depend.Afectacion!$AY$51 -> 92735036 | R32: =+Eje.Depend.Afectacion!$AZ$51 -> 743630387 | S32: =+Eje.Depend.Afectacion!$BA$51 -> 0,00 | T32: =+Eje.Depend.Afectacion!$BB$51 -> 743630387 | U32: =+Eje.Depend.Afectacion!$BC$51 -> 0,00 | V32: =+Eje.Depend.Afectacion!$BD$51 -> 0,00 | W32: 46.5852317
A33: =_xlfn.CONCAT(Eje.Depend.Afectacion!A52," ", Eje.Depend.Afectacion!C52," ",Eje.Depend.Afectacion!E52," ",Eje.Depend.Afectacion!G52," ",Eje.Depend.Afectacion!I52," ",Eje.Depend.Afectacion!L52," ",Eje.Depend.Afectacion!O52) -> A 01 01 02 004 | E33: =+Eje.Depend.Afectacion!S52 -> APORTES A CAJAS DE COMPENSACIÓN FAMILIAR | F33: =+Eje.Depend.Afectacion!AA52 -> Nación | G33: =+Eje.Depend.Afectacion!AF52 -> CSF | H33: =+Eje.Depend.Afectacion!AI52 -> 10 | I33: =+Eje.Depend.Afectacion!AJ52 -> RECURSOS CORRIENTES | J33: =+Eje.Depend.Afectacion!$AP$52 -> 808875967 | K33: =+Eje.Depend.Afectacion!$AQ$52 -> 808875967 | L33: =+Eje.Depend.Afectacion!$AR$52 -> 0,00 | M33: =+Eje.Depend.Afectacion!$AS$52 -> 0,00 | N33: =+Eje.Depend.Afectacion!$AU$52 -> 394999800 | O33: =+Eje.Depend.Afectacion!$AW$52 -> 413876167 | P33: =+Eje.Depend.Afectacion!$AX$52 -> 394831500 | Q33: =+Eje.Depend.Afectacion!$AY$52 -> 168300 | R33: =+Eje.Depend.Afectacion!$AZ$52 -> 394831500 | S33: =+Eje.Depend.Afectacion!$BA$52 -> 0,00 | T33: =+Eje.Depend.Afectacion!$BB$52 -> 394831500 | U33: =+Eje.Depend.Afectacion!$BC$52 -> 0,00 | V33: =+Eje.Depend.Afectacion!$BD$52 -> 0,00 | W33: 48.83317296
A34: =_xlfn.CONCAT(Eje.Depend.Afectacion!A53," ", Eje.Depend.Afectacion!C53," ",Eje.Depend.Afectacion!E53," ",Eje.Depend.Afectacion!G53," ",Eje.Depend.Afectacion!I53," ",Eje.Depend.Afectacion!L53," ",Eje.Depend.Afectacion!O53) -> A 01 01 02 005 | E34: =+Eje.Depend.Afectacion!S53 -> APORTES GENERALES AL SISTEMA DE RIESGOS LABORALES | F34: =+Eje.Depend.Afectacion!AA53 -> Nación | G34: =+Eje.Depend.Afectacion!AF53 -> CSF | H34: =+Eje.Depend.Afectacion!AI53 -> 10 | I34: =+Eje.Depend.Afectacion!AJ53 -> RECURSOS CORRIENTES | J34: =+Eje.Depend.Afectacion!$AP$53 -> 400367405 | K34: =+Eje.Depend.Afectacion!$AQ$53 -> 400367405 | L34: =+Eje.Depend.Afectacion!$AR$53 -> 0,00 | M34: =+Eje.Depend.Afectacion!$AS$53 -> 0,00 | N34: =+Eje.Depend.Afectacion!$AU$53 -> 196608900 | O34: =+Eje.Depend.Afectacion!$AW$53 -> 203758505 | P34: =+Eje.Depend.Afectacion!$AX$53 -> 196586900 | Q34: =+Eje.Depend.Afectacion!$AY$53 -> 22000 | R34: =+Eje.Depend.Afectacion!$AZ$53 -> 196586900 | S34: =+Eje.Depend.Afectacion!$BA$53 -> 0,00 | T34: =+Eje.Depend.Afectacion!$BB$53 -> 196586900 | U34: =+Eje.Depend.Afectacion!$BC$53 -> 0,00 | V34: =+Eje.Depend.Afectacion!$BD$53 -> 0,00 | W34: 49.1071195
A35: =_xlfn.CONCAT(Eje.Depend.Afectacion!A54," ", Eje.Depend.Afectacion!C54," ",Eje.Depend.Afectacion!E54," ",Eje.Depend.Afectacion!G54," ",Eje.Depend.Afectacion!I54," ",Eje.Depend.Afectacion!L54," ",Eje.Depend.Afectacion!O54) -> A 01 01 02 006 | E35: =+Eje.Depend.Afectacion!S54 -> APORTES AL ICBF | F35: =+Eje.Depend.Afectacion!AA54 -> Nación | G35: =+Eje.Depend.Afectacion!AF54 -> CSF | H35: =+Eje.Depend.Afectacion!AI54 -> 10 | I35: =+Eje.Depend.Afectacion!AJ54 -> RECURSOS CORRIENTES | J35: =+Eje.Depend.Afectacion!$AP$54 -> 608312667 | K35: =+Eje.Depend.Afectacion!$AQ$54 -> 608312667 | L35: =+Eje.Depend.Afectacion!$AR$54 -> 0,00 | M35: =+Eje.Depend.Afectacion!$AS$54 -> 0,00 | N35: =+Eje.Depend.Afectacion!$AU$54 -> 296599900 | O35: =+Eje.Depend.Afectacion!$AW$54 -> 311712767 | P35: =+Eje.Depend.Afectacion!$AX$54 -> 296473700 | Q35: =+Eje.Depend.Afectacion!$AY$54 -> 126200 | R35: =+Eje.Depend.Afectacion!$AZ$54 -> 296473700 | S35: =+Eje.Depend.Afectacion!$BA$54 -> 0,00 | T35: =+Eje.Depend.Afectacion!$BB$54 -> 296473700 | U35: =+Eje.Depend.Afectacion!$BC$54 -> 0,00 | V35: =+Eje.Depend.Afectacion!$BD$54 -> 0,00 | W35: 48.75780435
A36: =_xlfn.CONCAT(Eje.Depend.Afectacion!A55," ", Eje.Depend.Afectacion!C55," ",Eje.Depend.Afectacion!E55," ",Eje.Depend.Afectacion!G55," ",Eje.Depend.Afectacion!I55," ",Eje.Depend.Afectacion!L55," ",Eje.Depend.Afectacion!O55) -> A 01 01 02 007 | E36: =+Eje.Depend.Afectacion!S55 -> APORTES AL SENA | F36: =+Eje.Depend.Afectacion!AA55 -> Nación | G36: =+Eje.Depend.Afectacion!AF55 -> CSF | H36: =+Eje.Depend.Afectacion!AI55 -> 10 | I36: =+Eje.Depend.Afectacion!AJ55 -> RECURSOS CORRIENTES | J36: =+Eje.Depend.Afectacion!$AP$55 -> 407749167 | K36: =+Eje.Depend.Afectacion!$AQ$55 -> 407749167 | L36: =+Eje.Depend.Afectacion!$AR$55 -> 0,00 | M36: =+Eje.Depend.Afectacion!$AS$55 -> 0,00 | N36: =+Eje.Depend.Afectacion!$AU$55 -> 198031400 | O36: =+Eje.Depend.Afectacion!$AW$55 -> 209717767 | P36: =+Eje.Depend.Afectacion!$AX$55 -> 197947200 | Q36: =+Eje.Depend.Afectacion!$AY$55 -> 84200 | R36: =+Eje.Depend.Afectacion!$AZ$55 -> 197947200 | S36: =+Eje.Depend.Afectacion!$BA$55 -> 0,00 | T36: =+Eje.Depend.Afectacion!$BB$55 -> 197947200 | U36: =+Eje.Depend.Afectacion!$BC$55 -> 0,00 | V36: =+Eje.Depend.Afectacion!$BD$55 -> 0,00 | W36: 48.56696617
A37: =_xlfn.CONCAT(Eje.Depend.Afectacion!A56," ", Eje.Depend.Afectacion!C56," ",Eje.Depend.Afectacion!E56," ",Eje.Depend.Afectacion!G56," ",Eje.Depend.Afectacion!I56," ",Eje.Depend.Afectacion!L56," ",Eje.Depend.Afectacion!O56) -> A 01 01 03 | E37: =+Eje.Depend.Afectacion!S56 -> REMUNERACIONES NO CONSTITUTIVAS DE FACTOR SALARIAL | F37: =+Eje.Depend.Afectacion!AA56 -> Nación | G37: =+Eje.Depend.Afectacion!AF56 -> CSF | H37: =+Eje.Depend.Afectacion!AI56 -> 10 | I37: =+Eje.Depend.Afectacion!AJ56 -> RECURSOS CORRIENTES | J37: =+Eje.Depend.Afectacion!$AP$56 -> 2141000000 | K37: =+Eje.Depend.Afectacion!$AQ$56 -> 2141000000 | L37: =+Eje.Depend.Afectacion!$AR$56 -> 0,00 | M37: =+Eje.Depend.Afectacion!$AS$56 -> 0,00 | N37: =+Eje.Depend.Afectacion!$AU$56 -> 1080732430 | O37: =+Eje.Depend.Afectacion!$AW$56 -> 1060267570 | P37: =+Eje.Depend.Afectacion!$AX$56 -> 1079121096 | Q37: =+Eje.Depend.Afectacion!$AY$56 -> 1611334 | R37: =+Eje.Depend.Afectacion!$AZ$56 -> 1079121096 | S37: =+Eje.Depend.Afectacion!$BA$56 -> 0,00 | T37: =+Eje.Depend.Afectacion!$BB$56 -> 1079121096 | U37: =+Eje.Depend.Afectacion!$BC$56 -> 0,00 | V37: =+Eje.Depend.Afectacion!$BD$56 -> 7893681 | W37: 50.4779276
A38: =_xlfn.CONCAT(Eje.Depend.Afectacion!A57," ", Eje.Depend.Afectacion!C57," ",Eje.Depend.Afectacion!E57," ",Eje.Depend.Afectacion!G57," ",Eje.Depend.Afectacion!I57," ",Eje.Depend.Afectacion!L57," ",Eje.Depend.Afectacion!O57) -> A 01 01 03 001 | E38: =+Eje.Depend.Afectacion!S57 -> PRESTACIONES SOCIALES SEGÚN DEFINICIÓN LEGAL | F38: =+Eje.Depend.Afectacion!AA57 -> Nación | G38: =+Eje.Depend.Afectacion!AF57 -> CSF | H38: =+Eje.Depend.Afectacion!AI57 -> 10 | I38: =+Eje.Depend.Afectacion!AJ57 -> RECURSOS CORRIENTES | J38: =+Eje.Depend.Afectacion!$AP$57 -> 1020920888 | K38: =+Eje.Depend.Afectacion!$AQ$57 -> 1020920888 | L38: =+Eje.Depend.Afectacion!$AR$57 -> 0,00 | M38: =+Eje.Depend.Afectacion!$AS$57 -> 0,00 | N38: =+Eje.Depend.Afectacion!$AU$57 -> 501744045 | O38: =+Eje.Depend.Afectacion!$AW$57 -> 519176843 | P38: =+Eje.Depend.Afectacion!$AX$57 -> 500132711 | Q38: =+Eje.Depend.Afectacion!$AY$57 -> 1611334 | R38: =+Eje.Depend.Afectacion!$AZ$57 -> 500132711 | S38: =+Eje.Depend.Afectacion!$BA$57 -> 0,00 | T38: =+Eje.Depend.Afectacion!$BB$57 -> 500132711 | U38: =+Eje.Depend.Afectacion!$BC$57 -> 0,00 | V38: =+Eje.Depend.Afectacion!$BD$57 -> 5658658 | W38: 49.1462219
A39: =_xlfn.CONCAT(Eje.Depend.Afectacion!A58," ", Eje.Depend.Afectacion!C58," ",Eje.Depend.Afectacion!E58," ",Eje.Depend.Afectacion!G58," ",Eje.Depend.Afectacion!I58," ",Eje.Depend.Afectacion!L58," ",Eje.Depend.Afectacion!O58) -> A 01 01 03 001 001 | E39: =+Eje.Depend.Afectacion!S58 -> VACACIONES | F39: =+Eje.Depend.Afectacion!AA58 -> Nación | G39: =+Eje.Depend.Afectacion!AF58 -> CSF | H39: =+Eje.Depend.Afectacion!AI58 -> 10 | I39: =+Eje.Depend.Afectacion!AJ58 -> RECURSOS CORRIENTES | J39: =+Eje.Depend.Afectacion!$AP$58 -> 819995701 | K39: =+Eje.Depend.Afectacion!$AQ$58 -> 819995701 | L39: =+Eje.Depend.Afectacion!$AR$58 -> 0,00 | M39: =+Eje.Depend.Afectacion!$AS$58 -> 0,00 | N39: =+Eje.Depend.Afectacion!$AU$58 -> 388812898 | O39: =+Eje.Depend.Afectacion!$AW$58 -> 431182803 | P39: =+Eje.Depend.Afectacion!$AX$58 -> 388812898 | Q39: =+Eje.Depend.Afectacion!$AY$58 -> 0,00 | R39: =+Eje.Depend.Afectacion!$AZ$58 -> 388812898 | S39: =+Eje.Depend.Afectacion!$BA$58 -> 0,00 | T39: =+Eje.Depend.Afectacion!$BB$58 -> 388812898 | U39: =+Eje.Depend.Afectacion!$BC$58 -> 0,00 | V39: =+Eje.Depend.Afectacion!$BD$58 -> 0,00 | W39: 47.41645566
A40: =_xlfn.CONCAT(Eje.Depend.Afectacion!A59," ", Eje.Depend.Afectacion!C59," ",Eje.Depend.Afectacion!E59," ",Eje.Depend.Afectacion!G59," ",Eje.Depend.Afectacion!I59," ",Eje.Depend.Afectacion!L59," ",Eje.Depend.Afectacion!O59) -> A 01 01 03 001 002 | E40: =+Eje.Depend.Afectacion!S59 -> INDEMNIZACIÓN POR VACACIONES | F40: =+Eje.Depend.Afectacion!AA59 -> Nación | G40: =+Eje.Depend.Afectacion!AF59 -> CSF | H40: =+Eje.Depend.Afectacion!AI59 -> 10 | I40: =+Eje.Depend.Afectacion!AJ59 -> RECURSOS CORRIENTES | J40: =+Eje.Depend.Afectacion!$AP$59 -> 122632377 | K40: =+Eje.Depend.Afectacion!$AQ$59 -> 122632377 | L40: =+Eje.Depend.Afectacion!$AR$59 -> 0,00 | M40: =+Eje.Depend.Afectacion!$AS$59 -> 0,00 | N40: =+Eje.Depend.Afectacion!$AU$59 -> 74565496 | O40: =+Eje.Depend.Afectacion!$AW$59 -> 48066881 | P40: =+Eje.Depend.Afectacion!$AX$59 -> 72954162 | Q40: =+Eje.Depend.Afectacion!$AY$59 -> 1611334 | R40: =+Eje.Depend.Afectacion!$AZ$59 -> 72954162 | S40: =+Eje.Depend.Afectacion!$BA$59 -> 0,00 | T40: =+Eje.Depend.Afectacion!$BB$59 -> 72954162 | U40: =+Eje.Depend.Afectacion!$BC$59 -> 0,00 | V40: =+Eje.Depend.Afectacion!$BD$59 -> 5658658 | W40: 60.80408602
A41: =_xlfn.CONCAT(Eje.Depend.Afectacion!A60," ", Eje.Depend.Afectacion!C60," ",Eje.Depend.Afectacion!E60," ",Eje.Depend.Afectacion!G60," ",Eje.Depend.Afectacion!I60," ",Eje.Depend.Afectacion!L60," ",Eje.Depend.Afectacion!O60) -> A 01 01 03 001 003 | E41: =+Eje.Depend.Afectacion!S60 -> BONIFICACIÓN ESPECIAL DE RECREACIÓN | F41: =+Eje.Depend.Afectacion!AA60 -> Nación | G41: =+Eje.Depend.Afectacion!AF60 -> CSF | H41: =+Eje.Depend.Afectacion!AI60 -> 10 | I41: =+Eje.Depend.Afectacion!AJ60 -> RECURSOS CORRIENTES | J41: =+Eje.Depend.Afectacion!$AP$60 -> 78292810 | K41: =+Eje.Depend.Afectacion!$AQ$60 -> 78292810 | L41: =+Eje.Depend.Afectacion!$AR$60 -> 0,00 | M41: =+Eje.Depend.Afectacion!$AS$60 -> 0,00 | N41: =+Eje.Depend.Afectacion!$AU$60 -> 38365651 | O41: =+Eje.Depend.Afectacion!$AW$60 -> 39927159 | P41: =+Eje.Depend.Afectacion!$AX$60 -> 38365651 | Q41: =+Eje.Depend.Afectacion!$AY$60 -> 0,00 | R41: =+Eje.Depend.Afectacion!$AZ$60 -> 38365651 | S41: =+Eje.Depend.Afectacion!$BA$60 -> 0,00 | T41: =+Eje.Depend.Afectacion!$BB$60 -> 38365651 | U41: =+Eje.Depend.Afectacion!$BC$60 -> 0,00 | V41: =+Eje.Depend.Afectacion!$BD$60 -> 0,00 | W41: 49.00277688
A42: =_xlfn.CONCAT(Eje.Depend.Afectacion!A61," ", Eje.Depend.Afectacion!C61," ",Eje.Depend.Afectacion!E61," ",Eje.Depend.Afectacion!G61," ",Eje.Depend.Afectacion!I61," ",Eje.Depend.Afectacion!L61," ",Eje.Depend.Afectacion!O61) -> A 01 01 03 002 | E42: =+Eje.Depend.Afectacion!S61 -> PRIMA TÉCNICA NO SALARIAL | F42: =+Eje.Depend.Afectacion!AA61 -> Nación | G42: =+Eje.Depend.Afectacion!AF61 -> CSF | H42: =+Eje.Depend.Afectacion!AI61 -> 10 | I42: =+Eje.Depend.Afectacion!AJ61 -> RECURSOS CORRIENTES | J42: =+Eje.Depend.Afectacion!$AP$61 -> 580678266 | K42: =+Eje.Depend.Afectacion!$AQ$61 -> 580678266 | L42: =+Eje.Depend.Afectacion!$AR$61 -> 0,00 | M42: =+Eje.Depend.Afectacion!$AS$61 -> 0,00 | N42: =+Eje.Depend.Afectacion!$AU$61 -> 285416412 | O42: =+Eje.Depend.Afectacion!$AW$61 -> 295261854 | P42: =+Eje.Depend.Afectacion!$AX$61 -> 285416412 | Q42: =+Eje.Depend.Afectacion!$AY$61 -> 0,00 | R42: =+Eje.Depend.Afectacion!$AZ$61 -> 285416412 | S42: =+Eje.Depend.Afectacion!$BA$61 -> 0,00 | T42: =+Eje.Depend.Afectacion!$BB$61 -> 285416412 | U42: =+Eje.Depend.Afectacion!$BC$61 -> 0,00 | V42: =+Eje.Depend.Afectacion!$BD$61 -> 0,00 | W42: 49.15224638
A43: =_xlfn.CONCAT(Eje.Depend.Afectacion!A62," ", Eje.Depend.Afectacion!C62," ",Eje.Depend.Afectacion!E62," ",Eje.Depend.Afectacion!G62," ",Eje.Depend.Afectacion!I62," ",Eje.Depend.Afectacion!L62," ",Eje.Depend.Afectacion!O62) -> A 01 01 03 016 | E43: =+Eje.Depend.Afectacion!S62 -> PRIMA DE COORDINACIÓN | F43: =+Eje.Depend.Afectacion!AA62 -> Nación | G43: =+Eje.Depend.Afectacion!AF62 -> CSF | H43: =+Eje.Depend.Afectacion!AI62 -> 10 | I43: =+Eje.Depend.Afectacion!AJ62 -> RECURSOS CORRIENTES | J43: =+Eje.Depend.Afectacion!$AP$62 -> 376434913 | K43: =+Eje.Depend.Afectacion!$AQ$62 -> 376434913 | L43: =+Eje.Depend.Afectacion!$AR$62 -> 0,00 | M43: =+Eje.Depend.Afectacion!$AS$62 -> 0,00 | N43: =+Eje.Depend.Afectacion!$AU$62 -> 216123425 | O43: =+Eje.Depend.Afectacion!$AW$62 -> 160311488 | P43: =+Eje.Depend.Afectacion!$AX$62 -> 216123425 | Q43: =+Eje.Depend.Afectacion!$AY$62 -> 0,00 | R43: =+Eje.Depend.Afectacion!$AZ$62 -> 216123425 | S43: =+Eje.Depend.Afectacion!$BA$62 -> 0,00 | T43: =+Eje.Depend.Afectacion!$BB$62 -> 216123425 | U43: =+Eje.Depend.Afectacion!$BC$62 -> 0,00 | V43: =+Eje.Depend.Afectacion!$BD$62 -> 2235023 | W43: 57.41322538
A44: =_xlfn.CONCAT(Eje.Depend.Afectacion!A63," ", Eje.Depend.Afectacion!C63," ",Eje.Depend.Afectacion!E63," ",Eje.Depend.Afectacion!G63," ",Eje.Depend.Afectacion!I63," ",Eje.Depend.Afectacion!L63," ",Eje.Depend.Afectacion!O63) -> A 01 01 03 030 | E44: =+Eje.Depend.Afectacion!S63 -> BONIFICACIÓN DE DIRECCIÓN | F44: =+Eje.Depend.Afectacion!AA63 -> Nación | G44: =+Eje.Depend.Afectacion!AF63 -> CSF | H44: =+Eje.Depend.Afectacion!AI63 -> 10 | I44: =+Eje.Depend.Afectacion!AJ63 -> RECURSOS CORRIENTES | J44: =+Eje.Depend.Afectacion!$AP$63 -> 67816884 | K44: =+Eje.Depend.Afectacion!$AQ$63 -> 67816884 | L44: =+Eje.Depend.Afectacion!$AR$63 -> 0,00 | M44: =+Eje.Depend.Afectacion!$AS$63 -> 0,00 | N44: =+Eje.Depend.Afectacion!$AU$63 -> 35174274 | O44: =+Eje.Depend.Afectacion!$AW$63 -> 32642610 | P44: =+Eje.Depend.Afectacion!$AX$63 -> 35174274 | Q44: =+Eje.Depend.Afectacion!$AY$63 -> 0,00 | R44: =+Eje.Depend.Afectacion!$AZ$63 -> 35174274 | S44: =+Eje.Depend.Afectacion!$BA$63 -> 0,00 | T44: =+Eje.Depend.Afectacion!$BB$63 -> 35174274 | U44: =+Eje.Depend.Afectacion!$BC$63 -> 0,00 | V44: =+Eje.Depend.Afectacion!$BD$63 -> 0,00 | W44: 51.86654403
A45: =_xlfn.CONCAT(Eje.Depend.Afectacion!A64," ", Eje.Depend.Afectacion!C64," ",Eje.Depend.Afectacion!E64," ",Eje.Depend.Afectacion!G64," ",Eje.Depend.Afectacion!I64," ",Eje.Depend.Afectacion!L64," ",Eje.Depend.Afectacion!O64) -> A 01 01 03 038 | E45: =+Eje.Depend.Afectacion!S64 -> QUINQUENIOS | F45: =+Eje.Depend.Afectacion!AA64 -> Nación | G45: =+Eje.Depend.Afectacion!AF64 -> CSF | H45: =+Eje.Depend.Afectacion!AI64 -> 10 | I45: =+Eje.Depend.Afectacion!AJ64 -> RECURSOS CORRIENTES | J45: =+Eje.Depend.Afectacion!$AP$64 -> 95149049 | K45: =+Eje.Depend.Afectacion!$AQ$64 -> 95149049 | L45: =+Eje.Depend.Afectacion!$AR$64 -> 0,00 | M45: =+Eje.Depend.Afectacion!$AS$64 -> 0,00 | N45: =+Eje.Depend.Afectacion!$AU$64 -> 42274274 | O45: =+Eje.Depend.Afectacion!$AW$64 -> 52874775 | P45: =+Eje.Depend.Afectacion!$AX$64 -> 42274274 | Q45: =+Eje.Depend.Afectacion!$AY$64 -> 0,00 | R45: =+Eje.Depend.Afectacion!$AZ$64 -> 42274274 | S45: =+Eje.Depend.Afectacion!$BA$64 -> 0,00 | T45: =+Eje.Depend.Afectacion!$BB$64 -> 42274274 | U45: =+Eje.Depend.Afectacion!$BC$64 -> 0,00 | V45: =+Eje.Depend.Afectacion!$BD$64 -> 0,00 | W45: 44.42952867
A46: =_xlfn.CONCAT(Eje.Depend.Afectacion!A65," ", Eje.Depend.Afectacion!C65," ",Eje.Depend.Afectacion!E65," ",Eje.Depend.Afectacion!G65," ",Eje.Depend.Afectacion!I65," ",Eje.Depend.Afectacion!L65," ",Eje.Depend.Afectacion!O65) -> A 01 01 03 038 001 | E46: =+Eje.Depend.Afectacion!S65 -> BENEFICIOS A LOS EMPLEADOS A CORTO PLAZO | F46: =+Eje.Depend.Afectacion!AA65 -> Nación | G46: =+Eje.Depend.Afectacion!AF65 -> CSF | H46: =+Eje.Depend.Afectacion!AI65 -> 10 | I46: =+Eje.Depend.Afectacion!AJ65 -> RECURSOS CORRIENTES | J46: =+Eje.Depend.Afectacion!$AP$65 -> 95149049 | K46: =+Eje.Depend.Afectacion!$AQ$65 -> 95149049 | L46: =+Eje.Depend.Afectacion!$AR$65 -> 0,00 | M46: =+Eje.Depend.Afectacion!$AS$65 -> 0,00 | N46: =+Eje.Depend.Afectacion!$AU$65 -> 42274274 | O46: =+Eje.Depend.Afectacion!$AW$65 -> 52874775 | P46: =+Eje.Depend.Afectacion!$AX$65 -> 42274274 | Q46: =+Eje.Depend.Afectacion!$AY$65 -> 0,00 | R46: =+Eje.Depend.Afectacion!$AZ$65 -> 42274274 | S46: =+Eje.Depend.Afectacion!$BA$65 -> 0,00 | T46: =+Eje.Depend.Afectacion!$BB$65 -> 42274274 | U46: =+Eje.Depend.Afectacion!$BC$65 -> 0,00 | V46: =+Eje.Depend.Afectacion!$BD$65 -> 0,00 | W46: 44.42952867
A47: =_xlfn.CONCAT(Eje.Depend.Afectacion!A66," ", Eje.Depend.Afectacion!C66," ",Eje.Depend.Afectacion!E66," ",Eje.Depend.Afectacion!G66," ",Eje.Depend.Afectacion!I66," ",Eje.Depend.Afectacion!L66," ",Eje.Depend.Afectacion!O66) -> A 02 | E47: =+Eje.Depend.Afectacion!S66 -> ADQUISICIÓN DE BIENES Y SERVICIOS | F47: =+Eje.Depend.Afectacion!AA66 -> Nación | G47: =+Eje.Depend.Afectacion!AF66 -> CSF | H47: =+Eje.Depend.Afectacion!AI66 -> 10 | I47: =+Eje.Depend.Afectacion!AJ66 -> RECURSOS CORRIENTES | J47: =+Eje.Depend.Afectacion!$AP$66+Eje.Depend.Afectacion!$AP$166 -> 18519000000 | K47: =+Eje.Depend.Afectacion!$AQ$66++Eje.Depend.Afectacion!$AQ$166 -> 18340101310 | L47: =+Eje.Depend.Afectacion!$AR$66++Eje.Depend.Afectacion!$AR$166 -> 178898690 | M47: =+Eje.Depend.Afectacion!$AS$66++Eje.Depend.Afectacion!$AS$166 -> 0 | N47: =+Eje.Depend.Afectacion!$AU$66++Eje.Depend.Afectacion!$AU$166 -> 1.037507291e+10 | O47: =+Eje.Depend.Afectacion!$AW$66++Eje.Depend.Afectacion!$AW$166 -> 7965028403 | P47: =+Eje.Depend.Afectacion!$AX$66++Eje.Depend.Afectacion!$AX$166 -> 6023435363 | Q47: =+Eje.Depend.Afectacion!$AY$66++Eje.Depend.Afectacion!$AY$166 -> 4351637544 | R47: =+Eje.Depend.Afectacion!$AZ$66++Eje.Depend.Afectacion!$AZ$166 -> 6023435363 | S47: =+Eje.Depend.Afectacion!$BA$66++Eje.Depend.Afectacion!$BA$166 -> 0 | T47: =+Eje.Depend.Afectacion!$BB$66++Eje.Depend.Afectacion!$BB$166 -> 6023435363 | U47: =+Eje.Depend.Afectacion!$BC$66++Eje.Depend.Afectacion!$BC$166 -> 0 | V47: =+Eje.Depend.Afectacion!$BD$66++Eje.Depend.Afectacion!$BD$166 -> 37017 | W47: 56.02393707
A48: =_xlfn.CONCAT(Eje.Depend.Afectacion!A67," ", Eje.Depend.Afectacion!C67," ",Eje.Depend.Afectacion!E67," ",Eje.Depend.Afectacion!G67," ",Eje.Depend.Afectacion!I67," ",Eje.Depend.Afectacion!L67," ",Eje.Depend.Afectacion!O67) -> A 02 | E48: =+Eje.Depend.Afectacion!S67 -> ADQUISICIÓN DE BIENES Y SERVICIOS | F48: =+Eje.Depend.Afectacion!AA67 -> Propios | G48: =+Eje.Depend.Afectacion!AF67 -> CSF | H48: =+Eje.Depend.Afectacion!AI67 -> 21 | I48: =+Eje.Depend.Afectacion!AJ67 -> OTROS RECURSOS DE TESORERIA | J48: =+Eje.Depend.Afectacion!$AP$67 -> 596894000 | K48: =+Eje.Depend.Afectacion!$AQ$67 -> 533476000 | L48: =+Eje.Depend.Afectacion!$AR$67 -> 63418000 | M48: =+Eje.Depend.Afectacion!$AS$67 -> 0,00 | N48: =+Eje.Depend.Afectacion!$AU$67 -> 533091000 | O48: =+Eje.Depend.Afectacion!$AW$67 -> 385000 | P48: =+Eje.Depend.Afectacion!$AX$67 -> 222524000 | Q48: =+Eje.Depend.Afectacion!$AY$67 -> 310567000 | R48: =+Eje.Depend.Afectacion!$AZ$67 -> 222524000 | S48: =+Eje.Depend.Afectacion!$BA$67 -> 0,00 | T48: =+Eje.Depend.Afectacion!$BB$67 -> 222524000 | U48: =+Eje.Depend.Afectacion!$BC$67 -> 0,00 | V48: =+Eje.Depend.Afectacion!$BD$67 -> 0,00 | W48: 89.31083241
A49: =_xlfn.CONCAT(Eje.Depend.Afectacion!A68," ", Eje.Depend.Afectacion!C68," ",Eje.Depend.Afectacion!E68," ",Eje.Depend.Afectacion!G68," ",Eje.Depend.Afectacion!I68," ",Eje.Depend.Afectacion!L68," ",Eje.Depend.Afectacion!O68) -> A 02 01 | E49: =+Eje.Depend.Afectacion!S68 -> ADQUISICIÓN DE ACTIVOS NO FINANCIEROS | F49: =+Eje.Depend.Afectacion!AA68 -> Nación | G49: =+Eje.Depend.Afectacion!AF68 -> CSF | H49: =+Eje.Depend.Afectacion!AI68 -> 10 | I49: =+Eje.Depend.Afectacion!AJ68 -> RECURSOS CORRIENTES | J49: =+Eje.Depend.Afectacion!$AP$68 -> 72799600 | K49: =+Eje.Depend.Afectacion!$AQ$68 -> 70799600 | L49: =+Eje.Depend.Afectacion!$AR$68 -> 2000000 | M49: =+Eje.Depend.Afectacion!$AS$68 -> 0,00 | N49: =+Eje.Depend.Afectacion!$AU$68 -> 7103400 | O49: =+Eje.Depend.Afectacion!$AW$68 -> 63696200 | P49: =+Eje.Depend.Afectacion!$AX$68 -> 0,00 | Q49: =+Eje.Depend.Afectacion!$AY$68 -> 7103400 | R49: =+Eje.Depend.Afectacion!$AZ$68 -> 0,00 | S49: =+Eje.Depend.Afectacion!$BA$68 -> 0,00 | T49: =+Eje.Depend.Afectacion!$BB$68 -> 0,00 | U49: =+Eje.Depend.Afectacion!$BC$68 -> 0,00 | V49: =+Eje.Depend.Afectacion!$BD$68 -> 0,00 | W49: 9.757471195
A50: =_xlfn.CONCAT(Eje.Depend.Afectacion!A69," ", Eje.Depend.Afectacion!C69," ",Eje.Depend.Afectacion!E69," ",Eje.Depend.Afectacion!G69," ",Eje.Depend.Afectacion!I69," ",Eje.Depend.Afectacion!L69," ",Eje.Depend.Afectacion!O69) -> A 02 01 01 | E50: =+Eje.Depend.Afectacion!S69 -> ACTIVOS FIJOS | F50: =+Eje.Depend.Afectacion!AA69 -> Nación | G50: =+Eje.Depend.Afectacion!AF69 -> CSF | H50: =+Eje.Depend.Afectacion!AI69 -> 10 | I50: =+Eje.Depend.Afectacion!AJ69 -> RECURSOS CORRIENTES | J50: =+Eje.Depend.Afectacion!$AP$69 -> 72799600 | K50: =+Eje.Depend.Afectacion!$AQ$69 -> 70799600 | L50: =+Eje.Depend.Afectacion!$AR$69 -> 2000000 | M50: =+Eje.Depend.Afectacion!$AS$69 -> 0,00 | N50: =+Eje.Depend.Afectacion!$AU$69 -> 7103400 | O50: =+Eje.Depend.Afectacion!$AW$69 -> 63696200 | P50: =+Eje.Depend.Afectacion!$AX$69 -> 0,00 | Q50: =+Eje.Depend.Afectacion!$AY$69 -> 7103400 | R50: =+Eje.Depend.Afectacion!$AZ$69 -> 0,00 | S50: =+Eje.Depend.Afectacion!$BA$69 -> 0,00 | T50: =+Eje.Depend.Afectacion!$BB$69 -> 0,00 | U50: =+Eje.Depend.Afectacion!$BC$69 -> 0,00 | V50: =+Eje.Depend.Afectacion!$BD$69 -> 0,00 | W50: 9.757471195
A51: =_xlfn.CONCAT(Eje.Depend.Afectacion!A70," ", Eje.Depend.Afectacion!C70," ",Eje.Depend.Afectacion!E70," ",Eje.Depend.Afectacion!G70," ",Eje.Depend.Afectacion!I70," ",Eje.Depend.Afectacion!L70," ",Eje.Depend.Afectacion!O70) -> A 02 01 01 003 | E51: =+Eje.Depend.Afectacion!S70 -> ACTIVOS FIJOS NO CLASIFICADOS COMO MAQUINARIA Y EQUIPO | F51: =+Eje.Depend.Afectacion!AA70 -> Nación | G51: =+Eje.Depend.Afectacion!AF70 -> CSF | H51: =+Eje.Depend.Afectacion!AI70 -> 10 | I51: =+Eje.Depend.Afectacion!AJ70 -> RECURSOS CORRIENTES | J51: =+Eje.Depend.Afectacion!$AP$70 -> 48400000 | K51: =+Eje.Depend.Afectacion!$AQ$70 -> 48400000 | L51: =+Eje.Depend.Afectacion!$AR$70 -> 0,00 | M51: =+Eje.Depend.Afectacion!$AS$70 -> 0,00 | N51: =+Eje.Depend.Afectacion!$AU$70 -> 0,00 | O51: =+Eje.Depend.Afectacion!$AW$70 -> 48400000 | P51: =+Eje.Depend.Afectacion!$AX$70 -> 0,00 | Q51: =+Eje.Depend.Afectacion!$AY$70 -> 0,00 | R51: =+Eje.Depend.Afectacion!$AZ$70 -> 0,00 | S51: =+Eje.Depend.Afectacion!$BA$70 -> 0,00 | T51: =+Eje.Depend.Afectacion!$BB$70 -> 0,00 | U51: =+Eje.Depend.Afectacion!$BC$70 -> 0,00 | V51: =+Eje.Depend.Afectacion!$BD$70 -> 0,00 | W51: 0
A52: =_xlfn.CONCAT(Eje.Depend.Afectacion!A71," ", Eje.Depend.Afectacion!C71," ",Eje.Depend.Afectacion!E71," ",Eje.Depend.Afectacion!G71," ",Eje.Depend.Afectacion!I71," ",Eje.Depend.Afectacion!L71," ",Eje.Depend.Afectacion!O71) -> A 02 01 01 003 008 | E52: =+Eje.Depend.Afectacion!S71 -> MUEBLES, INSTRUMENTOS MUSICALES, ARTÍCULOS DE DEPORTE Y ANTIGÜEDADES | F52: =+Eje.Depend.Afectacion!AA71 -> Nación | G52: =+Eje.Depend.Afectacion!AF71 -> CSF | H52: =+Eje.Depend.Afectacion!AI71 -> 10 | I52: =+Eje.Depend.Afectacion!AJ71 -> RECURSOS CORRIENTES | J52: =+Eje.Depend.Afectacion!$AP$71 -> 48400000 | K52: =+Eje.Depend.Afectacion!$AQ$71 -> 48400000 | L52: =+Eje.Depend.Afectacion!$AR$71 -> 0,00 | M52: =+Eje.Depend.Afectacion!$AS$71 -> 0,00 | N52: =+Eje.Depend.Afectacion!$AU$71 -> 0,00 | O52: =+Eje.Depend.Afectacion!$AW$71 -> 48400000 | P52: =+Eje.Depend.Afectacion!$AX$71 -> 0,00 | Q52: =+Eje.Depend.Afectacion!$AY$71 -> 0,00 | R52: =+Eje.Depend.Afectacion!$AZ$71 -> 0,00 | S52: =+Eje.Depend.Afectacion!$BA$71 -> 0,00 | T52: =+Eje.Depend.Afectacion!$BB$71 -> 0,00 | U52: =+Eje.Depend.Afectacion!$BC$71 -> 0,00 | V52: =+Eje.Depend.Afectacion!$BD$71 -> 0,00 | W52: 0
A53: =_xlfn.CONCAT(Eje.Depend.Afectacion!A72," ", Eje.Depend.Afectacion!C72," ",Eje.Depend.Afectacion!E72," ",Eje.Depend.Afectacion!G72," ",Eje.Depend.Afectacion!I72," ",Eje.Depend.Afectacion!L72," ",Eje.Depend.Afectacion!O72) -> A 02 01 01 004 | E53: =+Eje.Depend.Afectacion!S72 -> MAQUINARIA Y EQUIPO | F53: =+Eje.Depend.Afectacion!AA72 -> Nación | G53: =+Eje.Depend.Afectacion!AF72 -> CSF | H53: =+Eje.Depend.Afectacion!AI72 -> 10 | I53: =+Eje.Depend.Afectacion!AJ72 -> RECURSOS CORRIENTES | J53: =+Eje.Depend.Afectacion!$AP$72 -> 24399600 | K53: =+Eje.Depend.Afectacion!$AQ$72 -> 22399600 | L53: =+Eje.Depend.Afectacion!$AR$72 -> 2000000 | M53: =+Eje.Depend.Afectacion!$AS$72 -> 0,00 | N53: =+Eje.Depend.Afectacion!$AU$72 -> 7103400 | O53: =+Eje.Depend.Afectacion!$AW$72 -> 15296200 | P53: =+Eje.Depend.Afectacion!$AX$72 -> 0,00 | Q53: =+Eje.Depend.Afectacion!$AY$72 -> 7103400 | R53: =+Eje.Depend.Afectacion!$AZ$72 -> 0,00 | S53: =+Eje.Depend.Afectacion!$BA$72 -> 0,00 | T53: =+Eje.Depend.Afectacion!$BB$72 -> 0,00 | U53: =+Eje.Depend.Afectacion!$BC$72 -> 0,00 | V53: =+Eje.Depend.Afectacion!$BD$72 -> 0,00 | W53: 29.11277234
A54: =_xlfn.CONCAT(Eje.Depend.Afectacion!A73," ", Eje.Depend.Afectacion!C73," ",Eje.Depend.Afectacion!E73," ",Eje.Depend.Afectacion!G73," ",Eje.Depend.Afectacion!I73," ",Eje.Depend.Afectacion!L73," ",Eje.Depend.Afectacion!O73) -> A 02 01 01 004 003 | E54: =+Eje.Depend.Afectacion!S73 -> MAQUINARIA PARA USO GENERAL | F54: =+Eje.Depend.Afectacion!AA73 -> Nación | G54: =+Eje.Depend.Afectacion!AF73 -> CSF | H54: =+Eje.Depend.Afectacion!AI73 -> 10 | I54: =+Eje.Depend.Afectacion!AJ73 -> RECURSOS CORRIENTES | J54: =+Eje.Depend.Afectacion!$AP$73 -> 2000000 | K54: =+Eje.Depend.Afectacion!$AQ$73 -> 0,00 | L54: =+Eje.Depend.Afectacion!$AR$73 -> 2000000 | M54: =+Eje.Depend.Afectacion!$AS$73 -> 0,00 | N54: =+Eje.Depend.Afectacion!$AU$73 -> 0,00 | O54: =+Eje.Depend.Afectacion!$AW$73 -> 0,00 | P54: =+Eje.Depend.Afectacion!$AX$73 -> 0,00 | Q54: =+Eje.Depend.Afectacion!$AY$73 -> 0,00 | R54: =+Eje.Depend.Afectacion!$AZ$73 -> 0,00 | S54: =+Eje.Depend.Afectacion!$BA$73 -> 0,00 | T54: =+Eje.Depend.Afectacion!$BB$73 -> 0,00 | U54: =+Eje.Depend.Afectacion!$BC$73 -> 0,00 | V54: =+Eje.Depend.Afectacion!$BD$73 -> 0,00 | W54: 0
A55: =_xlfn.CONCAT(Eje.Depend.Afectacion!A74," ", Eje.Depend.Afectacion!C74," ",Eje.Depend.Afectacion!E74," ",Eje.Depend.Afectacion!G74," ",Eje.Depend.Afectacion!I74," ",Eje.Depend.Afectacion!L74," ",Eje.Depend.Afectacion!O74) -> A 02 01 01 004 004 | E55: =+Eje.Depend.Afectacion!S74 -> MAQUINARIA PARA USOS ESPECIALES | F55: =+Eje.Depend.Afectacion!AA74 -> Nación | G55: =+Eje.Depend.Afectacion!AF74 -> CSF | H55: =+Eje.Depend.Afectacion!AI74 -> 10 | I55: =+Eje.Depend.Afectacion!AJ74 -> RECURSOS CORRIENTES | J55: =+Eje.Depend.Afectacion!$AP$74 -> 22399600 | K55: =+Eje.Depend.Afectacion!$AQ$74 -> 22399600 | L55: =+Eje.Depend.Afectacion!$AR$74 -> 0,00 | M55: =+Eje.Depend.Afectacion!$AS$74 -> 0,00 | N55: =+Eje.Depend.Afectacion!$AU$74 -> 7103400 | O55: =+Eje.Depend.Afectacion!$AW$74 -> 15296200 | P55: =+Eje.Depend.Afectacion!$AX$74 -> 0,00 | Q55: =+Eje.Depend.Afectacion!$AY$74 -> 7103400 | R55: =+Eje.Depend.Afectacion!$AZ$74 -> 0,00 | S55: =+Eje.Depend.Afectacion!$BA$74 -> 0,00 | T55: =+Eje.Depend.Afectacion!$BB$74 -> 0,00 | U55: =+Eje.Depend.Afectacion!$BC$74 -> 0,00 | V55: =+Eje.Depend.Afectacion!$BD$74 -> 0,00 | W55: 31.71217343
A56: =_xlfn.CONCAT(Eje.Depend.Afectacion!A75," ", Eje.Depend.Afectacion!C75," ",Eje.Depend.Afectacion!E75," ",Eje.Depend.Afectacion!G75," ",Eje.Depend.Afectacion!I75," ",Eje.Depend.Afectacion!L75," ",Eje.Depend.Afectacion!O75) -> A 02 01 01 004 009 | E56: =+Eje.Depend.Afectacion!S75 -> EQUIPO DE TRANSPORTE | F56: =+Eje.Depend.Afectacion!AA75 -> Nación | G56: =+Eje.Depend.Afectacion!AF75 -> CSF | H56: =+Eje.Depend.Afectacion!AI75 -> 10 | I56: =+Eje.Depend.Afectacion!AJ75 -> RECURSOS CORRIENTES | J56: =+Eje.Depend.Afectacion!$AP$75 -> 0,00 | K56: =+Eje.Depend.Afectacion!$AQ$75 -> 0,00 | L56: =+Eje.Depend.Afectacion!$AR$75 -> 0,00 | M56: =+Eje.Depend.Afectacion!$AS$75 -> 0,00 | N56: =+Eje.Depend.Afectacion!$AU$75 -> 0,00 | O56: =+Eje.Depend.Afectacion!$AW$75 -> 0,00 | P56: =+Eje.Depend.Afectacion!$AX$75 -> 0,00 | Q56: =+Eje.Depend.Afectacion!$AY$75 -> 0,00 | R56: =+Eje.Depend.Afectacion!$AZ$75 -> 0,00 | S56: =+Eje.Depend.Afectacion!$BA$75 -> 0,00 | T56: =+Eje.Depend.Afectacion!$BB$75 -> 0,00 | U56: =+Eje.Depend.Afectacion!$BC$75 -> 0,00 | V56: =+Eje.Depend.Afectacion!$BD$75 -> 0,00
A57: =_xlfn.CONCAT(Eje.Depend.Afectacion!A76," ", Eje.Depend.Afectacion!C76," ",Eje.Depend.Afectacion!E76," ",Eje.Depend.Afectacion!G76," ",Eje.Depend.Afectacion!I76," ",Eje.Depend.Afectacion!L76," ",Eje.Depend.Afectacion!O76) -> A 02 02 | E57: =+Eje.Depend.Afectacion!S76 -> ADQUISICIONES DIFERENTES DE ACTIVOS | F57: =+Eje.Depend.Afectacion!AA76 -> Nación | G57: =+Eje.Depend.Afectacion!AF76 -> CSF | H57: =+Eje.Depend.Afectacion!AI76 -> 10 | I57: =+Eje.Depend.Afectacion!AJ76 -> RECURSOS CORRIENTES | J57: =+Eje.Depend.Afectacion!$AP$76++Eje.Depend.Afectacion!$AP$167 -> 18446200400 | K57: =+Eje.Depend.Afectacion!$AQ$76++Eje.Depend.Afectacion!$AQ$167 -> 18269301710 | L57: =+Eje.Depend.Afectacion!$AR$76++Eje.Depend.Afectacion!$AR$167 -> 176898690 | M57: =+Eje.Depend.Afectacion!$AS$76++Eje.Depend.Afectacion!$AS$167 -> 0 | N57: =+Eje.Depend.Afectacion!$AU$76++Eje.Depend.Afectacion!$AU$167 -> 1.036796951e+10 | O57: =+Eje.Depend.Afectacion!$AW$76++Eje.Depend.Afectacion!$AW$167 -> 7901332203 | P57: =+Eje.Depend.Afectacion!$AX$76++Eje.Depend.Afectacion!$AX$167 -> 6023435363 | Q57: =+Eje.Depend.Afectacion!$AY$76++Eje.Depend.Afectacion!$AY$167 -> 4344534144 | R57: =+Eje.Depend.Afectacion!$AZ$76++Eje.Depend.Afectacion!$AZ$167 -> 6023435363 | S57: =+Eje.Depend.Afectacion!$BA$76++Eje.Depend.Afectacion!$BA$167 -> 0 | T57: =+Eje.Depend.Afectacion!$BB$76++Eje.Depend.Afectacion!$BB$167 -> 6023435363 | U57: =+Eje.Depend.Afectacion!$BC$76++Eje.Depend.Afectacion!$BC$167 -> 0 | V57: =+Eje.Depend.Afectacion!$BD$76++Eje.Depend.Afectacion!$BD$167 -> 37017 | W57: 56.20653187
A58: =_xlfn.CONCAT(Eje.Depend.Afectacion!A77," ", Eje.Depend.Afectacion!C77," ",Eje.Depend.Afectacion!E77," ",Eje.Depend.Afectacion!G77," ",Eje.Depend.Afectacion!I77," ",Eje.Depend.Afectacion!L77," ",Eje.Depend.Afectacion!O77) -> A 02 02 | E58: =+Eje.Depend.Afectacion!S77 -> ADQUISICIONES DIFERENTES DE ACTIVOS | F58: =+Eje.Depend.Afectacion!AA77 -> Propios | G58: =+Eje.Depend.Afectacion!AF77 -> CSF | H58: =+Eje.Depend.Afectacion!AI77 -> 21 | I58: =+Eje.Depend.Afectacion!AJ77 -> OTROS RECURSOS DE TESORERIA | J58: =+Eje.Depend.Afectacion!$AP$77 -> 596894000 | K58: =+Eje.Depend.Afectacion!$AQ$77 -> 533476000 | L58: =+Eje.Depend.Afectacion!$AR$77 -> 63418000 | M58: =+Eje.Depend.Afectacion!$AS$77 -> 0,00 | N58: =+Eje.Depend.Afectacion!$AU$77 -> 533091000 | O58: =+Eje.Depend.Afectacion!$AW$77 -> 385000 | P58: =+Eje.Depend.Afectacion!$AX$77 -> 222524000 | Q58: =+Eje.Depend.Afectacion!$AY$77 -> 310567000 | R58: =+Eje.Depend.Afectacion!$AZ$77 -> 222524000 | S58: =+Eje.Depend.Afectacion!$BA$77 -> 0,00 | T58: =+Eje.Depend.Afectacion!$BB$77 -> 222524000 | U58: =+Eje.Depend.Afectacion!$BC$77 -> 0,00 | V58: =+Eje.Depend.Afectacion!$BD$77 -> 0,00 | W58: 89.31083241
A59: =_xlfn.CONCAT(Eje.Depend.Afectacion!A78," ", Eje.Depend.Afectacion!C78," ",Eje.Depend.Afectacion!E78," ",Eje.Depend.Afectacion!G78," ",Eje.Depend.Afectacion!I78," ",Eje.Depend.Afectacion!L78," ",Eje.Depend.Afectacion!O78) -> A 02 02 01 | E59: =+Eje.Depend.Afectacion!S78 -> MATERIALES Y SUMINISTROS | F59: =+Eje.Depend.Afectacion!AA78 -> Nación | G59: =+Eje.Depend.Afectacion!AF78 -> CSF | H59: =+Eje.Depend.Afectacion!AI78 -> 10 | I59: =+Eje.Depend.Afectacion!AJ78 -> RECURSOS CORRIENTES | J59: =+Eje.Depend.Afectacion!$AP$78+Eje.Depend.Afectacion!$AP$168 -> 1820850476 | K59: =+Eje.Depend.Afectacion!$AQ$78+Eje.Depend.Afectacion!$AQ$168 -> 1695450476 | L59: =+Eje.Depend.Afectacion!$AR$78+Eje.Depend.Afectacion!$AR$168 -> 125400000 | M59: =+Eje.Depend.Afectacion!$AS$78+Eje.Depend.Afectacion!$AS$168 -> 0 | N59: =+Eje.Depend.Afectacion!$AU$78+Eje.Depend.Afectacion!$AU$168 -> 117991856.2 | O59: =+Eje.Depend.Afectacion!$AW$78+Eje.Depend.Afectacion!$AW$168 -> 1577458620 | P59: =+Eje.Depend.Afectacion!$AX$78+Eje.Depend.Afectacion!$AX$168 -> 66343355.94 | Q59: =+Eje.Depend.Afectacion!$AY$78+Eje.Depend.Afectacion!$AY$168 -> 51648500.31 | R59: =+Eje.Depend.Afectacion!$AZ$78+Eje.Depend.Afectacion!$AZ$168 -> 66343355.94 | S59: =+Eje.Depend.Afectacion!$BA$78+Eje.Depend.Afectacion!$BA$168 -> 0 | T59: =+Eje.Depend.Afectacion!$BB$78+Eje.Depend.Afectacion!$BB$168 -> 66343355.94 | U59: =+Eje.Depend.Afectacion!$BC$78+Eje.Depend.Afectacion!$BC$168 -> 0 | V59: =+Eje.Depend.Afectacion!$BD$78+Eje.Depend.Afectacion!$BD$168 -> 0 | W59: 6.480040936
A60: =_xlfn.CONCAT(Eje.Depend.Afectacion!A79," ", Eje.Depend.Afectacion!C79," ",Eje.Depend.Afectacion!E79," ",Eje.Depend.Afectacion!G79," ",Eje.Depend.Afectacion!I79," ",Eje.Depend.Afectacion!L79," ",Eje.Depend.Afectacion!O79) -> A 02 02 01 002 | E60: =+Eje.Depend.Afectacion!S79 -> PRODUCTOS ALIMENTICIOS, BEBIDAS Y TABACO; TEXTILES, PRENDAS DE VESTIR Y PRODUCTOS DE CUERO | F60: =+Eje.Depend.Afectacion!AA79 -> Nación | G60: =+Eje.Depend.Afectacion!AF79 -> CSF | H60: =+Eje.Depend.Afectacion!AI79 -> 10 | I60: =+Eje.Depend.Afectacion!AJ79 -> RECURSOS CORRIENTES | J60: =+Eje.Depend.Afectacion!$AP$79 -> 189360000 | K60: =+Eje.Depend.Afectacion!$AQ$79 -> 189360000 | L60: =+Eje.Depend.Afectacion!$AR$79 -> 0,00 | M60: =+Eje.Depend.Afectacion!$AS$79 -> 0,00 | N60: =+Eje.Depend.Afectacion!$AU$79 -> 45579347.84 | O60: =+Eje.Depend.Afectacion!$AW$79 -> 143780652.2 | P60: =+Eje.Depend.Afectacion!$AX$79 -> 45579347.84 | Q60: =+Eje.Depend.Afectacion!$AY$79 -> 0,00 | R60: =+Eje.Depend.Afectacion!$AZ$79 -> 45579347.84 | S60: =+Eje.Depend.Afectacion!$BA$79 -> 0,00 | T60: =+Eje.Depend.Afectacion!$BB$79 -> 45579347.84 | U60: =+Eje.Depend.Afectacion!$BC$79 -> 0,00 | V60: =+Eje.Depend.Afectacion!$BD$79 -> 0,00 | W60: 24.07020904
A61: =_xlfn.CONCAT(Eje.Depend.Afectacion!A80," ", Eje.Depend.Afectacion!C80," ",Eje.Depend.Afectacion!E80," ",Eje.Depend.Afectacion!G80," ",Eje.Depend.Afectacion!I80," ",Eje.Depend.Afectacion!L80," ",Eje.Depend.Afectacion!O80) -> A 02 02 01 002 007 | E61: =+Eje.Depend.Afectacion!S80 -> ARTÍCULOS TEXTILES (EXCEPTO PRENDAS DE VESTIR) | F61: =+Eje.Depend.Afectacion!AA80 -> Nación | G61: =+Eje.Depend.Afectacion!AF80 -> CSF | H61: =+Eje.Depend.Afectacion!AI80 -> 10 | I61: =+Eje.Depend.Afectacion!AJ80 -> RECURSOS CORRIENTES | J61: =+Eje.Depend.Afectacion!$AP$80 -> 7000000 | K61: =+Eje.Depend.Afectacion!$AQ$80 -> 7000000 | L61: =+Eje.Depend.Afectacion!$AR$80 -> 0,00 | M61: =+Eje.Depend.Afectacion!$AS$80 -> 0,00 | N61: =+Eje.Depend.Afectacion!$AU$80 -> 0,00 | O61: =+Eje.Depend.Afectacion!$AW$80 -> 7000000 | P61: =+Eje.Depend.Afectacion!$AX$80 -> 0,00 | Q61: =+Eje.Depend.Afectacion!$AY$80 -> 0,00 | R61: =+Eje.Depend.Afectacion!$AZ$80 -> 0,00 | S61: =+Eje.Depend.Afectacion!$BA$80 -> 0,00 | T61: =+Eje.Depend.Afectacion!$BB$80 -> 0,00 | U61: =+Eje.Depend.Afectacion!$BC$80 -> 0,00 | V61: =+Eje.Depend.Afectacion!$BD$80 -> 0,00 | W61: 0
A62: =_xlfn.CONCAT(Eje.Depend.Afectacion!A81," ", Eje.Depend.Afectacion!C81," ",Eje.Depend.Afectacion!E81," ",Eje.Depend.Afectacion!G81," ",Eje.Depend.Afectacion!I81," ",Eje.Depend.Afectacion!L81," ",Eje.Depend.Afectacion!O81) -> A 02 02 01 002 008 | E62: =+Eje.Depend.Afectacion!S81 -> DOTACIÓN (PRENDAS DE VESTIR Y CALZADO) | F62: =+Eje.Depend.Afectacion!AA81 -> Nación | G62: =+Eje.Depend.Afectacion!AF81 -> CSF | H62: =+Eje.Depend.Afectacion!AI81 -> 10 | I62: =+Eje.Depend.Afectacion!AJ81 -> RECURSOS CORRIENTES | J62: =+Eje.Depend.Afectacion!$AP$81 -> 182360000 | K62: =+Eje.Depend.Afectacion!$AQ$81 -> 182360000 | L62: =+Eje.Depend.Afectacion!$AR$81 -> 0,00 | M62: =+Eje.Depend.Afectacion!$AS$81 -> 0,00 | N62: =+Eje.Depend.Afectacion!$AU$81 -> 45579347.84 | O62: =+Eje.Depend.Afectacion!$AW$81 -> 136780652.2 | P62: =+Eje.Depend.Afectacion!$AX$81 -> 45579347.84 | Q62: =+Eje.Depend.Afectacion!$AY$81 -> 0,00 | R62: =+Eje.Depend.Afectacion!$AZ$81 -> 45579347.84 | S62: =+Eje.Depend.Afectacion!$BA$81 -> 0,00 | T62: =+Eje.Depend.Afectacion!$BB$81 -> 45579347.84 | U62: =+Eje.Depend.Afectacion!$BC$81 -> 0,00 | V62: =+Eje.Depend.Afectacion!$BD$81 -> 0,00 | W62: 24.99415872
A63: =_xlfn.CONCAT(Eje.Depend.Afectacion!A82," ", Eje.Depend.Afectacion!C82," ",Eje.Depend.Afectacion!E82," ",Eje.Depend.Afectacion!G82," ",Eje.Depend.Afectacion!I82," ",Eje.Depend.Afectacion!L82," ",Eje.Depend.Afectacion!O82) -> A 02 02 01 003 | E63: =+Eje.Depend.Afectacion!S82 -> OTROS BIENES TRANSPORTABLES (EXCEPTO PRODUCTOS METÁLICOS, MAQUINARIA Y EQUIPO) | F63: =+Eje.Depend.Afectacion!AA82 -> Nación | G63: =+Eje.Depend.Afectacion!AF82 -> CSF | H63: =+Eje.Depend.Afectacion!AI82 -> 10 | I63: =+Eje.Depend.Afectacion!AJ82 -> RECURSOS CORRIENTES | J63: =+Eje.Depend.Afectacion!$AP$82 -> 884343653.5 | K63: =+Eje.Depend.Afectacion!$AQ$82 -> 835943653.5 | L63: =+Eje.Depend.Afectacion!$AR$82 -> 48400000 | M63: =+Eje.Depend.Afectacion!$AS$82 -> 0,00 | N63: =+Eje.Depend.Afectacion!$AU$82 -> 69056708.41 | O63: =+Eje.Depend.Afectacion!$AW$82 -> 766886945.1 | P63: =+Eje.Depend.Afectacion!$AX$82 -> 20764008.1 | Q63: =+Eje.Depend.Afectacion!$AY$82 -> 48292700.31 | R63: =+Eje.Depend.Afectacion!$AZ$82 -> 20764008.1 | S63: =+Eje.Depend.Afectacion!$BA$82 -> 0,00 | T63: =+Eje.Depend.Afectacion!$BB$82 -> 20764008.1 | U63: =+Eje.Depend.Afectacion!$BC$82 -> 0,00 | V63: =+Eje.Depend.Afectacion!$BD$82 -> 0,00 | W63: 7.808809181
A64: =_xlfn.CONCAT(Eje.Depend.Afectacion!A83," ", Eje.Depend.Afectacion!C83," ",Eje.Depend.Afectacion!E83," ",Eje.Depend.Afectacion!G83," ",Eje.Depend.Afectacion!I83," ",Eje.Depend.Afectacion!L83," ",Eje.Depend.Afectacion!O83) -> A 02 02 01 003 002 | E64: =+Eje.Depend.Afectacion!S83 -> PASTA O PULPA, PAPEL Y PRODUCTOS DE PAPEL; IMPRESOS Y ARTÍCULOS RELACIONADOS | F64: =+Eje.Depend.Afectacion!AA83 -> Nación | G64: =+Eje.Depend.Afectacion!AF83 -> CSF | H64: =+Eje.Depend.Afectacion!AI83 -> 10 | I64: =+Eje.Depend.Afectacion!AJ83 -> RECURSOS CORRIENTES | J64: =+Eje.Depend.Afectacion!$AP$83 -> 15471154.28 | K64: =+Eje.Depend.Afectacion!$AQ$83 -> 15471154.28 | L64: =+Eje.Depend.Afectacion!$AR$83 -> 0,00 | M64: =+Eje.Depend.Afectacion!$AS$83 -> 0,00 | N64: =+Eje.Depend.Afectacion!$AU$83 -> 6000000 | O64: =+Eje.Depend.Afectacion!$AW$83 -> 9471154.28 | P64: =+Eje.Depend.Afectacion!$AX$83 -> 3747900 | Q64: =+Eje.Depend.Afectacion!$AY$83 -> 2252100 | R64: =+Eje.Depend.Afectacion!$AZ$83 -> 3747900 | S64: =+Eje.Depend.Afectacion!$BA$83 -> 0,00 | T64: =+Eje.Depend.Afectacion!$BB$83 -> 3747900 | U64: =+Eje.Depend.Afectacion!$BC$83 -> 0,00 | V64: =+Eje.Depend.Afectacion!$BD$83 -> 0,00 | W64: 38.78185099
A65: =_xlfn.CONCAT(Eje.Depend.Afectacion!A84," ", Eje.Depend.Afectacion!C84," ",Eje.Depend.Afectacion!E84," ",Eje.Depend.Afectacion!G84," ",Eje.Depend.Afectacion!I84," ",Eje.Depend.Afectacion!L84," ",Eje.Depend.Afectacion!O84) -> A 02 02 01 003 003 | E65: =+Eje.Depend.Afectacion!S84 -> PRODUCTOS DE HORNOS DE COQUE; PRODUCTOS DE REFINACIÓN DE PETRÓLEO Y COMBUSTIBLE NUCLEAR | F65: =+Eje.Depend.Afectacion!AA84 -> Nación | G65: =+Eje.Depend.Afectacion!AF84 -> CSF | H65: =+Eje.Depend.Afectacion!AI84 -> 10 | I65: =+Eje.Depend.Afectacion!AJ84 -> RECURSOS CORRIENTES | J65: =+Eje.Depend.Afectacion!$AP$84 -> 41810476 | K65: =+Eje.Depend.Afectacion!$AQ$84 -> 41810476 | L65: =+Eje.Depend.Afectacion!$AR$84 -> 0,00 | M65: =+Eje.Depend.Afectacion!$AS$84 -> 0,00 | N65: =+Eje.Depend.Afectacion!$AU$84 -> 26316500 | O65: =+Eje.Depend.Afectacion!$AW$84 -> 15493976 | P65: =+Eje.Depend.Afectacion!$AX$84 -> 17016108.1 | Q65: =+Eje.Depend.Afectacion!$AY$84 -> 9300391.9 | R65: =+Eje.Depend.Afectacion!$AZ$84 -> 17016108.1 | S65: =+Eje.Depend.Afectacion!$BA$84 -> 0,00 | T65: =+Eje.Depend.Afectacion!$BB$84 -> 17016108.1 | U65: =+Eje.Depend.Afectacion!$BC$84 -> 0,00 | V65: =+Eje.Depend.Afectacion!$BD$84 -> 0,00 | W65: 62.94235923
A66: =_xlfn.CONCAT(Eje.Depend.Afectacion!A85," ", Eje.Depend.Afectacion!C85," ",Eje.Depend.Afectacion!E85," ",Eje.Depend.Afectacion!G85," ",Eje.Depend.Afectacion!I85," ",Eje.Depend.Afectacion!L85," ",Eje.Depend.Afectacion!O85) -> A 02 02 01 003 004 | E66: =+Eje.Depend.Afectacion!S85 -> QUÍMICOS BÁSICOS | F66: =+Eje.Depend.Afectacion!AA85 -> Nación | G66: =+Eje.Depend.Afectacion!AF85 -> CSF | H66: =+Eje.Depend.Afectacion!AI85 -> 10 | I66: =+Eje.Depend.Afectacion!AJ85 -> RECURSOS CORRIENTES | J66: =+Eje.Depend.Afectacion!$AP$85 -> 0,00 | K66: =+Eje.Depend.Afectacion!$AQ$85 -> 0,00 | L66: =+Eje.Depend.Afectacion!$AR$85 -> 0,00 | M66: =+Eje.Depend.Afectacion!$AS$85 -> 0,00 | N66: =+Eje.Depend.Afectacion!$AU$85 -> 0,00 | O66: =+Eje.Depend.Afectacion!$AW$85 -> 0,00 | P66: =+Eje.Depend.Afectacion!$AX$85 -> 0,00 | Q66: =+Eje.Depend.Afectacion!$AY$85 -> 0,00 | R66: =+Eje.Depend.Afectacion!$AZ$85 -> 0,00 | S66: =+Eje.Depend.Afectacion!$BA$85 -> 0,00 | T66: =+Eje.Depend.Afectacion!$BB$85 -> 0,00 | U66: =+Eje.Depend.Afectacion!$BC$85 -> 0,00 | V66: =+Eje.Depend.Afectacion!$BD$85 -> 0,00
A67: =_xlfn.CONCAT(Eje.Depend.Afectacion!A86," ", Eje.Depend.Afectacion!C86," ",Eje.Depend.Afectacion!E86," ",Eje.Depend.Afectacion!G86," ",Eje.Depend.Afectacion!I86," ",Eje.Depend.Afectacion!L86," ",Eje.Depend.Afectacion!O86) -> A 02 02 01 003 005 | E67: =+Eje.Depend.Afectacion!S86 -> OTROS PRODUCTOS QUÍMICOS; FIBRAS ARTIFICIALES (O FIBRAS INDUSTRIALES HECHAS POR EL HOMBRE) | F67: =+Eje.Depend.Afectacion!AA86 -> Nación | G67: =+Eje.Depend.Afectacion!AF86 -> CSF | H67: =+Eje.Depend.Afectacion!AI86 -> 10 | I67: =+Eje.Depend.Afectacion!AJ86 -> RECURSOS CORRIENTES | J67: =+Eje.Depend.Afectacion!$AP$86 -> 42370170.34 | K67: =+Eje.Depend.Afectacion!$AQ$86 -> 42370170.34 | L67: =+Eje.Depend.Afectacion!$AR$86 -> 0,00 | M67: =+Eje.Depend.Afectacion!$AS$86 -> 0,00 | N67: =+Eje.Depend.Afectacion!$AU$86 -> 34280608.41 | O67: =+Eje.Depend.Afectacion!$AW$86 -> 8089561.93 | P67: =+Eje.Depend.Afectacion!$AX$86 -> 0,00 | Q67: =+Eje.Depend.Afectacion!$AY$86 -> 34280608.41 | R67: =+Eje.Depend.Afectacion!$AZ$86 -> 0,00 | S67: =+Eje.Depend.Afectacion!$BA$86 -> 0,00 | T67: =+Eje.Depend.Afectacion!$BB$86 -> 0,00 | U67: =+Eje.Depend.Afectacion!$BC$86 -> 0,00 | V67: =+Eje.Depend.Afectacion!$BD$86 -> 0,00 | W67: 80.9074123
A68: =_xlfn.CONCAT(Eje.Depend.Afectacion!A87," ", Eje.Depend.Afectacion!C87," ",Eje.Depend.Afectacion!E87," ",Eje.Depend.Afectacion!G87," ",Eje.Depend.Afectacion!I87," ",Eje.Depend.Afectacion!L87," ",Eje.Depend.Afectacion!O87) -> A 02 02 01 003 006 | E68: =+Eje.Depend.Afectacion!S87 -> PRODUCTOS DE CAUCHO Y PLÁSTICO | F68: =+Eje.Depend.Afectacion!AA87 -> Nación | G68: =+Eje.Depend.Afectacion!AF87 -> CSF | H68: =+Eje.Depend.Afectacion!AI87 -> 10 | I68: =+Eje.Depend.Afectacion!AJ87 -> RECURSOS CORRIENTES | J68: =+Eje.Depend.Afectacion!$AP$87 -> 13343641.69 | K68: =+Eje.Depend.Afectacion!$AQ$87 -> 13343641.69 | L68: =+Eje.Depend.Afectacion!$AR$87 -> 0,00 | M68: =+Eje.Depend.Afectacion!$AS$87 -> 0,00 | N68: =+Eje.Depend.Afectacion!$AU$87 -> 2459600 | O68: =+Eje.Depend.Afectacion!$AW$87 -> 10884041.69 | P68: =+Eje.Depend.Afectacion!$AX$87 -> 0,00 | Q68: =+Eje.Depend.Afectacion!$AY$87 -> 2459600 | R68: =+Eje.Depend.Afectacion!$AZ$87 -> 0,00 | S68: =+Eje.Depend.Afectacion!$BA$87 -> 0,00 | T68: =+Eje.Depend.Afectacion!$BB$87 -> 0,00 | U68: =+Eje.Depend.Afectacion!$BC$87 -> 0,00 | V68: =+Eje.Depend.Afectacion!$BD$87 -> 0,00 | W68: 18.43274915
A69: =_xlfn.CONCAT(Eje.Depend.Afectacion!A88," ", Eje.Depend.Afectacion!C88," ",Eje.Depend.Afectacion!E88," ",Eje.Depend.Afectacion!G88," ",Eje.Depend.Afectacion!I88," ",Eje.Depend.Afectacion!L88," ",Eje.Depend.Afectacion!O88) -> A 02 02 01 003 008 | E69: =+Eje.Depend.Afectacion!S88 -> OTROS BIENES TRANSPORTABLES N.C.P. | F69: =+Eje.Depend.Afectacion!AA88 -> Nación | G69: =+Eje.Depend.Afectacion!AF88 -> CSF | H69: =+Eje.Depend.Afectacion!AI88 -> 10 | I69: =+Eje.Depend.Afectacion!AJ88 -> RECURSOS CORRIENTES | J69: =+Eje.Depend.Afectacion!$AP$88 -> 771348211.2 | K69: =+Eje.Depend.Afectacion!$AQ$88 -> 722948211.2 | L69: =+Eje.Depend.Afectacion!$AR$88 -> 48400000 | M69: =+Eje.Depend.Afectacion!$AS$88 -> 0,00 | N69: =+Eje.Depend.Afectacion!$AU$88 -> 0,00 | O69: =+Eje.Depend.Afectacion!$AW$88 -> 722948211.2 | P69: =+Eje.Depend.Afectacion!$AX$88 -> 0,00 | Q69: =+Eje.Depend.Afectacion!$AY$88 -> 0,00 | R69: =+Eje.Depend.Afectacion!$AZ$88 -> 0,00 | S69: =+Eje.Depend.Afectacion!$BA$88 -> 0,00 | T69: =+Eje.Depend.Afectacion!$BB$88 -> 0,00 | U69: =+Eje.Depend.Afectacion!$BC$88 -> 0,00 | V69: =+Eje.Depend.Afectacion!$BD$88 -> 0,00 | W69: 0
A70: =_xlfn.CONCAT(Eje.Depend.Afectacion!A89," ", Eje.Depend.Afectacion!C89," ",Eje.Depend.Afectacion!E89," ",Eje.Depend.Afectacion!G89," ",Eje.Depend.Afectacion!I89," ",Eje.Depend.Afectacion!L89," ",Eje.Depend.Afectacion!O89) -> A 02 02 01 004 | E70: =+Eje.Depend.Afectacion!S89 -> PRODUCTOS METÁLICOS Y PAQUETES DE SOFTWARE | F70: =+Eje.Depend.Afectacion!AA89 -> Nación | G70: =+Eje.Depend.Afectacion!AF89 -> CSF | H70: =+Eje.Depend.Afectacion!AI89 -> 10 | I70: =+Eje.Depend.Afectacion!AJ89 -> RECURSOS CORRIENTES | J70: =+Eje.Depend.Afectacion!$AP$89 -> 276146822.8 | K70: =+Eje.Depend.Afectacion!$AQ$89 -> 276146822.8 | L70: =+Eje.Depend.Afectacion!$AR$89 -> 0,00 | M70: =+Eje.Depend.Afectacion!$AS$89 -> 0,00 | N70: =+Eje.Depend.Afectacion!$AU$89 -> 3355800 | O70: =+Eje.Depend.Afectacion!$AW$89 -> 272791022.8 | P70: =+Eje.Depend.Afectacion!$AX$89 -> 0,00 | Q70: =+Eje.Depend.Afectacion!$AY$89 -> 3355800 | R70: =+Eje.Depend.Afectacion!$AZ$89 -> 0,00 | S70: =+Eje.Depend.Afectacion!$BA$89 -> 0,00 | T70: =+Eje.Depend.Afectacion!$BB$89 -> 0,00 | U70: =+Eje.Depend.Afectacion!$BC$89 -> 0,00 | V70: =+Eje.Depend.Afectacion!$BD$89 -> 0,00 | W70: 1.215223107
A71: =_xlfn.CONCAT(Eje.Depend.Afectacion!A90," ", Eje.Depend.Afectacion!C90," ",Eje.Depend.Afectacion!E90," ",Eje.Depend.Afectacion!G90," ",Eje.Depend.Afectacion!I90," ",Eje.Depend.Afectacion!L90," ",Eje.Depend.Afectacion!O90) -> A 02 02 01 004 002 | E71: =+Eje.Depend.Afectacion!S90 -> PRODUCTOS METÁLICOS ELABORADOS (EXCEPTO MAQUINARIA Y EQUIPO) | F71: =+Eje.Depend.Afectacion!AA90 -> Nación | G71: =+Eje.Depend.Afectacion!AF90 -> CSF | H71: =+Eje.Depend.Afectacion!AI90 -> 10 | I71: =+Eje.Depend.Afectacion!AJ90 -> RECURSOS CORRIENTES | J71: =+Eje.Depend.Afectacion!$AP$90 -> 470069.75 | K71: =+Eje.Depend.Afectacion!$AQ$90 -> 470069.75 | L71: =+Eje.Depend.Afectacion!$AR$90 -> 0,00 | M71: =+Eje.Depend.Afectacion!$AS$90 -> 0,00 | N71: =+Eje.Depend.Afectacion!$AU$90 -> 0,00 | O71: =+Eje.Depend.Afectacion!$AW$90 -> 470069.75 | P71: =+Eje.Depend.Afectacion!$AX$90 -> 0,00 | Q71: =+Eje.Depend.Afectacion!$AY$90 -> 0,00 | R71: =+Eje.Depend.Afectacion!$AZ$90 -> 0,00 | S71: =+Eje.Depend.Afectacion!$BA$90 -> 0,00 | T71: =+Eje.Depend.Afectacion!$BB$90 -> 0,00 | U71: =+Eje.Depend.Afectacion!$BC$90 -> 0,00 | V71: =+Eje.Depend.Afectacion!$BD$90 -> 0,00 | W71: 0
A72: =_xlfn.CONCAT(Eje.Depend.Afectacion!A91," ", Eje.Depend.Afectacion!C91," ",Eje.Depend.Afectacion!E91," ",Eje.Depend.Afectacion!G91," ",Eje.Depend.Afectacion!I91," ",Eje.Depend.Afectacion!L91," ",Eje.Depend.Afectacion!O91) -> A 02 02 01 004 003 | E72: =+Eje.Depend.Afectacion!S91 -> MAQUINARIA PARA USO GENERAL | F72: =+Eje.Depend.Afectacion!AA91 -> Nación | G72: =+Eje.Depend.Afectacion!AF91 -> CSF | H72: =+Eje.Depend.Afectacion!AI91 -> 10 | I72: =+Eje.Depend.Afectacion!AJ91 -> RECURSOS CORRIENTES | J72: =+Eje.Depend.Afectacion!$AP$91 -> 170000000 | K72: =+Eje.Depend.Afectacion!$AQ$91 -> 170000000 | L72: =+Eje.Depend.Afectacion!$AR$91 -> 0,00 | M72: =+Eje.Depend.Afectacion!$AS$91 -> 0,00 | N72: =+Eje.Depend.Afectacion!$AU$91 -> 0,00 | O72: =+Eje.Depend.Afectacion!$AW$91 -> 170000000 | P72: =+Eje.Depend.Afectacion!$AX$91 -> 0,00 | Q72: =+Eje.Depend.Afectacion!$AY$91 -> 0,00 | R72: =+Eje.Depend.Afectacion!$AZ$91 -> 0,00 | S72: =+Eje.Depend.Afectacion!$BA$91 -> 0,00 | T72: =+Eje.Depend.Afectacion!$BB$91 -> 0,00 | U72: =+Eje.Depend.Afectacion!$BC$91 -> 0,00 | V72: =+Eje.Depend.Afectacion!$BD$91 -> 0,00 | W72: 0
A73: =_xlfn.CONCAT(Eje.Depend.Afectacion!A92," ", Eje.Depend.Afectacion!C92," ",Eje.Depend.Afectacion!E92," ",Eje.Depend.Afectacion!G92," ",Eje.Depend.Afectacion!I92," ",Eje.Depend.Afectacion!L92," ",Eje.Depend.Afectacion!O92) -> A 02 02 01 004 005 | E73: =+Eje.Depend.Afectacion!S92 -> MAQUINARIA DE OFICINA, CONTABILIDAD E INFORMÁTICA | F73: =+Eje.Depend.Afectacion!AA92 -> Nación | G73: =+Eje.Depend.Afectacion!AF92 -> CSF | H73: =+Eje.Depend.Afectacion!AI92 -> 10 | I73: =+Eje.Depend.Afectacion!AJ92 -> RECURSOS CORRIENTES | J73: =+Eje.Depend.Afectacion!$AP$92 -> 43706753 | K73: =+Eje.Depend.Afectacion!$AQ$92 -> 43706753 | L73: =+Eje.Depend.Afectacion!$AR$92 -> 0,00 | M73: =+Eje.Depend.Afectacion!$AS$92 -> 0,00 | N73: =+Eje.Depend.Afectacion!$AU$92 -> 3355800 | O73: =+Eje.Depend.Afectacion!$AW$92 -> 40350953 | P73: =+Eje.Depend.Afectacion!$AX$92 -> 0,00 | Q73: =+Eje.Depend.Afectacion!$AY$92 -> 3355800 | R73: =+Eje.Depend.Afectacion!$AZ$92 -> 0,00 | S73: =+Eje.Depend.Afectacion!$BA$92 -> 0,00 | T73: =+Eje.Depend.Afectacion!$BB$92 -> 0,00 | U73: =+Eje.Depend.Afectacion!$BC$92 -> 0,00 | V73: =+Eje.Depend.Afectacion!$BD$92 -> 0,00 | W73: 7.677989715
A74: =_xlfn.CONCAT(Eje.Depend.Afectacion!A93," ", Eje.Depend.Afectacion!C93," ",Eje.Depend.Afectacion!E93," ",Eje.Depend.Afectacion!G93," ",Eje.Depend.Afectacion!I93," ",Eje.Depend.Afectacion!L93," ",Eje.Depend.Afectacion!O93) -> A 02 02 01 004 006 | E74: =+Eje.Depend.Afectacion!S93 -> MAQUINARIA Y APARATOS ELÉCTRICOS | F74: =+Eje.Depend.Afectacion!AA93 -> Nación | G74: =+Eje.Depend.Afectacion!AF93 -> CSF | H74: =+Eje.Depend.Afectacion!AI93 -> 10 | I74: =+Eje.Depend.Afectacion!AJ93 -> RECURSOS CORRIENTES | J74: =+Eje.Depend.Afectacion!$AP$93 -> 50000000 | K74: =+Eje.Depend.Afectacion!$AQ$93 -> 50000000 | L74: =+Eje.Depend.Afectacion!$AR$93 -> 0,00 | M74: =+Eje.Depend.Afectacion!$AS$93 -> 0,00 | N74: =+Eje.Depend.Afectacion!$AU$93 -> 0,00 | O74: =+Eje.Depend.Afectacion!$AW$93 -> 50000000 | P74: =+Eje.Depend.Afectacion!$AX$93 -> 0,00 | Q74: =+Eje.Depend.Afectacion!$AY$93 -> 0,00 | R74: =+Eje.Depend.Afectacion!$AZ$93 -> 0,00 | S74: =+Eje.Depend.Afectacion!$BA$93 -> 0,00 | T74: =+Eje.Depend.Afectacion!$BB$93 -> 0,00 | U74: =+Eje.Depend.Afectacion!$BC$93 -> 0,00 | V74: =+Eje.Depend.Afectacion!$BD$93 -> 0,00 | W74: =+(N74/J74)*100 -> 0
A75: =_xlfn.CONCAT(Eje.Depend.Afectacion!A94," ", Eje.Depend.Afectacion!C94," ",Eje.Depend.Afectacion!E94," ",Eje.Depend.Afectacion!G94," ",Eje.Depend.Afectacion!I94," ",Eje.Depend.Afectacion!L94," ",Eje.Depend.Afectacion!O94) -> A 02 02 01 004 007 | E75: =+Eje.Depend.Afectacion!S94 -> EQUIPO Y APARATOS DE RADIO, TELEVISIÓN Y COMUNICACIONES | F75: =+Eje.Depend.Afectacion!AA94 -> Nación | G75: =+Eje.Depend.Afectacion!AF94 -> CSF | H75: =+Eje.Depend.Afectacion!AI94 -> 10 | I75: =+Eje.Depend.Afectacion!AJ94 -> RECURSOS CORRIENTES | J75: =+Eje.Depend.Afectacion!$AP$94 -> 11970000 | K75: =+Eje.Depend.Afectacion!$AQ$94 -> 11970000 | L75: =+Eje.Depend.Afectacion!$AR$94 -> 0,00 | M75: =+Eje.Depend.Afectacion!$AS$94 -> 0,00 | N75: =+Eje.Depend.Afectacion!$AU$94 -> 0,00 | O75: =+Eje.Depend.Afectacion!$AW$94 -> 11970000 | P75: =+Eje.Depend.Afectacion!$AX$94 -> 0,00 | Q75: =+Eje.Depend.Afectacion!$AY$94 -> 0,00 | R75: =+Eje.Depend.Afectacion!$AZ$94 -> 0,00 | S75: =+Eje.Depend.Afectacion!$BA$94 -> 0,00 | T75: =+Eje.Depend.Afectacion!$BB$94 -> 0,00 | U75: =+Eje.Depend.Afectacion!$BC$94 -> 0,00 | V75: =+Eje.Depend.Afectacion!$BD$94 -> 0,00 | W75: 0
A76: =_xlfn.CONCAT(Eje.Depend.Afectacion!A95," ", Eje.Depend.Afectacion!C95," ",Eje.Depend.Afectacion!E95," ",Eje.Depend.Afectacion!G95," ",Eje.Depend.Afectacion!I95," ",Eje.Depend.Afectacion!L95," ",Eje.Depend.Afectacion!O95) -> A 02 02 02 | E76: =+Eje.Depend.Afectacion!S95 -> ADQUISICIÓN DE SERVICIOS | F76: =+Eje.Depend.Afectacion!AA95 -> Nación | G76: =+Eje.Depend.Afectacion!AF95 -> CSF | H76: =+Eje.Depend.Afectacion!AI95 -> 10 | I76: =+Eje.Depend.Afectacion!AJ95 -> RECURSOS CORRIENTES | J76: =+Eje.Depend.Afectacion!$AP$95+Eje.Depend.Afectacion!$AP$172 -> 1.662534992e+10 | K76: =+Eje.Depend.Afectacion!$AQ$95+Eje.Depend.Afectacion!$AQ$172 -> 1.657385123e+10 | L76: =+Eje.Depend.Afectacion!$AR$95+Eje.Depend.Afectacion!$AR$172 -> 51498690 | M76: =+Eje.Depend.Afectacion!$AS$95+Eje.Depend.Afectacion!$AS$172 -> 0 | N76: =+Eje.Depend.Afectacion!$AU$95+Eje.Depend.Afectacion!$AU$172 -> 1.024997765e+10 | O76: =+Eje.Depend.Afectacion!$AW$95+Eje.Depend.Afectacion!$AW$172 -> 6323873583 | P76: =+Eje.Depend.Afectacion!$AX$95+Eje.Depend.Afectacion!$AX$172 -> 5957092007 | Q76: =+Eje.Depend.Afectacion!$AY$95+Eje.Depend.Afectacion!$AY$172 -> 4292885644 | R76: =+Eje.Depend.Afectacion!$AZ$95+Eje.Depend.Afectacion!$AZ$172 -> 5957092007 | S76: =+Eje.Depend.Afectacion!$BA$95+Eje.Depend.Afectacion!$BA$172 -> 0 | T76: =+Eje.Depend.Afectacion!$BB$95+Eje.Depend.Afectacion!$BB$172 -> 5957092007 | U76: =+Eje.Depend.Afectacion!$BC$95+Eje.Depend.Afectacion!$BC$172 -> 0 | V76: =+Eje.Depend.Afectacion!$BD$95+Eje.Depend.Afectacion!$BD$172 -> 37017 | W76: 61.65270324
A77: =_xlfn.CONCAT(Eje.Depend.Afectacion!A96," ", Eje.Depend.Afectacion!C96," ",Eje.Depend.Afectacion!E96," ",Eje.Depend.Afectacion!G96," ",Eje.Depend.Afectacion!I96," ",Eje.Depend.Afectacion!L96," ",Eje.Depend.Afectacion!O96) -> A 02 02 02 | E77: =+Eje.Depend.Afectacion!S96 -> ADQUISICIÓN DE SERVICIOS | F77: =+Eje.Depend.Afectacion!AA96 -> Propios | G77: =+Eje.Depend.Afectacion!AF96 -> CSF | H77: =+Eje.Depend.Afectacion!AI96 -> 21 | I77: =+Eje.Depend.Afectacion!AJ96 -> OTROS RECURSOS DE TESORERIA | J77: =+Eje.Depend.Afectacion!$AP$96 -> 596894000 | K77: =+Eje.Depend.Afectacion!$AQ$96 -> 533476000 | L77: =+Eje.Depend.Afectacion!$AR$96 -> 63418000 | M77: =+Eje.Depend.Afectacion!$AS$96 -> 0,00 | N77: =+Eje.Depend.Afectacion!$AU$96 -> 533091000 | O77: =+Eje.Depend.Afectacion!$AW$96 -> 385000 | P77: =+Eje.Depend.Afectacion!$AX$96 -> 222524000 | Q77: =+Eje.Depend.Afectacion!$AY$96 -> 310567000 | R77: =+Eje.Depend.Afectacion!$AZ$96 -> 222524000 | S77: =+Eje.Depend.Afectacion!$BA$96 -> 0,00 | T77: =+Eje.Depend.Afectacion!$BB$96 -> 222524000 | U77: =+Eje.Depend.Afectacion!$BC$96 -> 0,00 | V77: =+Eje.Depend.Afectacion!$BD$96 -> 0,00 | W77: 89.31083241
A78: =_xlfn.CONCAT(Eje.Depend.Afectacion!A97," ", Eje.Depend.Afectacion!C97," ",Eje.Depend.Afectacion!E97," ",Eje.Depend.Afectacion!G97," ",Eje.Depend.Afectacion!I97," ",Eje.Depend.Afectacion!L97," ",Eje.Depend.Afectacion!O97) -> A 02 02 02 006 | E78: =+Eje.Depend.Afectacion!S97 -> SERVICIOS DE ALOJAMIENTO; SERVICIOS DE SUMINISTRO DE COMIDAS Y BEBIDAS; SERVICIOS DE TRANSPORTE; Y SERVICIOS DE DISTRIBUCIÓN DE ELECTRICIDAD, GAS Y AGUA | F78: =+Eje.Depend.Afectacion!AA97 -> Nación | G78: =+Eje.Depend.Afectacion!AF97 -> CSF | H78: =+Eje.Depend.Afectacion!AI97 -> 10 | I78: =+Eje.Depend.Afectacion!AJ97 -> RECURSOS CORRIENTES | J78: =+Eje.Depend.Afectacion!$AP$97 -> 1039717989 | K78: =+Eje.Depend.Afectacion!$AQ$97 -> 1039717989 | L78: =+Eje.Depend.Afectacion!$AR$97 -> 0,00 | M78: =+Eje.Depend.Afectacion!$AS$97 -> 0,00 | N78: =+Eje.Depend.Afectacion!$AU$97 -> 644006950 | O78: =+Eje.Depend.Afectacion!$AW$97 -> 395711039 | P78: =+Eje.Depend.Afectacion!$AX$97 -> 517835227.4 | Q78: =+Eje.Depend.Afectacion!$AY$97 -> 126171722.6 | R78: =+Eje.Depend.Afectacion!$AZ$97 -> 517835227.4 | S78: =+Eje.Depend.Afectacion!$BA$97 -> 0,00 | T78: =+Eje.Depend.Afectacion!$BB$97 -> 517835227.4 | U78: =+Eje.Depend.Afectacion!$BC$97 -> 0,00 | V78: =+Eje.Depend.Afectacion!$BD$97 -> 242,00 | W78: 61.94054127
A79: =_xlfn.CONCAT(Eje.Depend.Afectacion!A98," ", Eje.Depend.Afectacion!C98," ",Eje.Depend.Afectacion!E98," ",Eje.Depend.Afectacion!G98," ",Eje.Depend.Afectacion!I98," ",Eje.Depend.Afectacion!L98," ",Eje.Depend.Afectacion!O98) -> A 02 02 02 006 003 | E79: =+Eje.Depend.Afectacion!S98 -> ALOJAMIENTO; SERVICIOS DE SUMINISTROS DE COMIDAS Y BEBIDAS | F79: =+Eje.Depend.Afectacion!AA98 -> Nación | G79: =+Eje.Depend.Afectacion!AF98 -> CSF | H79: =+Eje.Depend.Afectacion!AI98 -> 10 | I79: =+Eje.Depend.Afectacion!AJ98 -> RECURSOS CORRIENTES | J79: =+Eje.Depend.Afectacion!$AP$98 -> 60635000 | K79: =+Eje.Depend.Afectacion!$AQ$98 -> 60635000 | L79: =+Eje.Depend.Afectacion!$AR$98 -> 0,00 | M79: =+Eje.Depend.Afectacion!$AS$98 -> 0,00 | N79: =+Eje.Depend.Afectacion!$AU$98 -> 20878751 | O79: =+Eje.Depend.Afectacion!$AW$98 -> 39756249 | P79: =+Eje.Depend.Afectacion!$AX$98 -> 20433766 | Q79: =+Eje.Depend.Afectacion!$AY$98 -> 444985 | R79: =+Eje.Depend.Afectacion!$AZ$98 -> 20433766 | S79: =+Eje.Depend.Afectacion!$BA$98 -> 0,00 | T79: =+Eje.Depend.Afectacion!$BB$98 -> 20433766 | U79: =+Eje.Depend.Afectacion!$BC$98 -> 0,00 | V79: =+Eje.Depend.Afectacion!$BD$98 -> 0,00 | W79: 34.43349716
A80: =_xlfn.CONCAT(Eje.Depend.Afectacion!A99," ", Eje.Depend.Afectacion!C99," ",Eje.Depend.Afectacion!E99," ",Eje.Depend.Afectacion!G99," ",Eje.Depend.Afectacion!I99," ",Eje.Depend.Afectacion!L99," ",Eje.Depend.Afectacion!O99) -> A 02 02 02 006 004 | E80: =+Eje.Depend.Afectacion!S99 -> SERVICIOS DE TRANSPORTE DE PASAJEROS | F80: =+Eje.Depend.Afectacion!AA99 -> Nación | G80: =+Eje.Depend.Afectacion!AF99 -> CSF | H80: =+Eje.Depend.Afectacion!AI99 -> 10 | I80: =+Eje.Depend.Afectacion!AJ99 -> RECURSOS CORRIENTES | J80: =+Eje.Depend.Afectacion!$AP$99 -> 131618989 | K80: =+Eje.Depend.Afectacion!$AQ$99 -> 131618989 | L80: =+Eje.Depend.Afectacion!$AR$99 -> 0,00 | M80: =+Eje.Depend.Afectacion!$AS$99 -> 0,00 | N80: =+Eje.Depend.Afectacion!$AU$99 -> 131618989 | O80: =+Eje.Depend.Afectacion!$AW$99 -> 0,00 | P80: =+Eje.Depend.Afectacion!$AX$99 -> 51691654 | Q80: =+Eje.Depend.Afectacion!$AY$99 -> 79927335 | R80: =+Eje.Depend.Afectacion!$AZ$99 -> 51691654 | S80: =+Eje.Depend.Afectacion!$BA$99 -> 0,00 | T80: =+Eje.Depend.Afectacion!$BB$99 -> 51691654 | U80: =+Eje.Depend.Afectacion!$BC$99 -> 0,00 | V80: =+Eje.Depend.Afectacion!$BD$99 -> 0,00 | W80: 100
A81: =_xlfn.CONCAT(Eje.Depend.Afectacion!A100," ", Eje.Depend.Afectacion!C100," ",Eje.Depend.Afectacion!E100," ",Eje.Depend.Afectacion!G100," ",Eje.Depend.Afectacion!I100," ",Eje.Depend.Afectacion!L100," ",Eje.Depend.Afectacion!O100) -> A 02 02 02 006 005 | E81: =+Eje.Depend.Afectacion!S100 -> SERVICIOS DE TRANSPORTE DE CARGA | F81: =+Eje.Depend.Afectacion!AA100 -> Nación | G81: =+Eje.Depend.Afectacion!AF100 -> CSF | H81: =+Eje.Depend.Afectacion!AI100 -> 10 | I81: =+Eje.Depend.Afectacion!AJ100 -> RECURSOS CORRIENTES | J81: =+Eje.Depend.Afectacion!$AP$100 -> 10000000 | K81: =+Eje.Depend.Afectacion!$AQ$100 -> 10000000 | L81: =+Eje.Depend.Afectacion!$AR$100 -> 0,00 | M81: =+Eje.Depend.Afectacion!$AS$100 -> 0,00 | N81: =+Eje.Depend.Afectacion!$AU$100 -> 10000000 | O81: =+Eje.Depend.Afectacion!$AW$100 -> 0,00 | P81: =+Eje.Depend.Afectacion!$AX$100 -> 2000000 | Q81: =+Eje.Depend.Afectacion!$AY$100 -> 8000000 | R81: =+Eje.Depend.Afectacion!$AZ$100 -> 2000000 | S81: =+Eje.Depend.Afectacion!$BA$100 -> 0,00 | T81: =+Eje.Depend.Afectacion!$BB$100 -> 2000000 | U81: =+Eje.Depend.Afectacion!$BC$100 -> 0,00 | V81: =+Eje.Depend.Afectacion!$BD$100 -> 0,00 | W81: 100
A82: =_xlfn.CONCAT(Eje.Depend.Afectacion!A101," ", Eje.Depend.Afectacion!C101," ",Eje.Depend.Afectacion!E101," ",Eje.Depend.Afectacion!G101," ",Eje.Depend.Afectacion!I101," ",Eje.Depend.Afectacion!L101," ",Eje.Depend.Afectacion!O101) -> A 02 02 02 006 008 | E82: =+Eje.Depend.Afectacion!S101 -> SERVICIOS POSTALES Y DE MENSAJERÍA | F82: =+Eje.Depend.Afectacion!AA101 -> Nación | G82: =+Eje.Depend.Afectacion!AF101 -> CSF | H82: =+Eje.Depend.Afectacion!AI101 -> 10 | I82: =+Eje.Depend.Afectacion!AJ101 -> RECURSOS CORRIENTES | J82: =+Eje.Depend.Afectacion!$AP$101 -> 112734000 | K82: =+Eje.Depend.Afectacion!$AQ$101 -> 112734000 | L82: =+Eje.Depend.Afectacion!$AR$101 -> 0,00 | M82: =+Eje.Depend.Afectacion!$AS$101 -> 0,00 | N82: =+Eje.Depend.Afectacion!$AU$101 -> 65734000 | O82: =+Eje.Depend.Afectacion!$AW$101 -> 47000000 | P82: =+Eje.Depend.Afectacion!$AX$101 -> 29848747 | Q82: =+Eje.Depend.Afectacion!$AY$101 -> 35885253 | R82: =+Eje.Depend.Afectacion!$AZ$101 -> 29848747 | S82: =+Eje.Depend.Afectacion!$BA$101 -> 0,00 | T82: =+Eje.Depend.Afectacion!$BB$101 -> 29848747 | U82: =+Eje.Depend.Afectacion!$BC$101 -> 0,00 | V82: =+Eje.Depend.Afectacion!$BD$101 -> 0,00 | W82: 58.30893963
A83: =_xlfn.CONCAT(Eje.Depend.Afectacion!A102," ", Eje.Depend.Afectacion!C102," ",Eje.Depend.Afectacion!E102," ",Eje.Depend.Afectacion!G102," ",Eje.Depend.Afectacion!I102," ",Eje.Depend.Afectacion!L102," ",Eje.Depend.Afectacion!O102) -> A 02 02 02 006 009 | E83: =+Eje.Depend.Afectacion!S102 -> SERVICIOS DE DISTRIBUCIÓN DE ELECTRICIDAD, GAS Y AGUA (POR CUENTA PROPIA) | F83: =+Eje.Depend.Afectacion!AA102 -> Nación | G83: =+Eje.Depend.Afectacion!AF102 -> CSF | H83: =+Eje.Depend.Afectacion!AI102 -> 10 | I83: =+Eje.Depend.Afectacion!AJ102 -> RECURSOS CORRIENTES | J83: =+Eje.Depend.Afectacion!$AP$102 -> 724730000 | K83: =+Eje.Depend.Afectacion!$AQ$102 -> 724730000 | L83: =+Eje.Depend.Afectacion!$AR$102 -> 0,00 | M83: =+Eje.Depend.Afectacion!$AS$102 -> 0,00 | N83: =+Eje.Depend.Afectacion!$AU$102 -> 415775210 | O83: =+Eje.Depend.Afectacion!$AW$102 -> 308954790 | P83: =+Eje.Depend.Afectacion!$AX$102 -> 413861060.4 | Q83: =+Eje.Depend.Afectacion!$AY$102 -> 1914149.64 | R83: =+Eje.Depend.Afectacion!$AZ$102 -> 413861060.4 | S83: =+Eje.Depend.Afectacion!$BA$102 -> 0,00 | T83: =+Eje.Depend.Afectacion!$BB$102 -> 413861060.4 | U83: =+Eje.Depend.Afectacion!$BC$102 -> 0,00 | V83: =+Eje.Depend.Afectacion!$BD$102 -> 242,00 | W83: 57.36967009
A84: =_xlfn.CONCAT(Eje.Depend.Afectacion!A103," ", Eje.Depend.Afectacion!C103," ",Eje.Depend.Afectacion!E103," ",Eje.Depend.Afectacion!G103," ",Eje.Depend.Afectacion!I103," ",Eje.Depend.Afectacion!L103," ",Eje.Depend.Afectacion!O103) -> A 02 02 02 007 | E84: =+Eje.Depend.Afectacion!S103 -> SERVICIOS FINANCIEROS Y SERVICIOS CONEXOS, SERVICIOS INMOBILIARIOS Y SERVICIOS DE LEASING | F84: =+Eje.Depend.Afectacion!AA103 -> Nación | G84: =+Eje.Depend.Afectacion!AF103 -> CSF | H84: =+Eje.Depend.Afectacion!AI103 -> 10 | I84: =+Eje.Depend.Afectacion!AJ103 -> RECURSOS CORRIENTES | J84: =+Eje.Depend.Afectacion!$AP$103 -> 5591698455 | K84: =+Eje.Depend.Afectacion!$AQ$103 -> 5591698455 | L84: =+Eje.Depend.Afectacion!$AR$103 -> 0,00 | M84: =+Eje.Depend.Afectacion!$AS$103 -> 0,00 | N84: =+Eje.Depend.Afectacion!$AU$103 -> 2136066215 | O84: =+Eje.Depend.Afectacion!$AW$103 -> 3455632240 | P84: =+Eje.Depend.Afectacion!$AX$103 -> 1834703720 | Q84: =+Eje.Depend.Afectacion!$AY$103 -> 301362494.9 | R84: =+Eje.Depend.Afectacion!$AZ$103 -> 1834703720 | S84: =+Eje.Depend.Afectacion!$BA$103 -> 0,00 | T84: =+Eje.Depend.Afectacion!$BB$103 -> 1834703720 | U84: =+Eje.Depend.Afectacion!$BC$103 -> 0,00 | V84: =+Eje.Depend.Afectacion!$BD$103 -> 1249 | W84: 38.20066894
A85: =_xlfn.CONCAT(Eje.Depend.Afectacion!A104," ", Eje.Depend.Afectacion!C104," ",Eje.Depend.Afectacion!E104," ",Eje.Depend.Afectacion!G104," ",Eje.Depend.Afectacion!I104," ",Eje.Depend.Afectacion!L104," ",Eje.Depend.Afectacion!O104) -> A 02 02 02 007 001 | E85: =+Eje.Depend.Afectacion!S104 -> SERVICIOS FINANCIEROS Y SERVICIOS CONEXOS | F85: =+Eje.Depend.Afectacion!AA104 -> Nación | G85: =+Eje.Depend.Afectacion!AF104 -> CSF | H85: =+Eje.Depend.Afectacion!AI104 -> 10 | I85: =+Eje.Depend.Afectacion!AJ104 -> RECURSOS CORRIENTES | J85: =+Eje.Depend.Afectacion!$AP$104 -> 1874851134 | K85: =+Eje.Depend.Afectacion!$AQ$104 -> 1874851134 | L85: =+Eje.Depend.Afectacion!$AR$104 -> 0,00 | M85: =+Eje.Depend.Afectacion!$AS$104 -> 0,00 | N85: =+Eje.Depend.Afectacion!$AU$104 -> 29351134 | O85: =+Eje.Depend.Afectacion!$AW$104 -> 1845500000 | P85: =+Eje.Depend.Afectacion!$AX$104 -> 28947943.6 | Q85: =+Eje.Depend.Afectacion!$AY$104 -> 403190.4 | R85: =+Eje.Depend.Afectacion!$AZ$104 -> 28947943.6 | S85: =+Eje.Depend.Afectacion!$BA$104 -> 0,00 | T85: =+Eje.Depend.Afectacion!$BB$104 -> 28947943.6 | U85: =+Eje.Depend.Afectacion!$BC$104 -> 0,00 | V85: =+Eje.Depend.Afectacion!$BD$104 -> 1249 | W85: 1.565518108
A86: =_xlfn.CONCAT(Eje.Depend.Afectacion!A105," ", Eje.Depend.Afectacion!C105," ",Eje.Depend.Afectacion!E105," ",Eje.Depend.Afectacion!G105," ",Eje.Depend.Afectacion!I105," ",Eje.Depend.Afectacion!L105," ",Eje.Depend.Afectacion!O105) -> A 02 02 02 007 002 | E86: =+Eje.Depend.Afectacion!S105 -> SERVICIOS INMOBILIARIOS | F86: =+Eje.Depend.Afectacion!AA105 -> Nación | G86: =+Eje.Depend.Afectacion!AF105 -> CSF | H86: =+Eje.Depend.Afectacion!AI105 -> 10 | I86: =+Eje.Depend.Afectacion!AJ105 -> RECURSOS CORRIENTES | J86: =+Eje.Depend.Afectacion!$AP$105 -> 3716847321 | K86: =+Eje.Depend.Afectacion!$AQ$105 -> 3716847321 | L86: =+Eje.Depend.Afectacion!$AR$105 -> 0,00 | M86: =+Eje.Depend.Afectacion!$AS$105 -> 0,00 | N86: =+Eje.Depend.Afectacion!$AU$105 -> 2106715081 | O86: =+Eje.Depend.Afectacion!$AW$105 -> 1610132240 | P86: =+Eje.Depend.Afectacion!$AX$105 -> 1805755776 | Q86: =+Eje.Depend.Afectacion!$AY$105 -> 300959304.5 | R86: =+Eje.Depend.Afectacion!$AZ$105 -> 1805755776 | S86: =+Eje.Depend.Afectacion!$BA$105 -> 0,00 | T86: =+Eje.Depend.Afectacion!$BB$105 -> 1805755776 | U86: =+Eje.Depend.Afectacion!$BC$105 -> 0,00 | V86: =+Eje.Depend.Afectacion!$BD$105 -> 0,00 | W86: 56.68016194
A87: =_xlfn.CONCAT(Eje.Depend.Afectacion!A106," ", Eje.Depend.Afectacion!C106," ",Eje.Depend.Afectacion!E106," ",Eje.Depend.Afectacion!G106," ",Eje.Depend.Afectacion!I106," ",Eje.Depend.Afectacion!L106," ",Eje.Depend.Afectacion!O106) -> A 02 02 02 008 | E87: =+Eje.Depend.Afectacion!S106 -> SERVICIOS PRESTADOS A LAS EMPRESAS Y SERVICIOS DE PRODUCCIÓN | F87: =+Eje.Depend.Afectacion!AA106 -> Nación | G87: =+Eje.Depend.Afectacion!AF106 -> CSF | H87: =+Eje.Depend.Afectacion!AI106 -> 10 | I87: =+Eje.Depend.Afectacion!AJ106 -> RECURSOS CORRIENTES | J87: =+Eje.Depend.Afectacion!$AP$106 -> 7497438480 | K87: =+Eje.Depend.Afectacion!$AQ$106 -> 7445939790 | L87: =+Eje.Depend.Afectacion!$AR$106 -> 51498690 | M87: =+Eje.Depend.Afectacion!$AS$106 -> 0,00 | N87: =+Eje.Depend.Afectacion!$AU$106 -> 6058023047 | O87: =+Eje.Depend.Afectacion!$AW$106 -> 1387916744 | P87: =+Eje.Depend.Afectacion!$AX$106 -> 2988952526 | Q87: =+Eje.Depend.Afectacion!$AY$106 -> 3069070520 | R87: =+Eje.Depend.Afectacion!$AZ$106 -> 2988952526 | S87: =+Eje.Depend.Afectacion!$BA$106 -> 0,00 | T87: =+Eje.Depend.Afectacion!$BB$106 -> 2988952526 | U87: =+Eje.Depend.Afectacion!$BC$106 -> 0,00 | V87: =+Eje.Depend.Afectacion!$BD$106 -> 35526 | W87: 80.80123715
A88: =_xlfn.CONCAT(Eje.Depend.Afectacion!A107," ", Eje.Depend.Afectacion!C107," ",Eje.Depend.Afectacion!E107," ",Eje.Depend.Afectacion!G107," ",Eje.Depend.Afectacion!I107," ",Eje.Depend.Afectacion!L107," ",Eje.Depend.Afectacion!O107) -> A 02 02 02 008 | E88: =+Eje.Depend.Afectacion!S107 -> SERVICIOS PRESTADOS A LAS EMPRESAS Y SERVICIOS DE PRODUCCIÓN | F88: =+Eje.Depend.Afectacion!AA107 -> Propios | G88: =+Eje.Depend.Afectacion!AF107 -> CSF | H88: =+Eje.Depend.Afectacion!AI107 -> 21 | I88: =+Eje.Depend.Afectacion!AJ107 -> OTROS RECURSOS DE TESORERIA | J88: =+Eje.Depend.Afectacion!$AP$107 -> 596894000 | K88: =+Eje.Depend.Afectacion!$AQ$107 -> 533476000 | L88: =+Eje.Depend.Afectacion!$AR$107 -> 63418000 | M88: =+Eje.Depend.Afectacion!$AS$107 -> 0,00 | N88: =+Eje.Depend.Afectacion!$AU$107 -> 533091000 | O88: =+Eje.Depend.Afectacion!$AW$107 -> 385000 | P88: =+Eje.Depend.Afectacion!$AX$107 -> 222524000 | Q88: =+Eje.Depend.Afectacion!$AY$107 -> 310567000 | R88: =+Eje.Depend.Afectacion!$AZ$107 -> 222524000 | S88: =+Eje.Depend.Afectacion!$BA$107 -> 0,00 | T88: =+Eje.Depend.Afectacion!$BB$107 -> 222524000 | U88: =+Eje.Depend.Afectacion!$BC$107 -> 0,00 | V88: =+Eje.Depend.Afectacion!$BD$107 -> 0,00 | W88: 89.31083241
A89: =_xlfn.CONCAT(Eje.Depend.Afectacion!A108," ", Eje.Depend.Afectacion!C108," ",Eje.Depend.Afectacion!E108," ",Eje.Depend.Afectacion!G108," ",Eje.Depend.Afectacion!I108," ",Eje.Depend.Afectacion!L108," ",Eje.Depend.Afectacion!O108) -> A 02 02 02 008 002 | E89: =+Eje.Depend.Afectacion!S108 -> SERVICIOS JURÍDICOS Y CONTABLES | F89: =+Eje.Depend.Afectacion!AA108 -> Nación | G89: =+Eje.Depend.Afectacion!AF108 -> CSF | H89: =+Eje.Depend.Afectacion!AI108 -> 10 | I89: =+Eje.Depend.Afectacion!AJ108 -> RECURSOS CORRIENTES | J89: =+Eje.Depend.Afectacion!$AP$108 -> 2091696390 | K89: =+Eje.Depend.Afectacion!$AQ$108 -> 2046553400 | L89: =+Eje.Depend.Afectacion!$AR$108 -> 45142990 | M89: =+Eje.Depend.Afectacion!$AS$108 -> 0,00 | N89: =+Eje.Depend.Afectacion!$AU$108 -> 1854211500 | O89: =+Eje.Depend.Afectacion!$AW$108 -> 192341900 | P89: =+Eje.Depend.Afectacion!$AX$108 -> 837081500 | Q89: =+Eje.Depend.Afectacion!$AY$108 -> 1017130000 | R89: =+Eje.Depend.Afectacion!$AZ$108 -> 837081500 | S89: =+Eje.Depend.Afectacion!$BA$108 -> 0,00 | T89: =+Eje.Depend.Afectacion!$BB$108 -> 837081500 | U89: =+Eje.Depend.Afectacion!$BC$108 -> 0,00 | V89: =+Eje.Depend.Afectacion!$BD$108 -> 0,00 | W89: 88.64630206
A90: =_xlfn.CONCAT(Eje.Depend.Afectacion!A109," ", Eje.Depend.Afectacion!C109," ",Eje.Depend.Afectacion!E109," ",Eje.Depend.Afectacion!G109," ",Eje.Depend.Afectacion!I109," ",Eje.Depend.Afectacion!L109," ",Eje.Depend.Afectacion!O109) -> A 02 02 02 008 002 | E90: =+Eje.Depend.Afectacion!S109 -> SERVICIOS JURÍDICOS Y CONTABLES | F90: =+Eje.Depend.Afectacion!AA109 -> Propios | G90: =+Eje.Depend.Afectacion!AF109 -> CSF | H90: =+Eje.Depend.Afectacion!AI109 -> 21 | I90: =+Eje.Depend.Afectacion!AJ109 -> OTROS RECURSOS DE TESORERIA | J90: =+Eje.Depend.Afectacion!$AP$109 -> 417843650 | K90: =+Eje.Depend.Afectacion!$AQ$109 -> 358933000 | L90: =+Eje.Depend.Afectacion!$AR$109 -> 58910650 | M90: =+Eje.Depend.Afectacion!$AS$109 -> 0,00 | N90: =+Eje.Depend.Afectacion!$AU$109 -> 358933000 | O90: =+Eje.Depend.Afectacion!$AW$109 -> 0,00 | P90: =+Eje.Depend.Afectacion!$AX$109 -> 154691000 | Q90: =+Eje.Depend.Afectacion!$AY$109 -> 204242000 | R90: =+Eje.Depend.Afectacion!$AZ$109 -> 154691000 | S90: =+Eje.Depend.Afectacion!$BA$109 -> 0,00 | T90: =+Eje.Depend.Afectacion!$BB$109 -> 154691000 | U90: =+Eje.Depend.Afectacion!$BC$109 -> 0,00 | V90: =+Eje.Depend.Afectacion!$BD$109 -> 0,00 | W90: 85.90126953
A91: =_xlfn.CONCAT(Eje.Depend.Afectacion!A110," ", Eje.Depend.Afectacion!C110," ",Eje.Depend.Afectacion!E110," ",Eje.Depend.Afectacion!G110," ",Eje.Depend.Afectacion!I110," ",Eje.Depend.Afectacion!L110," ",Eje.Depend.Afectacion!O110) -> A 02 02 02 008 003 | E91: =+Eje.Depend.Afectacion!S110 -> OTROS SERVICIOS PROFESIONALES, CIENTÍFICOS Y TÉCNICOS | F91: =+Eje.Depend.Afectacion!AA110 -> Nación | G91: =+Eje.Depend.Afectacion!AF110 -> CSF | H91: =+Eje.Depend.Afectacion!AI110 -> 10 | I91: =+Eje.Depend.Afectacion!AJ110 -> RECURSOS CORRIENTES | J91: =+Eje.Depend.Afectacion!$AP$110 -> 1198963100 | K91: =+Eje.Depend.Afectacion!$AQ$110 -> 1192607400 | L91: =+Eje.Depend.Afectacion!$AR$110 -> 6355700 | M91: =+Eje.Depend.Afectacion!$AS$110 -> 0,00 | N91: =+Eje.Depend.Afectacion!$AU$110 -> 1064103667 | O91: =+Eje.Depend.Afectacion!$AW$110 -> 128503733 | P91: =+Eje.Depend.Afectacion!$AX$110 -> 480877000 | Q91: =+Eje.Depend.Afectacion!$AY$110 -> 583226667 | R91: =+Eje.Depend.Afectacion!$AZ$110 -> 480877000 | S91: =+Eje.Depend.Afectacion!$BA$110 -> 0,00 | T91: =+Eje.Depend.Afectacion!$BB$110 -> 480877000 | U91: =+Eje.Depend.Afectacion!$BC$110 -> 0,00 | V91: =+Eje.Depend.Afectacion!$BD$110 -> 0,00 | W91: 88.7519947
A92: =_xlfn.CONCAT(Eje.Depend.Afectacion!A111," ", Eje.Depend.Afectacion!C111," ",Eje.Depend.Afectacion!E111," ",Eje.Depend.Afectacion!G111," ",Eje.Depend.Afectacion!I111," ",Eje.Depend.Afectacion!L111," ",Eje.Depend.Afectacion!O111) -> A 02 02 02 008 003 | E92: =+Eje.Depend.Afectacion!S111 -> OTROS SERVICIOS PROFESIONALES, CIENTÍFICOS Y TÉCNICOS | F92: =+Eje.Depend.Afectacion!AA111 -> Propios | G92: =+Eje.Depend.Afectacion!AF111 -> CSF | H92: =+Eje.Depend.Afectacion!AI111 -> 21 | I92: =+Eje.Depend.Afectacion!AJ111 -> OTROS RECURSOS DE TESORERIA | J92: =+Eje.Depend.Afectacion!$AP$111 -> 179050350 | K92: =+Eje.Depend.Afectacion!$AQ$111 -> 174543000 | L92: =+Eje.Depend.Afectacion!$AR$111 -> 4507350 | M92: =+Eje.Depend.Afectacion!$AS$111 -> 0,00 | N92: =+Eje.Depend.Afectacion!$AU$111 -> 174158000 | O92: =+Eje.Depend.Afectacion!$AW$111 -> 385000 | P92: =+Eje.Depend.Afectacion!$AX$111 -> 67833000 | Q92: =+Eje.Depend.Afectacion!$AY$111 -> 106325000 | R92: =+Eje.Depend.Afectacion!$AZ$111 -> 67833000 | S92: =+Eje.Depend.Afectacion!$BA$111 -> 0,00 | T92: =+Eje.Depend.Afectacion!$BB$111 -> 67833000 | U92: =+Eje.Depend.Afectacion!$BC$111 -> 0,00 | V92: =+Eje.Depend.Afectacion!$BD$111 -> 0,00 | W92: 97.26761215
A93: =_xlfn.CONCAT(Eje.Depend.Afectacion!A112," ", Eje.Depend.Afectacion!C112," ",Eje.Depend.Afectacion!E112," ",Eje.Depend.Afectacion!G112," ",Eje.Depend.Afectacion!I112," ",Eje.Depend.Afectacion!L112," ",Eje.Depend.Afectacion!O112) -> A 02 02 02 008 004 | E93: =+Eje.Depend.Afectacion!S112 -> SERVICIOS DE TELECOMUNICACIONES, TRANSMISIÓN Y SUMINISTRO DE INFORMACIÓN | F93: =+Eje.Depend.Afectacion!AA112 -> Nación | G93: =+Eje.Depend.Afectacion!AF112 -> CSF | H93: =+Eje.Depend.Afectacion!AI112 -> 10 | I93: =+Eje.Depend.Afectacion!AJ112 -> RECURSOS CORRIENTES | J93: =+Eje.Depend.Afectacion!$AP$112 -> 155000000 | K93: =+Eje.Depend.Afectacion!$AQ$112 -> 155000000 | L93: =+Eje.Depend.Afectacion!$AR$112 -> 0,00 | M93: =+Eje.Depend.Afectacion!$AS$112 -> 0,00 | N93: =+Eje.Depend.Afectacion!$AU$112 -> 65643901.36 | O93: =+Eje.Depend.Afectacion!$AW$112 -> 89356098.64 | P93: =+Eje.Depend.Afectacion!$AX$112 -> 64002537.86 | Q93: =+Eje.Depend.Afectacion!$AY$112 -> 1641363.5 | R93: =+Eje.Depend.Afectacion!$AZ$112 -> 64002537.86 | S93: =+Eje.Depend.Afectacion!$BA$112 -> 0,00 | T93: =+Eje.Depend.Afectacion!$BB$112 -> 64002537.86 | U93: =+Eje.Depend.Afectacion!$BC$112 -> 0,00 | V93: =+Eje.Depend.Afectacion!$BD$112 -> 35526 | W93: 42.3509041
A94: =_xlfn.CONCAT(Eje.Depend.Afectacion!A113," ", Eje.Depend.Afectacion!C113," ",Eje.Depend.Afectacion!E113," ",Eje.Depend.Afectacion!G113," ",Eje.Depend.Afectacion!I113," ",Eje.Depend.Afectacion!L113," ",Eje.Depend.Afectacion!O113) -> A 02 02 02 008 005 | E94: =+Eje.Depend.Afectacion!S113 -> SERVICIOS DE SOPORTE | F94: =+Eje.Depend.Afectacion!AA113 -> Nación | G94: =+Eje.Depend.Afectacion!AF113 -> CSF | H94: =+Eje.Depend.Afectacion!AI113 -> 10 | I94: =+Eje.Depend.Afectacion!AJ113 -> RECURSOS CORRIENTES | J94: =+Eje.Depend.Afectacion!$AP$113 -> 3709143391 | K94: =+Eje.Depend.Afectacion!$AQ$113 -> 3709143391 | L94: =+Eje.Depend.Afectacion!$AR$113 -> 0,00 | M94: =+Eje.Depend.Afectacion!$AS$113 -> 0,00 | N94: =+Eje.Depend.Afectacion!$AU$113 -> 2847688605 | O94: =+Eje.Depend.Afectacion!$AW$113 -> 861454786.3 | P94: =+Eje.Depend.Afectacion!$AX$113 -> 1534413143 | Q94: =+Eje.Depend.Afectacion!$AY$113 -> 1313275462 | R94: =+Eje.Depend.Afectacion!$AZ$113 -> 1534413143 | S94: =+Eje.Depend.Afectacion!$BA$113 -> 0,00 | T94: =+Eje.Depend.Afectacion!$BB$113 -> 1534413143 | U94: =+Eje.Depend.Afectacion!$BC$113 -> 0,00 | V94: =+Eje.Depend.Afectacion!$BD$113 -> 0,00 | W94: 76.77483194
A95: =_xlfn.CONCAT(Eje.Depend.Afectacion!A114," ", Eje.Depend.Afectacion!C114," ",Eje.Depend.Afectacion!E114," ",Eje.Depend.Afectacion!G114," ",Eje.Depend.Afectacion!I114," ",Eje.Depend.Afectacion!L114," ",Eje.Depend.Afectacion!O114) -> A 02 02 02 008 007 | E95: =+Eje.Depend.Afectacion!S114 -> SERVICIOS DE MANTENIMIENTO, REPARACIÓN E INSTALACIÓN (EXCEPTO SERVICIOS DE CONSTRUCCIÓN) | F95: =+Eje.Depend.Afectacion!AA114 -> Nación | G95: =+Eje.Depend.Afectacion!AF114 -> CSF | H95: =+Eje.Depend.Afectacion!AI114 -> 10 | I95: =+Eje.Depend.Afectacion!AJ114 -> RECURSOS CORRIENTES | J95: =+Eje.Depend.Afectacion!$AP$114 -> 342635599 | K95: =+Eje.Depend.Afectacion!$AQ$114 -> 342635599 | L95: =+Eje.Depend.Afectacion!$AR$114 -> 0,00 | M95: =+Eje.Depend.Afectacion!$AS$114 -> 0,00 | N95: =+Eje.Depend.Afectacion!$AU$114 -> 226375373.4 | O95: =+Eje.Depend.Afectacion!$AW$114 -> 116260225.6 | P95: =+Eje.Depend.Afectacion!$AX$114 -> 72578345.51 | Q95: =+Eje.Depend.Afectacion!$AY$114 -> 153797027.9 | R95: =+Eje.Depend.Afectacion!$AZ$114 -> 72578345.51 | S95: =+Eje.Depend.Afectacion!$BA$114 -> 0,00 | T95: =+Eje.Depend.Afectacion!$BB$114 -> 72578345.51 | U95: =+Eje.Depend.Afectacion!$BC$114 -> 0,00 | V95: =+Eje.Depend.Afectacion!$BD$114 -> 0,00 | W95: 66.06884226
A96: =_xlfn.CONCAT(Eje.Depend.Afectacion!A115," ", Eje.Depend.Afectacion!C115," ",Eje.Depend.Afectacion!E115," ",Eje.Depend.Afectacion!G115," ",Eje.Depend.Afectacion!I115," ",Eje.Depend.Afectacion!L115," ",Eje.Depend.Afectacion!O115) -> A 02 02 02 009 | E96: =+Eje.Depend.Afectacion!S115 -> SERVICIOS PARA LA COMUNIDAD, SOCIALES Y PERSONALES | F96: =+Eje.Depend.Afectacion!AA115 -> Nación | G96: =+Eje.Depend.Afectacion!AF115 -> CSF | H96: =+Eje.Depend.Afectacion!AI115 -> 10 | I96: =+Eje.Depend.Afectacion!AJ115 -> RECURSOS CORRIENTES | J96: =+Eje.Depend.Afectacion!$AP$115 -> 380000000 | K96: =+Eje.Depend.Afectacion!$AQ$115 -> 380000000 | L96: =+Eje.Depend.Afectacion!$AR$115 -> 0,00 | M96: =+Eje.Depend.Afectacion!$AS$115 -> 0,00 | N96: =+Eje.Depend.Afectacion!$AU$115 -> 119745914.9 | O96: =+Eje.Depend.Afectacion!$AW$115 -> 260254085.1 | P96: =+Eje.Depend.Afectacion!$AX$115 -> 30939561.89 | Q96: =+Eje.Depend.Afectacion!$AY$115 -> 88806353 | R96: =+Eje.Depend.Afectacion!$AZ$115 -> 30939561.89 | S96: =+Eje.Depend.Afectacion!$BA$115 -> 0,00 | T96: =+Eje.Depend.Afectacion!$BB$115 -> 30939561.89 | U96: =+Eje.Depend.Afectacion!$BC$115 -> 0,00 | V96: =+Eje.Depend.Afectacion!$BD$115 -> 0,00 | W96: 31.51208287
A97: =_xlfn.CONCAT(Eje.Depend.Afectacion!A116," ", Eje.Depend.Afectacion!C116," ",Eje.Depend.Afectacion!E116," ",Eje.Depend.Afectacion!G116," ",Eje.Depend.Afectacion!I116," ",Eje.Depend.Afectacion!L116," ",Eje.Depend.Afectacion!O116) -> A 02 02 02 009 002 | E97: =+Eje.Depend.Afectacion!S116 -> SERVICIOS DE EDUCACIÓN | F97: =+Eje.Depend.Afectacion!AA116 -> Nación | G97: =+Eje.Depend.Afectacion!AF116 -> CSF | H97: =+Eje.Depend.Afectacion!AI116 -> 10 | I97: =+Eje.Depend.Afectacion!AJ116 -> RECURSOS CORRIENTES | J97: =+Eje.Depend.Afectacion!$AP$116 -> 200000000 | K97: =+Eje.Depend.Afectacion!$AQ$116 -> 200000000 | L97: =+Eje.Depend.Afectacion!$AR$116 -> 0,00 | M97: =+Eje.Depend.Afectacion!$AS$116 -> 0,00 | N97: =+Eje.Depend.Afectacion!$AU$116 -> 50473070 | O97: =+Eje.Depend.Afectacion!$AW$116 -> 149526930 | P97: =+Eje.Depend.Afectacion!$AX$116 -> 0,00 | Q97: =+Eje.Depend.Afectacion!$AY$116 -> 50473070 | R97: =+Eje.Depend.Afectacion!$AZ$116 -> 0,00 | S97: =+Eje.Depend.Afectacion!$BA$116 -> 0,00 | T97: =+Eje.Depend.Afectacion!$BB$116 -> 0,00 | U97: =+Eje.Depend.Afectacion!$BC$116 -> 0,00 | V97: =+Eje.Depend.Afectacion!$BD$116 -> 0,00 | W97: 25.236535
A98: =_xlfn.CONCAT(Eje.Depend.Afectacion!A117," ", Eje.Depend.Afectacion!C117," ",Eje.Depend.Afectacion!E117," ",Eje.Depend.Afectacion!G117," ",Eje.Depend.Afectacion!I117," ",Eje.Depend.Afectacion!L117," ",Eje.Depend.Afectacion!O117) -> A 02 02 02 009 003 | E98: =+Eje.Depend.Afectacion!S117 -> SERVICIOS PARA EL CUIDADO DE LA SALUD HUMANA Y SERVICIOS SOCIALES | F98: =+Eje.Depend.Afectacion!AA117 -> Nación | G98: =+Eje.Depend.Afectacion!AF117 -> CSF | H98: =+Eje.Depend.Afectacion!AI117 -> 10 | I98: =+Eje.Depend.Afectacion!AJ117 -> RECURSOS CORRIENTES | J98: =+Eje.Depend.Afectacion!$AP$117 -> 100000000 | K98: =+Eje.Depend.Afectacion!$AQ$117 -> 100000000 | L98: =+Eje.Depend.Afectacion!$AR$117 -> 0,00 | M98: =+Eje.Depend.Afectacion!$AS$117 -> 0,00 | N98: =+Eje.Depend.Afectacion!$AU$117 -> 40000000 | O98: =+Eje.Depend.Afectacion!$AW$117 -> 60000000 | P98: =+Eje.Depend.Afectacion!$AX$117 -> 1971000 | Q98: =+Eje.Depend.Afectacion!$AY$117 -> 38029000 | R98: =+Eje.Depend.Afectacion!$AZ$117 -> 1971000 | S98: =+Eje.Depend.Afectacion!$BA$117 -> 0,00 | T98: =+Eje.Depend.Afectacion!$BB$117 -> 1971000 | U98: =+Eje.Depend.Afectacion!$BC$117 -> 0,00 | V98: =+Eje.Depend.Afectacion!$BD$117 -> 0,00 | W98: 40
A99: =_xlfn.CONCAT(Eje.Depend.Afectacion!A118," ", Eje.Depend.Afectacion!C118," ",Eje.Depend.Afectacion!E118," ",Eje.Depend.Afectacion!G118," ",Eje.Depend.Afectacion!I118," ",Eje.Depend.Afectacion!L118," ",Eje.Depend.Afectacion!O118) -> A 02 02 02 009 004 | E99: =+Eje.Depend.Afectacion!S118 -> SERVICIOS DE ALCANTARILLADO, RECOLECCIÓN, TRATAMIENTO Y DISPOSICIÓN DE DESECHOS Y OTROS SERVICIOS DE SANEAMIENTO AMBIENTAL | F99: =+Eje.Depend.Afectacion!AA118 -> Nación | G99: =+Eje.Depend.Afectacion!AF118 -> CSF | H99: =+Eje.Depend.Afectacion!AI118 -> 10 | I99: =+Eje.Depend.Afectacion!AJ118 -> RECURSOS CORRIENTES | J99: =+Eje.Depend.Afectacion!$AP$118 -> 80000000 | K99: =+Eje.Depend.Afectacion!$AQ$118 -> 80000000 | L99: =+Eje.Depend.Afectacion!$AR$118 -> 0,00 | M99: =+Eje.Depend.Afectacion!$AS$118 -> 0,00 | N99: =+Eje.Depend.Afectacion!$AU$118 -> 29272844.89 | O99: =+Eje.Depend.Afectacion!$AW$118 -> 50727155.11 | P99: =+Eje.Depend.Afectacion!$AX$118 -> 28968561.89 | Q99: =+Eje.Depend.Afectacion!$AY$118 -> 304283 | R99: =+Eje.Depend.Afectacion!$AZ$118 -> 28968561.89 | S99: =+Eje.Depend.Afectacion!$BA$118 -> 0,00 | T99: =+Eje.Depend.Afectacion!$BB$118 -> 28968561.89 | U99: =+Eje.Depend.Afectacion!$BC$118 -> 0,00 | V99: =+Eje.Depend.Afectacion!$BD$118 -> 0,00 | W99: 36.59105611
A100: =_xlfn.CONCAT(Eje.Depend.Afectacion!A119," ", Eje.Depend.Afectacion!C119," ",Eje.Depend.Afectacion!E119," ",Eje.Depend.Afectacion!G119," ",Eje.Depend.Afectacion!I119," ",Eje.Depend.Afectacion!L119," ",Eje.Depend.Afectacion!O119) -> A 02 02 02 010 | E100: =+Eje.Depend.Afectacion!S119 -> VIÁTICOS DE LOS FUNCIONARIOS EN COMISIÓN | F100: =+Eje.Depend.Afectacion!AA119 -> Nación | G100: =+Eje.Depend.Afectacion!AF119 -> CSF | H100: =+Eje.Depend.Afectacion!AI119 -> 10 | I100: =+Eje.Depend.Afectacion!AJ119 -> RECURSOS CORRIENTES | J100: =+Eje.Depend.Afectacion!$AP$119 -> 98495000 | K100: =+Eje.Depend.Afectacion!$AQ$119 -> 98495000 | L100: =+Eje.Depend.Afectacion!$AR$119 -> 0,00 | M100: =+Eje.Depend.Afectacion!$AS$119 -> 0,00 | N100: =+Eje.Depend.Afectacion!$AU$119 -> 23295217 | O100: =+Eje.Depend.Afectacion!$AW$119 -> 75199783 | P100: =+Eje.Depend.Afectacion!$AX$119 -> 21301991 | Q100: =+Eje.Depend.Afectacion!$AY$119 -> 1993226 | R100: =+Eje.Depend.Afectacion!$AZ$119 -> 21301991 | S100: =+Eje.Depend.Afectacion!$BA$119 -> 0,00 | T100: =+Eje.Depend.Afectacion!$BB$119 -> 21301991 | U100: =+Eje.Depend.Afectacion!$BC$119 -> 0,00 | V100: =+Eje.Depend.Afectacion!$BD$119 -> 0,00 | W100: 23.65116706
A101: =_xlfn.CONCAT(Eje.Depend.Afectacion!A120," ", Eje.Depend.Afectacion!C120," ",Eje.Depend.Afectacion!E120," ",Eje.Depend.Afectacion!G120," ",Eje.Depend.Afectacion!I120," ",Eje.Depend.Afectacion!L120," ",Eje.Depend.Afectacion!O120) -> A 03 | E101: =+Eje.Depend.Afectacion!S120 -> TRANSFERENCIAS CORRIENTES | F101: =+Eje.Depend.Afectacion!AA120 -> Nación | G101: =+Eje.Depend.Afectacion!AF120 -> CSF | H101: =+Eje.Depend.Afectacion!AI120 -> 10 | I101: =+Eje.Depend.Afectacion!AJ120 -> RECURSOS CORRIENTES | J101: =+Eje.Depend.Afectacion!$AP$120 -> 193900000 | K101: =+Eje.Depend.Afectacion!$AQ$120 -> 150200000 | L101: =+Eje.Depend.Afectacion!$AR$120 -> 43700000 | M101: =+Eje.Depend.Afectacion!$AS$120 -> 0,00 | N101: =+Eje.Depend.Afectacion!$AU$120 -> 73590450 | O101: =+Eje.Depend.Afectacion!$AW$120 -> 76609550 | P101: =+Eje.Depend.Afectacion!$AX$120 -> 49839224 | Q101: =+Eje.Depend.Afectacion!$AY$120 -> 23751226 | R101: =+Eje.Depend.Afectacion!$AZ$120 -> 49839224 | S101: =+Eje.Depend.Afectacion!$BA$120 -> 0,00 | T101: =+Eje.Depend.Afectacion!$BB$120 -> 49839224 | U101: =+Eje.Depend.Afectacion!$BC$120 -> 0,00 | V101: =+Eje.Depend.Afectacion!$BD$120 -> 23751226 | W101: 37.95278494
A102: =_xlfn.CONCAT(Eje.Depend.Afectacion!A121," ", Eje.Depend.Afectacion!C121," ",Eje.Depend.Afectacion!E121," ",Eje.Depend.Afectacion!G121," ",Eje.Depend.Afectacion!I121," ",Eje.Depend.Afectacion!L121," ",Eje.Depend.Afectacion!O121) -> A 03 04 | E102: =+Eje.Depend.Afectacion!S121 -> PRESTACIONES PARA CUBRIR RIESGOS SOCIALES | F102: =+Eje.Depend.Afectacion!AA121 -> Nación | G102: =+Eje.Depend.Afectacion!AF121 -> CSF | H102: =+Eje.Depend.Afectacion!AI121 -> 10 | I102: =+Eje.Depend.Afectacion!AJ121 -> RECURSOS CORRIENTES | J102: =+Eje.Depend.Afectacion!$AP$121 -> 150200000 | K102: =+Eje.Depend.Afectacion!$AQ$121 -> 150200000 | L102: =+Eje.Depend.Afectacion!$AR$121 -> 0,00 | M102: =+Eje.Depend.Afectacion!$AS$121 -> 0,00 | N102: =+Eje.Depend.Afectacion!$AU$121 -> 73590450 | O102: =+Eje.Depend.Afectacion!$AW$121 -> 76609550 | P102: =+Eje.Depend.Afectacion!$AX$121 -> 49839224 | Q102: =+Eje.Depend.Afectacion!$AY$121 -> 23751226 | R102: =+Eje.Depend.Afectacion!$AZ$121 -> 49839224 | S102: =+Eje.Depend.Afectacion!$BA$121 -> 0,00 | T102: =+Eje.Depend.Afectacion!$BB$121 -> 49839224 | U102: =+Eje.Depend.Afectacion!$BC$121 -> 0,00 | V102: =+Eje.Depend.Afectacion!$BD$121 -> 23751226 | W102: 48.99497337
A103: =_xlfn.CONCAT(Eje.Depend.Afectacion!A122," ", Eje.Depend.Afectacion!C122," ",Eje.Depend.Afectacion!E122," ",Eje.Depend.Afectacion!G122," ",Eje.Depend.Afectacion!I122," ",Eje.Depend.Afectacion!L122," ",Eje.Depend.Afectacion!O122) -> A 03 04 02 | E103: =+Eje.Depend.Afectacion!S122 -> PRESTACIONES SOCIALES RELACIONADAS CON EL EMPLEO | F103: =+Eje.Depend.Afectacion!AA122 -> Nación | G103: =+Eje.Depend.Afectacion!AF122 -> CSF | H103: =+Eje.Depend.Afectacion!AI122 -> 10 | I103: =+Eje.Depend.Afectacion!AJ122 -> RECURSOS CORRIENTES | J103: =+Eje.Depend.Afectacion!$AP$122 -> 150200000 | K103: =+Eje.Depend.Afectacion!$AQ$122 -> 150200000 | L103: =+Eje.Depend.Afectacion!$AR$122 -> 0,00 | M103: =+Eje.Depend.Afectacion!$AS$122 -> 0,00 | N103: =+Eje.Depend.Afectacion!$AU$122 -> 73590450 | O103: =+Eje.Depend.Afectacion!$AW$122 -> 76609550 | P103: =+Eje.Depend.Afectacion!$AX$122 -> 49839224 | Q103: =+Eje.Depend.Afectacion!$AY$122 -> 23751226 | R103: =+Eje.Depend.Afectacion!$AZ$122 -> 49839224 | S103: =+Eje.Depend.Afectacion!$BA$122 -> 0,00 | T103: =+Eje.Depend.Afectacion!$BB$122 -> 49839224 | U103: =+Eje.Depend.Afectacion!$BC$122 -> 0,00 | V103: =+Eje.Depend.Afectacion!$BD$122 -> 23751226 | W103: 48.99497337
A104: =_xlfn.CONCAT(Eje.Depend.Afectacion!A123," ", Eje.Depend.Afectacion!C123," ",Eje.Depend.Afectacion!E123," ",Eje.Depend.Afectacion!G123," ",Eje.Depend.Afectacion!I123," ",Eje.Depend.Afectacion!L123," ",Eje.Depend.Afectacion!O123) -> A 03 04 02 012 | E104: =+Eje.Depend.Afectacion!S123 -> INCAPACIDADES Y LICENCIAS DE MATERNIDAD Y PATERNIDAD (NO DE PENSIONES) | F104: =+Eje.Depend.Afectacion!AA123 -> Nación | G104: =+Eje.Depend.Afectacion!AF123 -> CSF | H104: =+Eje.Depend.Afectacion!AI123 -> 10 | I104: =+Eje.Depend.Afectacion!AJ123 -> RECURSOS CORRIENTES | J104: =SUM(J105:J106) -> 150200000 | K104: =SUM(K105:K106) -> 150200000 | L104: 0 | M104: 0 | N104: 73590450 | O104: 76609550 | P104: 49839224 | Q104: 23751226 | R104: 49839224 | S104: 0 | T104: 49839224 | U104: 0 | V104: 23751226 | W104: 48.99497337
A105: =_xlfn.CONCAT(Eje.Depend.Afectacion!A124," ", Eje.Depend.Afectacion!C124," ",Eje.Depend.Afectacion!E124," ",Eje.Depend.Afectacion!G124," ",Eje.Depend.Afectacion!I124," ",Eje.Depend.Afectacion!L124," ",Eje.Depend.Afectacion!O124) -> A 03 04 02 012 001 | E105: =+Eje.Depend.Afectacion!S124 -> INCAPACIDADES (NO DE PENSIONES) | F105: =+Eje.Depend.Afectacion!AA124 -> Nación | G105: =+Eje.Depend.Afectacion!AF124 -> CSF | H105: =+Eje.Depend.Afectacion!AI124 -> 10 | I105: =+Eje.Depend.Afectacion!AJ124 -> RECURSOS CORRIENTES | J105: =+Eje.Depend.Afectacion!$AP$124 -> 98189148 | K105: =+Eje.Depend.Afectacion!$AQ$124 -> 98189148 | L105: =+Eje.Depend.Afectacion!$AR$124 -> 0,00 | M105: =+Eje.Depend.Afectacion!$AS$124 -> 0,00 | N105: =+Eje.Depend.Afectacion!$AU$124 -> 44071036 | O105: =+Eje.Depend.Afectacion!$AW$124 -> 54118112 | P105: =+Eje.Depend.Afectacion!$AX$124 -> 26926111 | Q105: =+Eje.Depend.Afectacion!$AY$124 -> 17144925 | R105: =+Eje.Depend.Afectacion!$AZ$124 -> 26926111 | S105: =+Eje.Depend.Afectacion!$BA$124 -> 0,00 | T105: =+Eje.Depend.Afectacion!$BB$124 -> 26926111 | U105: =+Eje.Depend.Afectacion!$BC$124 -> 0,00 | V105: =+Eje.Depend.Afectacion!$BD$124 -> 17144925 | W105: 44.88381547
A106: =_xlfn.CONCAT(Eje.Depend.Afectacion!A125," ", Eje.Depend.Afectacion!C125," ",Eje.Depend.Afectacion!E125," ",Eje.Depend.Afectacion!G125," ",Eje.Depend.Afectacion!I125," ",Eje.Depend.Afectacion!L125," ",Eje.Depend.Afectacion!O125) -> A 03 04 02 012 002 | E106: =+Eje.Depend.Afectacion!S125 -> LICENCIAS DE MATERNIDAD Y PATERNIDAD (NO DE PENSIONES) | F106: =+Eje.Depend.Afectacion!AA125 -> Nación | G106: =+Eje.Depend.Afectacion!AF125 -> CSF | H106: =+Eje.Depend.Afectacion!AI125 -> 10 | I106: =+Eje.Depend.Afectacion!AJ125 -> RECURSOS CORRIENTES | J106: =+Eje.Depend.Afectacion!$AP$125 -> 52010852 | K106: =+Eje.Depend.Afectacion!$AQ$125 -> 52010852 | L106: =+Eje.Depend.Afectacion!$AR$125 -> 0,00 | M106: =+Eje.Depend.Afectacion!$AS$125 -> 0,00 | N106: =+Eje.Depend.Afectacion!$AU$125 -> 29519414 | O106: =+Eje.Depend.Afectacion!$AW$125 -> 22491438 | P106: =+Eje.Depend.Afectacion!$AX$125 -> 22913113 | Q106: =+Eje.Depend.Afectacion!$AY$125 -> 6606301 | R106: =+Eje.Depend.Afectacion!$AZ$125 -> 22913113 | S106: =+Eje.Depend.Afectacion!$BA$125 -> 0,00 | T106: =+Eje.Depend.Afectacion!$BB$125 -> 22913113 | U106: =+Eje.Depend.Afectacion!$BC$125 -> 0,00 | V106: =+Eje.Depend.Afectacion!$BD$125 -> 6606301 | W106: 56.75625925
A107: =_xlfn.CONCAT(Eje.Depend.Afectacion!A126," ", Eje.Depend.Afectacion!C126," ",Eje.Depend.Afectacion!E126," ",Eje.Depend.Afectacion!G126," ",Eje.Depend.Afectacion!I126," ",Eje.Depend.Afectacion!L126," ",Eje.Depend.Afectacion!O126) -> A 03 10 | E107: =+Eje.Depend.Afectacion!S126 -> SENTENCIAS Y CONCILIACIONES | F107: =+Eje.Depend.Afectacion!AA126 -> Nación | G107: =+Eje.Depend.Afectacion!AF126 -> CSF | H107: =+Eje.Depend.Afectacion!AI126 -> 10 | I107: =+Eje.Depend.Afectacion!AJ126 -> RECURSOS CORRIENTES | J107: =+Eje.Depend.Afectacion!$AP$126 -> 43700000 | K107: =+Eje.Depend.Afectacion!$AQ$126 -> 0,00 | L107: =+Eje.Depend.Afectacion!$AR$126 -> 43700000 | M107: =+Eje.Depend.Afectacion!$AS$126 -> 0,00 | N107: =+Eje.Depend.Afectacion!$AU$126 -> 0,00 | O107: =+Eje.Depend.Afectacion!$AW$126 -> 0,00 | P107: =+Eje.Depend.Afectacion!$AX$126 -> 0,00 | Q107: =+Eje.Depend.Afectacion!$AY$126 -> 0,00 | R107: =+Eje.Depend.Afectacion!$AZ$126 -> 0,00 | S107: =+Eje.Depend.Afectacion!$BA$126 -> 0,00 | T107: =+Eje.Depend.Afectacion!$BB$126 -> 0,00 | U107: =+Eje.Depend.Afectacion!$BC$126 -> 0,00 | V107: =+Eje.Depend.Afectacion!$BD$126 -> 0,00 | W107: 0
A108: =_xlfn.CONCAT(Eje.Depend.Afectacion!A127," ", Eje.Depend.Afectacion!C127," ",Eje.Depend.Afectacion!E127," ",Eje.Depend.Afectacion!G127," ",Eje.Depend.Afectacion!I127," ",Eje.Depend.Afectacion!L127," ",Eje.Depend.Afectacion!O127) -> A 03 10 01 | E108: =+Eje.Depend.Afectacion!S127 -> FALLOS NACIONALES | F108: =+Eje.Depend.Afectacion!AA127 -> Nación | G108: =+Eje.Depend.Afectacion!AF127 -> CSF | H108: =+Eje.Depend.Afectacion!AI127 -> 10 | I108: =+Eje.Depend.Afectacion!AJ127 -> RECURSOS CORRIENTES | J108: =+Eje.Depend.Afectacion!$AP$127 -> 43700000 | K108: =+Eje.Depend.Afectacion!$AQ$127 -> 0,00 | L108: =+Eje.Depend.Afectacion!$AR$127 -> 43700000 | M108: =+Eje.Depend.Afectacion!$AS$127 -> 0,00 | N108: =+Eje.Depend.Afectacion!$AU$127 -> 0,00 | O108: =+Eje.Depend.Afectacion!$AW$127 -> 0,00 | P108: =+Eje.Depend.Afectacion!$AX$127 -> 0,00 | Q108: =+Eje.Depend.Afectacion!$AY$127 -> 0,00 | R108: =+Eje.Depend.Afectacion!$AZ$127 -> 0,00 | S108: =+Eje.Depend.Afectacion!$BA$127 -> 0,00 | T108: =+Eje.Depend.Afectacion!$BB$127 -> 0,00 | U108: =+Eje.Depend.Afectacion!$BC$127 -> 0,00 | V108: =+Eje.Depend.Afectacion!$BD$127 -> 0,00 | W108: 0
A109: =_xlfn.CONCAT(Eje.Depend.Afectacion!A128," ", Eje.Depend.Afectacion!C128," ",Eje.Depend.Afectacion!E128," ",Eje.Depend.Afectacion!G128," ",Eje.Depend.Afectacion!I128," ",Eje.Depend.Afectacion!L128," ",Eje.Depend.Afectacion!O128) -> A 03 10 01 001 | E109: =+Eje.Depend.Afectacion!S128 -> SENTENCIAS | F109: =+Eje.Depend.Afectacion!AA128 -> Nación | G109: =+Eje.Depend.Afectacion!AF128 -> CSF | H109: =+Eje.Depend.Afectacion!AI128 -> 10 | I109: =+Eje.Depend.Afectacion!AJ128 -> RECURSOS CORRIENTES | J109: =+Eje.Depend.Afectacion!$AP$128 -> 43700000 | K109: =+Eje.Depend.Afectacion!$AQ$128 -> 0,00 | L109: =+Eje.Depend.Afectacion!$AR$128 -> 43700000 | M109: =+Eje.Depend.Afectacion!$AS$128 -> 0,00 | N109: =+Eje.Depend.Afectacion!$AU$128 -> 0,00 | O109: =+Eje.Depend.Afectacion!$AW$128 -> 0,00 | P109: =+Eje.Depend.Afectacion!$AX$128 -> 0,00 | Q109: =+Eje.Depend.Afectacion!$AY$128 -> 0,00 | R109: =+Eje.Depend.Afectacion!$AZ$128 -> 0,00 | S109: =+Eje.Depend.Afectacion!$BA$127 -> 0,00 | T109: =+Eje.Depend.Afectacion!$BB$128 -> 0,00 | U109: =+Eje.Depend.Afectacion!$BC$128 -> 0,00 | V109: =+Eje.Depend.Afectacion!$BD$128 -> 0,00 | W109: 0
A110: =_xlfn.CONCAT(Eje.Depend.Afectacion!A129," ", Eje.Depend.Afectacion!C129," ",Eje.Depend.Afectacion!E129," ",Eje.Depend.Afectacion!G129," ",Eje.Depend.Afectacion!I129," ",Eje.Depend.Afectacion!L129," ",Eje.Depend.Afectacion!O129) -> A 08 | E110: =+Eje.Depend.Afectacion!S129 -> GASTOS POR TRIBUTOS, MULTAS, SANCIONES E INTERESES DE MORA | F110: =+Eje.Depend.Afectacion!AA129 -> Nación | G110: =+Eje.Depend.Afectacion!AF129 -> CSF | H110: =+Eje.Depend.Afectacion!AI129 -> 10 | I110: =+Eje.Depend.Afectacion!AJ129 -> RECURSOS CORRIENTES | J110: =+Eje.Depend.Afectacion!$AP$129 -> 411000000 | K110: =+Eje.Depend.Afectacion!$AQ$129 -> 411000000 | L110: =+Eje.Depend.Afectacion!$AR$129 -> 0,00 | M110: =+Eje.Depend.Afectacion!$AS$129 -> 0,00 | N110: =+Eje.Depend.Afectacion!$AU$129 -> 215173194 | O110: =+Eje.Depend.Afectacion!$AW$129 -> 195826806 | P110: =+Eje.Depend.Afectacion!$AX$129 -> 215173194 | Q110: =+Eje.Depend.Afectacion!$AY$129 -> 0,00 | R110: =+Eje.Depend.Afectacion!$AZ$129 -> 215173194 | S110: =+Eje.Depend.Afectacion!$BA$129 -> 0,00 | T110: =+Eje.Depend.Afectacion!$BB$129 -> 215173194 | U110: =+Eje.Depend.Afectacion!$BC$129 -> 0,00 | V110: =+Eje.Depend.Afectacion!$BD$129 -> 0,00 | W110: 52.35357518
A111: =_xlfn.CONCAT(Eje.Depend.Afectacion!A130," ", Eje.Depend.Afectacion!C130," ",Eje.Depend.Afectacion!E130," ",Eje.Depend.Afectacion!G130," ",Eje.Depend.Afectacion!I130," ",Eje.Depend.Afectacion!L130," ",Eje.Depend.Afectacion!O130) -> A 08 | E111: =+Eje.Depend.Afectacion!S130 -> GASTOS POR TRIBUTOS, MULTAS, SANCIONES E INTERESES DE MORA | F111: =+Eje.Depend.Afectacion!AA130 -> Nación | G111: =+Eje.Depend.Afectacion!AF130 -> SSF | H111: =+Eje.Depend.Afectacion!AI130 -> 11 | I111: =+Eje.Depend.Afectacion!AJ130 -> OTROS RECURSOS DEL TESORO | J111: =+Eje.Depend.Afectacion!$AP$130 -> 218383350 | K111: =+Eje.Depend.Afectacion!$AQ$130 -> 0,00 | L111: =+Eje.Depend.Afectacion!$AR$130 -> 218383350 | M111: =+Eje.Depend.Afectacion!$AS$130 -> 0,00 | N111: =+Eje.Depend.Afectacion!$AU$130 -> 0,00 | O111: =+Eje.Depend.Afectacion!$AW$130 -> 0,00 | P111: =+Eje.Depend.Afectacion!$AX$130 -> 0,00 | Q111: =+Eje.Depend.Afectacion!$AY$130 -> 0,00 | R111: =+Eje.Depend.Afectacion!$AZ$130 -> 0,00 | S111: =+Eje.Depend.Afectacion!$BA$130 -> 0,00 | T111: =+Eje.Depend.Afectacion!$BB$130 -> 0,00 | U111: =+Eje.Depend.Afectacion!$BC$130 -> 0,00 | V111: =+Eje.Depend.Afectacion!$BD$130 -> 0,00 | W111: 0
A112: =_xlfn.CONCAT(Eje.Depend.Afectacion!A131," ", Eje.Depend.Afectacion!C131," ",Eje.Depend.Afectacion!E131," ",Eje.Depend.Afectacion!G131," ",Eje.Depend.Afectacion!I131," ",Eje.Depend.Afectacion!L131," ",Eje.Depend.Afectacion!O131) -> A 08 01 | E112: =+Eje.Depend.Afectacion!S131 -> IMPUESTOS | F112: =+Eje.Depend.Afectacion!AA131 -> Nación | G112: =+Eje.Depend.Afectacion!AF131 -> CSF | H112: =+Eje.Depend.Afectacion!AI131 -> 10 | I112: =+Eje.Depend.Afectacion!AJ131 -> RECURSOS CORRIENTES | J112: =+Eje.Depend.Afectacion!$AP$132 -> 411000000 | K112: =+Eje.Depend.Afectacion!$AQ$132 -> 411000000 | L112: =+Eje.Depend.Afectacion!$AR$132 -> 0,00 | M112: =+Eje.Depend.Afectacion!$AS$132 -> 0,00 | N112: =+Eje.Depend.Afectacion!$AU$132 -> 215173194 | O112: =+Eje.Depend.Afectacion!$AW$132 -> 195826806 | P112: =+Eje.Depend.Afectacion!$AX$132 -> 215173194 | Q112: =+Eje.Depend.Afectacion!$AY$132 -> 0,00 | R112: =+Eje.Depend.Afectacion!$AZ$132 -> 215173194 | S112: =+Eje.Depend.Afectacion!$BA$132 -> 0,00 | T112: =+Eje.Depend.Afectacion!$BB$132 -> 215173194 | U112: =+Eje.Depend.Afectacion!$BC$132 -> 0,00 | V112: =+Eje.Depend.Afectacion!$BD$132 -> 0,00 | W112: 52.35357518
A113: =_xlfn.CONCAT(Eje.Depend.Afectacion!A132," ", Eje.Depend.Afectacion!C132," ",Eje.Depend.Afectacion!E132," ",Eje.Depend.Afectacion!G132," ",Eje.Depend.Afectacion!I132," ",Eje.Depend.Afectacion!L132," ",Eje.Depend.Afectacion!O132) -> A 08 01 02 | E113: =+Eje.Depend.Afectacion!S132 -> IMPUESTOS TERRITORIALES | F113: =+Eje.Depend.Afectacion!AA132 -> Nación | G113: =+Eje.Depend.Afectacion!AF132 -> CSF | H113: =+Eje.Depend.Afectacion!AI132 -> 10 | I113: =+Eje.Depend.Afectacion!AJ132 -> RECURSOS CORRIENTES | J113: =+Eje.Depend.Afectacion!$AP$132 -> 411000000 | K113: =+Eje.Depend.Afectacion!$AQ$132 -> 411000000 | L113: =+Eje.Depend.Afectacion!$AR$132 -> 0,00 | M113: =+Eje.Depend.Afectacion!$AS$132 -> 0,00 | N113: =+Eje.Depend.Afectacion!$AU$132 -> 215173194 | O113: =+Eje.Depend.Afectacion!$AW$132 -> 195826806 | P113: =+Eje.Depend.Afectacion!$AX$132 -> 215173194 | Q113: =+Eje.Depend.Afectacion!$AY$132 -> 0,00 | R113: =+Eje.Depend.Afectacion!$AZ$132 -> 215173194 | S113: =+Eje.Depend.Afectacion!$BA$132 -> 0,00 | T113: =+Eje.Depend.Afectacion!$BB$132 -> 215173194 | U113: =+Eje.Depend.Afectacion!$BC$132 -> 0,00 | V113: =+Eje.Depend.Afectacion!$BD$132 -> 0,00 | W113: 52.35357518
A114: =_xlfn.CONCAT(Eje.Depend.Afectacion!A133," ", Eje.Depend.Afectacion!C133," ",Eje.Depend.Afectacion!E133," ",Eje.Depend.Afectacion!G133," ",Eje.Depend.Afectacion!I133," ",Eje.Depend.Afectacion!L133," ",Eje.Depend.Afectacion!O133) -> A 08 01 02 001 | E114: =+Eje.Depend.Afectacion!S133 -> IMPUESTO PREDIAL Y SOBRETASA AMBIENTAL | F114: =+Eje.Depend.Afectacion!AA133 -> Nación | G114: =+Eje.Depend.Afectacion!AF133 -> CSF | H114: =+Eje.Depend.Afectacion!AI133 -> 10 | I114: =+Eje.Depend.Afectacion!AJ133 -> RECURSOS CORRIENTES | J114: =+Eje.Depend.Afectacion!$AP$133 -> 309970000 | K114: =+Eje.Depend.Afectacion!$AQ$133 -> 309970000 | L114: =+Eje.Depend.Afectacion!$AR$133 -> 0,00 | M114: =+Eje.Depend.Afectacion!$AS$133 -> 0,00 | N114: =+Eje.Depend.Afectacion!$AU$133 -> 138564693 | O114: =+Eje.Depend.Afectacion!$AW$133 -> 171405307 | P114: =+Eje.Depend.Afectacion!$AX$133 -> 138564693 | Q114: =+Eje.Depend.Afectacion!$AY$133 -> 0,00 | R114: =+Eje.Depend.Afectacion!$AZ$133 -> 138564693 | S114: =+Eje.Depend.Afectacion!$BA$133 -> 0,00 | T114: =+Eje.Depend.Afectacion!$BB$133 -> 138564693 | U114: =+Eje.Depend.Afectacion!$BC$133 -> 0,00 | V114: =+Eje.Depend.Afectacion!$BD$133 -> 0,00 | W114: 44.70261412
A115: =_xlfn.CONCAT(Eje.Depend.Afectacion!A134," ", Eje.Depend.Afectacion!C134," ",Eje.Depend.Afectacion!E134," ",Eje.Depend.Afectacion!G134," ",Eje.Depend.Afectacion!I134," ",Eje.Depend.Afectacion!L134," ",Eje.Depend.Afectacion!O134) -> A 08 01 02 002 | E115: =+Eje.Depend.Afectacion!S134 -> IMPUESTO DE DELINEACIÓN URBANA | F115: =+Eje.Depend.Afectacion!AA134 -> Nación | G115: =+Eje.Depend.Afectacion!AF134 -> CSF | H115: =+Eje.Depend.Afectacion!AI134 -> 10 | I115: =+Eje.Depend.Afectacion!AJ134 -> RECURSOS CORRIENTES | J115: =+Eje.Depend.Afectacion!$AP$134 -> 100000000 | K115: =+Eje.Depend.Afectacion!$AQ$134 -> 100000000 | L115: =+Eje.Depend.Afectacion!$AR$134 -> 0,00 | M115: =+Eje.Depend.Afectacion!$AS$134 -> 0,00 | N115: =+Eje.Depend.Afectacion!$AU$134 -> 75871501 | O115: =+Eje.Depend.Afectacion!$AW$134 -> 24128499 | P115: =+Eje.Depend.Afectacion!$AX$134 -> 75871501 | Q115: =+Eje.Depend.Afectacion!$AY$134 -> 0,00 | R115: =+Eje.Depend.Afectacion!$AZ$134 -> 75871501 | S115: =+Eje.Depend.Afectacion!$BA$134 -> 0,00 | T115: =+Eje.Depend.Afectacion!$BB$134 -> 75871501 | U115: =+Eje.Depend.Afectacion!$BC$134 -> 0,00 | V115: =+Eje.Depend.Afectacion!$BD$134 -> 0,00 | W115: =+(N115/J115)*100 -> 75.871501
A116: =_xlfn.CONCAT(Eje.Depend.Afectacion!A135," ", Eje.Depend.Afectacion!C135," ",Eje.Depend.Afectacion!E135," ",Eje.Depend.Afectacion!G135," ",Eje.Depend.Afectacion!I135," ",Eje.Depend.Afectacion!L135," ",Eje.Depend.Afectacion!O135) -> A 08 01 02 006 | E116: =+Eje.Depend.Afectacion!S135 -> IMPUESTO SOBRE VEHÍCULOS AUTOMOTORES | F116: =+Eje.Depend.Afectacion!AA135 -> Nación | G116: =+Eje.Depend.Afectacion!AF135 -> CSF | H116: =+Eje.Depend.Afectacion!AI135 -> 10 | I116: =+Eje.Depend.Afectacion!AJ135 -> RECURSOS CORRIENTES | J116: =+Eje.Depend.Afectacion!$AP$135 -> 1030000 | K116: =+Eje.Depend.Afectacion!$AQ$135 -> 1030000 | L116: =+Eje.Depend.Afectacion!$AR$135 -> 0,00 | M116: =+Eje.Depend.Afectacion!$AS$135 -> 0,00 | N116: =+Eje.Depend.Afectacion!$AU$135 -> 737000 | O116: =+Eje.Depend.Afectacion!$AW$135 -> 293000 | P116: =+Eje.Depend.Afectacion!$AX$135 -> 737000 | Q116: =+Eje.Depend.Afectacion!$AY$135 -> 0,00 | R116: =+Eje.Depend.Afectacion!$AZ$135 -> 737000 | S116: =+Eje.Depend.Afectacion!$BA$135 -> 0,00 | T116: =+Eje.Depend.Afectacion!$BB$135 -> 737000 | U116: =+Eje.Depend.Afectacion!$BC$135 -> 0,00 | V116: =+Eje.Depend.Afectacion!$BD$135 -> 0,00 | W116: 71.55339806
A117: =_xlfn.CONCAT(Eje.Depend.Afectacion!A136," ", Eje.Depend.Afectacion!C136," ",Eje.Depend.Afectacion!E136," ",Eje.Depend.Afectacion!G136," ",Eje.Depend.Afectacion!I136," ",Eje.Depend.Afectacion!L136," ",Eje.Depend.Afectacion!O136) -> A 08 04 | E117: =+Eje.Depend.Afectacion!S136 -> CONTRIBUCIONES | F117: =+Eje.Depend.Afectacion!AA136 -> Nación | G117: =+Eje.Depend.Afectacion!AF136 -> SSF | H117: =+Eje.Depend.Afectacion!AI136 -> 11 | I117: =+Eje.Depend.Afectacion!AJ136 -> OTROS RECURSOS DEL TESORO | J117: =+Eje.Depend.Afectacion!$AP$136 -> 218383350 | K117: =+Eje.Depend.Afectacion!$AQ$136 -> 0,00 | L117: =+Eje.Depend.Afectacion!$AR$136 -> 218383350 | M117: =+Eje.Depend.Afectacion!$AS$136 -> 0,00 | N117: =+Eje.Depend.Afectacion!$AU$136 -> 0,00 | O117: =+Eje.Depend.Afectacion!$AW$136 -> 0,00 | P117: =+Eje.Depend.Afectacion!$AX$136 -> 0,00 | Q117: =+Eje.Depend.Afectacion!$AY$136 -> 0,00 | R117: =+Eje.Depend.Afectacion!$AZ$136 -> 0,00 | S117: =+Eje.Depend.Afectacion!$BA$136 -> 0,00 | T117: =+Eje.Depend.Afectacion!$BB$136 -> 0,00 | U117: =+Eje.Depend.Afectacion!$BC$136 -> 0,00 | V117: =+Eje.Depend.Afectacion!$BD$136 -> 0,00 | W117: 0
A118: =_xlfn.CONCAT(Eje.Depend.Afectacion!A137," ", Eje.Depend.Afectacion!C137," ",Eje.Depend.Afectacion!E137," ",Eje.Depend.Afectacion!G137," ",Eje.Depend.Afectacion!I137," ",Eje.Depend.Afectacion!L137," ",Eje.Depend.Afectacion!O137) -> A 08 04 01 | E118: =+Eje.Depend.Afectacion!S137 -> CUOTA DE FISCALIZACIÓN Y AUDITAJE | F118: =+Eje.Depend.Afectacion!AA137 -> Nación | G118: =+Eje.Depend.Afectacion!AF137 -> SSF | H118: =+Eje.Depend.Afectacion!AI137 -> 11 | I118: =+Eje.Depend.Afectacion!AJ137 -> OTROS RECURSOS DEL TESORO | J118: =+Eje.Depend.Afectacion!$AP$137 -> 218383350 | K118: =+Eje.Depend.Afectacion!$AQ$137 -> 0,00 | L118: =+Eje.Depend.Afectacion!$AR$137 -> 218383350 | M118: =+Eje.Depend.Afectacion!$AS$137 -> 0,00 | N118: =+Eje.Depend.Afectacion!$AU$137 -> 0,00 | O118: =+Eje.Depend.Afectacion!$AW$137 -> 0,00 | P118: =+Eje.Depend.Afectacion!$AX$137 -> 0,00 | Q118: =+Eje.Depend.Afectacion!$AY$137 -> 0,00 | R118: =+Eje.Depend.Afectacion!$AZ$137 -> 0,00 | S118: =+Eje.Depend.Afectacion!$BA$137 -> 0,00 | T118: =+Eje.Depend.Afectacion!$BB$137 -> 0,00 | U118: =+Eje.Depend.Afectacion!$BC$137 -> 0,00 | V118: =+Eje.Depend.Afectacion!$BD$137 -> 0,00 | W118: 0
A119: =_xlfn.CONCAT(Eje.Depend.Afectacion!A138," ", Eje.Depend.Afectacion!C138," ",Eje.Depend.Afectacion!E138," ",Eje.Depend.Afectacion!G138," ",Eje.Depend.Afectacion!I138," ",Eje.Depend.Afectacion!L138," ",Eje.Depend.Afectacion!O138) -> B | E119: =+Eje.Depend.Afectacion!S138 -> SERVICIO DE LA DEUDA PÚBLICA | F119: =+Eje.Depend.Afectacion!AA138 -> Nación | G119: =+Eje.Depend.Afectacion!AF138 -> CSF | H119: =+Eje.Depend.Afectacion!AI138 -> 11 | I119: =+Eje.Depend.Afectacion!AJ138 -> OTROS RECURSOS DEL TESORO | J119: =+Eje.Depend.Afectacion!$AP$138 -> 73458261 | K119: =+Eje.Depend.Afectacion!$AQ$138 -> 0,00 | L119: =+Eje.Depend.Afectacion!$AR$138 -> 73458261 | M119: =+Eje.Depend.Afectacion!$AS$138 -> 0,00 | N119: =+Eje.Depend.Afectacion!$AU$138 -> 0,00 | O119: =+Eje.Depend.Afectacion!$AW$138 -> 0,00 | P119: =+Eje.Depend.Afectacion!$AX$138 -> 0,00 | Q119: =+Eje.Depend.Afectacion!$AY$138 -> 0,00 | R119: =+Eje.Depend.Afectacion!$AZ$138 -> 0,00 | S119: =+Eje.Depend.Afectacion!$BA$138 -> 0,00 | T119: =+Eje.Depend.Afectacion!$BB$138 -> 0,00 | U119: =+Eje.Depend.Afectacion!$BC$138 -> 0,00 | V119: =+Eje.Depend.Afectacion!$BD$138 -> 0,00 | W119: 0
A120: =_xlfn.CONCAT(Eje.Depend.Afectacion!A139," ", Eje.Depend.Afectacion!C139," ",Eje.Depend.Afectacion!E139," ",Eje.Depend.Afectacion!G139," ",Eje.Depend.Afectacion!I139," ",Eje.Depend.Afectacion!L139," ",Eje.Depend.Afectacion!O139) -> B 10 | E120: =+Eje.Depend.Afectacion!S139 -> SERVICIO DE LA DEUDA PÚBLICA INTERNA | F120: =+Eje.Depend.Afectacion!AA139 -> Nación | G120: =+Eje.Depend.Afectacion!AF139 -> CSF | H120: =+Eje.Depend.Afectacion!AI139 -> 11 | I120: =+Eje.Depend.Afectacion!AJ139 -> OTROS RECURSOS DEL TESORO | J120: =+Eje.Depend.Afectacion!$AP$139 -> 73458261 | K120: =+Eje.Depend.Afectacion!$AQ$139 -> 0,00 | L120: =+Eje.Depend.Afectacion!$AR$139 -> 73458261 | M120: =+Eje.Depend.Afectacion!$AS$139 -> 0,00 | N120: =+Eje.Depend.Afectacion!$AU$139 -> 0,00 | O120: =+Eje.Depend.Afectacion!$AW$139 -> 0,00 | P120: =+Eje.Depend.Afectacion!$AX$139 -> 0,00 | Q120: =+Eje.Depend.Afectacion!$AY$139 -> 0,00 | R120: =+Eje.Depend.Afectacion!$AZ$139 -> 0,00 | S120: =+Eje.Depend.Afectacion!$BA$139 -> 0,00 | T120: =+Eje.Depend.Afectacion!$BB$139 -> 0,00 | U120: =+Eje.Depend.Afectacion!$BC$139 -> 0,00 | V120: =+Eje.Depend.Afectacion!$BD$139 -> 0,00 | W120: 0
A121: =_xlfn.CONCAT(Eje.Depend.Afectacion!A140," ", Eje.Depend.Afectacion!C140," ",Eje.Depend.Afectacion!E140," ",Eje.Depend.Afectacion!G140," ",Eje.Depend.Afectacion!I140," ",Eje.Depend.Afectacion!L140," ",Eje.Depend.Afectacion!O140) -> B 10 04 | E121: =+Eje.Depend.Afectacion!S140 -> FONDO DE CONTINGENCIAS | F121: =+Eje.Depend.Afectacion!AA141 -> Nación | G121: =+Eje.Depend.Afectacion!AF140 -> CSF | H121: =+Eje.Depend.Afectacion!AI140 -> 11 | I121: =+Eje.Depend.Afectacion!AJ140 -> OTROS RECURSOS DEL TESORO | J121: =+Eje.Depend.Afectacion!$AP$140 -> 73458261 | K121: =+Eje.Depend.Afectacion!$AQ$140 -> 0,00 | L121: =+Eje.Depend.Afectacion!$AR$140 -> 73458261 | M121: =+Eje.Depend.Afectacion!$AS$140 -> 0,00 | N121: =+Eje.Depend.Afectacion!$AU$140 -> 0,00 | O121: =+Eje.Depend.Afectacion!$AW$140 -> 0,00 | P121: =+Eje.Depend.Afectacion!$AX$140 -> 0,00 | Q121: =+Eje.Depend.Afectacion!$AY$140 -> 0,00 | R121: =+Eje.Depend.Afectacion!$AZ$140 -> 0,00 | S121: =+Eje.Depend.Afectacion!$BA$140 -> 0,00 | T121: =+Eje.Depend.Afectacion!$BB$140 -> 0,00 | U121: =+Eje.Depend.Afectacion!$BC$140 -> 0,00 | V121: =+Eje.Depend.Afectacion!$BD$140 -> 0,00 | W121: 0
A122: =_xlfn.CONCAT(Eje.Depend.Afectacion!A141," ", Eje.Depend.Afectacion!C141," ",Eje.Depend.Afectacion!E141," ",Eje.Depend.Afectacion!G141," ",Eje.Depend.Afectacion!I141," ",Eje.Depend.Afectacion!L141," ",Eje.Depend.Afectacion!O141) -> B 10 04 01 | E122: =+Eje.Depend.Afectacion!S141 -> APORTES AL FONDO DE CONTINGENCIAS | F122: =+Eje.Depend.Afectacion!AA141 -> Nación | G122: =+Eje.Depend.Afectacion!AF141 -> CSF | H122: =+Eje.Depend.Afectacion!AI141 -> 11 | I122: =+Eje.Depend.Afectacion!AJ141 -> OTROS RECURSOS DEL TESORO | J122: =+Eje.Depend.Afectacion!$AP$141 -> 73458261 | K122: =+Eje.Depend.Afectacion!$AQ$141 -> 0,00 | L122: =+Eje.Depend.Afectacion!$AR$141 -> 73458261 | M122: =+Eje.Depend.Afectacion!$AS$141 -> 0,00 | N122: =+Eje.Depend.Afectacion!$AU$141 -> 0,00 | O122: =+Eje.Depend.Afectacion!$AW$141 -> 0,00 | P122: =+Eje.Depend.Afectacion!$AX$141 -> 0,00 | Q122: =+Eje.Depend.Afectacion!$AY$141 -> 0,00 | R122: =+Eje.Depend.Afectacion!$AZ$141 -> 0,00 | S122: =+Eje.Depend.Afectacion!$BA$141 -> 0,00 | T122: =+Eje.Depend.Afectacion!$BB$141 -> 0,00 | U122: =+Eje.Depend.Afectacion!$BC$141 -> 0,00 | V122: =+Eje.Depend.Afectacion!$BD$141 -> 0,00 | W122: 0
A123: =_xlfn.CONCAT(Eje.Depend.Afectacion!A18," ", Eje.Depend.Afectacion!C18," ",Eje.Depend.Afectacion!E18," ",Eje.Depend.Afectacion!G18," ",Eje.Depend.Afectacion!I18," ",Eje.Depend.Afectacion!L18," ",Eje.Depend.Afectacion!O18) -> C | E123: =+Eje.Depend.Afectacion!S18 -> INVERSION | F123: =+Eje.Depend.Afectacion!AA18 -> Nación | G123: =+Eje.Depend.Afectacion!AF18 -> CSF | H123: =+Eje.Depend.Afectacion!AI18 -> 11 | I123: =+Eje.Depend.Afectacion!AJ177 -> OTROS RECURSOS DEL TESORO | J123: =+Eje.Depend.Afectacion!$AP$18+Eje.Depend.Afectacion!$AP$142+Eje.Depend.Afectacion!$AP$177+Eje.Depend.Afectacion!$AP$207+Eje.Depend.Afectacion!$AP$217+Eje.Depend.Afectacion!$AP$244+Eje.Depend.Afectacion!$AP$271+Eje.Depend.Afectacion!$AP$283 -> 18000000000 | K123: =+Eje.Depend.Afectacion!$AQ$18+Eje.Depend.Afectacion!$AQ$142+Eje.Depend.Afectacion!$AQ$177+Eje.Depend.Afectacion!$AQ$207+Eje.Depend.Afectacion!$AQ$217+Eje.Depend.Afectacion!$AQ$244+Eje.Depend.Afectacion!$AQ$271+Eje.Depend.Afectacion!$AQ$283 -> 1.731599121e+10 | L123: =+Eje.Depend.Afectacion!$AR$18+Eje.Depend.Afectacion!$AR$142+Eje.Depend.Afectacion!$AR$177+Eje.Depend.Afectacion!$AR$207+Eje.Depend.Afectacion!$AR$217+Eje.Depend.Afectacion!$AR$244+Eje.Depend.Afectacion!$AR$271+Eje.Depend.Afectacion!$AR$283 -> 684008791 | M123: =+Eje.Depend.Afectacion!$AS$18+Eje.Depend.Afectacion!$AS$142+Eje.Depend.Afectacion!$AS$177+Eje.Depend.Afectacion!$AS$207+Eje.Depend.Afectacion!$AS$217+Eje.Depend.Afectacion!$AS$244+Eje.Depend.Afectacion!$AS$271+Eje.Depend.Afectacion!$AS$283 -> 0 | N123: =+Eje.Depend.Afectacion!$AU$18+Eje.Depend.Afectacion!$AU$142+Eje.Depend.Afectacion!$AU$177+Eje.Depend.Afectacion!$AU$207+Eje.Depend.Afectacion!$AU$217+Eje.Depend.Afectacion!$AU$244+Eje.Depend.Afectacion!$AU$271+Eje.Depend.Afectacion!$AU$283 -> 1.017091557e+10 | O123: =+Eje.Depend.Afectacion!$AW$18+Eje.Depend.Afectacion!$AW$142+Eje.Depend.Afectacion!$AW$177+Eje.Depend.Afectacion!$AW$207+Eje.Depend.Afectacion!$AW$217+Eje.Depend.Afectacion!$AW$244+Eje.Depend.Afectacion!$AW$271+Eje.Depend.Afectacion!$AW$283 -> 7145075640 | P123: =+Eje.Depend.Afectacion!$AX$18+Eje.Depend.Afectacion!$AX$142+Eje.Depend.Afectacion!$AX$177+Eje.Depend.Afectacion!$AX$207+Eje.Depend.Afectacion!$AX$217+Eje.Depend.Afectacion!$AX$244+Eje.Depend.Afectacion!$AX$271+Eje.Depend.Afectacion!$AX$283 -> 4467052922 | Q123: =+Eje.Depend.Afectacion!$AY$18+Eje.Depend.Afectacion!$AY$142+Eje.Depend.Afectacion!$AY$177+Eje.Depend.Afectacion!$AY$207+Eje.Depend.Afectacion!$AY$217+Eje.Depend.Afectacion!$AY$244+Eje.Depend.Afectacion!$AY$271+Eje.Depend.Afectacion!$AY$283 -> 5703862647 | R123: =+Eje.Depend.Afectacion!$AZ$18+Eje.Depend.Afectacion!$AZ$142+Eje.Depend.Afectacion!$AZ$177+Eje.Depend.Afectacion!$AZ$207+Eje.Depend.Afectacion!$AZ$217+Eje.Depend.Afectacion!$AZ$244+Eje.Depend.Afectacion!$AZ$271+Eje.Depend.Afectacion!$AZ$283 -> 4467052922 | S123: =+Eje.Depend.Afectacion!$BA$18+Eje.Depend.Afectacion!$BA$142+Eje.Depend.Afectacion!$BA$177+Eje.Depend.Afectacion!$BA$207+Eje.Depend.Afectacion!$BA$217+Eje.Depend.Afectacion!$BA$244+Eje.Depend.Afectacion!$BA$271+Eje.Depend.Afectacion!$BA$283 -> 0 | T123: =+Eje.Depend.Afectacion!$BB$18+Eje.Depend.Afectacion!$BB$142+Eje.Depend.Afectacion!$BB$177+Eje.Depend.Afectacion!$BB$207+Eje.Depend.Afectacion!$BB$217+Eje.Depend.Afectacion!$BB$244+Eje.Depend.Afectacion!$BB$271+Eje.Depend.Afectacion!$BB$283 -> 4467052922 | U123: =+Eje.Depend.Afectacion!$BC$18+Eje.Depend.Afectacion!$BC$142+Eje.Depend.Afectacion!$BC$177+Eje.Depend.Afectacion!$BC$207+Eje.Depend.Afectacion!$BC$217+Eje.Depend.Afectacion!$BC$244+Eje.Depend.Afectacion!$BC$271+Eje.Depend.Afectacion!$BC$283 -> 0 | V123: =+Eje.Depend.Afectacion!$BD$18+Eje.Depend.Afectacion!$BD$142+Eje.Depend.Afectacion!$BD$177+Eje.Depend.Afectacion!$BD$207+Eje.Depend.Afectacion!$BD$217+Eje.Depend.Afectacion!$BD$244+Eje.Depend.Afectacion!$BD$271+Eje.Depend.Afectacion!$BD$283 -> 16156161.58 | W123: 56.5050865
A124: =_xlfn.CONCAT(Eje.Depend.Afectacion!A178," ", Eje.Depend.Afectacion!C178," ",Eje.Depend.Afectacion!E178," ",Eje.Depend.Afectacion!G178," ",Eje.Depend.Afectacion!I178," ",Eje.Depend.Afectacion!L178," ",Eje.Depend.Afectacion!O178) -> C | E124: =+Eje.Depend.Afectacion!S178 -> INVERSION | F124: =+Eje.Depend.Afectacion!AA178 -> Nación | G124: =+Eje.Depend.Afectacion!AF178 -> CSF | H124: =+Eje.Depend.Afectacion!AI178 -> 13 | I124: =+Eje.Depend.Afectacion!AJ178 -> RECURSOS DEL CREDITO EXTERNO PREVIA AUTORIZACION | J124: =+Eje.Depend.Afectacion!AP143+Eje.Depend.Afectacion!AP178+Eje.Depend.Afectacion!AP314 -> 5920239274 | K124: =+Eje.Depend.Afectacion!AQ143+Eje.Depend.Afectacion!AQ178+Eje.Depend.Afectacion!AQ314 -> 4591674217 | L124: =+Eje.Depend.Afectacion!AR143+Eje.Depend.Afectacion!AR178+Eje.Depend.Afectacion!AR314 -> 1328565057 | M124: =+Eje.Depend.Afectacion!AS143+Eje.Depend.Afectacion!AS178+Eje.Depend.Afectacion!AS314 -> 0 | N124: =+Eje.Depend.Afectacion!AU143+Eje.Depend.Afectacion!AU178+Eje.Depend.Afectacion!AU314 -> 3160936805 | O124: =+Eje.Depend.Afectacion!AW143+Eje.Depend.Afectacion!AW178+Eje.Depend.Afectacion!AW314 -> 1430737412 | P124: =+Eje.Depend.Afectacion!AX143+Eje.Depend.Afectacion!AX178+Eje.Depend.Afectacion!AX314 -> 1999735977 | Q124: =+Eje.Depend.Afectacion!AY143+Eje.Depend.Afectacion!AY178+Eje.Depend.Afectacion!AY314 -> 1161200828 | R124: =+Eje.Depend.Afectacion!AZ143+Eje.Depend.Afectacion!AZ178+Eje.Depend.Afectacion!AZ314 -> 1999735977 | S124: =+Eje.Depend.Afectacion!BA143+Eje.Depend.Afectacion!BA178+Eje.Depend.Afectacion!BA314 -> 0 | T124: =+Eje.Depend.Afectacion!BB143+Eje.Depend.Afectacion!BB178+Eje.Depend.Afectacion!BB314 -> 1999735977 | U124: =+Eje.Depend.Afectacion!BC143+Eje.Depend.Afectacion!BC178+Eje.Depend.Afectacion!BC314 -> 0 | V124: =+Eje.Depend.Afectacion!BD143+Eje.Depend.Afectacion!BD178+Eje.Depend.Afectacion!BD314 -> 0 | W124: 53.3920448
A125: =_xlfn.CONCAT(Eje.Depend.Afectacion!A179," ", Eje.Depend.Afectacion!C179," ",Eje.Depend.Afectacion!E179," ",Eje.Depend.Afectacion!G179," ",Eje.Depend.Afectacion!I179," ",Eje.Depend.Afectacion!L179," ",Eje.Depend.Afectacion!O179) -> C | E125: =+Eje.Depend.Afectacion!S179 -> INVERSION | F125: =+Eje.Depend.Afectacion!AA179 -> Propios | G125: =+Eje.Depend.Afectacion!AF179 -> CSF | H125: =+Eje.Depend.Afectacion!AI179 -> 20 | I125: =+Eje.Depend.Afectacion!AJ179 -> INGRESOS CORRIENTES | J125: =+Eje.Depend.Afectacion!$AP$179+Eje.Depend.Afectacion!$AP$218+Eje.Depend.Afectacion!$AP$245+Eje.Depend.Afectacion!$AP$261+Eje.Depend.Afectacion!$AP$284+Eje.Depend.Afectacion!$AP$304+Eje.Depend.Afectacion!$AP$324 -> 8308000000 | K125: =+Eje.Depend.Afectacion!$AQ$179+Eje.Depend.Afectacion!$AQ$218+Eje.Depend.Afectacion!$AQ$245+Eje.Depend.Afectacion!$AQ$261+Eje.Depend.Afectacion!$AQ$284+Eje.Depend.Afectacion!$AQ$304+Eje.Depend.Afectacion!$AQ$324 -> 7220480756 | L125: =+Eje.Depend.Afectacion!$AR$179+Eje.Depend.Afectacion!$AR$218+Eje.Depend.Afectacion!$AR$245+Eje.Depend.Afectacion!$AR$261+Eje.Depend.Afectacion!$AR$284+Eje.Depend.Afectacion!$AR$304+Eje.Depend.Afectacion!$AR$324 -> 1087519244 | M125: =+Eje.Depend.Afectacion!$AS$179+Eje.Depend.Afectacion!$AS$218+Eje.Depend.Afectacion!$AS$245+Eje.Depend.Afectacion!$AS$261+Eje.Depend.Afectacion!$AS$284+Eje.Depend.Afectacion!$AS$304+Eje.Depend.Afectacion!$AS$324 -> 0 | N125: =+Eje.Depend.Afectacion!$AU$179+Eje.Depend.Afectacion!$AU$218+Eje.Depend.Afectacion!$AU$245+Eje.Depend.Afectacion!$AU$261+Eje.Depend.Afectacion!$AU$284+Eje.Depend.Afectacion!$AU$304+Eje.Depend.Afectacion!$AU$324 -> 5234245758 | O125: =+Eje.Depend.Afectacion!$AW$179+Eje.Depend.Afectacion!$AW$218+Eje.Depend.Afectacion!$AW$245+Eje.Depend.Afectacion!$AW$261+Eje.Depend.Afectacion!$AW$284+Eje.Depend.Afectacion!$AW$304+Eje.Depend.Afectacion!$AW$324 -> 1986234998 | P125: =+Eje.Depend.Afectacion!$AX$179+Eje.Depend.Afectacion!$AX$218+Eje.Depend.Afectacion!$AX$245+Eje.Depend.Afectacion!$AX$261+Eje.Depend.Afectacion!$AX$284+Eje.Depend.Afectacion!$AX$304+Eje.Depend.Afectacion!$AX$324 -> 2342114218 | Q125: =+Eje.Depend.Afectacion!$AY$179+Eje.Depend.Afectacion!$AY$218+Eje.Depend.Afectacion!$AY$245+Eje.Depend.Afectacion!$AY$261+Eje.Depend.Afectacion!$AY$284+Eje.Depend.Afectacion!$AY$304+Eje.Depend.Afectacion!$AY$324 -> 2892131540 | R125: =+Eje.Depend.Afectacion!$AZ$179+Eje.Depend.Afectacion!$AZ$218+Eje.Depend.Afectacion!$AZ$245+Eje.Depend.Afectacion!$AZ$261+Eje.Depend.Afectacion!$AZ$284+Eje.Depend.Afectacion!$AZ$304+Eje.Depend.Afectacion!$AZ$324 -> 2342114218 | S125: =+Eje.Depend.Afectacion!$BA$179+Eje.Depend.Afectacion!$BA$218+Eje.Depend.Afectacion!$BA$245+Eje.Depend.Afectacion!$BA$261+Eje.Depend.Afectacion!$BA$284+Eje.Depend.Afectacion!$BA$304+Eje.Depend.Afectacion!$BA$324 -> 0 | T125: =+Eje.Depend.Afectacion!$BB$179+Eje.Depend.Afectacion!$BB$218+Eje.Depend.Afectacion!$BB$245+Eje.Depend.Afectacion!$BB$261+Eje.Depend.Afectacion!$BB$284+Eje.Depend.Afectacion!$BB$304+Eje.Depend.Afectacion!$BB$324 -> 2342114218 | U125: =+Eje.Depend.Afectacion!$BC$179+Eje.Depend.Afectacion!$BC$218+Eje.Depend.Afectacion!$BC$245+Eje.Depend.Afectacion!$BC$261+Eje.Depend.Afectacion!$BC$284+Eje.Depend.Afectacion!$BC$304+Eje.Depend.Afectacion!$BC$324 -> 0 | V125: =+Eje.Depend.Afectacion!$BD$179+Eje.Depend.Afectacion!$BD$218+Eje.Depend.Afectacion!$BD$245+Eje.Depend.Afectacion!$BD$261+Eje.Depend.Afectacion!$BD$284+Eje.Depend.Afectacion!$BD$304+Eje.Depend.Afectacion!$BD$324 -> 3762150 | W125: 63.00247662
A126: =_xlfn.CONCAT(Eje.Depend.Afectacion!A19," ", Eje.Depend.Afectacion!C19," ",Eje.Depend.Afectacion!E19," ",Eje.Depend.Afectacion!G19," ",Eje.Depend.Afectacion!I19," ",Eje.Depend.Afectacion!L19," ",Eje.Depend.Afectacion!O19) -> C 3204 | E126: =+Eje.Depend.Afectacion!S19 -> GESTIÓN DE LA INFORMACIÓN Y EL CONOCIMIENTO AMBIENTAL | F126: =+Eje.Depend.Afectacion!AA19 -> Nación | G126: =+Eje.Depend.Afectacion!AF19 -> CSF | H126: =+Eje.Depend.Afectacion!AI19 -> 11 | I126: =+Eje.Depend.Afectacion!AJ19 -> OTROS RECURSOS DEL TESORO | J126: =+Eje.Depend.Afectacion!$AP$19+Eje.Depend.Afectacion!$AP$144+Eje.Depend.Afectacion!$AP$180+Eje.Depend.Afectacion!$AP$208+Eje.Depend.Afectacion!$AP$219+Eje.Depend.Afectacion!$AP$246+Eje.Depend.Afectacion!$AP$272+Eje.Depend.Afectacion!$AP$285 -> 18000000000 | K126: =+Eje.Depend.Afectacion!$AQ$19+Eje.Depend.Afectacion!$AQ$144+Eje.Depend.Afectacion!$AQ$180+Eje.Depend.Afectacion!$AQ$208+Eje.Depend.Afectacion!$AQ$219+Eje.Depend.Afectacion!$AQ$246+Eje.Depend.Afectacion!$AQ$272+Eje.Depend.Afectacion!$AQ$285 -> 1.731599121e+10 | L126: =+Eje.Depend.Afectacion!$AR$19+Eje.Depend.Afectacion!$AR$144+Eje.Depend.Afectacion!$AR$180+Eje.Depend.Afectacion!$AR$208+Eje.Depend.Afectacion!$AR$219+Eje.Depend.Afectacion!$AR$246+Eje.Depend.Afectacion!$AR$272+Eje.Depend.Afectacion!$AR$285 -> 684008791 | M126: =+Eje.Depend.Afectacion!$AS$19+Eje.Depend.Afectacion!$AS$144+Eje.Depend.Afectacion!$AS$180+Eje.Depend.Afectacion!$AS$208+Eje.Depend.Afectacion!$AS$219+Eje.Depend.Afectacion!$AS$246+Eje.Depend.Afectacion!$AS$272+Eje.Depend.Afectacion!$AS$285 -> 0 | N126: =+Eje.Depend.Afectacion!$AU$19+Eje.Depend.Afectacion!$AU$144+Eje.Depend.Afectacion!$AU$180+Eje.Depend.Afectacion!$AU$208+Eje.Depend.Afectacion!$AU$219+Eje.Depend.Afectacion!$AU$246+Eje.Depend.Afectacion!$AU$272+Eje.Depend.Afectacion!$AU$285 -> 1.017091557e+10 | O126: =+Eje.Depend.Afectacion!$AW$19+Eje.Depend.Afectacion!$AW$144+Eje.Depend.Afectacion!$AW$180+Eje.Depend.Afectacion!$AW$208+Eje.Depend.Afectacion!$AW$219+Eje.Depend.Afectacion!$AW$246+Eje.Depend.Afectacion!$AW$272+Eje.Depend.Afectacion!$AW$285 -> 7145075640 | P126: =+Eje.Depend.Afectacion!$AX$19+Eje.Depend.Afectacion!$AX$144+Eje.Depend.Afectacion!$AX$180+Eje.Depend.Afectacion!$AX$208+Eje.Depend.Afectacion!$AX$219+Eje.Depend.Afectacion!$AX$246+Eje.Depend.Afectacion!$AX$272+Eje.Depend.Afectacion!$AX$285 -> 4467052922 | Q126: =+Eje.Depend.Afectacion!$AY$19+Eje.Depend.Afectacion!$AY$144+Eje.Depend.Afectacion!$AY$180+Eje.Depend.Afectacion!$AY$208+Eje.Depend.Afectacion!$AY$219+Eje.Depend.Afectacion!$AY$246+Eje.Depend.Afectacion!$AY$272+Eje.Depend.Afectacion!$AY$285 -> 5703862647 | R126: =+Eje.Depend.Afectacion!$AZ$19+Eje.Depend.Afectacion!$AZ$144+Eje.Depend.Afectacion!$AZ$180+Eje.Depend.Afectacion!$AZ$208+Eje.Depend.Afectacion!$AZ$219+Eje.Depend.Afectacion!$AZ$246+Eje.Depend.Afectacion!$AZ$272+Eje.Depend.Afectacion!$AZ$285 -> 4467052922 | S126: =+Eje.Depend.Afectacion!$BA$19+Eje.Depend.Afectacion!$BA$144+Eje.Depend.Afectacion!$BA$180+Eje.Depend.Afectacion!$BA$208+Eje.Depend.Afectacion!$BA$219+Eje.Depend.Afectacion!$BA$246+Eje.Depend.Afectacion!$BA$272+Eje.Depend.Afectacion!$BA$285 -> 0 | T126: =+Eje.Depend.Afectacion!$BB$19+Eje.Depend.Afectacion!$BB$144+Eje.Depend.Afectacion!$BB$180+Eje.Depend.Afectacion!$BB$208+Eje.Depend.Afectacion!$BB$219+Eje.Depend.Afectacion!$BB$246+Eje.Depend.Afectacion!$BB$272+Eje.Depend.Afectacion!$BB$285 -> 4467052922 | U126: =+Eje.Depend.Afectacion!$BC$19+Eje.Depend.Afectacion!$BC$144+Eje.Depend.Afectacion!$BC$180+Eje.Depend.Afectacion!$BC$208+Eje.Depend.Afectacion!$BC$219+Eje.Depend.Afectacion!$BC$246+Eje.Depend.Afectacion!$BC$272+Eje.Depend.Afectacion!$BC$285 -> 0 | V126: =+Eje.Depend.Afectacion!$BD$19+Eje.Depend.Afectacion!$BD$144+Eje.Depend.Afectacion!$BD$180+Eje.Depend.Afectacion!$BD$208+Eje.Depend.Afectacion!$BD$219+Eje.Depend.Afectacion!$BD$246+Eje.Depend.Afectacion!$BD$272+Eje.Depend.Afectacion!$BD$285 -> 16156161.58 | W126: 56.5050865
A127: =_xlfn.CONCAT(Eje.Depend.Afectacion!A181," ", Eje.Depend.Afectacion!C181," ",Eje.Depend.Afectacion!E181," ",Eje.Depend.Afectacion!G181," ",Eje.Depend.Afectacion!I181," ",Eje.Depend.Afectacion!L181," ",Eje.Depend.Afectacion!O181) -> C 3204 | E127: =+Eje.Depend.Afectacion!S181 -> GESTIÓN DE LA INFORMACIÓN Y EL CONOCIMIENTO AMBIENTAL | F127: =+Eje.Depend.Afectacion!AA181 -> Nación | G127: =+Eje.Depend.Afectacion!AF181 -> CSF | H127: =+Eje.Depend.Afectacion!AI181 -> 13 | I127: =+Eje.Depend.Afectacion!AJ181 -> RECURSOS DEL CREDITO EXTERNO PREVIA AUTORIZACION | J127: =+Eje.Depend.Afectacion!$AP$181 -> 2932656126 | K127: =+Eje.Depend.Afectacion!$AQ$181 -> 1805301219 | L127: =+Eje.Depend.Afectacion!$AR$181 -> 1127354907 | M127: =+Eje.Depend.Afectacion!$AS$181 -> 0,00 | N127: =+Eje.Depend.Afectacion!$AU$181 -> 1771954219 | O127: =+Eje.Depend.Afectacion!$AW$181 -> 33347000 | P127: =+Eje.Depend.Afectacion!$AX$181 -> 1409506373 | Q127: =+Eje.Depend.Afectacion!$AY$181 -> 362447846.5 | R127: =+Eje.Depend.Afectacion!$AZ$181 -> 1409506373 | S127: =+Eje.Depend.Afectacion!$BA$181 -> 0,00 | T127: =+Eje.Depend.Afectacion!$BB$181 -> 1409506373 | U127: =+Eje.Depend.Afectacion!$BC$181 -> 0,00 | V127: =+Eje.Depend.Afectacion!$BD$181 -> 0,00 | W127: 60.42147947
A128: =_xlfn.CONCAT(Eje.Depend.Afectacion!A182," ", Eje.Depend.Afectacion!C182," ",Eje.Depend.Afectacion!E182," ",Eje.Depend.Afectacion!G182," ",Eje.Depend.Afectacion!I182," ",Eje.Depend.Afectacion!L182," ",Eje.Depend.Afectacion!O182) -> C 3204 | E128: =+Eje.Depend.Afectacion!S182 -> GESTIÓN DE LA INFORMACIÓN Y EL CONOCIMIENTO AMBIENTAL | F128: =+Eje.Depend.Afectacion!AA182 -> Propios | G128: =+Eje.Depend.Afectacion!AF182 -> CSF | H128: =+Eje.Depend.Afectacion!AI182 -> 20 | I128: =+Eje.Depend.Afectacion!AJ184 -> RECURSOS DEL CREDITO EXTERNO PREVIA AUTORIZACION | J128: =+Eje.Depend.Afectacion!$AP$182+Eje.Depend.Afectacion!$AP$220+Eje.Depend.Afectacion!$AP$262+Eje.Depend.Afectacion!$AP$286+Eje.Depend.Afectacion!$AP$305+Eje.Depend.Afectacion!$AP$325 -> 8308000000 | K128: =+Eje.Depend.Afectacion!$AQ$182+Eje.Depend.Afectacion!$AQ$220+Eje.Depend.Afectacion!$AQ$262+Eje.Depend.Afectacion!$AQ$286+Eje.Depend.Afectacion!$AQ$305+Eje.Depend.Afectacion!$AQ$325 -> 7220480756 | L128: =+Eje.Depend.Afectacion!$AR$182+Eje.Depend.Afectacion!$AR$220+Eje.Depend.Afectacion!$AR$262+Eje.Depend.Afectacion!$AR$286+Eje.Depend.Afectacion!$AR$305+Eje.Depend.Afectacion!$AR$325 -> 1087519244 | M128: =+Eje.Depend.Afectacion!$AS$182+Eje.Depend.Afectacion!$AS$220+Eje.Depend.Afectacion!$AS$262+Eje.Depend.Afectacion!$AS$286+Eje.Depend.Afectacion!$AS$305+Eje.Depend.Afectacion!$AS$325 -> 0 | N128: =+Eje.Depend.Afectacion!$AU$182+Eje.Depend.Afectacion!$AU$220+Eje.Depend.Afectacion!$AU$262+Eje.Depend.Afectacion!$AU$286+Eje.Depend.Afectacion!$AU$305+Eje.Depend.Afectacion!$AU$325 -> 5234245758 | O128: =+Eje.Depend.Afectacion!$AW$182+Eje.Depend.Afectacion!$AW$220+Eje.Depend.Afectacion!$AW$262+Eje.Depend.Afectacion!$AW$286+Eje.Depend.Afectacion!$AW$305+Eje.Depend.Afectacion!$AW$325 -> 1986234998 | P128: =+Eje.Depend.Afectacion!$AX$182+Eje.Depend.Afectacion!$AX$220+Eje.Depend.Afectacion!$AX$262+Eje.Depend.Afectacion!$AX$286+Eje.Depend.Afectacion!$AX$305+Eje.Depend.Afectacion!$AX$325 -> 2342114218 | Q128: =+Eje.Depend.Afectacion!$AY$182+Eje.Depend.Afectacion!$AY$220+Eje.Depend.Afectacion!$AY$262+Eje.Depend.Afectacion!$AY$286+Eje.Depend.Afectacion!$AY$305+Eje.Depend.Afectacion!$AY$325 -> 2892131540 | R128: =+Eje.Depend.Afectacion!$AZ$182+Eje.Depend.Afectacion!$AZ$220+Eje.Depend.Afectacion!$AZ$262+Eje.Depend.Afectacion!$AZ$286+Eje.Depend.Afectacion!$AZ$305+Eje.Depend.Afectacion!$AZ$325 -> 2342114218 | S128: =+Eje.Depend.Afectacion!$BA$182+Eje.Depend.Afectacion!$BA$220+Eje.Depend.Afectacion!$BA$262+Eje.Depend.Afectacion!$BA$286+Eje.Depend.Afectacion!$BA$305+Eje.Depend.Afectacion!$BA$325 -> 0 | T128: =+Eje.Depend.Afectacion!$BB$182+Eje.Depend.Afectacion!$BB$220+Eje.Depend.Afectacion!$BB$262+Eje.Depend.Afectacion!$BB$286+Eje.Depend.Afectacion!$BB$305+Eje.Depend.Afectacion!$BB$325 -> 2342114218 | U128: =+Eje.Depend.Afectacion!$BC$182+Eje.Depend.Afectacion!$BC$220+Eje.Depend.Afectacion!$BC$262+Eje.Depend.Afectacion!$BC$286+Eje.Depend.Afectacion!$BC$305+Eje.Depend.Afectacion!$BC$325 -> 0 | V128: =+Eje.Depend.Afectacion!$BD$182+Eje.Depend.Afectacion!$BD$220+Eje.Depend.Afectacion!$BD$262+Eje.Depend.Afectacion!$BD$286+Eje.Depend.Afectacion!$BD$305+Eje.Depend.Afectacion!$BD$325 -> 3762150 | W128: 63.00247662
A129: =_xlfn.CONCAT(Eje.Depend.Afectacion!A20," ", Eje.Depend.Afectacion!C145," ",Eje.Depend.Afectacion!E183," ",Eje.Depend.Afectacion!G209," ",Eje.Depend.Afectacion!I221," ",Eje.Depend.Afectacion!L248," ",Eje.Depend.Afectacion!O273,Eje.Depend.Afectacion!O287) -> C 3204 0900 | E129: =+Eje.Depend.Afectacion!S287 -> INTERSUBSECTORIAL AMBIENTE | F129: =+Eje.Depend.Afectacion!AA183 -> Nación | G129: =+Eje.Depend.Afectacion!AF183 -> CSF | H129: =+Eje.Depend.Afectacion!AI183 -> 11 | I129: =+Eje.Depend.Afectacion!AJ185 -> INGRESOS CORRIENTES | J129: =SUM(J130:J139) -> 18000000000 | K129: =SUM(K130:K139) -> 1.731599121e+10 | L129: 684008791 | M129: 0 | N129: 1.017091557e+10 | O129: 7145075640 | P129: 4467052922 | Q129: 5703862647 | R129: 4467052922 | S129: 0 | T129: 4467052922 | U129: 0 | V129: 16156161.58 | W129: 56.5050865
A130: =_xlfn.CONCAT(Eje.Depend.Afectacion!A234," ", Eje.Depend.Afectacion!C234," ",Eje.Depend.Afectacion!E234," ",Eje.Depend.Afectacion!G234," ",Eje.Depend.Afectacion!I234," ",Eje.Depend.Afectacion!L234," ",Eje.Depend.Afectacion!O234) -> C 3204 0900 3 0 3204015 02 | E130: =+Eje.Depend.Afectacion!S234 -> ADQUISICIÓN DE BIENES Y SERVICIOS - SERVICIO DE MONITOREO HIDROLÓGICO - FORTALECIMIENTO DE LA GESTIÓN DEL CONOCIMIENTO HIDROLÓGICO, METEOROLÓGICO Y AMBIENTAL NACIONAL | F130: =+Eje.Depend.Afectacion!AA234 -> Nación | G130: =+Eje.Depend.Afectacion!AF234 -> CSF | H130: =+Eje.Depend.Afectacion!AI234 -> 11 | I130: =+Eje.Depend.Afectacion!AJ234 -> OTROS RECURSOS DEL TESORO | J130: =+Eje.Depend.Afectacion!$AP$234 -> 800000000 | K130: =+Eje.Depend.Afectacion!$AQ$234 -> 776084000 | L130: =+Eje.Depend.Afectacion!$AR$234 -> 23916000 | M130: =+Eje.Depend.Afectacion!$AS$234 -> 0,00 | N130: =+Eje.Depend.Afectacion!$AU$234 -> 776084000 | O130: =+Eje.Depend.Afectacion!$AW$234 -> 0,00 | P130: =+Eje.Depend.Afectacion!$AX$234 -> 303584000 | Q130: =+Eje.Depend.Afectacion!$AY$234 -> 472500000 | R130: =+Eje.Depend.Afectacion!$AZ$234 -> 303584000 | S130: =+Eje.Depend.Afectacion!$BA$234 -> 0,00 | T130: =+Eje.Depend.Afectacion!$BB$234 -> 303584000 | U130: =+Eje.Depend.Afectacion!$BC$234 -> 0,00 | V130: =+Eje.Depend.Afectacion!$BD$234 -> 0,00 | W130: 97.0105
A131: =_xlfn.CONCAT(Eje.Depend.Afectacion!A24," ", Eje.Depend.Afectacion!C24," ",Eje.Depend.Afectacion!E24," ",Eje.Depend.Afectacion!G24," ",Eje.Depend.Afectacion!I24," ",Eje.Depend.Afectacion!L24," ",Eje.Depend.Afectacion!O24) -> C 3204 0900 3 0 3204043 02 | E131: =+Eje.Depend.Afectacion!S24 -> ADQUISICIÓN DE BIENES Y SERVICIOS - SERVICIO DE INFORMACIÓN DE DATOS CLIMÁTICOS Y MONITOREO - FORTALECIMIENTO DE LA GESTIÓN DEL CONOCIMIENTO HIDROLÓGICO, METEOROLÓGICO Y AMBIENTAL NACIONAL | F131: =+Eje.Depend.Afectacion!AA24 -> Nación | G131: =+Eje.Depend.Afectacion!AF24 -> CSF | H131: =+Eje.Depend.Afectacion!AI24 -> 11 | I131: =+Eje.Depend.Afectacion!AJ235 -> OTROS RECURSOS DEL TESORO | J131: =+Eje.Depend.Afectacion!$AP$24+Eje.Depend.Afectacion!$AP$150+Eje.Depend.Afectacion!$AP$213+Eje.Depend.Afectacion!$AP$256 -> 2796053500 | K131: =+Eje.Depend.Afectacion!$AQ$24+Eje.Depend.Afectacion!$AQ$150+Eje.Depend.Afectacion!$AQ$213+Eje.Depend.Afectacion!$AQ$256 -> 2590521000 | L131: =+Eje.Depend.Afectacion!$AR$24+Eje.Depend.Afectacion!$AR$150+Eje.Depend.Afectacion!$AR$213+Eje.Depend.Afectacion!$AR$256 -> 205532500 | M131: =+Eje.Depend.Afectacion!$AS$24+Eje.Depend.Afectacion!$AS$150+Eje.Depend.Afectacion!$AS$213+Eje.Depend.Afectacion!$AS$256 -> 0 | N131: =+Eje.Depend.Afectacion!$AU$24+Eje.Depend.Afectacion!$AU$150+Eje.Depend.Afectacion!$AU$213+Eje.Depend.Afectacion!$AU$256 -> 2309029405 | O131: =+Eje.Depend.Afectacion!$AW$24+Eje.Depend.Afectacion!$AW$150+Eje.Depend.Afectacion!$AW$213+Eje.Depend.Afectacion!$AW$256 -> 281491595 | P131: =+Eje.Depend.Afectacion!$AX$24+Eje.Depend.Afectacion!$AX$150+Eje.Depend.Afectacion!$AX$213+Eje.Depend.Afectacion!$AX$256 -> 1055121667 | Q131: =+Eje.Depend.Afectacion!$AY$24+Eje.Depend.Afectacion!$AY$150+Eje.Depend.Afectacion!$AY$213+Eje.Depend.Afectacion!$AY$256 -> 1253907738 | R131: =+Eje.Depend.Afectacion!$AZ$24+Eje.Depend.Afectacion!$AZ$150+Eje.Depend.Afectacion!$AZ$213+Eje.Depend.Afectacion!$AZ$256 -> 1055121667 | S131: =+Eje.Depend.Afectacion!$BA$24+Eje.Depend.Afectacion!$BA$150+Eje.Depend.Afectacion!$BA$213+Eje.Depend.Afectacion!$BA$256 -> 0 | T131: =+Eje.Depend.Afectacion!$BB$24+Eje.Depend.Afectacion!$BB$150+Eje.Depend.Afectacion!$BB$213+Eje.Depend.Afectacion!$BB$256 -> 1055121667 | U131: =+Eje.Depend.Afectacion!$BC$24+Eje.Depend.Afectacion!$BC$150+Eje.Depend.Afectacion!$BC$213+Eje.Depend.Afectacion!$BC$256 -> 0 | V131: =+Eje.Depend.Afectacion!$BD$24+Eje.Depend.Afectacion!$BD$150+Eje.Depend.Afectacion!$BD$213+Eje.Depend.Afectacion!$BD$256 -> 408308 | W131: 82.58173189
A132: =_xlfn.CONCAT(Eje.Depend.Afectacion!A298," ", Eje.Depend.Afectacion!C298," ",Eje.Depend.Afectacion!E298," ",Eje.Depend.Afectacion!G298," ",Eje.Depend.Afectacion!I298," ",Eje.Depend.Afectacion!L298," ",Eje.Depend.Afectacion!O298) -> C 3204 0900 3 0 3204045 02 | E132: =+Eje.Depend.Afectacion!S298 -> ADQUISICIÓN DE BIENES Y SERVICIOS - SERVICIOS DE ADMINISTRACIÓN DE REGISTRO DE ESTABLECIMIENTOS - FORTALECIMIENTO DE LA GESTIÓN DEL CONOCIMIENTO HIDROLÓGICO, METEOROLÓGICO Y AMBIENTAL NACIONAL | F132: =+Eje.Depend.Afectacion!AA298 -> Nación | G132: =+Eje.Depend.Afectacion!AF298 -> CSF | H132: =+Eje.Depend.Afectacion!AI298 -> 11 | I132: =+Eje.Depend.Afectacion!AJ298 -> OTROS RECURSOS DEL TESORO | J132: =+Eje.Depend.Afectacion!$AP$298 -> 372738600 | K132: =+Eje.Depend.Afectacion!$AQ$298 -> 370400000 | L132: =+Eje.Depend.Afectacion!$AR$298 -> 2338600 | M132: =+Eje.Depend.Afectacion!$AS$298 -> 0,00 | N132: =+Eje.Depend.Afectacion!$AU$298 -> 70400000 | O132: =+Eje.Depend.Afectacion!$AW$298 -> 300000000 | P132: =+Eje.Depend.Afectacion!$AX$298 -> 27500000 | Q132: =+Eje.Depend.Afectacion!$AY$298 -> 42900000 | R132: =+Eje.Depend.Afectacion!$AZ$298 -> 27500000 | S132: =+Eje.Depend.Afectacion!$BA$298 -> 0,00 | T132: =+Eje.Depend.Afectacion!$BB$298 -> 27500000 | U132: =+Eje.Depend.Afectacion!$BC$298 -> 0,00 | V132: =+Eje.Depend.Afectacion!$BD$298 -> 0,00 | W132: =+(N132/J132)*100 -> 18.88723089
A133: =_xlfn.CONCAT(Eje.Depend.Afectacion!A278," ", Eje.Depend.Afectacion!C278," ",Eje.Depend.Afectacion!E278," ",Eje.Depend.Afectacion!G278," ",Eje.Depend.Afectacion!I278," ",Eje.Depend.Afectacion!L278," ",Eje.Depend.Afectacion!O278) -> C 3204 0900 3 0 3204046 02 | E133: =+Eje.Depend.Afectacion!S278 -> ADQUISICIÓN DE BIENES Y SERVICIOS - DOCUMENTOS DE ESTUDIOS TÉCNICOS PARA LA PLANIFICACIÓN SECTORIAL Y LA GESTIÓN AMBIENTAL - FORTALECIMIENTO DE LA GESTIÓN DEL CONOCIMIENTO HIDROLÓGICO, METEOROLÓGICO Y AMBIENTAL NACIONAL | F133: =+Eje.Depend.Afectacion!AA278 -> Nación | G133: =+Eje.Depend.Afectacion!AF278 -> CSF | H133: =+Eje.Depend.Afectacion!AI278 -> 11 | I133: =+Eje.Depend.Afectacion!AJ278 -> OTROS RECURSOS DEL TESORO | J133: =+Eje.Depend.Afectacion!$AP$278+Eje.Depend.Afectacion!$AP$297 -> 688559754 | K133: =+Eje.Depend.Afectacion!$AQ$278+Eje.Depend.Afectacion!$AQ$297 -> 677295334 | L133: =+Eje.Depend.Afectacion!$AR$278+Eje.Depend.Afectacion!$AR$297 -> 11264420 | M133: =+Eje.Depend.Afectacion!$AS$278+Eje.Depend.Afectacion!$AS$297 -> 0 | N133: =+Eje.Depend.Afectacion!$AU$278+Eje.Depend.Afectacion!$AU$297 -> 664384244 | O133: =+Eje.Depend.Afectacion!$AW$278+Eje.Depend.Afectacion!$AW$297 -> 12911090 | P133: =+Eje.Depend.Afectacion!$AX$278+Eje.Depend.Afectacion!$AX$297 -> 143473621 | Q133: =+Eje.Depend.Afectacion!$AY$278+Eje.Depend.Afectacion!$AY$297 -> 520910623 | R133: =+Eje.Depend.Afectacion!$AZ$278+Eje.Depend.Afectacion!$AZ$297 -> 143473621 | S133: =+Eje.Depend.Afectacion!$BA$278+Eje.Depend.Afectacion!$BA$297 -> 0 | T133: =+Eje.Depend.Afectacion!$BB$278+Eje.Depend.Afectacion!$BB$297 -> 143473621 | U133: =+Eje.Depend.Afectacion!$BC$278+Eje.Depend.Afectacion!$BC$297 -> 0 | V133: =+Eje.Depend.Afectacion!$BD$278+Eje.Depend.Afectacion!$BD$297 -> 0 | W133: 96.48897429
A134: =_xlfn.CONCAT(Eje.Depend.Afectacion!A299," ", Eje.Depend.Afectacion!C299," ",Eje.Depend.Afectacion!E299," ",Eje.Depend.Afectacion!G299," ",Eje.Depend.Afectacion!I299," ",Eje.Depend.Afectacion!L299," ",Eje.Depend.Afectacion!O299) -> C 3204 0900 3 0 3204047 02 | E134: =+Eje.Depend.Afectacion!S299 -> ADQUISICIÓN DE BIENES Y SERVICIOS - SERVICIOS DE ASISTENCIA TÉCNICA A LAS ENTIDADES DEL SINA,SNGRD Y SECTOR PRODUCTIVO. - FORTALECIMIENTO DE LA GESTIÓN DEL CONOCIMIENTO HIDROLÓGICO, METEOROLÓGICO Y AMBIENTAL NACIONAL | F134: =+Eje.Depend.Afectacion!AA299 -> Nación | G134: =+Eje.Depend.Afectacion!AF299 -> CSF | H134: =+Eje.Depend.Afectacion!AI299 -> 11 | I134: =+Eje.Depend.Afectacion!AJ299 -> OTROS RECURSOS DEL TESORO | J134: =+Eje.Depend.Afectacion!$AP$299 -> 208698600 | K134: =+Eje.Depend.Afectacion!$AQ$299 -> 168992000 | L134: =+Eje.Depend.Afectacion!$AR$299 -> 39706600 | M134: =+Eje.Depend.Afectacion!$AS$299 -> 0,00 | N134: =+Eje.Depend.Afectacion!$AU$299 -> 168992000 | O134: =+Eje.Depend.Afectacion!$AW$299 -> 0,00 | P134: =+Eje.Depend.Afectacion!$AX$299 -> 66340000 | Q134: =+Eje.Depend.Afectacion!$AY$299 -> 102652000 | R134: =+Eje.Depend.Afectacion!$AZ$299 -> 66340000 | S134: =+Eje.Depend.Afectacion!$BA$299 -> 0,00 | T134: =+Eje.Depend.Afectacion!$BB$299 -> 66340000 | U134: =+Eje.Depend.Afectacion!$BC$299 -> 0,00 | V134: =+Eje.Depend.Afectacion!$BD$299 -> 0,00 | W134: 80.97418957
A135: =_xlfn.CONCAT(Eje.Depend.Afectacion!A195," ", Eje.Depend.Afectacion!C195," ",Eje.Depend.Afectacion!E195," ",Eje.Depend.Afectacion!G195," ",Eje.Depend.Afectacion!I195," ",Eje.Depend.Afectacion!L195," ",Eje.Depend.Afectacion!O195) -> C 3204 0900 3 0 3204048 02 | E135: =+Eje.Depend.Afectacion!S195 -> ADQUISICIÓN DE BIENES Y SERVICIOS - SERVICIO DE ADMINISTRACION DE LOS SISTEMAS DE INFORMACIÓN PARA LOS PROCESOS DE TOMA DE DECISIONES - FORTALECIMIENTO DE LA GESTIÓN DEL CONOCIMIENTO HIDROLÓGICO, METEOROLÓGICO Y AMBIENTAL NACIONAL | F135: =+Eje.Depend.Afectacion!AA195 -> Nación | G135: =+Eje.Depend.Afectacion!AF195 -> CSF | H135: =+Eje.Depend.Afectacion!AI195 -> 11 | I135: =+Eje.Depend.Afectacion!AJ195 -> OTROS RECURSOS DEL TESORO | J135: =+Eje.Depend.Afectacion!$AP$195 -> 199748572 | K135: =+Eje.Depend.Afectacion!$AQ$195 -> 189999999.9 | L135: =+Eje.Depend.Afectacion!$AR$195 -> 9748572.05 | M135: =+Eje.Depend.Afectacion!$AS$195 -> 0,00 | N135: =+Eje.Depend.Afectacion!$AU$195 -> 189999999.9 | O135: =+Eje.Depend.Afectacion!$AW$195 -> 0,00 | P135: =+Eje.Depend.Afectacion!$AX$195 -> 189999999.9 | Q135: =+Eje.Depend.Afectacion!$AY$195 -> 0,00 | R135: =+Eje.Depend.Afectacion!$AZ$195 -> 189999999.9 | S135: =+Eje.Depend.Afectacion!$BA$195 -> 0,00 | T135: =+Eje.Depend.Afectacion!$BB$195 -> 189999999.9 | U135: =+Eje.Depend.Afectacion!$BC$195 -> 0,00 | V135: =+Eje.Depend.Afectacion!$BD$195 -> 0,00 | W135: 95.1195786
A136: =_xlfn.CONCAT(Eje.Depend.Afectacion!A151," ", Eje.Depend.Afectacion!C151," ",Eje.Depend.Afectacion!E151," ",Eje.Depend.Afectacion!G151," ",Eje.Depend.Afectacion!I151," ",Eje.Depend.Afectacion!L151," ",Eje.Depend.Afectacion!O151) -> C 3204 0900 3 0 3204049 02 | E136: =+Eje.Depend.Afectacion!S151 -> ADQUISICIÓN DE BIENES Y SERVICIOS - SERVICIO DE DIVULGACIÓN DECONOCIMIENTO GENERADO PARA LA PLANIFICACIÓN SECTORIAL Y LA GESTIÓN AMBIENTAL. - FORTALECIMIENTO DE LA GESTIÓN DEL CONOCIMIENTO HIDROLÓGICO, METEOROLÓGICO Y AMBIENTAL NACIONAL | F136: =+Eje.Depend.Afectacion!AA151 -> Nación | G136: =+Eje.Depend.Afectacion!AF151 -> CSF | H136: =+Eje.Depend.Afectacion!AI151 -> 11 | I136: =+Eje.Depend.Afectacion!AJ151 -> OTROS RECURSOS DEL TESORO | J136: =+Eje.Depend.Afectacion!$AP$151 -> 255798600 | K136: =+Eje.Depend.Afectacion!$AQ$151 -> 192648000 | L136: =+Eje.Depend.Afectacion!$AR$151 -> 63150600 | M136: =+Eje.Depend.Afectacion!$AS$151 -> 0,00 | N136: =+Eje.Depend.Afectacion!$AU$151 -> 192648000 | O136: =+Eje.Depend.Afectacion!$AW$151 -> 0,00 | P136: =+Eje.Depend.Afectacion!$AX$151 -> 79598000 | Q136: =+Eje.Depend.Afectacion!$AY$151 -> 113050000 | R136: =+Eje.Depend.Afectacion!$AZ$151 -> 79598000 | S136: =+Eje.Depend.Afectacion!$BA$151 -> 0,00 | T136: =+Eje.Depend.Afectacion!$BB$151 -> 79598000 | U136: =+Eje.Depend.Afectacion!$BC$151 -> 0,00 | V136: =+Eje.Depend.Afectacion!$BD$151 -> 0,00 | W136: 75.31237466
A137: =_xlfn.CONCAT(Eje.Depend.Afectacion!A235," ", Eje.Depend.Afectacion!C235," ",Eje.Depend.Afectacion!E235," ",Eje.Depend.Afectacion!G235," ",Eje.Depend.Afectacion!I235," ",Eje.Depend.Afectacion!L235," ",Eje.Depend.Afectacion!O235) -> C 3204 0900 3 0 3204051 02 | E137: =+Eje.Depend.Afectacion!S235 -> ADQUISICIÓN DE BIENES Y SERVICIOS - SERVICIO DE MONITOREO Y SEGUIMIENTO HIDROMETEOROLÓGICO - FORTALECIMIENTO DE LA GESTIÓN DEL CONOCIMIENTO HIDROLÓGICO, METEOROLÓGICO Y AMBIENTAL NACIONAL | F137: =+Eje.Depend.Afectacion!AA235 -> Nación | G137: =+Eje.Depend.Afectacion!AF235 -> CSF | H137: =+Eje.Depend.Afectacion!AI235 -> 11 | I137: =+Eje.Depend.Afectacion!AJ235 -> OTROS RECURSOS DEL TESORO | J137: =+Eje.Depend.Afectacion!$AP$235 -> 12363015374 | K137: =+Eje.Depend.Afectacion!$AQ$235 -> 12034793875 | L137: =+Eje.Depend.Afectacion!$AR$235 -> 328221499 | M137: =+Eje.Depend.Afectacion!$AS$235 -> 0,00 | N137: =+Eje.Depend.Afectacion!$AU$235 -> 5526931562 | O137: =+Eje.Depend.Afectacion!$AW$235 -> 6507862313 | P137: =+Eje.Depend.Afectacion!$AX$235 -> 2429341171 | Q137: =+Eje.Depend.Afectacion!$AY$235 -> 3097590391 | R137: =+Eje.Depend.Afectacion!$AZ$235 -> 2429341171 | S137: =+Eje.Depend.Afectacion!$BA$235 -> 0,00 | T137: =+Eje.Depend.Afectacion!$BB$235 -> 2429341171 | U137: =+Eje.Depend.Afectacion!$BC$235 -> 0,00 | V137: =+Eje.Depend.Afectacion!$BD$235 -> 15103316.58 | W137: 44.70536835
A138: =_xlfn.CONCAT(Eje.Depend.Afectacion!A236," ", Eje.Depend.Afectacion!C236," ",Eje.Depend.Afectacion!E236," ",Eje.Depend.Afectacion!G236," ",Eje.Depend.Afectacion!I236," ",Eje.Depend.Afectacion!L236," ",Eje.Depend.Afectacion!O236) -> C 3204 0900 3 0 3204052 02 | E138: =+Eje.Depend.Afectacion!S236 -> ADQUISICIÓN DE BIENES Y SERVICIOS - LABORATORIO DE CALIDAD AMBIENTAL ACREDITADO - FORTALECIMIENTO DE LA GESTIÓN DEL CONOCIMIENTO HIDROLÓGICO, METEOROLÓGICO Y AMBIENTAL NACIONAL | F138: =+Eje.Depend.Afectacion!AA236 -> Nación | G138: =+Eje.Depend.Afectacion!AF236 -> CSF | H138: =+Eje.Depend.Afectacion!AI236 -> 11 | I138: =+Eje.Depend.Afectacion!AJ236 -> OTROS RECURSOS DEL TESORO | J138: =+Eje.Depend.Afectacion!$AP$236 -> 236387000 | K138: =+Eje.Depend.Afectacion!$AQ$236 -> 236387000 | L138: =+Eje.Depend.Afectacion!$AR$236 -> 0,00 | M138: =+Eje.Depend.Afectacion!$AS$236 -> 0,00 | N138: =+Eje.Depend.Afectacion!$AU$236 -> 226576358 | O138: =+Eje.Depend.Afectacion!$AW$236 -> 9810642 | P138: =+Eje.Depend.Afectacion!$AX$236 -> 155414463 | Q138: =+Eje.Depend.Afectacion!$AY$236 -> 71161895 | R138: =+Eje.Depend.Afectacion!$AZ$236 -> 155414463 | S138: =+Eje.Depend.Afectacion!$BA$236 -> 0,00 | T138: =+Eje.Depend.Afectacion!$BB$236 -> 155414463 | U138: =+Eje.Depend.Afectacion!$BC$236 -> 0,00 | V138: =+Eje.Depend.Afectacion!$BD$236 -> 644537 | W138: 95.84975401
A139: =_xlfn.CONCAT(Eje.Depend.Afectacion!A279," ", Eje.Depend.Afectacion!C279," ",Eje.Depend.Afectacion!E279," ",Eje.Depend.Afectacion!G279," ",Eje.Depend.Afectacion!I279," ",Eje.Depend.Afectacion!L279," ",Eje.Depend.Afectacion!O279) -> C 3204 0900 3 0 3204053 02 | E139: =+Eje.Depend.Afectacion!S279 -> ADQUISICIÓN DE BIENES Y SERVICIOS - SERVICIO DE MONITOREO Y SEGUIMIENTO DE LA BIODIVERSIDAD Y LOS SERVICIOS ECOSISTÉMICOS - FORTALECIMIENTO DE LA GESTIÓN DEL CONOCIMIENTO HIDROLÓGICO, METEOROLÓGICO Y AMBIENTAL NACIONAL | F139: =+Eje.Depend.Afectacion!AA279 -> Nación | G139: =+Eje.Depend.Afectacion!AF279 -> CSF | H139: =+Eje.Depend.Afectacion!AI279 -> 11 | I139: =+Eje.Depend.Afectacion!AJ279 -> OTROS RECURSOS DEL TESORO | J139: =+Eje.Depend.Afectacion!$AP$279 -> 79000000 | K139: =+Eje.Depend.Afectacion!$AQ$279 -> 78870000 | L139: =+Eje.Depend.Afectacion!$AR$279 -> 130000 | M139: =+Eje.Depend.Afectacion!$AS$279 -> 0,00 | N139: =+Eje.Depend.Afectacion!$AU$279 -> 45870000 | O139: =+Eje.Depend.Afectacion!$AW$279 -> 33000000 | P139: =+Eje.Depend.Afectacion!$AX$279 -> 16680000 | Q139: =+Eje.Depend.Afectacion!$AY$279 -> 29190000 | R139: =+Eje.Depend.Afectacion!$AZ$279 -> 16680000 | S139: =+Eje.Depend.Afectacion!$BA$279 -> 0,00 | T139: =+Eje.Depend.Afectacion!$BB$279 -> 16680000 | U139: =+Eje.Depend.Afectacion!$BC$279 -> 0,00 | V139: =+Eje.Depend.Afectacion!$BD$279 -> 0,00 | W139: 58.06329114
A140: =_xlfn.CONCAT(Eje.Depend.Afectacion!A196," ", Eje.Depend.Afectacion!C196," ",Eje.Depend.Afectacion!E196) -> C 3204 0900 | E140: =+Eje.Depend.Afectacion!S184 -> INTERSUBSECTORIAL AMBIENTE | F140: =+Eje.Depend.Afectacion!AA196 -> Nación | G140: =+Eje.Depend.Afectacion!AF196 -> CSF | H140: =+Eje.Depend.Afectacion!AI196 -> 13 | I140: =+Eje.Depend.Afectacion!AJ196 -> RECURSOS DEL CREDITO EXTERNO PREVIA AUTORIZACION | J140: =+$J$141 -> 2932656126 | K140: =+$K$141 -> 1805301219 | L140: =+$L$141 -> 1127354907 | M140: =+$M$141 -> 0,00 | N140: =+$N$141 -> 1771954219 | O140: =+$O$141 -> 33347000 | P140: =+$P$141 -> 1409506373 | Q140: =+$Q$141 -> 362447846.5 | R140: =+$R$141 -> 1409506373 | S140: =+$S$141 -> 0,00 | T140: =+$T$141 -> 1409506373 | U140: =+$U$141 -> 0,00 | V140: =+$V$141 -> 0,00 | W140: =+W141 -> 60.42147947
A141: =_xlfn.CONCAT(Eje.Depend.Afectacion!A196," ", Eje.Depend.Afectacion!C196," ",Eje.Depend.Afectacion!E196," ",Eje.Depend.Afectacion!G196," ",Eje.Depend.Afectacion!I196," ",Eje.Depend.Afectacion!L196," ",Eje.Depend.Afectacion!O196) -> C 3204 0900 3 0 3204048 02 | E141: =+Eje.Depend.Afectacion!S196 -> ADQUISICIÓN DE BIENES Y SERVICIOS - SERVICIO DE ADMINISTRACION DE LOS SISTEMAS DE INFORMACIÓN PARA LOS PROCESOS DE TOMA DE DECISIONES - FORTALECIMIENTO DE LA GESTIÓN DEL CONOCIMIENTO HIDROLÓGICO, METEOROLÓGICO Y AMBIENTAL NACIONAL | F141: =+Eje.Depend.Afectacion!AA196 -> Nación | G141: =+Eje.Depend.Afectacion!AF196 -> CSF | H141: =+Eje.Depend.Afectacion!AI196 -> 13 | I141: =+Eje.Depend.Afectacion!AJ196 -> RECURSOS DEL CREDITO EXTERNO PREVIA AUTORIZACION | J141: =+Eje.Depend.Afectacion!$AP$196 -> 2932656126 | K141: =+Eje.Depend.Afectacion!$AQ$196 -> 1805301219 | L141: =+Eje.Depend.Afectacion!$AR$196 -> 1127354907 | M141: =+Eje.Depend.Afectacion!$AS$196 -> 0,00 | N141: =+Eje.Depend.Afectacion!$AU$196 -> 1771954219 | O141: =+Eje.Depend.Afectacion!$AW$196 -> 33347000 | P141: =+Eje.Depend.Afectacion!$AX$196 -> 1409506373 | Q141: =+Eje.Depend.Afectacion!$AY$196 -> 362447846.5 | R141: =+Eje.Depend.Afectacion!$AZ$196 -> 1409506373 | S141: =+Eje.Depend.Afectacion!$BA$196 -> 0,00 | T141: =+Eje.Depend.Afectacion!$BB$196 -> 1409506373 | U141: =+Eje.Depend.Afectacion!$BC$196 -> 0,00 | V141: =+Eje.Depend.Afectacion!$BD$196 -> 0,00 | W141: =+(N141/J141)*100 -> 60.42147947
A142: =_xlfn.CONCAT(Eje.Depend.Afectacion!A185," ", Eje.Depend.Afectacion!C185," ",Eje.Depend.Afectacion!E185," ",Eje.Depend.Afectacion!G185," ",Eje.Depend.Afectacion!I185," ",Eje.Depend.Afectacion!L185," ",Eje.Depend.Afectacion!O185) -> C 3204 0900 | E142: =+Eje.Depend.Afectacion!S185 -> INTERSUBSECTORIAL AMBIENTE | F142: =+Eje.Depend.Afectacion!AA185 -> Propios | G142: =+Eje.Depend.Afectacion!AF185 -> CSF | H142: =+Eje.Depend.Afectacion!AI185 -> 20 | I142: =+Eje.Depend.Afectacion!AJ185 -> INGRESOS CORRIENTES | J142: =SUM(J143:J149) -> 8308000000 | K142: =SUM(K143:K149) -> 7220480756 | L142: 1087519244 | M142: 0 | N142: 5234245758 | O142: 1986234998 | P142: 2342114218 | Q142: 2892131540 | R142: 2342114218 | S142: 0 | T142: 2342114218 | U142: 0 | V142: 3762150 | W142: =+(N142/J142)*100 -> 63.00247662
A143: =_xlfn.CONCAT(Eje.Depend.Afectacion!A300," ", Eje.Depend.Afectacion!C300," ",Eje.Depend.Afectacion!E300," ",Eje.Depend.Afectacion!G300," ",Eje.Depend.Afectacion!I254," ",Eje.Depend.Afectacion!L300," ",Eje.Depend.Afectacion!O300) -> C 3204 0900 3 0 3204007 02 | E143: =+Eje.Depend.Afectacion!S300 -> ADQUISICIÓN DE BIENES Y SERVICIOS - SERVICIO DE ACREDITACIÓN DE LABORATORIOS Y ORGANIZACIONES - FORTALECIMIENTO DE LA GESTIÓN DEL CONOCIMIENTO HIDROLÓGICO, METEOROLÓGICO Y AMBIENTAL NACIONAL | F143: =+Eje.Depend.Afectacion!AA300 -> Propios | G143: =+Eje.Depend.Afectacion!AF300 -> CSF | H143: =+Eje.Depend.Afectacion!AI300 -> 20 | I143: =+Eje.Depend.Afectacion!AJ300 -> INGRESOS CORRIENTES | J143: =+Eje.Depend.Afectacion!AP300 -> 3000000000 | K143: =+Eje.Depend.Afectacion!$AQ$300 -> 2847064000 | L143: =+Eje.Depend.Afectacion!$AR$300 -> 152936000 | M143: =+Eje.Depend.Afectacion!$AS$300 -> 0,00 | N143: =+Eje.Depend.Afectacion!$AU$300 -> 2065209926 | O143: =+Eje.Depend.Afectacion!$AW$300 -> 781854074 | P143: =+Eje.Depend.Afectacion!$AX$300 -> 874214135 | Q143: =+Eje.Depend.Afectacion!$AY$300 -> 1190995791 | R143: =+Eje.Depend.Afectacion!$AZ$300 -> 874214135 | S143: =+Eje.Depend.Afectacion!$BA$300 -> 0,00 | T143: =+Eje.Depend.Afectacion!$BB$300 -> 874214135 | U143: =+Eje.Depend.Afectacion!$BC$300 -> 0,00 | V143: =+Eje.Depend.Afectacion!$BD$300 -> 0,00 | W143: 68.84033087
A144: =_xlfn.CONCAT(Eje.Depend.Afectacion!A234," ", Eje.Depend.Afectacion!C226," ",Eje.Depend.Afectacion!E234," ",Eje.Depend.Afectacion!G234," ",Eje.Depend.Afectacion!I234," ",Eje.Depend.Afectacion!L226," ",Eje.Depend.Afectacion!O234) -> C 3204 0900 3 0 3204015 02 | E144: =+Eje.Depend.Afectacion!S148 -> SERVICIO DE INFORMACIÓN DE DATOS CLIMÁTICOS Y MONITOREO | F144: =+Eje.Depend.Afectacion!AA333 -> Propios | G144: =+Eje.Depend.Afectacion!AF333 -> CSF | H144: =+Eje.Depend.Afectacion!AI333 -> 20 | I144: =+Eje.Depend.Afectacion!AJ333 -> INGRESOS CORRIENTES | J144: =+Eje.Depend.Afectacion!AP333 -> 745854311 | K144: =+Eje.Depend.Afectacion!$AQ$333 -> 705850423.8 | L144: =+Eje.Depend.Afectacion!$AR$333 -> 40003887.2 | M144: =+Eje.Depend.Afectacion!$AS$333 -> 0,00 | N144: =+Eje.Depend.Afectacion!$AU$333 -> 673503532 | O144: =+Eje.Depend.Afectacion!$AW$333 -> 32346891.8 | P144: =+Eje.Depend.Afectacion!$AX$333 -> 341564209 | Q144: =+Eje.Depend.Afectacion!$AY$333 -> 331939323 | R144: =+Eje.Depend.Afectacion!$AZ$333 -> 341564209 | S144: =+Eje.Depend.Afectacion!$BA$333 -> 0,00 | T144: =+Eje.Depend.Afectacion!$BB$333 -> 341564209 | U144: =+Eje.Depend.Afectacion!$BC$333 -> 0,00 | V144: =+Eje.Depend.Afectacion!$BD$333 -> 3762150 | W144: 90.29960973
A145: =_xlfn.CONCAT(Eje.Depend.Afectacion!A256," ", Eje.Depend.Afectacion!C256," ",Eje.Depend.Afectacion!E235," ",Eje.Depend.Afectacion!G256," ",Eje.Depend.Afectacion!I256," ",Eje.Depend.Afectacion!L256," ",Eje.Depend.Afectacion!O256) -> C 3204 0900 3 0 3204043 02 | E145: =+Eje.Depend.Afectacion!S257 -> ADQUISICIÓN DE BIENES Y SERVICIOS - SERVICIO DE INFORMACIÓN DE DATOS CLIMÁTICOS Y MONITOREO - FORTALECIMIENTO DE LA GESTIÓN DEL CONOCIMIENTO HIDROLÓGICO, METEOROLÓGICO Y AMBIENTAL NACIONAL | F145: =+Eje.Depend.Afectacion!AA267 -> Propios | G145: =+Eje.Depend.Afectacion!AF267 -> CSF | H145: =+Eje.Depend.Afectacion!AI267 -> 20 | I145: =+Eje.Depend.Afectacion!AJ267 -> INGRESOS CORRIENTES | J145: =+Eje.Depend.Afectacion!$AP$267 -> 1600000000 | K145: =+Eje.Depend.Afectacion!$AQ$267 -> 1508680000 | L145: =+Eje.Depend.Afectacion!$AR$267 -> 91320000 | M145: =+Eje.Depend.Afectacion!$AS$267 -> 0,00 | N145: =+Eje.Depend.Afectacion!$AU$267 -> 869990803 | O145: =+Eje.Depend.Afectacion!$AW$267 -> 638689197 | P145: =+Eje.Depend.Afectacion!$AX$267 -> 377388702 | Q145: =+Eje.Depend.Afectacion!$AY$267 -> 492602101 | R145: =+Eje.Depend.Afectacion!$AZ$267 -> 377388702 | S145: =+Eje.Depend.Afectacion!$BA$267 -> 0,00 | T145: =+Eje.Depend.Afectacion!$BB$267 -> 377388702 | U145: =+Eje.Depend.Afectacion!$BC$267 -> 0,00 | V145: =+Eje.Depend.Afectacion!$BD$267 -> 0,00 | W145: 54.37442519
A146: =_xlfn.CONCAT(Eje.Depend.Afectacion!A197," ", Eje.Depend.Afectacion!C197," ",Eje.Depend.Afectacion!E197," ",Eje.Depend.Afectacion!G197," ",Eje.Depend.Afectacion!I197," ",Eje.Depend.Afectacion!L197," ",Eje.Depend.Afectacion!O197) -> C 3204 0900 3 0 3204048 02 | E146: =+Eje.Depend.Afectacion!S197 -> ADQUISICIÓN DE BIENES Y SERVICIOS - SERVICIO DE ADMINISTRACION DE LOS SISTEMAS DE INFORMACIÓN PARA LOS PROCESOS DE TOMA DE DECISIONES - FORTALECIMIENTO DE LA GESTIÓN DEL CONOCIMIENTO HIDROLÓGICO, METEOROLÓGICO Y AMBIENTAL NACIONAL | F146: =+Eje.Depend.Afectacion!AA197 -> Propios | G146: =+Eje.Depend.Afectacion!AF197 -> CSF | H146: =+Eje.Depend.Afectacion!AI197 -> 20 | I146: =+Eje.Depend.Afectacion!AJ197 -> INGRESOS CORRIENTES | J146: =+Eje.Depend.Afectacion!$AP$310 -> 540000000 | K146: =+Eje.Depend.Afectacion!$AQ$310 -> 540000000 | L146: =+Eje.Depend.Afectacion!$AR$310 -> 0,00 | M146: =+Eje.Depend.Afectacion!$AS$310 -> 0,00 | N146: =+Eje.Depend.Afectacion!$AU$310 -> 540000000 | O146: =+Eje.Depend.Afectacion!$AW$310 -> 0,00 | P146: =+Eje.Depend.Afectacion!$AX$310 -> 279873983.8 | Q146: =+Eje.Depend.Afectacion!$AY$310 -> 260126016.2 | R146: =+Eje.Depend.Afectacion!$AZ$310 -> 279873983.8 | S146: =+Eje.Depend.Afectacion!$BA$310 -> 0,00 | T146: =+Eje.Depend.Afectacion!$BB$310 -> 279873983.8 | U146: =+Eje.Depend.Afectacion!$BC$310 -> 0,00 | V146: =+Eje.Depend.Afectacion!$BD$310 -> 0,00 | W146: =+(N146/J146)*100 -> 100
A147: =_xlfn.CONCAT(Eje.Depend.Afectacion!A334," ", Eje.Depend.Afectacion!C334," ",Eje.Depend.Afectacion!E334," ",Eje.Depend.Afectacion!G334," ",Eje.Depend.Afectacion!I334," ",Eje.Depend.Afectacion!L334," ",Eje.Depend.Afectacion!O334) -> C 3204 0900 3 0 3204050 02 | E147: =+Eje.Depend.Afectacion!S334 -> ADQUISICIÓN DE BIENES Y SERVICIOS - SERVICIO DE MODELACIÓN HIDRODINÁMICA - FORTALECIMIENTO DE LA GESTIÓN DEL CONOCIMIENTO HIDROLÓGICO, METEOROLÓGICO Y AMBIENTAL NACIONAL | F147: =+Eje.Depend.Afectacion!AA334 -> Propios | G147: =+Eje.Depend.Afectacion!AF334 -> CSF | H147: =+Eje.Depend.Afectacion!AI334 -> 20 | I147: =+Eje.Depend.Afectacion!AJ334 -> INGRESOS CORRIENTES | J147: =+Eje.Depend.Afectacion!$AP$334 -> 566756631 | K147: =+Eje.Depend.Afectacion!$AQ$334 -> 483408050 | L147: =+Eje.Depend.Afectacion!$AR$334 -> 83348581 | M147: =+Eje.Depend.Afectacion!$AS$334 -> 0,00 | N147: =+Eje.Depend.Afectacion!$AU$334 -> 415429000 | O147: =+Eje.Depend.Afectacion!$AW$334 -> 67979050 | P147: =+Eje.Depend.Afectacion!$AX$334 -> 238254000 | Q147: =+Eje.Depend.Afectacion!$AY$334 -> 177175000 | R147: =+Eje.Depend.Afectacion!$AZ$334 -> 238254000 | S147: =+Eje.Depend.Afectacion!$BA$334 -> 0,00 | T147: =+Eje.Depend.Afectacion!$BB$334 -> 238254000 | U147: =+Eje.Depend.Afectacion!$BC$334 -> 0,00 | V147: =+Eje.Depend.Afectacion!$BD$334 -> 0,00 | W147: 73.29936295
A148: =_xlfn.CONCAT(Eje.Depend.Afectacion!A335," ", Eje.Depend.Afectacion!C335," ",Eje.Depend.Afectacion!E335," ",Eje.Depend.Afectacion!G335," ",Eje.Depend.Afectacion!I335," ",Eje.Depend.Afectacion!L335," ",Eje.Depend.Afectacion!O335) -> C 3204 0900 3 0 3204051 02 | E148: =+Eje.Depend.Afectacion!S335 -> ADQUISICIÓN DE BIENES Y SERVICIOS - SERVICIO DE MONITOREO Y SEGUIMIENTO HIDROMETEOROLÓGICO - FORTALECIMIENTO DE LA GESTIÓN DEL CONOCIMIENTO HIDROLÓGICO, METEOROLÓGICO Y AMBIENTAL NACIONAL | F148: =+Eje.Depend.Afectacion!AA335 -> Propios | G148: =+Eje.Depend.Afectacion!AF335 -> CSF | H148: =+Eje.Depend.Afectacion!AI335 -> 20 | I148: =+Eje.Depend.Afectacion!AJ335 -> INGRESOS CORRIENTES | J148: =+Eje.Depend.Afectacion!$AP$335+Eje.Depend.Afectacion!$AP$239 -> 593700103 | K148: =+Eje.Depend.Afectacion!$AQ$239+Eje.Depend.Afectacion!$AQ$335 -> 227511827 | L148: =+Eje.Depend.Afectacion!$AR$239+Eje.Depend.Afectacion!$AR$335 -> 366188276 | M148: =+Eje.Depend.Afectacion!$AS$239+Eje.Depend.Afectacion!$AS$335 -> 0 | N148: =+Eje.Depend.Afectacion!$AU$239+Eje.Depend.Afectacion!$AU$335 -> 204726474 | O148: =+Eje.Depend.Afectacion!$AW$239+Eje.Depend.Afectacion!$AW$335 -> 22785353 | P148: =+Eje.Depend.Afectacion!$AX$239+Eje.Depend.Afectacion!$AX$335 -> 74950000 | Q148: =+Eje.Depend.Afectacion!$AY$239+Eje.Depend.Afectacion!$AY$335 -> 129776474 | R148: =+Eje.Depend.Afectacion!$AZ$239+Eje.Depend.Afectacion!$AZ$335 -> 74950000 | S148: =+Eje.Depend.Afectacion!$BA$239+Eje.Depend.Afectacion!$BA$335 -> 0 | T148: =+Eje.Depend.Afectacion!$BB$239+Eje.Depend.Afectacion!$BB$335 -> 74950000 | U148: =+Eje.Depend.Afectacion!$BC$239+Eje.Depend.Afectacion!$BC$335 -> 0 | V148: =+Eje.Depend.Afectacion!$BD$239+Eje.Depend.Afectacion!$BD$335 -> 0 | W148: 34.48314611
A149: =_xlfn.CONCAT(Eje.Depend.Afectacion!A336," ", Eje.Depend.Afectacion!C336," ",Eje.Depend.Afectacion!E336," ",Eje.Depend.Afectacion!G336," ",Eje.Depend.Afectacion!I336," ",Eje.Depend.Afectacion!L336," ",Eje.Depend.Afectacion!O336) -> C 3204 0900 3 0 3204052 02 | E149: =+Eje.Depend.Afectacion!S336 -> ADQUISICIÓN DE BIENES Y SERVICIOS - LABORATORIO DE CALIDAD AMBIENTAL ACREDITADO - FORTALECIMIENTO DE LA GESTIÓN DEL CONOCIMIENTO HIDROLÓGICO, METEOROLÓGICO Y AMBIENTAL NACIONAL | F149: =+Eje.Depend.Afectacion!AA336 -> Propios | G149: =+Eje.Depend.Afectacion!AF336 -> CSF | H149: =+Eje.Depend.Afectacion!AI336 -> 20 | I149: =+Eje.Depend.Afectacion!AJ336 -> INGRESOS CORRIENTES | J149: =+Eje.Depend.Afectacion!$AP$336+Eje.Depend.Afectacion!$AP$240 -> 1261688955 | K149: =+Eje.Depend.Afectacion!$AQ$336+Eje.Depend.Afectacion!$AQ$240 -> 907966455 | L149: =+Eje.Depend.Afectacion!$AR$336+Eje.Depend.Afectacion!$AR$240 -> 353722500 | M149: =+Eje.Depend.Afectacion!$AS$336+Eje.Depend.Afectacion!$AS$240 -> 0 | N149: =+Eje.Depend.Afectacion!$AU$336+Eje.Depend.Afectacion!$AU$240 -> 465386023 | O149: =+Eje.Depend.Afectacion!$AW$336+Eje.Depend.Afectacion!$AW$240 -> 442580432 | P149: =+Eje.Depend.Afectacion!$AX$336+Eje.Depend.Afectacion!$AX$240 -> 155869188 | Q149: =+Eje.Depend.Afectacion!$AY$336+Eje.Depend.Afectacion!$AY$240 -> 309516835 | R149: =+Eje.Depend.Afectacion!$AZ$336+Eje.Depend.Afectacion!$AZ$240 -> 155869188 | S149: =+Eje.Depend.Afectacion!$BA$336+Eje.Depend.Afectacion!$BA$240 -> 0 | T149: =+Eje.Depend.Afectacion!$BB$336+Eje.Depend.Afectacion!$BB$240 -> 155869188 | U149: =+Eje.Depend.Afectacion!$BC$336+Eje.Depend.Afectacion!$BC$240 -> 0 | V149: =+Eje.Depend.Afectacion!$BD$336+Eje.Depend.Afectacion!$BD$240 -> 0 | W149: 36.88595522
A150: =_xlfn.CONCAT(Eje.Depend.Afectacion!A198," ", Eje.Depend.Afectacion!C198," ",Eje.Depend.Afectacion!E198," ",Eje.Depend.Afectacion!G198," ",Eje.Depend.Afectacion!I198," ",Eje.Depend.Afectacion!L198," ",Eje.Depend.Afectacion!O198) -> C 3299 | E150: =+Eje.Depend.Afectacion!S198 -> FORTALECIMIENTO DE LA GESTIÓN Y DIRECCIÓN DEL SECTOR AMBIENTE Y DESARROLLO SOSTENIBLE | F150: =+Eje.Depend.Afectacion!AA198 -> Nación | G150: =+Eje.Depend.Afectacion!AF198 -> CSF | H150: =+Eje.Depend.Afectacion!AI198 -> 13 | I150: =+Eje.Depend.Afectacion!AJ198 -> RECURSOS DEL CREDITO EXTERNO PREVIA AUTORIZACION | J150: =+J151 -> 2987583148 | K150: =+K151 -> 2786372998 | L150: 201210150 | M150: 0 | N150: 1388982586 | O150: 1397390412 | P150: 590229604 | Q150: 798752982 | R150: 590229604 | S150: 0 | T150: 590229604 | U150: 0 | V150: 0 | W150: =+(N150/J150)*100 -> 46.49184699
A151: =_xlfn.CONCAT(Eje.Depend.Afectacion!A199," ", Eje.Depend.Afectacion!C199," ",Eje.Depend.Afectacion!E199," ",Eje.Depend.Afectacion!G199," ",Eje.Depend.Afectacion!I199," ",Eje.Depend.Afectacion!L199," ",Eje.Depend.Afectacion!O199) -> C 3299 0900 | E151: =+Eje.Depend.Afectacion!S199 -> INTERSUBSECTORIAL AMBIENTE | F151: =+Eje.Depend.Afectacion!AA199 -> Nación | G151: =+Eje.Depend.Afectacion!AF199 -> CSF | H151: =+Eje.Depend.Afectacion!AI199 -> 13 | I151: =+Eje.Depend.Afectacion!AJ199 -> RECURSOS DEL CREDITO EXTERNO PREVIA AUTORIZACION | J151: =+J152 -> 2987583148 | K151: =+K152 -> 2786372998 | L151: 201210150 | M151: 0 | N151: 1388982586 | O151: 1397390412 | P151: 590229604 | Q151: 798752982 | R151: 590229604 | S151: 0 | T151: 590229604 | U151: 0 | V151: 0 | W151: 46.49184699
A152: =_xlfn.CONCAT(Eje.Depend.Afectacion!A200," ", Eje.Depend.Afectacion!C200," ",Eje.Depend.Afectacion!E200," ",Eje.Depend.Afectacion!G200," ",Eje.Depend.Afectacion!I200," ",Eje.Depend.Afectacion!L200," ",Eje.Depend.Afectacion!O200) -> C 3299 0900 1 | E152: =+Eje.Depend.Afectacion!S200 -> FORTALECIMIENTO DE LA GESTIÓN Y DIRECCIÓN DEL INSTITUTO DE HIDROLOGÍA, METEOROLOGÍA Y ESTUDIOS AMBIENTALES NACIONAL | F152: =+Eje.Depend.Afectacion!AA200 -> Nación | G152: =+Eje.Depend.Afectacion!AF200 -> CSF | H152: =+Eje.Depend.Afectacion!AI200 -> 13 | I152: =+Eje.Depend.Afectacion!AJ200 -> RECURSOS DEL CREDITO EXTERNO PREVIA AUTORIZACION | J152: =SUM(J153:J157) -> 2987583148 | K152: =SUM(K153:K157) -> 2786372998 | L152: 201210150 | M152: 0 | N152: 1388982586 | O152: 1397390412 | P152: 590229604 | Q152: 798752982 | R152: 590229604 | S152: 0 | T152: 590229604 | U152: 0 | V152: 0 | W152: 46.49184699
A153: =_xlfn.CONCAT(Eje.Depend.Afectacion!A203," ", Eje.Depend.Afectacion!C203," ",Eje.Depend.Afectacion!E203," ",Eje.Depend.Afectacion!G203," ",Eje.Depend.Afectacion!I203," ",Eje.Depend.Afectacion!L203," ",Eje.Depend.Afectacion!O203) -> C 3299 0900 1 0 3299001 02 | E153: =+Eje.Depend.Afectacion!S203 -> ADQUISICIÓN DE BIENES Y SERVICIOS - SERVICIOS DE INFORMACIÓN PARA LA GESTIÓN ADMINISTRATIVA - FORTALECIMIENTO DE LA GESTIÓN Y DIRECCIÓN DEL INSTITUTO DE HIDROLOGÍA, METEOROLOGÍA Y ESTUDIOS AMBIENTALES NACIONAL | F153: =+Eje.Depend.Afectacion!AA203 -> Nación | G153: =+Eje.Depend.Afectacion!AF203 -> CSF | H153: =+Eje.Depend.Afectacion!AI203 -> 13 | I153: =+Eje.Depend.Afectacion!AJ203 -> RECURSOS DEL CREDITO EXTERNO PREVIA AUTORIZACION | J153: =+Eje.Depend.Afectacion!$AP$203 -> 247727499 | K153: =+Eje.Depend.Afectacion!$AQ$203 -> 247461829 | L153: =+Eje.Depend.Afectacion!$AR$203 -> 265670 | M153: =+Eje.Depend.Afectacion!$AS$203 -> 0,00 | N153: =+Eje.Depend.Afectacion!$AU$203 -> 154063330 | O153: =+Eje.Depend.Afectacion!$AW$203 -> 93398499 | P153: =+Eje.Depend.Afectacion!$AX$203 -> 58756742 | Q153: =+Eje.Depend.Afectacion!$AY$203 -> 95306588 | R153: =+Eje.Depend.Afectacion!$AZ$203 -> 58756742 | S153: =+Eje.Depend.Afectacion!$BA$203 -> 0,00 | T153: =+Eje.Depend.Afectacion!$BB$203 -> 58756742 | U153: =+Eje.Depend.Afectacion!$BC$203 -> 0,00 | V153: =+Eje.Depend.Afectacion!$BD$203 -> 0,00 | W153: 62.19064521
A154: =_xlfn.CONCAT(Eje.Depend.Afectacion!A160," ", Eje.Depend.Afectacion!C160," ",Eje.Depend.Afectacion!E160," ",Eje.Depend.Afectacion!G160," ",Eje.Depend.Afectacion!I160," ",Eje.Depend.Afectacion!L160," ",Eje.Depend.Afectacion!O160) -> C 3299 0900 1 0 3299006 02 | E154: =+Eje.Depend.Afectacion!S160 -> ADQUISICIÓN DE BIENES Y SERVICIOS - SERVICIOS DE COMUNICACIÓN - FORTALECIMIENTO DE LA GESTIÓN Y DIRECCIÓN DEL INSTITUTO DE HIDROLOGÍA, METEOROLOGÍA Y ESTUDIOS AMBIENTALES NACIONAL | F154: =+Eje.Depend.Afectacion!AA57 -> Nación | G154: =+Eje.Depend.Afectacion!AF160 -> CSF | H154: =+Eje.Depend.Afectacion!AI160 -> 13 | I154: =+Eje.Depend.Afectacion!AJ160 -> RECURSOS DEL CREDITO EXTERNO PREVIA AUTORIZACION | J154: =+Eje.Depend.Afectacion!$AP$160 -> 567762780 | K154: =+Eje.Depend.Afectacion!$AQ$160 -> 567762780 | L154: =+Eje.Depend.Afectacion!$AR$160 -> 0,00 | M154: =+Eje.Depend.Afectacion!$AS$160 -> 0,00 | N154: =+Eje.Depend.Afectacion!$AU$160 -> 331194955 | O154: =+Eje.Depend.Afectacion!$AW$160 -> 236567825 | P154: =+Eje.Depend.Afectacion!$AX$160 -> 236567825 | Q154: =+Eje.Depend.Afectacion!$AY$160 -> 94627130 | R154: =+Eje.Depend.Afectacion!$AZ$160 -> 236567825 | S154: =+Eje.Depend.Afectacion!$BA$160 -> 0,00 | T154: =+Eje.Depend.Afectacion!$BB$160 -> 236567825 | U154: =+Eje.Depend.Afectacion!$BC$160 -> 0,00 | V154: =+Eje.Depend.Afectacion!$BD$160 -> 0,00 | W154: 58.33333333
A155: =_xlfn.CONCAT(Eje.Depend.Afectacion!A161," ", Eje.Depend.Afectacion!C161," ",Eje.Depend.Afectacion!E161," ",Eje.Depend.Afectacion!G161," ",Eje.Depend.Afectacion!I161," ",Eje.Depend.Afectacion!L161," ",Eje.Depend.Afectacion!O161) -> C 3299 0900 1 0 3299007 02 | E155: =+Eje.Depend.Afectacion!S161 -> ADQUISICIÓN DE BIENES Y SERVICIOS - SERVICIO DE ATENCIÓN AL CIUDADANO - FORTALECIMIENTO DE LA GESTIÓN Y DIRECCIÓN DEL INSTITUTO DE HIDROLOGÍA, METEOROLOGÍA Y ESTUDIOS AMBIENTALES NACIONAL | F155: =+Eje.Depend.Afectacion!AA58 -> Nación | G155: =+Eje.Depend.Afectacion!AF161 -> CSF | H155: =+Eje.Depend.Afectacion!AI161 -> 13 | I155: =+Eje.Depend.Afectacion!AJ161 -> RECURSOS DEL CREDITO EXTERNO PREVIA AUTORIZACION | J155: =+Eje.Depend.Afectacion!$AP$161 -> 92700000 | K155: =+Eje.Depend.Afectacion!$AQ$161 -> 88146000 | L155: =+Eje.Depend.Afectacion!$AR$161 -> 4554000 | M155: =+Eje.Depend.Afectacion!$AS$161 -> 0,00 | N155: =+Eje.Depend.Afectacion!$AU$161 -> 88146000 | O155: =+Eje.Depend.Afectacion!$AW$161 -> 0,00 | P155: =+Eje.Depend.Afectacion!$AX$161 -> 35376000 | Q155: =+Eje.Depend.Afectacion!$AY$161 -> 52770000 | R155: =+Eje.Depend.Afectacion!$AZ$161 -> 35376000 | S155: =+Eje.Depend.Afectacion!$BA$161 -> 0,00 | T155: =+Eje.Depend.Afectacion!$BB$161 -> 35376000 | U155: =+Eje.Depend.Afectacion!$BC$161 -> 0,00 | V155: =+Eje.Depend.Afectacion!$BD$161 -> 0,00 | W155: 95.08737864
A156: =_xlfn.CONCAT(Eje.Depend.Afectacion!A159," ", Eje.Depend.Afectacion!C159," ",Eje.Depend.Afectacion!E159," ",Eje.Depend.Afectacion!G159," ",Eje.Depend.Afectacion!I159," ",Eje.Depend.Afectacion!L159," ",Eje.Depend.Afectacion!O159) -> C 3299 0900 1 0 3299011 02 | E156: =+Eje.Depend.Afectacion!S159 -> ADQUISICIÓN DE BIENES Y SERVICIOS - SEDES ADECUADAS - FORTALECIMIENTO DE LA GESTIÓN Y DIRECCIÓN DEL INSTITUTO DE HIDROLOGÍA, METEOROLOGÍA Y ESTUDIOS AMBIENTALES NACIONAL | F156: =+Eje.Depend.Afectacion!AA159 -> Nación | G156: =+Eje.Depend.Afectacion!AF159 -> CSF | H156: =+Eje.Depend.Afectacion!AI159 -> 13 | I156: =+Eje.Depend.Afectacion!AJ159 -> RECURSOS DEL CREDITO EXTERNO PREVIA AUTORIZACION | J156: =+Eje.Depend.Afectacion!$AP$159 -> 1614989889 | K156: =+Eje.Depend.Afectacion!$AQ$159 -> 1614989889 | L156: =+Eje.Depend.Afectacion!$AR$159 -> 0,00 | M156: =+Eje.Depend.Afectacion!$AS$159 -> 0,00 | N156: =+Eje.Depend.Afectacion!$AU$159 -> 552028301 | O156: =+Eje.Depend.Afectacion!$AW$159 -> 1062961588 | P156: =+Eje.Depend.Afectacion!$AX$159 -> 71279037 | Q156: =+Eje.Depend.Afectacion!$AY$159 -> 480749264 | R156: =+Eje.Depend.Afectacion!$AZ$159 -> 71279037 | S156: =+Eje.Depend.Afectacion!$BA$159 -> 0,00 | T156: =+Eje.Depend.Afectacion!$BB$159 -> 71279037 | U156: =+Eje.Depend.Afectacion!$BC$159 -> 0,00 | V156: =+Eje.Depend.Afectacion!$BD$159 -> 0,00 | W156: 34.18153295
A157: =_xlfn.CONCAT(Eje.Depend.Afectacion!A320," ", Eje.Depend.Afectacion!C320," ",Eje.Depend.Afectacion!E320," ",Eje.Depend.Afectacion!G320," ",Eje.Depend.Afectacion!I320," ",Eje.Depend.Afectacion!L320," ",Eje.Depend.Afectacion!O320) -> C 3299 0900 1 0 3299020 02 | E157: =+Eje.Depend.Afectacion!S320 -> ADQUISICIÓN DE BIENES Y SERVICIOS - SERVICIO DE GESTIÓN DE CALIDAD - FORTALECIMIENTO DE LA GESTIÓN Y DIRECCIÓN DEL INSTITUTO DE HIDROLOGÍA, METEOROLOGÍA Y ESTUDIOS AMBIENTALES NACIONAL | F157: =+Eje.Depend.Afectacion!AA320 -> Nación | G157: =+Eje.Depend.Afectacion!AF320 -> CSF | H157: =+Eje.Depend.Afectacion!AI320 -> 13 | I157: =+Eje.Depend.Afectacion!AJ320 -> RECURSOS DEL CREDITO EXTERNO PREVIA AUTORIZACION | J157: =+Eje.Depend.Afectacion!$AP$320 -> 464402980 | K157: =+Eje.Depend.Afectacion!$AQ$320 -> 268012500 | L157: =+Eje.Depend.Afectacion!$AR$320 -> 196390480 | M157: =+Eje.Depend.Afectacion!$AS$320 -> 0,00 | N157: =+Eje.Depend.Afectacion!$AU$320 -> 263550000 | O157: =+Eje.Depend.Afectacion!$AW$320 -> 4462500 | P157: =+Eje.Depend.Afectacion!$AX$320 -> 188250000 | Q157: =+Eje.Depend.Afectacion!$AY$320 -> 75300000 | R157: =+Eje.Depend.Afectacion!$AZ$320 -> 188250000 | S157: =+Eje.Depend.Afectacion!$BA$320 -> 0,00 | T157: =+Eje.Depend.Afectacion!$BB$320 -> 188250000 | U157: =+Eje.Depend.Afectacion!$BC$320 -> 0,00 | V157: =+Eje.Depend.Afectacion!$BD$320 -> 0,00 | W157: 56.75028183
F158: A-FUNCIONAMIENTO RECURSO 10 | J158: =+J12+J47+J101+J110 -> 49764900000 | K158: 49542301310 | L158: 222598690 | M158: 0 | N158: 2.500742494e+10 | O158: 2.453487637e+10 | P158: 2.05322221e+10 | Q158: 4475202842 | R158: 2.05322221e+10 | S158: 0 | T158: 2.05322221e+10 | U158: 0 | V158: 41414312 | W158: 50.2511307
F159: A-FUNCIONAMIENTO RECURSO 10 PREVIO CONCEPTO | J159: 3936000000
F160: A-FUNCIONAMIENTO RECURSO 11 | J160: =+J10 -> 218383350 | K160: 0,00 | L160: 218383350 | M160: 0,00 | N160: 0,00 | O160: 0,00 | P160: 0,00 | Q160: 0,00 | R160: 0,00 | S160: 0,00 | T160: 0,00 | U160: 0,00 | V160: 0,00 | W160: 0
B161: RAMIRO ANTONIO VILLEGAS ROMERO | F161: A-FUNCIONAMIENTO RECURSO 21 | J161: =+J11 -> 596894000 | K161: 533476000 | L161: 63418000 | M161: 0,00 | N161: 533091000 | O161: 385000 | P161: 222524000 | Q161: 310567000 | R161: 222524000 | S161: 0,00 | T161: 222524000 | U161: 0,00 | V161: 0,00 | W161: 89.31083241
B162: COORDINADOR DEL GRUPO DE PRESUPUESTO | F162: B-SERVICIO DE LA DEUDA PÚBLICA | J162: =+J119 -> 73458261 | K162: 0,00 | L162: 73458261 | M162: 0,00 | N162: 0,00 | O162: 0,00 | P162: 0,00 | Q162: 0,00 | R162: 0,00 | S162: 0,00 | T162: 0,00 | U162: 0,00 | V162: 0,00 | W162: 0
F163: C-INVERSION RECURSO 11 | J163: =+J123 -> 18000000000 | K163: 1.731599121e+10 | L163: 684008791 | M163: 0 | N163: 1.017091557e+10 | O163: 7145075640 | P163: 4467052922 | Q163: 5703862647 | R163: 4467052922 | S163: 0 | T163: 4467052922 | U163: 0 | V163: 16156161.58 | W163: 56.5050865
F164: C-INVERSION RECURSO 13 PREEVIA AUTORIZACION | J164: =+J124 -> 5920239274 | K164: 4591674217 | L164: 1328565057 | M164: 0 | N164: 3160936805 | O164: 1430737412 | P164: 1999735977 | Q164: 1161200828 | R164: 1999735977 | S164: 0 | T164: 1999735977 | U164: 0 | V164: 0 | W164: 53.3920448
F165: C-INVERSION RECURSO 20 | J165: =+J125 -> 8308000000 | K165: 7220480756 | L165: 1087519244 | M165: 0 | N165: 5234245758 | O165: 1986234998 | P165: 2342114218 | Q165: 2892131540 | R165: 2342114218 | S165: 0 | T165: 2342114218 | U165: 0 | V165: 3762150 | W165: 63.00247662
A166: ELABORO: RAMIRO VILLEGAS | F166: TOTAL FUNC-+SERV.DEUDA+INVERSION | J166: =+J158+J160+J161+J162+J163+J164+J165+J159 -> 86817874885 | K166: =+K158+K160+K161+K162+K163+K164+K165 -> 7.920392349e+10 | L166: 3677951393 | M166: 0 | N166: 4.410661408e+10 | O166: 3.509730942e+10 | P166: 2.956364922e+10 | Q166: 1.454296486e+10 | R166: 2.956364922e+10 | S166: 0 | T166: 2.956364922e+10 | U166: 0 | V166: 61332623.58 | W166: 50.80360943
